{"text_format":"1","workbook":"xlsx","n_sheets":24,"sheets":["Lookups","Instructions","Table of Contents","Outstanding Errors and Warnings","Employment NPIs","Services Employment","Education NPIs","Services Education","Income NPIs","Services Income","Housing NPIs","Services Housing","Health NPIs","Services Health and Social","CivicEng&Comm NPIs","Services Civic Eng. & Comm Inv.","Outcomes Across Mult Domains","Support Services","ALL Characteristics","Year to Year Comparisons NPIs","Year to Year Comparisons SRVs","Year to Year ALL Characteristic","Identification","XML Export Map"],"not_rendered":{"charts":0,"images":0,"macros":1,"external_links":0,"defined_names":1587,"comments":0,"pivot_tables":0},"unopened":[],"bounds":{"document_bytes":16777216,"sheet_cells":100000,"rows_first":2000,"rows_last":500,"rows_between":2000,"halvings":0,"cell_chars":16384,"cell_head_chars":4096},"cells_cut":0,"cells_raw":0,"read":"whole","date_system":"1900"}

{"sheet":"Lookups","index":0,"n_rows":11,"n_cols":3,"rows_kept":11,"cut":false,"hidden":true,"merged":[]}
[]
[]
[null,"EditText_WsName","Employment NPIs"]
[null,"EditText_FieldName","FNPI 1d The number of unemployed adults who obtained and maintained employment for at least 180 days \n(up to a living wage)."]
[null,"EditText_Text"]
[null,"EditText_Status","Cancel"]
[null,"EditText_MaxLength",4000]
[]
[null,"Max_Errors",500]
[]
[null,"XML_Filename","D:\\Work\\NASCSP - SmartForms\\SmartForms 2019-20\\Module 4 SmartForm - 2019-20.xml"]

{"sheet":"Instructions","index":1,"n_rows":12,"n_cols":3,"rows_kept":12,"cut":false,"hidden":false,"merged":[[18,1,18,3],[19,1,19,3],[20,1,20,3],[10,1,10,3],[11,1,11,3],[12,1,12,3],[14,1,14,3],[16,1,16,3],[17,1,17,3],[9,1,9,3],[3,1,3,3],[5,1,5,3],[6,1,6,3],[7,1,7,3],[8,1,8,3]]}
[]
[null,null,"Instructional Notes"]
[]
[null,"Module 4, Section A: Individual and Family National Performance Indicators (NPIs) - Data Entry Form"]
[]
[null,"Section A: Individual and Family NPIs Data Entry Form is comprised of indicators to report outcomes that fall under National Goal 1: Individuals and families with low incomes are stable and achieve economic security. The indicators are the vehicle by which CSBG Eligible Entities measure and report the outcomes they have achieved for individuals and families. All Individual and Family NPIs are optional, and there is a category for \"Other Outcome Indicator\". "]
[]
[null,"Module 4, Section B: Individual and Family Services - Data Entry Form"]
[null,"Section B: Individual and Family Services Data Entry Form provides information on the work CSBG Eligible Entities did to help individuals and families achieve the outcomes listed in Section A. This standardized Individual and Family Services list will aid in analysis of the relationship between people, services, and outcomes. "]
[]
[null,"Module 4, Section C: All Characteristics Report - Data Entry Form"]
[null,"Section C: The All Characteristics Report Data Entry Form collects data on all individuals and households, whether or not funded directly by CSBG. This demographic information strengthens the CSBG Annual Report by demonstrating who is being served by CSBG Eligible Entities. "]

{"sheet":"Table of Contents","index":2,"n_rows":31,"n_cols":2,"rows_kept":31,"cut":false,"hidden":false,"merged":[]}
[]
[]
[]
[]
[null,"Table of Contents"]
[]
[null,"Instructions"]
[]
[null,"Outstanding Errors and Warnings"]
[]
[null,"Employment Indicators (Employment NPIs)"]
[null,"Education and Cognitive Development Indicators (Education NPIs)"]
[null,"Income and Asset Building Indicators (Income NPIs)"]
[null,"Housing Indicators (Housing NPIs)"]
[null,"Health and Social/Behavioral Development Indicators (Health NPIs)"]
[null,"Civic Engagement and Community Involvement Indicators (CivicEng&Comm NPIs)"]
[null,"Outcomes Across Multiple Domains (Outcomes Across Mult Domains)"]
[]
[null,"Employment Services (Services Employment)"]
[null,"Education and Cognitive Development Services (Services Education)"]
[null,"Income and Asset Building Services (Services Income)"]
[null,"Housing Services (Services Housing)"]
[null,"Health and Social/Behavioral Development (Services Health and Social)"]
[null,"Civic Engagement and Community Involvement (Services Civic Eng. & Comm Inv.)"]
[null,"Services Supporting Multiple Domains (Support Services)"]
[]
[null,"All Characteristics Report  (ALL Characteristics)"]
[]
[null,"Year to Year Comparisons NPIs"]
[null,"Year to Year Comparisons SRVs"]
[null,"Year to Year ALL Characteristic"]

{"sheet":"Outstanding Errors and Warnings","index":3,"n_rows":5,"n_cols":6,"rows_kept":5,"cut":false,"hidden":false,"merged":[[3,1,3,4]]}
[]
[null,null,null,null,"Double click in any row to go to the cell that generated the error or warning."]
[null,null,null,null,null,"Double Click"]
[null,"Module 4 Errors and Warnings",null,null,null,"Below To"]
[null,"Tab","Data Field","Severity","Message Description","Go To Field"]

{"sheet":"Employment NPIs","index":4,"n_rows":50,"n_cols":13,"rows_kept":50,"cut":false,"hidden":false,"merged":[[22,1,22,2],[21,1,21,2],[14,1,14,2],[16,1,16,2],[17,1,17,2],[0,2,0,8],[10,1,10,2],[11,1,11,2],[12,1,12,2],[13,1,13,2],[8,1,8,2],[7,1,7,2],[9,1,9,2],[1,1,1,8],[2,1,2,8],[3,1,3,8],[4,1,4,2],[5,1,5,2],[5,3,5,5],[4,3,4,8],[5,7,5,8]]}
[null,null,"FY 2020 CSBG Annual Report"]
[null,"Module 4, Section A: Individual and Family National Performance Indicators (FNPIs) - Data Entry Form"]
[null,"Goal 1: Individuals and Families with low incomes are stable and achieve economic security."]
[null,"Employment Indicators"]
[null,"Name of CSBG Eligible Entity Reporting:",null,"Southeastern Utah Association of Local Governments"]
[null,"State:",null,"Utah",null,null,"DUNS:","097758627"]
[]
[null,"Employment (FNPI 1)",null,"I.) Number of Individuals Served \nin program(s) (#)","II.) Target (#)","III.) Actual Results (#) ","IV.) Percentage Achieving Outcome  \n[III/ I = IV ] (% auto calculated)","V.) Performance Target Accuracy \n(III/II = V] (% auto calculated) ","NPI Entry Status"]
[null,"FNPI 1a The number of unemployed youth who obtained employment to gain skills or income.",null,11,13,9,{"$f":"IFERROR(F9/D9,\"\")","v":0.81818181818181823},{"$f":"IFERROR(F9/E9,\"\")","v":0.69230769230769229},"OK"]
[null,"FNPI 1b The number of unemployed adults who obtained employment (up to a living wage).",null,39,50,34,0.87179487179487181,0.68,"OK"]
[null,"FNPI 1c The number of unemployed adults who obtained and maintained employment for at least 90 days \n(up to a living wage). ",null,42,53,35,0.83333333333333337,0.660377358490566,"OK"]
[null,"FNPI 1d The number of unemployed adults who obtained and maintained employment for at least 180 days \n(up to a living wage).",null,31,42,27,0.87096774193548387,0.6428571428571429,"OK"]
[null,"FNPI 1e The number of unemployed adults who obtained employment (with a living wage or higher).",null,35,44,31,0.88571428571428568,0.70454545454545459,"OK"]
[null,"FNPI 1f The number of unemployed adults who obtained and maintained employment for at least 90 days \n(with a living wage or higher). ",null,17,19,14,0.82352941176470584,0.73684210526315785,"OK"]
[null,"FNPI 1g The number of unemployed adults who obtained and maintained employment for at least 180 days \n(with a living wage or higher). ",null,15,18,12,0.8,0.66666666666666663,"OK"]
[]
[null,"Employment (FNPI 1)",null,"I.) Number of Individuals Served \nin program(s) (#)","II.) Target (#)","III.) Actual Results (#) ","IV.) Percentage Achieving Outcome  \n[III/ I = IV ] (% auto calculated)","V.) Performance Target Accuracy \n(III/II = V] (% auto calculated) ","NPI Entry Status"]
[null,"FNPI 1h The number of employed participants in a career-advancement related program who entered or transitioned into a position that provided increased income and/or benefits.",null,39,47,32,{"$f":"IFERROR(F18/D18,\"\")","v":0.82051282051282048},{"$f":"IFERROR(F18/E18,\"\")","v":0.68085106382978722},"OK"]
[null,"FNPI 1h.1 The number of employed participants in a career advancement related program who increased income from employment through wage or salary amount increase.","FNPI 1h.1 Of the above, the number of employed participants who Increased income from employment through wage or salary amount increase.",36,45,32,{"$f":"IFERROR(F19/D19,\"\")","v":0.88888888888888884},{"$f":"IFERROR(F19/E19,\"\")","v":0.71111111111111114},"OK"]
[null,"FNPI 1h.2 The number of employed participants in a career advancement related program who increased income from employment through hours worked increase.","FNPI 1h.2 Of the above, the number of employed participants who increased income from employment through hours worked increase.",23,27,20,{"$f":"IFERROR(F20/D20,\"\")","v":0.86956521739130432},{"$f":"IFERROR(F20/E20,\"\")","v":0.7407407407407407},"OK"]
[null,"FNPI 1h.3 The number of employed participants in a career advancement related program who increased benefits related to employment.","FNPI 1h.3 Of the above, the number of employed participants who increased benefits related to employment.",11,14,8,{"$f":"IFERROR(F21/D21,\"\")","v":0.72727272727272729},{"$f":"IFERROR(F21/E21,\"\")","v":0.5714285714285714},"OK"]
[]
[null,"Other Employment Outcome Indicator (FNPI 1z)\n\nPlease briefly describe the other indicator and specify the units used (number of individuals or households)",null,"I.) Number of Participants Served \nin program(s) (#)","II.) Target (#)","III.) Actual Results (#) ","IV.) Percentage Achieving Outcome  \n[III/ I = IV ] (% auto calculated)","V.) Performance Target Accuracy \n(III/II = V] (% auto calculated) ","NPI Entry Status"]
[null,"FNPI 1z.1","Number of individuals who improved employment as a result of remote work programs. ",12,18,10,{"$f":"IFERROR(F24/D24,\"\")","v":0.83333333333333337},{"$f":"IFERROR(F24/E24,\"\")","v":0.55555555555555558},"OK"]
[null,"FNPI 1z.2",null,null,null,null,{"$f":"IFERROR(F25/D25,\"\")","v":""},{"$f":"IFERROR(F25/E25,\"\")","v":""}," "]
[null,"FNPI 1z.3",null,null,null,null,{"$f":"IFERROR(F26/D26,\"\")","v":""},{"$f":"IFERROR(F26/E26,\"\")","v":""}," "]
[null,"FNPI 1z.4",null,null,null,null,{"$f":"IFERROR(F27/D27,\"\")","v":""},{"$f":"IFERROR(F27/E27,\"\")","v":""}," "]
[null,"FNPI 1z.5",null,null,null,null,{"$f":"IFERROR(F28/D28,\"\")","v":""},{"$f":"IFERROR(F28/E28,\"\")","v":""}," "]
[null,null,null,null,null,null,null,null,{"$f":"IF(OR(AND(AND(D29<>\"\",D29<>0),AND(E29<>\"\",E29<>0),F29<>\"\"),AND(OR(D29=\"\",D29=0),OR(E29=\"\",E29=0),OR(F29=\"\",F29=0))),\"\",\"Row Incomplete\")","v":""}]
[]
[]
[]
[]
[]
[]
[]
[]
[]
[]
[]
[]
[]
[]
[]
[]
[]
[]
[]
[]
[null,null,null,null,null,null,null,null,null,null,null,null,1]

{"sheet":"Services Employment","index":5,"n_rows":29,"n_cols":9,"rows_kept":29,"cut":false,"hidden":false,"merged":[[27,1,27,2],[7,1,7,2],[2,1,2,2],[3,1,3,2],[4,2,4,4],[0,1,0,2],[1,1,1,2],[14,1,14,2],[17,1,17,2],[24,1,24,2]]}
[null,"FY 2020 CSBG Annual Report"]
[null,"Module 4, Section B: Individual and Family Services - \nData Entry Form"]
[null,"Goal 1: Individuals and Families with low-incomes are stable and achieve economic security."]
[null,"Employment Services"]
[null,"Name of CSBG Eligible Entity Reporting:",{"$f":"M4AgencyName","v":"Southeastern Utah Association of Local Governments"}]
[null,"State:",{"$f":"M4StateName","v":"Utah"},"DUNS:",{"$f":"M4DUNS","v":"097758627"}]
[null,"Employment Services (SRV 1)","Unduplicated Number of \nIndividuals Served"]
[null,"Skills Training and Opportunities for Experience (SRV 1a-f)"]
[null,"SRV 1a Vocational Training ",5]
[null,"SRV 1b On-the-Job and other Work Experience ",14]
[null," SRV 1c Youth Summer Work Placements"]
[null,"SRV 1d Apprenticeship/Internship",3]
[null,"SRV 1e Self-Employment Skills Training  ",2]
[null," SRV 1f Job Readiness Training  ",18]
[null,"Career Counseling (SRV 1g-h)"]
[null,"SRV 1g Workshops",12]
[null,"SRV 1h Coaching ",25]
[null,"Job Search (SRV 1i-n)"]
[null,"SRV 1i Coaching ",26]
[null,"SRV 1j Resume Development ",22]
[null,"SRV 1k Interview Skills Training ",22]
[null,"SRV 1l Job Referrals",46]
[null,"SRV 1m Job Placements",13]
[null,"SRV 1n Pre-employment physicals, background checks, etc.",14,null,null,null,null,null,"OK"]
[null,"Post Employment Supports (SRV 1o-p)"]
[null,"SRV 1o Coaching ",9]
[null,"SRV 1p Interactions with employers ",13]
[null,"Employment Supplies (SRV 1q)"]
[null,"SRV 1q Employment Supplies",13]

{"sheet":"Education NPIs","index":6,"n_rows":31,"n_cols":9,"rows_kept":31,"cut":false,"hidden":false,"merged":[[21,1,21,2],[22,1,22,2],[23,1,23,2],[25,1,25,2],[9,1,9,2],[10,1,10,2],[14,1,14,2],[18,1,18,2],[19,1,19,2],[20,1,20,2],[0,2,0,8],[8,1,8,2],[1,1,1,7],[2,1,2,7],[3,2,3,7],[7,1,7,2],[4,1,4,2],[4,3,4,8],[5,1,5,2],[5,3,5,5],[5,7,5,8]]}
[null,null,"FY 2020 CSBG Annual Report"]
[null,"Module 4, Section A: Individual and Family National Performance Indicators (FNPIs) - Data Entry Form"]
[null,"Goal 1: Individuals and Families with low incomes are stable and achieve economic security."]
[null,null,"Education and Cognitive Development Indicators"]
[null,"Name of CSBG Eligible Entity Reporting:",null,{"$f":"M4AgencyName","v":"Southeastern Utah Association of Local Governments"}]
[null,"State:",null,{"$f":"M4StateName","v":"Utah"},null,null,"DUNS:",{"$f":"M4DUNS","v":"097758627"}]
[]
[null,"Education and Cognitive Development (FNPI 2)\n",null,"I.) Number of Individuals Served \nin program(s) (#)","II.) Target (#)","III.) Actual Results (#) ","IV.) Percentage Achieving Outcome  \n[III/ I = IV ] (% auto calculated)","V.) Performance Target Accuracy \n(III/II = V] (% auto calculated) ","NPI Entry Status"]
[null,"FNPI 2a The number of children (0 to 5) who demonstrated improved emergent literacy skills.",null,null,null,null,{"$f":"IFERROR(F9/D9,\"\")","v":""},{"$f":"IFERROR(F9/E9,\"\")","v":""}," "]
[null,"FNPI 2b The number of children (0 to 5) who demonstrated skills for school readiness. ",null,10,13,8,0.8,0.61538461538461542,"OK"]
[null,"FNPI 2c The number of children and youth who demonstrated improved positive approaches toward learning, including improved attention skills. (auto total).",null,{"$f":"SUM(D12:D14)","v":0},{"$f":"SUM(E12:E14)","v":0},{"$f":"SUM(F12:F14)","v":0},"",""]
[null,"FNPI 2c.1 Early Childhood Education (ages 0-5): The number of children and youth who demonstrated improved positive approaches toward learning, including improved attention skills","FNPI 2c.1    Early Childhood Education (ages 0-5)",null,null,null,"",""," "]
[null,"FNPI 2c.2  1st grade - 8th grade: The number of children and youth who demonstrated improved positive approaches toward learning, including improved attention skills","FNPI 2c.2    1st grade-8th grade",null,null,null,"",""," "]
[null,"FNPI 2c.3  9th grade - 12th grade: The number of children and youth who demonstrated improved positive approaches toward learning, including improved attention skills\n","FNPI 2c.3    9th grade-12th grade",null,null,null,"",""," "]
[null,"FNPI 2d The number of children and youth who are achieving at basic grade level (academic, social, and other school success skills). (auto total)",null,{"$f":"SUM(D16:D18)","v":0},{"$f":"SUM(E16:E18)","v":0},{"$f":"SUM(F16:F18)","v":0},"",""]
[null,"FNPI 2d.1 Early Childhood Education (ages 0-5): The number of children and youth who are achieving at basic grade level (academic, social, and other school success skills)\n\n\n","FNPI 2d.1    Early Childhood Education (ages 0-5)",null,null,null,"","",{"$f":"IF(ISERROR(D16+E16+F16), \"Row Incomplete\", IF(OR(AND(D16<>\"\",D16<>0,E16<>\"\",F16<>\"\"),AND(OR(D16=\"\",D16=0),OR(E16=\"\",E16=0),OR(F16=\"\",F16=0))),\"\",\"Row Incomplete\"))","v":""}]
[null,"FNPI 2d.2 1st grade – 8th grade: The number of children and youth who are achieving at basic grade level (academic, social, and other school success skills)\n","FNPI 2d.2    1st grade-8th grade",null,null,null,"","",""]
[null,"FNPI 2d.3 9st grade – 12th grade: The number of children and youth who are achieving at basic grade level (academic, social, and other school success skills)\n","FNPI 2d.3   9th grade-12th grade",null,null,null,"","",""]
[null,"FNPI 2e The number of parents/caregivers who improved their home environments. ",null,7,5,4,0.5714285714285714,0.8,"OK"]
[null,"FNPI 2f The number of adults who demonstrated improved basic education.",null,null,null,null,"","",""]
[null,"FNPI 2g The number of individuals who obtained a high school diploma and/or obtained an equivalency certificate or diploma.",null,null,null,null,"","",""]
[null,"FNPI 2h The number of individuals who obtained a recognized credential, certificate, or degree relating to the achievement of educational or vocational skills.",null,1,2,1,1,0.5,"OK"]
[null,"FNPI 2i The number of individuals who obtained an Associate’s degree.",null,null,null,null,"","",""]
[null,"FNPI 2j The number of individuals who obtained a Bachelor’s degree.",null,null,null,null,"","",""]
[]
[null,"Other Education and Cognitive Development Outcome Indicator (FNPI 2z)",null,"I.) Number of Individuals Served \nin program(s) (#)","II.) Target (#)","III.) Actual Results (#) ","IV.) Percentage Achieving Outcome  \n[III/ I = IV ] (% auto calculated)","V.) Performance Target Accuracy \n(III/II = V] (% auto calculated) ","NPI Entry Status"]
[null,"FNPI 2z.1",null,null,null,null,{"$f":"IFERROR(F27/D27,\"\")","v":""},{"$f":"IFERROR(F27/E27,\"\")","v":""},{"$f":"IF(ISERROR(D27+E27+F27), \"Row Incomplete\", IF(OR(AND(D27<>\"\",D27<>0,E27<>\"\", F27<>\"\", C27<>\"\"), AND(OR(D27=\"\",D27=0), OR(E27=\"\",E27=0), OR(F27=\"\",F27=0), C27=\"\")), \"\",\"Row Incomplete\"))","v":""}]
[null,"FNPI 2z.2",null,null,null,null,"",""," "]
[null,"FNPI 2z.3",null,null,null,null,"",""," "]
[null,"FNPI 2z.4",null,null,null,null,"","",{"$f":"IF(ISERROR(D30+E30+F30), \"Row Incomplete\", IF(OR(AND(D30<>\"\",D30<>0,E30<>\"\", F30<>\"\", C30<>\"\"), AND(OR(D30=\"\",D30=0), OR(E30=\"\",E30=0), OR(F30=\"\",F30=0), C30=\"\")), \"\",\"Row Incomplete\"))","v":""}]
[null,"FNPI 2z.5",null,null,null,null,"","",{"$f":"IF(ISERROR(D31+E31+F31), \"Row Incomplete\", IF(OR(AND(D31<>\"\",D31<>0,E31<>\"\", F31<>\"\", C31<>\"\"), AND(OR(D31=\"\",D31=0), OR(E31=\"\",E31=0), OR(F31=\"\",F31=0), C31=\"\")), \"\",\"Row Incomplete\"))","v":""}]

{"sheet":"Services Education","index":7,"n_rows":43,"n_cols":5,"rows_kept":43,"cut":false,"hidden":false,"merged":[[0,1,0,2],[27,1,27,2],[37,1,37,2],[39,1,39,2],[41,1,41,2],[1,1,1,2],[2,1,2,2],[7,1,7,2],[18,1,18,2],[20,1,20,2],[4,2,4,4],[3,1,3,2]]}
[null,"FY 2020 CSBG Annual Report"]
[null,"Module 4, Section B: Individual and Family Services - \nData Entry Form"]
[null,"Goal 1: Individuals and Families with low-incomes are stable and achieve economic security."]
[null,"Education and Cognitive Development Services"]
[null,"Name of CSBG Eligible Entity Reporting:",{"$f":"M4AgencyName","v":"Southeastern Utah Association of Local Governments"}]
[null,"State:",{"$f":"M4StateName","v":"Utah"},"DUNS:",{"$f":"M4DUNS","v":"097758627"}]
[null,"Education and Cognitive Development Services (SRV 2)","Unduplicated Number of \nIndividuals Served"]
[null,"Child/Young Adult Education Programs (SRV 2a-j)"]
[null,"SRV 2a Early Head Start "]
[null,"SRV 2b Head Start"]
[null,"SRV 2c Other Early-Childhood (0-5 yr. old) Education "]
[null,"SRV 2d K-12 Education "]
[null,"SRV 2e K-12 Support Services"]
[null,"SRV 2f Financial Literacy Education",39]
[null,"SRV 2g Literacy/English Language Education"]
[null,"SRV 2h College-Readiness Preparation/Support  ",5]
[null,"SRV 2i Other Post Secondary Preparation"]
[null,"SRV 2j Other Post Secondary Support"]
[null,"School Supplies (SRV 2k)"]
[null,"SRV 2k School Supplies",8]
[null,"Extra-curricular Programs (SRV 2l-q)"]
[null,"SRV 2l Before and After School Activities",37]
[null,"SRV 2m Summer Youth Recreational Activities"]
[null,"SRV 2n Summer Education Programs"]
[null,"SRV 2o Behavior Improvement Programs (attitude, self-esteem, Dress-for-Success, etc.)",8]
[null,"SRV 2p Mentoring",41]
[null," SRV 2q Leadership Training",33]
[null,"Adult Education Programs (SRV 2r-z)"]
[null,"SRV 2r Adult Literacy Classes"]
[null,"SRV 2s English Language Classes"]
[null,"SRV 2t Basic Education Classes  "]
[null,"SRV 2u High School Equivalency Classes"]
[null," SRV 2v Leadership Training"]
[null,"SRV 2w Parenting Supports (may be a part of the early childhood programs identified above)"]
[null,"SRV 2x Applied Technology Classes"]
[null,"SRV 2y Post-Secondary Education Preparation"]
[null,"SRV 2z Financial Literacy Education",31]
[null," Post-Secondary Education Supports (SRV 2aa)"]
[null,"SRV 2aa College applications, text books, computers, etc."]
[null,"Financial Aid Assistance (SRV 2bb)"]
[null,"SRV 2bb Scholarships"]
[null,"Home Visits (SVR 2cc)"]
[null,"SRV 2cc Home Visits",19]

{"sheet":"Income NPIs","index":8,"n_rows":25,"n_cols":9,"rows_kept":25,"cut":false,"hidden":false,"merged":[[16,1,16,2],[17,2,17,7],[19,1,19,2],[9,1,9,2],[10,1,10,2],[11,1,11,2],[12,1,12,2],[14,1,14,2],[15,1,15,2],[13,1,13,2],[0,2,0,8],[8,1,8,2],[1,1,1,7],[2,1,2,7],[3,1,3,7],[7,1,7,2],[4,1,4,2],[4,3,4,8],[5,1,5,2],[5,3,5,5],[5,7,5,8]]}
[null,null,"FY 2020 CSBG Annual Report"]
[null,"Module 4, Section A: Individual and Family National Performance Indicators (FNPIs) - Data Entry Form"]
[null,"Goal 1: Individuals and Families with low incomes are stable and achieve economic security."]
[null,"Income and Asset Building Indicators"]
[null,"Name of CSBG Eligible Entity Reporting:",null,{"$f":"M4AgencyName","v":"Southeastern Utah Association of Local Governments"}]
[null,"State:",null,{"$f":"M4StateName","v":"Utah"},null,null,"DUNS:",{"$f":"M4DUNS","v":"097758627"}]
[]
[null,"Income and Asset Building (FNPI 3)",null,"I.) Number of Individuals Served \nin program(s) (#)","II.) Target (#)","III.) Actual Results (#) ","IV.) Percentage Achieving Outcome  \n[III/ I = IV ] (% auto calculated)","V.) Performance Target Accuracy \n(III/II = V] (% auto calculated) ","NPI Entry Status"]
[null,"FNPI 3a The number of individuals who achieved and maintained capacity to meet basic needs for 90 days.",null,60,65,53,{"$f":"IFERROR(F9/D9,\"\")","v":0.8833333333333333},{"$f":"IFERROR(F9/E9,\"\")","v":0.81538461538461537},"OK"]
[null,"FNPI 3b The number of individuals who achieved and maintained capacity to meet basic needs for 180 days.",null,35,38,28,0.8,0.73684210526315785,"OK"]
[null,"FNPI 3c The number of individuals who opened a savings account or IDA.",null,11,14,9,0.81818181818181823,0.6428571428571429,"OK"]
[null,"FNPI 3d The number of individuals who increased their savings.",null,26,33,21,0.80769230769230771,0.63636363636363635,"OK"]
[null,"FNPI 3e The number of individuals who used their savings to purchase an asset.",null,11,15,9,0.81818181818181823,0.6,"OK"]
[null,"FNPI 3f The number of individuals who purchased a home.",null,8,12,6,0.75,0.5,"OK"]
[null,"FNPI 3g The number of individuals who improved their credit scores. ",null,34,41,25,0.73529411764705888,0.6097560975609756,"OK"]
[null,"FNPI 3h The number of individuals who increased their net worth. ",null,31,34,24,0.77419354838709675,0.70588235294117652,"OK"]
[null,"FNPI 3i The number of individuals engaged with the Community Action Agency who report improved financial well-being.",null,36,33,30,0.83333333333333337,0.90909090909090906,"OK"]
[]
[]
[null,"Other Income and Asset Building Outcome Indicator (FNPI 3z) ",null,"I.) Number of Individuals Served \nin program(s) (#)","II.) Target (#)","III.) Actual Results (#) ","IV.) Percentage Achieving Outcome  \n[III/ I = IV ] (% auto calculated)","V.) Performance Target Accuracy \n(III/II = V] (% auto calculated) ","NPI Entry Status"]
[null,"FNPI 3z.1","Number of Individuals served / Asset Building",58,68,49,{"$f":"IFERROR(F21/D21,\"\")","v":0.84482758620689657},{"$f":"IFERROR(F21/E21,\"\")","v":0.72058823529411764},"OK"]
[null,"FNPI 3z.2",null,null,null,null,{"$f":"IFERROR(F22/D22,\"\")","v":""},""]
[null,"FNPI 3z.3",null,null,null,null,{"$f":"IFERROR(F23/D23,\"\")","v":""},""," "]
[null,"FNPI 3z.4",null,null,null,null,{"$f":"IFERROR(F24/D24,\"\")","v":""},""]
[null,"FNPI 3z.5","Number of Individuals who reduced debt",12,10,8,{"$f":"IFERROR(F25/D25,\"\")","v":0.66666666666666663},0.8,"OK"]

{"sheet":"Services Income","index":9,"n_rows":28,"n_cols":5,"rows_kept":28,"cut":false,"hidden":false,"merged":[[0,1,0,2],[21,1,21,2],[1,1,1,2],[2,1,2,2],[3,1,3,2],[7,1,7,2],[14,1,14,2],[4,2,4,4]]}
[null,"FY 2020 CSBG Annual Report"]
[null,"Module 4, Section B: Individual and Family Services - \nData Entry Form"]
[null,"Goal 1: Individuals and Families with low incomes are stable and achieve economic security."]
[null,"Income and Asset Building Services"]
[null,"Name of CSBG Eligible Entity Reporting:",{"$f":"M4AgencyName","v":"Southeastern Utah Association of Local Governments"}]
[null,"State:",{"$f":"M4StateName","v":"Utah"},"DUNS:",{"$f":"M4DUNS","v":"097758627"}]
[null,"Income and Asset Building Services (SRV 3)","Unduplicated Number of \nIndividuals Served"]
[null,"Training and Counseling Services (SRV 3a-f)"]
[null,"SRV 3a Financial Capability Skills Training",58]
[null,"SRV 3b Financial Coaching/Counseling ",53]
[null,"SRV 3c Financial Management Programs (including budgeting, credit management, credit repair, credit counseling, etc.)   ",58]
[null,"SRV 3d First-time Homebuyer Counseling",17]
[null,"SRV 3e Foreclosure Prevention Counseling",6]
[null,"SRV 3f Small Business Start-Up and Development Counseling Sessions/Classes",8]
[null,"Benefit Coordination and Advocacy (SRV 3g-l)"]
[null,"SRV 3g Child Support Payments",18]
[null,"SRV 3h Health Insurance",22]
[null,"SRV 3i Social Security/SSI Payments",20]
[null,"SRV 3j Veteran's Benefits",19]
[null,"SRV 3k TANF Benefits",39]
[null,"SRV 3l SNAP Benefits",52]
[null,"Asset Building (SRV 3m-o)"]
[null,"SRV 3m Saving Accounts/IDAs and other asset building accounts",24]
[null,"SRV 3n Other financial products (IRA accounts, MyRA, other retirement accounts, etc.)",2]
[null,"SRV 3o VITA, EITC, or Other Tax Preparation programs"]
[null,"SRV 3p Loans And Grants (SRV 3p-q)"]
[null,"SRV 3p Micro-loans"]
[null,"SRV 3q Business incubator/business development loans",3]

{"sheet":"Housing NPIs","index":10,"n_rows":23,"n_cols":9,"rows_kept":23,"cut":false,"hidden":false,"merged":[[15,1,15,2],[17,1,17,2],[9,1,9,2],[10,1,10,2],[11,1,11,2],[12,1,12,2],[13,1,13,2],[14,1,14,2],[0,2,0,8],[8,1,8,2],[1,1,1,7],[2,1,2,7],[3,1,3,7],[7,1,7,2],[4,1,4,2],[4,3,4,8],[5,1,5,2],[5,3,5,5],[5,7,5,8]]}
[null,null,"FY 2020 CSBG Annual Report"]
[null,"Module 4, Section A: Individual and Family National Performance Indicators (FNPIs) - Data Entry Form"]
[null,"Goal 1: Individuals and Families with low incomes are stable and achieve economic security."]
[null,"Housing Indicators"]
[null,"Name of CSBG Eligible Entity Reporting:",null,{"$f":"M4AgencyName","v":"Southeastern Utah Association of Local Governments"}]
[null,"State:",null,{"$f":"M4StateName","v":"Utah"},null,null,"DUNS:",{"$f":"M4DUNS","v":"097758627"}]
[]
[null,"Housing (FNPI 4)",null,"I.) Number of Individuals Served \nin program(s) (#)","II.) Target (#)","III.) Actual Results (#) ","IV.) Percentage Achieving Outcome  \n[III/ I = IV ] (% auto calculated)","V.) Performance Target Accuracy \n(III/II = V] (% auto calculated) ","NPI Entry Status"]
[null,"FNPI 4a The number of individuals experiencing homelessness who obtained safe temporary shelter.",null,40,47,33,{"$f":"IFERROR(F9/D9,\"\")","v":0.82499999999999996},{"$f":"IFERROR(F9/E9,\"\")","v":0.7021276595744681},"OK"]
[null,"FNPI 4b The number of individuals who obtained safe and affordable housing.",null,89,120,78,0.8764044943820225,0.65,"OK"]
[null,"FNPI 4c The number of individuals who maintained safe and affordable housing for 90 days.",null,69,82,60,0.86956521739130432,0.73170731707317072,"OK"]
[null,"FNPI 4d The number of individuals who maintained safe and affordable housing for 180 days. ",null,78,95,65,0.83333333333333337,0.68421052631578949,"OK"]
[null,"FNPI 4e The number of individuals who avoided eviction.",null,127,152,109,0.8582677165354331,0.71710526315789469,"OK"]
[null,"FNPI 4f The number of individuals who avoided foreclosure.",null,18,20,15,0.83333333333333337,0.75,"OK"]
[null,"FNPI 4g The number of individuals who experienced improved health and safety due to improvements within their home (e.g. reduction or elimination of lead, radon, carbon dioxide and/or fire hazards or electrical issues, etc).",null,7,9,5,0.7142857142857143,0.55555555555555558,"OK"]
[null,"FNPI 4h The number of individuals with improved energy efficiency and/or energy burden reduction in their homes.",null,68,89,57,0.83823529411764708,0.6404494382022472,"OK"]
[]
[null,"Other Housing Outcome Indicator (FNPI 4z)",null,"I.) Number of Participants Served \nin program(s) (#)","II.) Target (#)","III.) Actual Results (#) ","IV.) Percentage Achieving Outcome  \n[III/ I = IV ] (% auto calculated)","V.) Performance Target Accuracy \n(III/II = V] (% auto calculated) ","NPI Entry Status"]
[null,"FNPI 4z.1",null,null,null,null,{"$f":"IFERROR(F19/D19,\"\")","v":""},{"$f":"IFERROR(F19/E19,\"\")","v":""}]
[null,"FNPI 4z.2","Number of individuals who avoided a utility shut-off",290,331,246,{"$f":"IFERROR(F20/D20,\"\")","v":0.84827586206896555},0.74320241691842903,"OK"]
[null,"FNPI 4z.3","Number of individuals who obtained utilities",28,36,24,{"$f":"IFERROR(F21/D21,\"\")","v":0.8571428571428571},0.66666666666666663,"OK"]
[null,"FNPI 4z.4","Number of individuals whose energy service was restored after disconnection",30,38,25,{"$f":"IFERROR(F22/D22,\"\")","v":0.83333333333333337},0.65789473684210531,"OK"]
[null,"FNPI 4z.5",null,null,null,null,{"$f":"IFERROR(F23/D23,\"\")","v":""},""]

{"sheet":"Services Housing","index":11,"n_rows":33,"n_cols":5,"rows_kept":33,"cut":false,"hidden":false,"merged":[[0,1,0,2],[22,1,22,2],[27,1,27,2],[29,1,29,2],[1,1,1,2],[2,1,2,2],[3,1,3,2],[7,1,7,2],[13,1,13,2],[17,1,17,2],[4,2,4,4]]}
[null,"FY 2020 CSBG Annual Report"]
[null,"Module 4, Section B: Individual and Family Services - Data Entry Form"]
[null,"Goal 1: Individuals and Families with low incomes are stable and achieve economic security."]
[null,"Housing Services"]
[null,"Name of CSBG Eligible Entity Reporting:",{"$f":"M4AgencyName","v":"Southeastern Utah Association of Local Governments"}]
[null,"State:",{"$f":"M4StateName","v":"Utah"},"DUNS:",{"$f":"M4DUNS","v":"097758627"}]
[null,"Housing Services (SRV 4)","Unduplicated Number of \nIndividuals Served"]
[null,"Housing Payment Assistance (SRV 4a-e)"]
[null,"SRV 4a Financial Capability Skill Training ",32]
[null,"SRV 4b Financial Coaching/Counseling ",34]
[null,"SRV 4c Rent Payments (includes Emergency Rent Payments)",186]
[null,"SRV 4d Deposit Payments",48]
[null,"SRV 4e Mortgage Payments (includes Emergency Mortgage Payments)",7]
[null,"Eviction Prevention Services (SRV 4f-h)"]
[null,"SRV 4f Eviction Counseling ",1]
[null,"SRV 4g Landlord/Tenant Mediations",16]
[null,"SRV 4h Landlord/Tenant Rights Education ",7]
[null,"Utility Payment Assistance (SRV 4i-l)"]
[null,"SRV 4i Utility Payments (LIHEAP-includes Emergency Utility Payments)",3062]
[null,"SRV 4j Utility Deposits",23]
[null,"SRV 4k Utility Arrears Payments",26]
[null,"SRV 4l Level Billing Assistance"]
[null,"Housing Placement/Rapid Re-housing (SRV 4m-p)"]
[null,"SRV 4m Temporary Housing Placement (includes Emergency Shelters)",10]
[null,"SRV 4n Transitional Housing Placements"]
[null,"SRV 4o Permanent Housing Placements ",38]
[null,"SRV 4p Rental Counseling ",2]
[null,"Housing Maintenance & Improvements (SRV 4q)"]
[null,"SRV 4q Home Repairs (e.g. structural, appliance, heating systems. etc.) (Including Emergency Home Repairs)"]
[null,"Weatherization Services (SRV 4r-t)"]
[null,"SRV 4r Independent-living Home Improvements (e.g. ramps, tub and shower grab bars, handicap accessible modifications, etc.)"]
[null,"SRV 4s Healthy Homes Services(e.g. reduction or elimination of lead, radon, carbon monoxide and/or fire hazards or electrical issues, etc.)"]
[null,"SRV 4t Energy Efficiency Improvements (e.g. insulation, air sealing, furnace repair, etc.)"]

{"sheet":"Health NPIs","index":12,"n_rows":26,"n_cols":9,"rows_kept":26,"cut":false,"hidden":false,"merged":[[15,1,15,2],[16,1,16,2],[19,1,19,2],[20,1,20,2],[9,1,9,2],[10,1,10,2],[11,1,11,2],[12,1,12,2],[13,1,13,2],[14,1,14,2],[0,2,0,8],[8,1,8,2],[1,1,1,7],[2,1,2,7],[3,1,3,7],[7,1,7,2],[4,1,4,2],[4,3,4,8],[5,1,5,2],[5,3,5,5],[5,7,5,8]]}
[null,null,"FY 2020 CSBG Annual Report"]
[null,"Module 4, Section A: Individual and Family National Performance Indicators (FNPIs) - Data Entry Form"]
[null,"Goal 1: Individuals and Families with low incomes are stable and achieve economic security."]
[null,"Health and Social/Behavioral Development Indicators"]
[null,"Name of CSBG Eligible Entity Reporting:",null,{"$f":"M4AgencyName","v":"Southeastern Utah Association of Local Governments"}]
[null,"State:",null,{"$f":"M4StateName","v":"Utah"},null,null,"DUNS:",{"$f":"M4DUNS","v":"097758627"}]
[]
[null,"Health and Social/Behavioral Development (FNPI 5)",null,"I.) Number of Individuals Served \nin program(s) (#)","II.) Target (#)","III.) Actual Results (#) ","IV.) Percentage Achieving Outcome  \n[III/ I = IV ] (% auto calculated)","V.) Performance Target Accuracy \n(III/II = V] (% auto calculated) ","NPI Entry Status"]
[null,"FNPI 5a The number of individuals who demonstrated increased nutrition skills (e.g. cooking, shopping, and growing food). ",null,null,null,null,{"$f":"IFERROR(F9/D9,\"\")","v":""},{"$f":"IFERROR(F9/E9,\"\")","v":""},{"$f":"IF(ISERROR(D9+E9+F9), \"Row Incomplete\", IF(OR(AND(D9<>\"\",D9<>0,E9<>\"\",F9<>\"\"),AND(OR(D9=\"\",D9=0),OR(E9=\"\",E9=0),OR(F9=\"\",F9=0))),\"\",\"Row Incomplete\"))","v":""}]
[null,"FNPI 5b The number of individuals who demonstrated improved physical health and well-being.",null,null,null,null,"","",""]
[null,"FNPI 5c The number of individuals who demonstrated improved mental and behavioral health and well-being. ",null,4,5,3,0.75,0.6,"OK"]
[null,"FNPI 5d The number of individuals who improved skills related to the adult role of parents/ caregivers. ",null,null,null,null,"","",""]
[null,"FNPI 5e The number of parents/caregivers who demonstrated increased sensitivity and responsiveness in their interactions with their children. ",null,null,null,null,"","",""]
[null,"FNPI 5f The number of seniors (65+) who maintained an independent living situation.",null,null,null,null,"","",""]
[null,"FNPI 5g The number of individuals with disabilities who maintained an independent living situation.",null,null,null,null,"",""," "]
[null,"FNPI 5h The number of individuals with a chronic illness who maintained an independent living situation.",null,null,null,null,"",""," "]
[null,"FNPI 5i The number of individuals with no recidivating event for six months.",null,{"$f":"SUM(D18:D19)","v":0},{"$f":"SUM(E18:E19)","v":0},{"$f":"SUM(F18:F19)","v":0},"",""]
[null,"FNPI 5i.1 The number of youth with no recidivating event for six months.","FNPI 5i.1 Youth (ages 14-17)",null,null,null,"",""," "]
[null,"FNPI 5i.2 The number of adults with no recidivating event for six months.","FNPI 5i.2 Adults (ages 18+)",null,null,null,"",""," "]
[]
[null,"Other Health and Social/Behavioral Development Outcome Indicator (FNPI 5z)",null,"I.) Number of Individuals Served \nin program(s) (#)","II.) Target (#)","III.) Actual Results (#) ","IV.) Percentage Achieving Outcome  \n[III/ I = IV ] (% auto calculated)","V.) Performance Target Accuracy \n(III/II = V] (% auto calculated) ","NPI Entry Status"]
[null,"FNPI 5z.1","Number of individuals who reported a better sense of food security",2265,2450,1989,{"$f":"IFERROR(F22/D22,\"\")","v":0.87814569536423837},{"$f":"IFERROR(F22/E22,\"\")","v":0.81183673469387752},"OK"]
[null,"FNPI 5z.2",null,null,null,null,{"$f":"IFERROR(F23/D23,\"\")","v":""},""]
[null,"FNPI 5z.3",null,null,null,null,{"$f":"IFERROR(F24/D24,\"\")","v":""},""]
[null,"FNPI 5z.4",null,null,null,null,{"$f":"IFERROR(F25/D25,\"\")","v":""},""]
[null,"FNPI 5z.5",null,null,null,null,{"$f":"IFERROR(F26/D26,\"\")","v":""},""]

{"sheet":"Services Health and Social","index":13,"n_rows":58,"n_cols":5,"rows_kept":58,"cut":false,"hidden":false,"merged":[[0,1,0,2],[55,1,55,2],[1,1,1,2],[2,1,2,2],[3,1,3,2],[7,1,7,2],[18,1,18,2],[24,1,24,2],[27,1,27,2],[35,1,35,2],[40,1,40,2],[45,1,45,2],[51,1,51,2],[4,2,4,4]]}
[null,"FY 2020 CSBG Annual Report"]
[null,"Module 4, Section B: Individual and Family Services - \nData Entry Form"]
[null,"Goal 1: Individuals and Families with low incomes are stable and achieve economic security."]
[null,"Health and Social/Behavioral Development"]
[null,"Name of CSBG Eligible Entity Reporting:",{"$f":"M4AgencyName","v":"Southeastern Utah Association of Local Governments"}]
[null,"State:",{"$f":"M4StateName","v":"Utah"},"DUNS:",{"$f":"M4DUNS","v":"097758627"}]
[null,"Health and Social/Behavioral Development Services (SRV 5)","Unduplicated Number of \nIndividuals Served"]
[null,"Health Services, Screening and Assessments (SRV 5a-j)"]
[null,"SRV 5a Immunizations"]
[null,"SRV 5b Physicals"]
[null,"SRV 5c Developmental Delay Screening"]
[null,"SRV 5d Vision  Screening"]
[null,"SRV 5e Prescription Payments"]
[null,"SRV 5f Doctor Visit Payments"]
[null,"SRV 5g Maternal/Child Health"]
[null,"SRV 5h Nursing Care Sessions"]
[null," SRV 5i In-Home Affordable Seniors/Disabled Care Sessions\n(Nursing, Chores, Personal Care Services) "]
[null,"SRV 5j Health Insurance Options Counseling"]
[null,"Reproductive Health Services (SRV 5k-o)"]
[null,"SRV 5k Coaching Sessions"]
[null,"SRV 5l Family Planning Classes"]
[null,"SRV 5m Contraceptives"]
[null,"SRV 5n STI/HIV Prevention Counseling Sessions"]
[null,"SRV 5o STI/HIV Screenings"]
[null,"Wellness Education (SRV 5p-q)"]
[null,"SRV 5p Wellness Classes (stress reduction, medication management, mindfulness, etc.)"]
[null,"SRV 5q Exercise/Fitness "]
[null,"Mental/Behavioral Health (SRV 5r-x)"]
[null,"SRV 5r Detoxification Sessions"]
[null,"SRV 5s Substance Abuse Screenings"]
[null,"SRV 5t Substance Abuse Counseling "]
[null,"SRV 5u Mental Health Assessments",3]
[null,"SRV 5v Mental Health Counseling ",3]
[null,"SRV 5w Crisis Response/Call-In Responses"]
[null,"SRV 5x Domestic Violence Programs"]
[null,"Support Groups (SRV 5y-aa)"]
[null,"SRV 5y Substance Abuse Support Group Meetings"]
[null,"SRV 5z Domestic Violence Support Group Meetings"]
[null,"SRV 5aa Mental Health Support Group Meetings"]
[null,"Health and Social/Behavioral Development Services (Cont'd.)","Unduplicated Number of \nIndividuals Served"]
[null,"Dental Services, Screenings and Exams (SRV 5bb-ee)"]
[null,"SRV 5bb Adult Dental Screening/Exams"]
[null,"SRV 5cc Adult Dental Services (including Emergency Dental Procedures)"]
[null,"SRV 5dd Child Dental Screenings/Exams"]
[null,"SRV 5ee Child Dental Services (including Emergency Dental Procedures)"]
[null,"Nutrition and Food/Meals (SRV 5ff-jj)"]
[null,"SRV 5ff Skills Classes (Gardening, Cooking, Nutrition)"]
[null,"SRV 5gg Community Gardening Activities"]
[null,"SRV 5hh Incentives (e.g. gift card for food preparation, rewards for participation, etc.)"]
[null,"SRV 5ii Prepared Meals"]
[null,"SRV 5jj Food Distribution (Food Bags/Boxes, Food Share Program, Bags of Groceries)  ",2265]
[null,"Family Skills Development (SRV 5kk-mm)"]
[null,"SRV 5kk Family Mentoring Sessions"]
[null,"SRV 5ll Life Skills Coaching Sessions"]
[null,"SRV 5mm Parenting Classes"]
[null,"Emergency Hygiene Assistance (SRV 5nn-oo)"]
[null,"SRV 5nn Kits/boxes",10]
[null,"SRV 5oo Hygiene Facility Utilizations (e.g. showers, toilets, sinks)"]

{"sheet":"CivicEng&Comm NPIs","index":14,"n_rows":19,"n_cols":9,"rows_kept":19,"cut":false,"hidden":false,"merged":[[0,2,0,8],[13,1,13,2],[1,1,1,7],[2,1,2,7],[3,1,3,7],[7,1,7,2],[8,1,8,2],[4,1,4,2],[4,3,4,8],[5,1,5,2],[5,3,5,5],[5,7,5,8]]}
[null,null,"FY 2020 CSBG Annual Report"]
[null,"Module 4, Section A: Individual and Family National Performance Indicators (FNPIs) - Data Entry Form"]
[null,"Goal 1: Individuals and Families with low incomes are stable and achieve economic security."]
[null,"Civic Engagement and Community Involvement Indicators"]
[null,"Name of CSBG Eligible Entity Reporting:",null,{"$f":"M4AgencyName","v":"Southeastern Utah Association of Local Governments"}]
[null,"State:",null,{"$f":"M4StateName","v":"Utah"},null,null,"DUNS:",{"$f":"M4DUNS","v":"097758627"}]
[]
[null,"Civic Engagement and Community Involvement Indicators (FNPI 6)",null,"I.) Number of Individuals Served \nin program(s) (#)","II.) Target (#)","III.) Actual Results (#) ","IV.) Percentage Achieving Outcome  \n[III/ I = IV ] (% auto calculated)","V.) Performance Target Accuracy \n(III/II = V] (% auto calculated) ","NPI Entry Status"]
[null,"FNPI 6a The number of individuals who increased skills, knowledge, and abilities to enable them to work with Community Action to improve conditions in the community. ",null,134,188,117,{"$f":"IFERROR(F9/D9,\"\")","v":0.87313432835820892},{"$f":"IFERROR(F9/E9,\"\")","v":0.62234042553191493},"OK"]
[null,"FNPI 6a.1  The number of Community Action program participants who improved their leadership skills to enable them to work with Community Action to improve conditions in the community.","FNPI 6a.1 Of the above, the number of Community Action program participants who improved their leadership skills.",32,38,27,{"$f":"IFERROR(F10/D10,\"\")","v":0.84375},0.71052631578947367,"OK"]
[null,"FNPI 6a.2 The number of Community Action program participants who improved their social networks to enable them to work with Community Action to improve conditions in the community.","FNPI 6a.2 Of the above, the number of Community Action program participants who improved their social networks.",98,107,86,{"$f":"IFERROR(F11/D11,\"\")","v":0.87755102040816324},0.80373831775700932,"OK"]
[null,"FNPI 6a.3 The number of Community Action program participants who gained other skills, knowledge and abilities to enhance their social networks to enable them to work with Community Action to improve conditions in the community.","FNPI 6a.3 Of the above, the number of Community Action program participants who gained other skills, knowledge and abilities to enhance their ability to engage. ",39,41,32,{"$f":"IFERROR(F12/D12,\"\")","v":0.82051282051282048},0.78048780487804881,"OK"]
[]
[null,"Other Civic Engagement and Community Involvement Outcome Indicator (FNPI 6z)",null,"I.) Number of Individuals Served \nin program(s) (#)","II.) Target (#)","III.) Actual Results (#) ","IV.) Percentage Achieving Outcome  \n[III/ I = IV ] (% auto calculated)","V.) Performance Target Accuracy \n(III/II = V] (% auto calculated) ","NPI Entry Status"]
[null,"FNPI 6z.1",null,null,null,null,{"$f":"IFERROR(F15/D15,\"\")","v":""},{"$f":"IFERROR(F15/E15,\"\")","v":""}," "]
[null,"FNPI 6z.2",null,null,null,null,{"$f":"IFERROR(F16/D16,\"\")","v":""},""," "]
[null,"FNPI 6z.3",null,null,null,null,{"$f":"IFERROR(F17/D17,\"\")","v":""},""," "]
[null,"FNPI 6z.4",null,null,null,null,{"$f":"IFERROR(F18/D18,\"\")","v":""},""," "]
[null,"FNPI 6z.5",null,null,null,null,{"$f":"IFERROR(F19/D19,\"\")","v":""},""," "]

{"sheet":"Services Civic Eng. & Comm Inv.","index":15,"n_rows":14,"n_cols":5,"rows_kept":14,"cut":false,"hidden":false,"merged":[[1,1,1,2],[2,1,2,2],[3,1,3,2],[4,2,4,4],[0,1,0,2]]}
[null,"FY 2020 CSBG Annual Report"]
[null,"Module 4, Section B: Individual and Family Services - Data Entry Form"]
[null,"Goal 1: Individuals and Families with low-incomes are stable and achieve economic security."]
[null,"Civic Engagement and Community Involvement"]
[null,"Name of CSBG Eligible Entity Reporting:",{"$f":"M4AgencyName","v":"Southeastern Utah Association of Local Governments"}]
[null,"State:",{"$f":"M4StateName","v":"Utah"},"DUNS:",{"$f":"M4DUNS","v":"097758627"}]
[null,"Civic Engagement and Community Involvement Services (SRV 6a-f)","Unduplicated Number of \nIndividuals Served"]
[null,"SRV 6a Voter Education and Access",11]
[null,"Leadership Training"]
[null,"SRV 6b Leadership Training",36]
[null,"SRV 6c Tri-partite Board Membership",12]
[null,"SRV 6d Citizenship Classes"]
[null,"SRV 6e Getting Ahead Classes",16]
[null,"SRV 6f Volunteer Training ",59]

{"sheet":"Outcomes Across Mult Domains","index":16,"n_rows":16,"n_cols":9,"rows_kept":16,"cut":false,"hidden":false,"merged":[[0,2,0,8],[10,1,10,2],[1,1,1,7],[2,1,2,7],[3,1,3,7],[7,1,7,2],[8,1,8,2],[4,1,4,2],[4,3,4,8],[5,1,5,2],[5,3,5,5],[5,7,5,8]]}
[null,null,"FY 2020 CSBG Annual Report"]
[null,"Module 4, Section A: Individual and Family National Performance Indicators (FNPIs) - Data Entry Form"]
[null,"Goal 1: Individuals and Families with low incomes are stable and achieve economic security."]
[null,"Outcomes Achieved Across One or More Domains"]
[null,"Name of CSBG Eligible Entity Reporting:",null,{"$f":"M4AgencyName","v":"Southeastern Utah Association of Local Governments"}]
[null,"State:",null,{"$f":"M4StateName","v":"Utah"},null,null,"DUNS:",{"$f":"M4DUNS","v":"097758627"}]
[]
[null,"Outcomes Achieved Across One or More Domains (FNPI 7)",null,"I.) Number of Individuals Served \nin program(s) (#)","II.) Target (#)","III.) Actual Results (#) ","IV.) Percentage Achieving Outcome  \n[III/ I = IV ] (% auto calculated)","V.) Performance Target Accuracy \n(III/II = V] (% auto calculated) ","NPI Entry Status"]
[null,"FNPI 7a The number of individuals who achieved one or more outcomes in the identified National Performance Indicators in one or more domains.",null,2674,1974,2486,{"$f":"IFERROR(F9/D9,\"\")","v":0.9296933433059088},{"$f":"IFERROR(F9/E9,\"\")","v":1.2593718338399189},"OK"]
[]
[null,"Other Outcome Indicator (FNPI 7z)",null,"I.) Number of Individuals Served \nin program(s) (#)","II.) Target (#)","III.) Actual Results (#) ","IV.) Percentage Achieving Outcome  \n[III/ I = IV ] (% auto calculated)","V.) Performance Target Accuracy \n(III/II = V] (% auto calculated) ","NPI Entry Status"]
[null,"FNPI 7z.1","The number of individuals who received bundled services and achieved one or more outcomes",7,10,6,{"$f":"IFERROR(F12/D12,\"\")","v":0.8571428571428571},{"$f":"IFERROR(F12/E12,\"\")","v":0.6},"OK"]
[null,"FNPI 7z.2","The number of individuals who transitioned out of poverty",5,7,3,{"$f":"IFERROR(F13/D13,\"\")","v":0.6},0.42857142857142855,"OK"]
[null,"FNPI 7z.3",null,null,null,null,{"$f":"IFERROR(F14/D14,\"\")","v":""},""]
[null,"FNPI 7z.4",null,null,null,null,{"$f":"IFERROR(F15/D15,\"\")","v":""},""]
[null,"FNPI 7z.5",null,null,null,null,{"$f":"IFERROR(F16/D16,\"\")","v":""},""]

{"sheet":"Support Services","index":17,"n_rows":34,"n_cols":5,"rows_kept":34,"cut":false,"hidden":false,"merged":[[28,1,28,2],[30,1,30,2],[32,1,32,2],[13,1,13,2],[15,1,15,2],[18,1,18,2],[20,1,20,2],[24,1,24,2],[26,1,26,2],[0,1,0,2],[11,1,11,2],[1,1,1,2],[2,1,2,2],[3,1,3,2],[7,1,7,2],[9,1,9,2],[4,2,4,4]]}
[null,"FY 2020 CSBG Annual Report"]
[null,"Module 4, Section B: Individual and Family Services - Data Entry Form"]
[null,"Goal 1: Individuals and Families with low-incomes are stable and achieve economic security."]
[null,"Services Supporting Multiple Domains"]
[null,"Name of CSBG Eligible Entity Reporting:",{"$f":"M4AgencyName","v":"Southeastern Utah Association of Local Governments"}]
[null,"State:",{"$f":"M4StateName","v":"Utah"},"DUNS:",{"$f":"M4DUNS","v":"097758627"}]
[null,"Services Supporting Multiple Domains (SRV 7)","Unduplicated Number of \nIndividuals Served"]
[null,"Case Management (SRV 7a)"]
[null,"SRV 7a Case Management",374]
[null,"Eligibility Determinations (SRV 7b)"]
[null,"SRV 7b Eligibility Determinations",472]
[null,"Referrals (SRV 7c)"]
[null,"SRV 7c Referrals",2589]
[null,"Transportation Services (SRV 7d)"]
[null,"SRV 7d Transportation Services (e.g. bus passes, bus transport, support for auto purchase or repair; including emergency services)",5]
[null,"Childcare (SRV 7e-f)"]
[null,"SRV 7e Child Care subsidies",31]
[null,"SRV 7f Child Care payments",3]
[null,"Eldercare (SRV 7g)"]
[null,"SRV 7g Day Centers"]
[null,"Identification Documents (SRV 7h-j)"]
[null,"SRV 7h Birth Certificate "]
[null,"SRV 7i Social Security Card "]
[null,"SRV 7j Driver's License ",3]
[null,"Re-Entry Services (SRV 7k)"]
[null,"SRV 7k Criminal Record Expungements"]
[null,"Immigration Support Services (SRV 7l)"]
[null,"SRV 7l Immigration Support Services (relocation, food, clothing)"]
[null,"Legal Assistance (includes emergency legal assistance) (SRV 7m)"]
[null,"SRV 7m Legal Assistance "]
[null,"Emergency Clothing Assistance (SRV 7n)"]
[null,"SRV 7n Emergency Clothing Assistance",16]
[null,"Mediation/Customer Advocacy Interventions (debt forgiveness, negotiations or issues with landlords, coordinating with other services or government) (SRV 7o)"]
[null,"SRV 7o Mediation/Customer Advocacy Interventions",29]

{"sheet":"ALL Characteristics","index":18,"n_rows":184,"n_cols":19,"rows_kept":184,"cut":false,"hidden":false,"merged":[[8,2,8,12],[181,9,181,10],[182,9,182,10],[175,9,175,10],[176,9,176,10],[177,9,177,10],[178,9,178,10],[179,9,179,10],[180,9,180,10],[174,9,174,10],[161,9,161,10],[162,9,162,10],[163,9,163,10],[164,9,164,10],[167,9,167,10],[168,9,168,10],[169,9,169,10],[170,9,170,10],[171,9,171,10],[172,9,172,10],[173,9,173,10],[115,2,116,5],[126,9,127,12],[128,2,129,5],[143,9,144,12],[160,9,160,10],[149,9,149,10],[150,9,150,10],[151,9,151,10],[152,9,152,10],[153,9,153,10],[154,9,154,10],[155,9,155,10],[156,9,156,10],[157,9,157,10],[158,9,158,10],[159,9,159,10],[83,2,83,8],[101,2,102,5],[102,8,103,12],[85,2,85,12],[105,7,106,12],[150,2,150,6],[168,2,168,6],[58,9,59,12],[2,2,2,13],[18,2,18,6],[18,9,18,12],[32,9,33,12],[35,2,36,6],[43,9,44,12],[51,2,52,6],[53,2,54,6],[55,2,56,6],[146,2,146,5],[66,1,66,6],[79,2,80,8],[81,2,82,8],[1,1,1,12],[0,2,0,12],[3,2,3,4],[3,5,3,12],[4,2,4,4],[4,5,4,9],[4,11,4,12]]}
[null,null,"FY 2020 CSBG Annual Report"]
[null,"Module 4, Section C: All Characteristics Report - Data Entry Form"]
[null,null,"Goal 1: Individuals and Families with low-incomes are stable and achieve economic security."]
[null,null,"Name of CSBG Eligible Entity Reporting:",null,null,{"$f":"M4AgencyName","v":"Southeastern Utah Association of Local Governments"}]
[null,null,"State:",null,null,{"$f":"M4StateName","v":"Utah"},null,null,null,null,"DUNS:"]
[]
[null,"A. Total unduplicated number of all INDIVIDUALS about whom one or more characteristics were obtained:",null,null,null,null,null,null,null,null,null,null,3196]
[null,"B. Total unduplicated number of all HOUSEHOLDS about whom one or more characteristics were obtained:",null,null,null,null,null,null,null,null,null,null,1656]
[null,null,{"$f":"IF(AND(M7=\"\",SUM(G16+M16+G33+M30+M41+F49+G49+M56+G60+E64+F64+G64+E66+F66+G66+G77)>0,SUM(G16+M16+G33+M30+M41+F49+G49+M56+G60+E64+F64+G64+E66+F66+G66+G77)<100000000),\"INDIVIDUAL LEVEL CHARACTERISTICS CANNOT BE REPORTED UNLESS THE TOTAL UNDUPLICATED NUMBER OF ALL INDIVIDUALS IS REPORTED IN ITEM A\",IF(AND(M7=0,SUM(G16+M16+G33+M30+M41+F49+G49+M56+G60+E64+F64+G64+E66+F66+G66+G77)>0,SUM(G16+M16+G33+M30+M41+F49+G49+M56+G60+E64+F64+G64+E66+F66+G66+G77)<100000000),\"INDIVIDUAL LEVEL CHARACTERISTICS CANNOT BE REPORTED UNLESS THE TOTAL UNDUPLICATED NUMBER OF ALL INDIVIDUALS IS REPORTED IN ITEM A\",\"\"))","v":""},null,null,null,null,null,null,null,null,null,null,null,null,null,null,null,"A. Total unduplicated individuals"]
[null,"C. INDIVIDUAL LEVEL CHARACTERISTICS",null,null,null,null,null,null,null,null,null,null,null,null,"ERROR:  TOTAL COUNT CANNOT BE GREATER THAN THE TOTAL UNDUPLICATED NUMBER OF ALL INDIVIDUALS (ITEM A)",null,null,null,"B. Total unduplicated households"]
[null,"1. Gender",null,null,null,null,"Number of Individuals",null,"6. Ethnicity/Race",null,null,null,"Number of Individuals",null,"ERROR: TOTAL COUNT SHOULD NOT BE LESS THAN THE TOTAL UNDUPLICATED NUMBER OF ALL INDIVIDUALS (ITEM A)",null,null,null,"C.1a Gender: Male"]
[null,"a.","Male",null,null,null,1515,null,"a. Ethnicity",null,null,null,null,null,null,null,null,null,"C.1b Gender: Female"]
[null,"b.","Female",null,null,null,1680,null,null,"a.1. Hispanic, Latino or Spanish Origins",null,null,431,null,null,null,null,null,"C.1c Gender: Other"]
[null,"c.","Other",null,null,null,1,null,null,"a.2. Not Hispanic, Latino or Spanish Origins",null,null,2380,null,null,null,null,null,"C.1d Gender: Unknown/not reported"]
[null,"d.","Unknown/not reported",null,null,null,null,null,null,"a.3. Unknown/not reported",null,null,385,null,null,null,null,null,"C.2a Age: 0-5"]
[null,"e.","TOTAL (auto calculated)",null,null,null,{"$f":"SUM(G12:G15)","v":3196},{"$f":"IF(AND(OR(C19=O10,C19=O11)),1,0)","v":0},null,"a.4. TOTAL (auto calculated)",null,null,{"$f":"SUM(M13:M15)","v":3196},{"$f":"IF(AND(OR(J19=O10,J19=O11)),1,0)","v":0},null,null,null,null,"C.2b Age: 6-13"]
[null,null,null,null,null,null,null,null,null,null,null,null,null,null,null,null,null,null,"C.2c Age: 14-17"]
[null,null,"Section C.1 Status",null,null,null,null,null,null,"Section C.6a Status",null,null,null,null,null,null,null,null,"C.2d Age: 18-24"]
[null,null,{"$f":"IF(AND(G16>M7,M7<>\"\",M7<>0,G16<>0,M7>0,M7<100000000,G16<>0,G16>0,G16<100000000),O10,IF(AND(G16<M7,M7<>\"\",G16<>0,M7>0,M7<100000000,G16<>0,G16>0,G16<100000000),O11,\"\"))","v":""},null,null,null,null,null,null,{"$f":"IF(AND(M16<>0,M16>M7,M7<>\"\",M7<>0,M7>0,M7<100000000,M16>0,M16<100000000),O10,IF(AND(M16<>0,M16<M7,M7>0,M7<100000000,M16>0,M16<100000000),O11,\"\"))","v":""},null,null,null,null,null,null,null,null,"C.2e Age: 25-44"]
[null,null,null,null,null,null,null,null,null,null,null,null,null,null,null,null,null,null,"C.2f Age: 45-54"]
[null,"2. Age",null,null,null,null,"Number of Individuals",null,"b. Race",null,null,null,null,null,null,null,null,null,"C.2g Age: 55-59"]
[null,"a.","0-5",null,null,null,293,null,null,"b.1. American Indian or Alaska Native",null,null,168,null,null,null,null,null,"C.2h Age: 60-64"]
[null,"b.","6-13",null,null,null,410,null,null,"b.2. Asian",null,null,2,null,null,null,null,null,"C.2i Age: 65-74"]
[null,"c.","14-17",null,null,null,199,null,null,"b.3. Black or African American",null,null,16,null,null,null,null,null,"C.2j Age: 75+"]
[null,"d.","18-24",null,null,null,273,null,null,"b.4. Native Hawaiian and Other Pacific Islander ",null,null,16,null,null,null,null,null,"C.2k Age: Unknown/not reported"]
[null,"e.","25-44",null,null,null,875,null,null,"b.5. White",null,null,2204,null,null,null,null,null,"C.3a Grades 0-8 [ages 14-24]"]
[null,"f.","45-54",null,null,null,432,null,null,"b.6. Other",null,null,351,null,null,null,null,null,"C.3b Grades 9-12/Non-graduate [ages 14-24]"]
[null,"g.","55-59",null,null,null,222,null,null,"b.7. Multi-race (two or more of the above)",null,null,77,null,null,null,null,null,"C.3c High school graduate/equivalency diploma [ages 14-24]"]
[null,"h.","60-64",null,null,null,191,null,null,"b.8. Unknown/not reported",null,null,362,null,null,null,null,null,"C.3d 12 grade + Some Post-Secondary [ages 14-24]"]
[null,"i.","65-74",null,null,null,211,null,null,"b.9. TOTAL (auto calculated)",null," ",{"$f":"SUM(M22:M29)","v":3196},{"$f":"IF(AND(OR(J33=O10,J33=O11)),1,0)","v":0},null,null,null,null,"C.3e 2 or 4 years college graduate [ages 14-24]"]
[null,"j.","75+",null,null,null,90,null,null,null,null,null,null,null,null,null,null,null,"C.3f Graduate of other post-secondary school [ages 14-24]"]
[null,"k.","Unknown/not reported",null,null,null,null,null,null,"Section C.6b Status",null,null,null,null,null,null,null,null,"C.3g Unknown/not reported [ages 14-24]"]
[null,"l.","TOTAL (auto calculated)",null,null,null,{"$f":"SUM(G22:G32)","v":3196},{"$f":"IF(AND(OR(C36=O10,C36=O11)),1,0)","v":0},null,{"$f":"IF(AND(M30<>0,M30>M7,M7<>\"\",M7<>0,M7>0,M7<100000000,M30>0,M30<100000000),O10,IF(AND(M30<>0,M30<M7,M7<>\"\",M7<>0,M7>0,M7<100000000,M30>0,M30<100000000),O11,\"\"))","v":""},null,null,null,null,null,null,null,null,"C.4a Youth ages 14-24 neither working nor in school"]
[null,null,null,null,null,null,null,null,null,null,null,null,null,null,null,null,null,null,"C.5a Disabling condition: Yes"]
[null,null,"Section C.2 Status",null,null,null,null,null,null,null,null,null,null,null,null,null,null,null,"C.5a Disabling condition: No"]
[null,null,{"$f":"IF(AND(G33>M7,M7<>\"\",M7<>0,G33<>0,M7>0,M7<100000000,G33<>0,G33>0,G33<100000000),O10, IF(AND(G33<M7,M7<>\"\",M7<>0,G33<>0,M7>0,M7<100000000,G33<>0,G33>0,G33<100000000),O11,\"\"))","v":""},null,null,null,null,null,"7. Military Status",null,null,null,"Number of Individuals",null,null,null,null,null,"C.5a Disabling condition: Unknown"]
[null,null,null,null,null,null,null,null,"a. Veteran",null,null,null,96,null,null,null,null,null,"C.5b Health insurance: Yes"]
[null,null,null,null,null,null,null,null,"b. Active Military",null,null,null,1,null,null,null,null,null,"C.5b Health insurance: No"]
[null,"3. Education Levels ",null,null,null,null,"Number of Individuals",null,"c. Never Served in the Military",null,null,null,2002]
[null,null,null,null,null,"[ages 14-24]","[ages 25+]",null,"d. Unknown/not reported",null,null,null,188,null,null,"TOTAL NUMBER OF INDIVIDUALS REPORTING MILITARY STATUS IS GREATER THAN INDIVIDUALS REPORTED AS 18+ (SUM OF C.2d THROUGH C.2j)",null,null,"C.5b Health insurance: Unknown"]
[null,"a.","Grades 0-8",null,null,132,34,null,"e. TOTAL (auto calculated)",null,null,null,{"$f":"SUM(M37:M40)","v":2287},{"$f":"IF(J44=O10,1,IF(J44=P40,2,0))","v":0},null,"TOTAL NUMBER OF INDIVIDUALS REPORTING WORK STATUS IS GREATER THAN INDIVIDUALS REPORTED AS 18+ (SUM OF C.2d THROUGH C.2j)",null,null,"C.5c.1 Health insurance: Medicaid"]
[null,"b.","Grades 9-12/Non-Graduate",null,null,153,425,null,null,null,null,null,null,null,null,null,null,null,"C.5c.2 Health insurance: Medicare"]
[null,"c.","High School Graduate",null,null,80,567,null,null,"Section C.7 Status",null,null,null,null,null,null,null,null,"C.5c.3 Health insurance: State Children's Health Insurance Program"]
[null,"d.","GED/Equivalency Diploma",null,null,13,216,null,null,{"$f":"IF(AND(M41<>0,M41>M7,M7<>0,M7<>\"\",M7<100000000,M41>0,M41<100000000),O10,IF(AND(M41<>0,M41>SUM(G25:G31),M7<100000000,M41>0,M41<100000000),\"TOTAL NUMBER OF INDIVIDUALS REPORTING MILITARY STATUS IS GREATER THAN INDIVIDUALS REPORTED AS 18+ (SUM OF C.2d THROUGH C.2j)\",\"\"))","v":""},null,null,null,null,null,null,null,null,"C.5c.4 Health insurance: State Health Insurance for Adults"]
[null,"e.","12 grade + Some Post-Secondary",null,null,15,313,null,null,null,null,null,null,null,null,null,null,null,"C.5c.5 Health insurance: Military Health Care"]
[null,"f.","2 or 4 years College Graduate",null,null,4,167,null,null,null,null,null,null,null,null,null,null,null,"C.5c.6 Health insurance: Direct-Purchase"]
[null,"g.","Graduate of other post-secondary school ",null,null,null,28,null,"8. Work Status (Individuals 18+)",null,null,null,"Number of Individuals",null,null,null,null,null,"C.5c.7 Health insurance: Employment Based"]
[null,"h.","Unknown/not reported",null,null,75,271,null,"a. Employed Full-Time",null,null,null,126,null,null,null,null,null,"C.5c.8 Health insurance: Unknown/not reported"]
[null,"i.","TOTAL (auto calculated)",null,{"$f":"IF(OR(C52<>\"\",C54<>\"\"),1,0)","v":0},{"$f":"SUM(F41:F48)","v":472},{"$f":"SUM(G41:G48)","v":2021},{"$f":"IF(OR(C52<>\"\",C56<>\"\"),1,0)","v":0},"b. Employed Part-Time",null,null,null,230,null,null,null,null,null,"C.6a.1 Ethnicity: Hispanic, Latino, or Spanish origins"]
[null,null,null,null,null,null,null,null,"c. Migrant or Seasonal Farm Worker",null,null,null,2,null,null,null,null,null,"C.6a.2 Ethnicity: Not Hispanic, Latino or Spanish origins"]
[null,null,"Section C.3 Status",null,null,null,null,null,"d. Unemployed (Short-Term, 6 months or less)",null,null,null,223,null,null,null,null,null,"C.6a.3 Ethnicity: Unknown/not reported"]
[null,null,{"$f":"IF(AND(F49+G49>M7,M7<>\"\",M7<>0,M7>0,M7<100000000,F49+G49>0,F49+G49<100000000),\"ERROR:  C.3h [ages 14-24] + C.3h [ages 25+] CANNOT BE GREATER THAN THE TOTAL UNDUPLICATED NUMBER OF ALL INDIVIDUALS (ITEM A)\",\"\")","v":""},null,null,null,null,null,"e. Unemployed (Long-Term, more than 6 months) ",null,null,null,477,null,null,null,null,null,"C.6b.1 Race: American Indian or Alaska Native"]
[null,null,null,null,null,null,null,null,"f. Unemployed (Not in Labor Force)",null,null,null,955,null,null,null,null,null,"C.6b.2 Race: Asian"]
[null,null,{"$f":"IF(AND(F49>G24+G25,F49<>0,F49>0,F49<100000000),\"ERROR: THE TOTAL NUMBER OF INDIVIDUALS REPORTED IN EDUCATION LEVELS FOR C.3i [ages 14-24] EXCEEDS THE SUM OF C.2c & C.2d\",IF(AND(F49<G24+G25,F49<>0,F49>0,F49<100000000),\"ERROR: THE TOTAL NUMBER OF INDIVIDUALS REPORTED IN EDUCATION LEVELS FOR C.3i. [ages 14-24] IS LESS THAN THE SUM OF C.2c & C.2d\",\"\"))","v":""},null,null,null,null,null,"g.","Retired",null,null,57,null,null,null,null,null,"C.6b.3 Race: Black or African American"]
[null,null,null,null,null,null,null,null,"h.","Unkown/not reported",null,null,193,null,null,null,null,null,"C.6b.4 Race: Native Hawaiian and other Pacific Islander"]
[null,null,{"$f":"IF(AND(G49>G26+G27+G28+G29+G30+G31,G49<>0,G49>0,G49<100000000),\"ERROR: THE TOTAL NUMBER OF INDIVIDUALS REPORTED IN EDUCATION LEVELS FOR C.3i [ages 25+] EXCEEDS THE SUM OF C.2e THROUGH C.2j\",IF(AND(G49<G26+G27+G28+G29+G30+G31,G49<>0,G49>0,G49<100000000),\"ERROR: THE TOTAL NUMBER OF INDIVIDUALS REPORTED IN EDUCATION LEVELS FOR C.3i. [ages 25+] IS LESS THAN THE SUM OF C.2e THROUGH C.2j\",\"\"))","v":""},null,null,null,null,null,"i.","Total (autocalculated)",null,null,{"$f":"SUM(M48:M55)","v":2263},{"$f":"IF(J59=O10,1,IF(J59=P41,2,0))","v":0},null,null,null,null,"C.6b.5 Race: White"]
[null,null,null,null,null,null,null,null,null,null,null,null,null,null,null,null,null,null,"C.6b.6 Race: Other"]
[null,null,null,null,null,null,null,null,null,"Section C.8 Status",null,null,null,null,null,null,null,null,"C.6b.7 Race: Multi-race"]
[null,"4. Disconnected Youth",null,null,null,null,"Number of Individuals",null,null,{"$f":"IF(AND(M56<>0,M56>M7,M7<>\"\",M7<>\"\",M7<100000000,M56>0,M56<100000000),O10, IF(AND(M56<>0,M56>SUM(G25:G31),M7<100000000,M56>0,M56<100000000),\"TOTAL NUMBER OF INDIVIDUALS REPORTING WORK STATUS IS GREATER THAN INDIVIDUALS REPORTED AS 18+ (SUM OF C.2d THROUGH C.2j)\",\"\"))","v":""},null,null,null,null,null,null,null,null,"C.6b.8 Race: Unknown/not reported"]
[null,"a. Youth ages 14-24 who are neither working or in school ",null,null,null,null,194,null,null,null,null,null,null,null,null,null,null,null,"C.7a Military Status: Veteran"]
[null,null,null,null,null,null,null,null,null,null,null,null,null,null,null,null,null,null,"C.7b Military Status: Active Military"]
[null,"5. Health",null,null,null,null,"Number of Individuals",null,null,null,null,null,null,null,null,null,null,null,"C.7c Military Status: Unknown/not reported"]
[null,null,null,null,"Yes","No","Unknown",null,null,null,null,null,null,null,null,null,null,null,"C.8a Work Status: Employed full-time"]
[null,"a. Disabling Condition",null,null,688,1917,591,{"$f":"SUM(E64:G64)","v":3196},null,null,null,null,null,null,null,null,null,null,"C.8b Work Status: Employed part-time"]
[null,null,null,null,"Yes","No","Unknown",null,null,null,null,null,null,null,null,null,null,null,"C.8c Work Status: Migrant seasonal farm worker"]
[null,"b. Health Insurance*",null,null,1741,850,605,{"$f":"SUM(E66:G66)","v":3196},null,null,null,null,null,null,null,null,null,null,"C.8d Work Status: Unemployed (Short-term, 6 months or less)"]
[null,"*If an individual reported that they had Health Insurance please identify the source of health insurance below.",null,null,null,null,null,null,null,null,null,null,null,null,null,null,null,null,"C.8e Work Status: Unemployed (Long-term, more than 6 months)"]
[null,null,"Health Insurance Sources",null,null,null,null,null,null,null,null,null,null,null,null,null,null,null,"C.8f Work Status: Unemployed (not in labor force)"]
[null,null,"c.1. Medicaid",null,null,null,1190,null,null,null,null,null,null,null,null,null,null,null,"C.8g Work Status: Retired"]
[null,null,"c.2. Medicare",null,null,null,380,null,null,null,null,null,null,null,null,null,null,null,"C.8h Work Status: Unknown/not reported"]
[null,null,"c.3. State Children’s Health Insurance Program",null,null,null,23,null,null,null,null,null,null,null,null,null,null,null,"C.3a Grades 0-8 [ages 25+]"]
[null,null,"c.4. State Health Insurance for Adults",null,null,null,12,null,null,null,null,null,null,null,null,null,null,null,"C.3b Grades 9-12/Non-graduate [ages 25+]"]
[null,null,"c.5. Military Health Care",null,null,null,19,null,null,null,null,null,null,null,null,null,null,null,"C.3c High school graduate/equivalency diploma [ages 25+]"]
[null,null,"c.6. Direct-Purchase",null,null,null,20,null,null,null,null,null,null,null,null,null,null,null,"C.3d 12 grade + Some Post-Secondary [ages 25+]"]
[null,null,"c.7. Employment Based",null,null,null,69,null,null,null,null,null,null,null,null,null,null,null,"C.3e 2 or 4 years college graduate [ages 25+]"]
[null,null,"c.8. Unknown/not reported",null,null,null,28,null,null,null,null,null,null,null,null,null,null,null,"C.3f Graduate of other post-secondary school [ages 25+]"]
[null,null,"c.9. TOTAL (auto calculated)",null,null,null,{"$f":"SUM(G69:G76)","v":1741},{"$f":"IF(C84= \"ERROR: TOTAL COUNT OF INSURANCE SOURCES (C.5.c.9) IS LESS THAN C.5b[Yes]\",1,0)","v":0},null,null,null,null,null,null,null,null,null,null,"C.3g Unknown/not reported [ages 25+]"]
[null,null,null,null,null,null,null,null,null,null,null,null,null,null,null,null,null,null,"D.9a Household Type: Single Person"]
[null,null,"Section C.5 Status",null,null,null,null,null,null,null,null,null,null,null,null,null,null,null,"D.9b Household Type: Two Adults NO Children"]
[null,null,{"$f":"IF(AND(E64+F64+G64>M7,M7<>\"\",H64<>0,M7<>0,M7>0,M7<100000000,H64>0,H64<100000000),\"ERROR: SUM OF INDIVIDUALS REPORTED IN DISABLING CONDITION C.5a DATA FIELDS CANNOT BE GREATER THAN THE TOTAL UNDUPLICATED NUMBER OF ALL INDIVIDUALS (ITEM A)\",IF(AND(E64+F64+G64<M7,H64<>0,M7>0,M7<100000000,H64>0,H64<100000000),\"ERROR: SUM OF INDIVIDUALS REPORTED IN DISABLING CONDITION C.5a DATA FIELDS IS LESS THAN THE TOTAL UNDUPLICATED NUMBER OF ALL INDIVIDUALS (ITEM A)\",\"\"))","v":""},null,null,null,null,null,null,null,null,null,null,null,null,null,null,null,"D.9c Household Type: Single Parent Female"]
[null,null,null,null,null,null,null,null,null,null,null,null,null,null,null,null,null,null,"D.9d Household Type: Single Parent Male"]
[null,null,{"$f":"IF(AND(H66<>0,E66+F66+G66>M7,M7<>\"\",M7<>0,M7>0,M7<100000000,H66>0,H66<100000000),\"ERROR: SUM OF INDIVIDUALS REPORTED IN HEALTH INSURANCE C.5b DATA FIELDS CANNOT BE GREATER THAN THE TOTAL UNDUPLICATED NUMBER OF ALL INDIVIDUALS (ITEM A)\",IF(AND(H66<>0,E66+F66+G66<M7,M7<>\"\",M7<>0,M7>0,M7<100000000,H66>0,H66<100000000),\"ERROR: SUM OF INDIVIDUALS REPORTED IN HEALTH INSURANCE C.5b DATA FIELDS IS LESS THAN THE TOTAL UNDUPLICATED NUMBER OF ALL INDIVIDUALS (ITEM A)\",\"\"))","v":""},null,null,null,null,null,null,null,null,null,null,null,null,null,null,null,"D.9e Household Type: Two Parent Household"]
[null,null,null,null,null,null,null,null,null,null,null,null,null,null,null,null,null,null,"D.9f Household Type: Non-Related Adults with Children"]
[null,null,{"$f":"IF(AND(G77<>0,G77<E66,G77>0,G77<100000000),\"ERROR: TOTAL COUNT OF INSURANCE SOURCES (C.5.c.9) IS LESS THAN C.5b[Yes]\",IF(AND(G77<>0,G77>0,G77<100000000,OR(E66=\"\",E66=0)),\"ERROR: C.5b[Yes] MUST BE GREATER THAN ZERO\",\"\"))","v":""},null,null,null,null,null,null,null,null,null,null,null,null,null,null,null,"D.9g Multigenerational Household"]
[null,null,null,null,null,null,null,null,null,null,null,null,null,null,"ERROR:  TOTAL COUNT GREATER THAN ITEM B",null,null,null,"D.9h Household Type: Other"]
[null,null,{"$f":"IF(AND(M8=\"\",SUM(F99,M99,F113,F126,F144,O117,O133)>0,SUM(F99,M99,F113,F126,F144,O117,O133)<100000000),\"IN ITEM B (TOP OF THIS TAB), YOU MUST REPORT THE UNDUPLICATED NUMBER OF HOUSEHOLDS ABOUT WHOM CHARACTERISTICS WERE OBTAINED (ITEM B)\",IF(AND(M8=0,SUM(F99,M99,F113,F126,F144,O117,O133)>0,SUM(F99,M99,F113,F126,F144,O117,O133)<100000000),\"IN ITEM B (TOP OF THIS TAB), YOU MUST REPORT THE UNDUPLICATED NUMBER OF HOUSEHOLDS ABOUT WHOM CHARACTERISTICS WERE OBTAINED (ITEM B)\",\"\"))","v":""},null,null,null,null,null,null,null,null,null,null,null,"ERROR: TOTAL COUNT LESS THAN ITEM B",null,null,null,"D.9i Household Type: Unknown/not reported"]
[null,null,null,null,null,null,null,null,null,null,null,null,null,null,null,null,null,null,"D.10a Household Size: Single Person"]
[null,"D. HOUSEHOLD LEVEL CHARACTERISTICS",null,null,null,null,null,null,null,null,null,null,null,null,null,null,null,null,"D.10b Household Size: Two"]
[null,"9. Household Type",null,null,null,"Number of Households",null,"13. Sources of Household Income",null,null,null,null,"Number of Households",null,null,null,null,null,"D.10c Household Size: Three"]
[null,"a. Single Person",null,null,null,826,null,"a. Income from Employment Only ",null,null,null,null,166,null,null,null,null,null,"D.10d Household Size: Four"]
[null,"b. Two Adults NO Children",null,null,null,225,null,"b. Income from Employment and Other Income Source  ",null,null,null,null,19,{"$f":"IF(OR(M91<0,M91>99999999),1,0)","v":0},null,null,null,null,"D.10e Household Size: Five"]
[null,"c. Single Parent Female",null,null,null,194,null,"c. Income from Employment, Other Income Source, and Non-Cash Benefits",null,null,null,null,9,{"$f":"IF(OR(M92<0,M92>99999999),1,0)","v":0},null,null,null,null,"D.10f Household Size: Six or more"]
[null,"d. Single Parent Male",null,null,null,35,null,"d. Income from Employment and Non-Cash Benefits",null,null,null,null,17,{"$f":"IF(OR(M93<0,M93>99999999),1,0)","v":0},null,null,null,null,"D.10g Household Size: Unknown/not reported"]
[null,"e. Two Parent Household",null,null,null,190,null,"e. Other Income Source Only",null,null,null,null,372,{"$f":"IF(OR(M94<0,M94>99999999),1,0)","v":0},null,null,null,null,"D.11a Housing: Own"]
[null,"f. Non-related Adults with Children",null,null,null,37,null,"f. Other Income Source and Non-Cash Benefits",null,null,null,null,140,{"$f":"IF(OR(M95<0,M95>99999999),1,0)","v":0},null,null,null,null,"D.11b Housing: Rent"]
[null,"g. Multigenerational Household",null,null,null,31,null,"g. No Income",null,null,null,null,861,null,null,null,null,null,"D.11c Housing: Other permanent housing"]
[null,"h. Other",null,null,null,16,null,"h. Non-Cash Benefits Only",null,null,null,null,72,{"$f":"IF(OR(M97<0,M97>99999999),1,0)","v":0},null,null,null,null,"D.11d Housing: Homeless"]
[null,"i. Unknown/not reported",null,null,null,102,null,"i. Unknown/not reported",null,null,null,null,null,null,null,null,null,null,"D.11e Housing: Other"]
[null,null,"j. TOTAL (auto calculated)",null,null,{"$f":"SUM(F90:F98)","v":1656},{"$f":"IF(C102<>\"\",1,0)","v":0},"j. TOTAL (auto calculated)",null,null,null,null,{"$f":"SUM(M90:M98)","v":1656},null,null,null,null,null,"D.11f Housing: Unknown/not reported"]
[null,null,null,null,null,null,null,null,null,null,null,null,null,{"$f":"IF(I103<>\"\",1,0)","v":0},null,null,null,null,"D.12a Level of Household Income: Up to 50%"]
[null,null,"Section D.9 Status",null,null,null,null,null,null,null,null,null,null,null,null,null,null,null,"D.12b Level of Household Income: 51% to 75%"]
[null,null,{"$f":"IF(AND(F99<>0,F99>M8,M8<>\"\",M8<>0,M8>0,M8<100000000,F99>0,F99<100000000),\"ERROR:  TOTAL HOUSEHOLD TYPE COUNT CANNOT BE GREATER THAN THE UNDUPLICATED NUMBER OF HOUSEHOLDS REPORTED IN ITEM B\",IF(AND(F99<>0,F99<M8,M8<>\"\",M8<>0,M8>0,M8<100000000,F99>0,F99<100000000),\"ERROR: HOUSEHOLD TYPE TOTAL COUNT LESS THAN THE UNDUPLICATED NUMBER OF HOUSEHOLDS REPORTED IN ITEM B\",\"\"))","v":""},null,null,null,null,null,"Section D.13 Status",null,null,null,null,null,null,null,null,null,"D.12c Level of Household Income: 76% to 100%"]
[null,null,null,null,null,null,null,null,{"$f":"IF(AND(M99<>0,M99>M8,M8<>\"\",M8<>0,M8>0,M8<100000000,M99>0,FM99<100000000),\"ERROR:  TOTAL SOURCES OF HOUSEHOLD INCOME COUNT CANNOT BE GREATER THAN THE UNDUPLICATED NUMBER OF HOUSEHOLDS REPORTED IN ITEM B\",IF(AND(M99<>0,M99<M8,M8<>\"\",M8<>0,M8>0,M8<100000000,M99>0,FM99<100000000),\"ERROR: SOURCES OF HOUSEHOLD INCOME TOTAL COUNT LESS THAN THE UNDUPLICATED NUMBER OF HOUSEHOLDS REPORTED IN ITEM B\",\"\"))","v":""},null,null,null,null,null,null,null,null,null,"D.12d Level of Household Income: 101% to 125%"]
[null,null,null,null,null,null,null,null,null,null,null,null,null,null,null,null,null,null,"D.12e Level of Household Income: 126% to 150%"]
[null,"10. Household Size",null,null,null,"Number of Households",null,null,null,null,null,null,null,null,null,null,null,null,"D.12f Level of Household Income: 151% to 175%"]
[null,"a. Single Person",null,null,null,826,null,"Below, please report the types of Other income and/or non-cash benefits received by the households who reported sources other than employment ",null,null,null,null,null,null,null,null,null,null,"D.12g Level of Household Income: 176% to 200%"]
[null,"b. Two",null,null,null,298,null,null,null,null,null,null,null,null,null,null,null,null,"D.12h Level of Household Income: 201% to 250%"]
[null,"c. Three",null,null,null,151,null,null,null,null,null,null,null,null,null,null,null,null,"D.12i Level of Household Income: 251% and over"]
[null,"d. Four",null,null,null,119,null,null,null,"14. Other Income Source",null,null,"Number of Households",null,null,null,null,null,"D.12j Level of Household Income: Unknown/not reported"]
[null,"e. Five",null,null,null,92,null,null,null,"a. TANF",null,null,2,{"$f":"IF(AND(M110>M$91+M$92+M$94+M$95,N91<>1,N92<>1,N94<>1,N95<>1),1,0)","v":0},null,null,null,null,"D.13a Sources of Household Income: Income from Employment Only"]
[null,"f. Six or more",null,null,null,42,null,null,null,"b. Supplemental Security Income (SSI)",null,null,227,{"$f":"IF(AND(M111>M$91+M$92+M$94+M$95,N91<>1,N92<>1,N94<>1,N95<>1),1,0)","v":0},null,null,null,null,"D.13b Sources of Household Income: Income from Employment and Other Income Source"]
[null,"g. Unknown/not reported",null,null,null,128,null,null,null,"c. Social Security Disability Income (SSDI)",null,null,288,{"$f":"IF(AND(M112>M$91+M$92+M$94+M$95,N91<>1,N92<>1,N94<>1,N95<>1),1,0)","v":0},null,null,null,null,"D.13c Sources of Household Income: Income from Employment, Other Income Source, and Non-Cash Benefits"]
[null,"h. TOTAL (auto calculated)",null,null,null,{"$f":"SUM(F106:F112)","v":1656},{"$f":"IF(C116<>\"\",1,0)","v":0},null,null,"d. VA Service-Connected Disability Compensation",null,null,3,{"$f":"IF(AND(M113>M$91+M$92+M$94+M$95,N91<>1,N92<>1,N94<>1,N95<>1),1,0)","v":0},null,null,null,null,"D.13d Sources of Household Income: Income from Employment and Non-Cash Benefits"]
[null,null,null,null,null,null,null,null,null,"e. VA Non-Service Connected Disability Pension",null,null,3,{"$f":"IF(AND(M114>M$91+M$92+M$94+M$95,N91<>1,N92<>1,N94<>1,N95<>1),1,0)","v":0},null,null,null,null,"D.13e Sources of Household Income: Other Income Source Only"]
[null,null,"Section D.10 Status",null,null,null,null,null,null,"f. Private Disability Insurance",null,null,null,{"$f":"IF(AND(M115>M$91+M$92+M$94+M$95,N91<>1,N92<>1,N94<>1,N95<>1),1,0)","v":0},null,null,null,null,"D.13f Sources of Household Income: Other Income Source and Non-Cash Benefits"]
[null,null,{"$f":"IF(AND(F113<>0,F113>M8,M8<>\"\",M8<>0,M8>0,M8<100000000,F113>0,F113<100000000),\"ERROR:  TOTAL HOUSEHOLD SIZE COUNT CANNOT BE GREATER THAN THE UNDUPLICATED NUMBER OF HOUSEHOLDS REPORTED IN ITEM B\",IF(AND(F113<>0,F113<M8,M8<>0,M8>0,M8>0,M8<100000000,F113>0,F113<100000000),\"ERROR: HOUSEHOLD SIZE TOTAL COUNT LESS THAN THE UNDUPLICATED NUMBER OF HOUSEHOLDS REPORTED IN ITEM B\",\"\"))","v":""},null,null,null,null,null,null,"g. Worker’s Compensation",null,null,null,{"$f":"IF(AND(M116>M$91+M$92+M$94+M$95,N91<>1,N92<>1,N94<>1,N95<>1),1,0)","v":0},null,null,null,null,"D.13g Sources of Household Income: No Income"]
[null,null,null,null,null,null,null,null,null,"h. Retirement Income from Social Security",null,null,292,{"$f":"IF(AND(M117>M$91+M$92+M$94+M$95,N91<>1,N92<>1,N94<>1,N95<>1),1,0)","v":0},{"$f":"SUM(M110:M124)","v":893},null,null,null,"D.13h Sources of Household Income: Non-Cash Benefits Only"]
[null,null,null,null,null,null,null,null,null,"i. Pension",null,null,16,{"$f":"IF(AND(M118>M$91+M$92+M$94+M$95,N91<>1,N92<>1,N94<>1,N95<>1),1,0)","v":0},null,null,null,null,"D.13i Sources of Household Income: Unknown/not reported"]
[null,"11. Housing ",null,null,null,"Number of Households",null,null,null,"j. Child Support",null,null,21,{"$f":"IF(AND(M119>M$91+M$92+M$94+M$95,N91<>1,N92<>1,N94<>1,N95<>1),1,0)","v":0},null,null,null,null,"D.14a Other Income Source: TANF"]
[null,"a. Own",null,null,null,256,null,null,null,"k. Alimony or other Spousal Support",null,null,3,{"$f":"IF(AND(M120>M$91+M$92+M$94+M$95,N91<>1,N92<>1,N94<>1,N95<>1),1,0)","v":0},null,null,null,null,"D.14b Other Income Source: Supplemental Security Income (SSI)"]
[null,"b. Rent",null,null,null,919,null,null,null,"l. Unemployment Insurance",null,null,10,{"$f":"IF(AND(M121>M$91+M$92+M$94+M$95,N91<>1,N92<>1,N94<>1,N95<>1),1,0)","v":0},null,null,null,null,"D.14c Other Income Source: Social Security Disability Income (SSDI)"]
[null,"c. Other permanent housing",null,null,null,3,null,null,null,"m. EITC",null,null,null,{"$f":"IF(AND(M122>M$91+M$92+M$94+M$95,N91<>1,N92<>1,N94<>1,N95<>1),1,0)","v":0},null,null,null,null,"D.14d Other Income Source: VA Service-Connected Disability Compensation"]
[null,"d. Homeless",null,null,null,150,null,null,null,"n. Other",null,null,17,{"$f":"IF(AND(M123>M$91+M$92+M$94+M$95,N91<>1,N92<>1,N94<>1,N95<>1),1,0)","v":0},null,null,null,null,"D.14e Other Income Source: VA Non-Service Connected Disability Pension"]
[null,"e. Other",null,null,null,157,null,null,null,"o. Unknown/not reported",null,null,11,{"$f":"IF(AND(M124>M$91+M$92+M$94+M$95,N91<>1,N92<>1,N94<>1,N95<>1),1,0)","v":0},null,null,null,null,"D.14f Other Income Source: Private Disability Insurance"]
[null,"f. Unknown/not reported",null,null,null,171,null,null,null,"Section D.14 Status",null,null,null,{"$f":"IF(M133>M92+M93+M95+M97,1,0)","v":0},null,null,null,null,"D.14g Other Income Source: Worker's Compensation"]
[null,"g. TOTAL (auto calculated)",null,null,null,{"$f":"SUM(F120:F125)","v":1656},{"$f":"IF(C129<>\"\",1,0)","v":0},null,null,null,null,null,null,{"$f":"IF(M134>M92+M93+M95+M97,1,0)","v":0},null,null,null,null,"D.14h Other Income Source: Retirement Income from Social Security"]
[null,null,null,null,null,null,null,null,null,{"$f":"IF(SUM(N110:N124)>0,\"NO ITEM IN OTHER INCOME SOURCE (SECTION 14) CAN BE GREATER THAN THE SUM OF D.13b, D.13c, D.13e, & D.13f.\",\"\")","v":""},null,null,null,{"$f":"IF(M135>M92+M93+M95+M97,1,0)","v":0},null,null,null,null,"D.14i Other Income Source: Pension"]
[null,null,"Section D.11 Status",null,null,null,null,null,null,null,null,null,null,{"$f":"IF(M136>M92+M93+M95+M97,1,0)","v":0},null,null,null,null,"D.14j Other Income Source: Child Support"]
[null,null,{"$f":"IF(AND(F126<>0,F126>M8,M8<>\"\",M8<>0,M8<>0,M8>0,M8<100000000,F126>0,F126<100000000),\"ERROR:  TOTAL HOUSING COUNT CANNOT BE GREATER THAN THE UNDUPLICATED NUMBER OF HOUSEHOLDS REPORTED IN ITEM B\", IF(AND(F126<>0,F126<M8,M8<>\"\",M8<>0,M8<>0,M8>0,M8<100000000,F126>0,F126<100000000),\"ERROR: HOUSING TOTAL COUNT LESS THAN THE UNDUPLICATED NUMBER OF HOUSEHOLDS REPORTED IN ITEM B\",\"\"))","v":""},null,null,null,null,null,null,null,null,null,null,{"$f":"IF(M137>M92+M93+M95+M97,1,0)","v":0},null,null,null,null,"D.14k Other Income Source: Alimony"]
[null,null,null,null,null,null,null,null,null,"15. Non-Cash Benefits",null,null,"Number of Households",{"$f":"IF(M138>M92+M93+M95+M97,1,0)","v":0},null,null,null,null,"D.14l Other Income Source: Unemployment Insurance"]
[null,null,null,null,null,null,null,null,null,"a. SNAP",null,null,17,{"$f":"IF(AND(M131>M92+M93+M95+M97,N92<>1,N93<>1,N95<>1,N97<>1),1,0)","v":0},null,null,null,null,"D.14m Other Income Source: EITC"]
[null,"12. Level of Household Income",null,null,null,"Number of Households",null,null,null,"b. WIC",null,null,1,{"$f":"IF(AND(M132>M92+M93+M95+M97,N92<>1,N93<>1,N95<>1,N97<>1),1,0)","v":0},null,null,null,null,"D.14n Other Income Source: Other"]
[null,"(% of HHS Guideline)",null,null,null,null,null,null,null,"c. LIHEAP",null,null,null,{"$f":"IF(AND(M133>M92+M93+M95+M97,N92<>1,N93<>1,N95<>1,N97<>1),1,0)","v":0},{"$f":"SUM(M131:M141)","v":20},null,null,null,"D.14o Other Income Source: Unknown/not reported"]
[null,"a. Up to 50%",null,null,null,1055,null,null,null,"d. Housing Choice Voucher",null,null,null,{"$f":"IF(AND(M134>M92+M93+M95+M97,N92<>1,N93<>1,N95<>1,N97<>1),1,0)","v":0},null,null,null,null,"D.15a Non-Cash Benefits: SNAP"]
[null,"b. 51% to 75%  ",null,null,null,234,null,null,null,"e. Public Housing",null,null,null,{"$f":"IF(AND(M135>M92+M93+M95+M97,N92<>1,N93<>1,N95<>1,N97<>1),1,0)","v":0},null,null,null,null,"D.15b Non-Cash Benefits: WIC"]
[null,"c. 76% to 100%",null,null,null,175,null,null,null,"f. Permanent Supportive Housing",null,null,null,{"$f":"IF(AND(M136>M92+M93+M95+M97,N92<>1,N93<>1,N95<>1,N97<>1),1,0)","v":0},null,null,null,null,"D.15c Non-Cash Benefits: LIHEAP"]
[null,"d. 101% to 125%",null,null,null,106,null,null,null,"g. HUD-VASH",null,null,null,{"$f":"IF(AND(M137>M92+M93+M95+M97,N92<>1,N93<>1,N95<>1,N97<>1),1,0)","v":0},null,null,null,null,"D.15d Non-Cash Benefits: Housing Choice Voucher"]
[null,"e. 126% to 150%",null,null,null,60,null,null,null,"h. Childcare Voucher",null,null,null,{"$f":"IF(AND(M138>M92+M93+M95+M97,N92<>1,N93<>1,N95<>1,N97<>1),1,0)","v":0},null,null,null,null,"D.15e Non-Cash Benefits: Public Housing"]
[null,"f. 151% to 175%",null,null,null,7,null,null,null,"i. Affordable Care Act Subsidy",null,null,null,{"$f":"IF(AND(M139>M92+M93+M95+M97,N92<>1,N93<>1,N95<>1,N97<>1),1,0)","v":0},null,null,null,null,"D.15f Non-Cash Benefits: Permanent Supportive Housing"]
[null,"g. 176% to 200%",null,null,null,3,null,null,null,"j. Other",null,null,2,{"$f":"IF(AND(M140>M92+M93+M95+M97,N92<>1,N93<>1,N95<>1,N97<>1),1,0)","v":0},null,null,null,null,"D.15g Non-Cash Benefits: HUD-VASH"]
[null,"h. 201% to 250%",null,null,null,9,null,null,null,"k. Unknown/not reported",null,null,null,{"$f":"IF(AND(M141>M92+M93+M95+M97,N92<>1,N93<>1,N95<>1,N97<>1),1,0)","v":0},null,null,null,null,"D.15h Non-Cash Benefits: Childcare Voucher"]
[null,"i. 251% and over",null,null,null,7,null,null,null,null,null,null,null,{"$f":"IF(M150>M106+M108+M110+M112,1,0)","v":0},null,null,null,null,"D.15i Non-Cash Benefits: Affordable Care Act Subsidy"]
[null,"j. Unknown/not reported",null,null,null,null,null,null,null,"Section D.15 Status",null,null,null,null,null,null,null,null,"D.15j Non-Cash Benefits: Other"]
[null,"k. TOTAL (auto calculated)",null,null,null,{"$f":"SUM(F134:F143)","v":1656},{"$f":"IF(C147<>\"\",1,0)","v":0},null,null,{"$f":"IF(SUM(N131:N141)>0,\"NO ITEM IN NON CASH BENEFITS (SECTION 15) CAN BE GREATER THAN THE SUM OF D.13c, D.13d,  D.13f, and D.13h.  \",\"\")","v":""},null,null,null,null,null,null,null,null,"D.15k Non-Cash Benefits: Unknown/not reported"]
[]
[null,null,"Section D.12 Status"]
[null,null,{"$f":"IF(AND(F144<>0,F144>M8,M8<>\"\",M8<>0,M8>0,M8<100000000,F144>0,F144<100000000),\"ERROR:  TOTAL LEVEL OF HOUSEHOLD INCOME COUNT CANNOT BE GREATER THAN THE UNDUPLICATED NUMBER OF HOUSEHOLDS REPORTED IN ITEM B\", IF(AND(F144<>0,F144<M8,M8<>\"\",M8<>0,M8>0,M8<100000000,F144>0,F144<100000000),\"ERROR: LEVEL OF HOUSEHOLD INCOME TOTAL COUNT LESS THAN THE UNDUPLICATED NUMBER OF HOUSEHOLDS REPORTED IN ITEM B\",\"\"))","v":""}]
[]
[null,"E. Number of Individuals Who May or May Not be Included in the Totals Above   (due to data collection system integration barriers) "]
[null,null,"a. Please list the unduplicated number of INDIVIDUALS served in each program*:",null,null,null,null,null,null,"Program Name",null,"Number of Individuals"]
[null,null,{"$f":"IF(J166<>L166,\"ENTRY INCOMPLETE: Enter Program Name and Number of Individuals Served\", \"\")","v":""}]
[]
[]
[]
[]
[]
[]
[]
[]
[]
[]
[]
[]
[]
[]
[null,null,null,null,null,null,null,null,null,{"$f":"COUNTIF(J151:J165,\"\")","v":15},null,{"$f":"COUNTIF(L151:L165,\"\")","v":15}]
[null,"F. Number of Households Who May or May Not be Included in the Totals Above   (due to data collection system integration barriers) "]
[null,null,"a. Please list the unduplicated number of HOUSEHOLDS served in each program*:",null,null,null,null,null,null,"Program Name",null,"Number of Households"]
[null,null,{"$f":"IF(J184<>L184,\"ENTRY INCOMPLETE: Enter Program Name and Number of Households Served\",\"\")","v":""}]
[]
[]
[]
[]
[]
[]
[]
[]
[]
[]
[]
[]
[]
[]
[null,null,null,null,null,null,null,null,null,{"$f":"COUNTIF(J169:J183,\"\")","v":15},null,{"$f":"COUNTIF(L169:L183,\"\")","v":15}]

{"sheet":"Year to Year Comparisons NPIs","index":19,"n_rows":84,"n_cols":14,"rows_kept":84,"cut":false,"hidden":false,"merged":[[75,1,75,2],[76,1,76,2],[81,1,81,2],[82,1,82,2],[83,1,83,2],[49,1,49,2],[47,1,47,2],[50,1,50,2],[58,1,58,2],[74,1,74,2],[60,1,60,2],[61,1,61,2],[62,1,62,2],[63,1,63,2],[64,1,64,2],[65,1,65,2],[66,1,66,2],[67,1,67,2],[68,1,68,2],[69,1,69,2],[70,1,70,2],[41,1,41,2],[42,1,42,2],[43,1,43,2],[45,1,45,2],[46,1,46,2],[44,1,44,2],[54,1,54,2],[55,1,55,2],[56,1,56,2],[57,1,57,2],[52,1,52,2],[53,1,53,2],[51,1,51,2],[33,1,33,2],[34,1,34,2],[35,1,35,2],[13,1,13,2],[38,1,38,2],[21,1,21,2],[22,1,22,2],[26,1,26,2],[30,1,30,2],[31,1,31,2],[32,1,32,2],[20,1,20,2],[37,1,37,2],[39,1,39,2],[40,1,40,2],[10,1,10,2],[11,1,11,2],[12,1,12,2],[18,1,18,2],[19,1,19,2],[1,1,1,2],[2,1,2,2],[1,3,1,10],[2,3,2,8],[9,1,9,2],[4,1,4,2],[5,1,5,2],[6,1,6,2],[7,1,7,2],[8,1,8,2]]}
[]
[null,"Name of CSBG Eligible Entity Reporting:",null,{"$f":"M4AgencyName","v":"Southeastern Utah Association of Local Governments"}]
[null,"State:",null,{"$f":"M4StateName","v":"Utah"},null,null,null,null,null,"DUNS:",{"$f":"M4DUNS","v":"097758627"}]
[]
[null,"Indicators:",null,"FY 2019","FY 2020",null,"% Change","Change from FY19 - FY20",null,"FY 2019","FY 2020",null,"% Change","Change from FY19 - FY20"]
[null,"Employment (FNPI 1)",null,"I.) Number of Participants Served \nin program(s) (#)","I.) Number of Individuals Served \nin program(s) (#)",null,"I.) Number of Participants Served \nin program(s) (#)","I.) Number of Individuals Served \nin program(s) (#)",null,"III.) Actual Results (#) ","III.) Actual Results (#) ",null,"III.) Actual Results (#) ","III.) Actual Results (#) "]
[null,"FNPI 1a The number of unemployed youth who obtained employment to gain skills or income.",null,8,{"$f":"IF(ISBLANK('Employment NPIs'!D9),\"\",'Employment NPIs'!D9)","v":11},null,{"$f":"IF(AND(D7=\"\",E7=\"\"),\"\",IFERROR((E7-D7)/MIN(D7,E7),\"\"))","v":0.375},{"$f":"IFERROR(E7-D7,\"\")","v":3},null,7,{"$f":"IF(ISBLANK('Employment NPIs'!F9),\"\",'Employment NPIs'!F9)","v":9},null,{"$f":"IF(AND(J7=\"\",K7=\"\"),\"\",IFERROR((K7-J7)/MIN(J7,K7),\"\"))","v":0.2857142857142857},{"$f":"IFERROR(K7-J7,\"\")","v":2}]
[null,"FNPI 1b The number of unemployed adults who obtained employment (up to a living wage).",null,28,{"$f":"IF(ISBLANK('Employment NPIs'!D10),\"\",'Employment NPIs'!D10)","v":39},null,{"$f":"IF(AND(D8=\"\",E8=\"\"),\"\",IFERROR((E8-D8)/MIN(D8,E8),\"\"))","v":0.39285714285714285},{"$f":"IFERROR(E8-D8,\"\")","v":11},null,22,{"$f":"IF(ISBLANK('Employment NPIs'!F10),\"\",'Employment NPIs'!F10)","v":34},null,0.54545454545454541,{"$f":"IFERROR(K8-J8,\"\")","v":12}]
[null,"FNPI 1c The number of unemployed adults who obtained and maintained employment for at least 90 days \n(up to a living wage). ",null,20,{"$f":"IF(ISBLANK('Employment NPIs'!D11),\"\",'Employment NPIs'!D11)","v":42},null,1.1000000000000001,22,null,16,{"$f":"IF(ISBLANK('Employment NPIs'!F11),\"\",'Employment NPIs'!F11)","v":35},null,1.1875,19]
[null,"FNPI 1d The number of unemployed adults who obtained and maintained employment for at least 180 days \n(up to a living wage).",null,20,{"$f":"IF(ISBLANK('Employment NPIs'!D12),\"\",'Employment NPIs'!D12)","v":31},null,0.55000000000000004,11,null,16,{"$f":"IF(ISBLANK('Employment NPIs'!F12),\"\",'Employment NPIs'!F12)","v":27},null,0.6875,11]
[null,"FNPI 1e The number of unemployed adults who obtained employment (with a living wage or higher).",null,12,{"$f":"IF(ISBLANK('Employment NPIs'!D13),\"\",'Employment NPIs'!D13)","v":35},null,1.9166666666666667,23,null,11,{"$f":"IF(ISBLANK('Employment NPIs'!F13),\"\",'Employment NPIs'!F13)","v":31},null,1.8181818181818181,20]
[null,"FNPI 1f The number of unemployed adults who obtained and maintained employment for at least 90 days \n(with a living wage or higher). ",null,14,{"$f":"IF(ISBLANK('Employment NPIs'!D14),\"\",'Employment NPIs'!D14)","v":17},null,0.21428571428571427,3,null,12,{"$f":"IF(ISBLANK('Employment NPIs'!F14),\"\",'Employment NPIs'!F14)","v":14},null,0.16666666666666666,2]
[null,"FNPI 1g The number of unemployed adults who obtained and maintained employment for at least 180 days \n(with a living wage or higher). ",null,14,{"$f":"IF(ISBLANK('Employment NPIs'!D15),\"\",'Employment NPIs'!D15)","v":15},null,7.1428571428571425E-2,1,null,11,{"$f":"IF(ISBLANK('Employment NPIs'!F15),\"\",'Employment NPIs'!F15)","v":12},null,9.0909090909090912E-2,1]
[null,"FNPI 1h The number of employed participants in a career-advancement related program who entered or transitioned into a position that provided increased income and/or benefits.",null,6,{"$f":"IF(ISBLANK('Employment NPIs'!D18),\"\",'Employment NPIs'!D18)","v":39},null,5.5,33,null,4,{"$f":"IF(ISBLANK('Employment NPIs'!F18),\"\",'Employment NPIs'!F18)","v":32},null,7,28]
[null,"FNPI 1h.1 The number of employed participants in a career advancement related program who increased income from employment through wage or salary amount increase.","FNPI 1h.1 Of the above, the number of employed participants who Increased income from employment through wage or salary amount increase.",6,{"$f":"IF(ISBLANK('Employment NPIs'!D19),\"\",'Employment NPIs'!D19)","v":36},null,5,30,null,4,{"$f":"IF(ISBLANK('Employment NPIs'!F19),\"\",'Employment NPIs'!F19)","v":32},null,7,28]
[null,"FNPI 1h.2 The number of employed participants in a career advancement related program who increased income from employment through hours worked increase.","FNPI 1h.2 Of the above, the number of employed participants who increased income from employment through hours worked increase.",6,{"$f":"IF(ISBLANK('Employment NPIs'!D20),\"\",'Employment NPIs'!D20)","v":23},null,2.8333333333333335,17,null,4,{"$f":"IF(ISBLANK('Employment NPIs'!F20),\"\",'Employment NPIs'!F20)","v":20},null,4,16]
[null,"FNPI 1h.3 The number of employed participants in a career advancement related program who increased benefits related to employment.","FNPI 1h.3 Of the above, the number of employed participants who increased benefits related to employment.",6,{"$f":"IF(ISBLANK('Employment NPIs'!D21),\"\",'Employment NPIs'!D21)","v":11},null,0.83333333333333337,5,null,4,{"$f":"IF(ISBLANK('Employment NPIs'!F21),\"\",'Employment NPIs'!F21)","v":8},null,1,4]
[]
[null,"Indicators:",null,"FY 2019","FY 2020",null,"% Change","Change from FY19 - FY20",null,"FY 2019","FY 2020",null,"% Change","Change from FY19 - FY20"]
[null,"Education and Cognitive Development (FNPI 2)\n",null,"I.) Number of Participants Served \nin program(s) (#)","I.) Number of Individuals Served \nin program(s) (#)",null,"I.) Number of Participants Served \nin program(s) (#)","I.) Number of Individuals Served \nin program(s) (#)",null,"III.) Actual Results (#) ","III.) Actual Results (#) ",null,"III.) Actual Results (#) ","III.) Actual Results (#) "]
[null,"FNPI 2a The number of children (0 to 5) who demonstrated improved emergent literacy skills.",null,null,{"$f":"IF(ISBLANK('Education NPIs'!D9),\"\",'Education NPIs'!D9)","v":""},null,{"$f":"IF(AND(D21=\"\",E21=\"\"),\"\",IFERROR((E21-D21)/MIN(D21,E21),\"\"))","v":""},{"$f":"IFERROR(E21-D21,\"\")","v":""},null,null,{"$f":"IF(ISBLANK('Education NPIs'!F9),\"\",'Education NPIs'!F9)","v":""},null,{"$f":"IF(AND(J21=\"\",K21=\"\"),\"\",IFERROR((K21-J21)/MIN(J21,K21),\"\"))","v":""},{"$f":"IFERROR(K21-J21,\"\")","v":""}]
[null,"FNPI 2b The number of children (0 to 5) who demonstrated skills for school readiness. ",null,null,{"$f":"IF(ISBLANK('Education NPIs'!D10),\"\",'Education NPIs'!D10)","v":10},null,1,10,null,null,{"$f":"IF(ISBLANK('Education NPIs'!F10),\"\",'Education NPIs'!F10)","v":8},null,1,8]
[null,"FNPI 2c The number of children and youth who demonstrated improved positive approaches toward learning, including improved attention skills. (auto total).",null,null,{"$f":"IF(ISBLANK('Education NPIs'!D11),\"\",'Education NPIs'!D11)","v":0},null,"",0,null,null,{"$f":"IF(ISBLANK('Education NPIs'!F11),\"\",'Education NPIs'!F11)","v":0},null,"",0]
[null,"FNPI 2c.1 Early Childhood Education (ages 0-5): The number of children and youth who demonstrated improved positive approaches toward learning, including improved attention skills","FNPI 2c.1    Early Childhood Education (ages 0-5)",null,{"$f":"IF(ISBLANK('Education NPIs'!D12),\"\",'Education NPIs'!D12)","v":""},null,"","",null,null,{"$f":"IF(ISBLANK('Education NPIs'!F12),\"\",'Education NPIs'!F12)","v":""},null,"",""]
[null,"FNPI 2c.2  1st grade - 8th grade: The number of children and youth who demonstrated improved positive approaches toward learning, including improved attention skills","FNPI 2c.2    1st grade-8th grade",null,{"$f":"IF(ISBLANK('Education NPIs'!D13),\"\",'Education NPIs'!D13)","v":""},null,"","",null,null,{"$f":"IF(ISBLANK('Education NPIs'!F13),\"\",'Education NPIs'!F13)","v":""},null,"",""]
[null,"FNPI 2c.3  9th grade - 12th grade: The number of children and youth who demonstrated improved positive approaches toward learning, including improved attention skills\n","FNPI 2c.3    9th grade-12th grade",null,{"$f":"IF(ISBLANK('Education NPIs'!D14),\"\",'Education NPIs'!D14)","v":""},null,"","",null,null,{"$f":"IF(ISBLANK('Education NPIs'!F14),\"\",'Education NPIs'!F14)","v":""},null,"",""]
[null,"FNPI 2d The number of children and youth who are achieving at basic grade level (academic, social, and other school success skills). (auto total)",null,null,{"$f":"IF(ISBLANK('Education NPIs'!D15),\"\",'Education NPIs'!D15)","v":0},null,"",0,null,null,{"$f":"IF(ISBLANK('Education NPIs'!F15),\"\",'Education NPIs'!F15)","v":0},null,"",0]
[null,"FNPI 2d.1 Early Childhood Education (ages 0-5): The number of children and youth who are achieving at basic grade level (academic, social, and other school success skills)\n\n\n","FNPI 2d.1    Early Childhood Education (ages 0-5)",null,{"$f":"IF(ISBLANK('Education NPIs'!D16),\"\",'Education NPIs'!D16)","v":""},null,"","",null,null,{"$f":"IF(ISBLANK('Education NPIs'!F16),\"\",'Education NPIs'!F16)","v":""},null,"",""]
[null,"FNPI 2d.2 1st grade – 8th grade: The number of children and youth who are achieving at basic grade level (academic, social, and other school success skills)\n","FNPI 2d.2    1st grade-8th grade",null,{"$f":"IF(ISBLANK('Education NPIs'!D17),\"\",'Education NPIs'!D17)","v":""},null,"","",null,null,{"$f":"IF(ISBLANK('Education NPIs'!F17),\"\",'Education NPIs'!F17)","v":""},null,"",""]
[null,"FNPI 2d.3 9st grade – 12th grade: The number of children and youth who are achieving at basic grade level (academic, social, and other school success skills)\n","FNPI 2d.3   9th grade-12th grade",null,{"$f":"IF(ISBLANK('Education NPIs'!D18),\"\",'Education NPIs'!D18)","v":""},null,"","",null,null,{"$f":"IF(ISBLANK('Education NPIs'!F18),\"\",'Education NPIs'!F18)","v":""},null,"",""]
[null,"FNPI 2e The number of parents/caregivers who improved their home environments. ",null,null,{"$f":"IF(ISBLANK('Education NPIs'!D19),\"\",'Education NPIs'!D19)","v":7},null,1,7,null,null,{"$f":"IF(ISBLANK('Education NPIs'!F19),\"\",'Education NPIs'!F19)","v":4},null,1,4]
[null,"FNPI 2f The number of adults who demonstrated improved basic education.",null,null,{"$f":"IF(ISBLANK('Education NPIs'!D20),\"\",'Education NPIs'!D20)","v":""},null,"","",null,null,{"$f":"IF(ISBLANK('Education NPIs'!F20),\"\",'Education NPIs'!F20)","v":""},null,"",""]
[null,"FNPI 2g The number of individuals who obtained a high school diploma and/or obtained an equivalency certificate or diploma.",null,null,{"$f":"IF(ISBLANK('Education NPIs'!D21),\"\",'Education NPIs'!D21)","v":""},null,"","",null,null,{"$f":"IF(ISBLANK('Education NPIs'!F21),\"\",'Education NPIs'!F21)","v":""},null,"",""]
[null,"FNPI 2h The number of individuals who obtained a recognized credential, certificate, or degree relating to the achievement of educational or vocational skills.",null,null,{"$f":"IF(ISBLANK('Education NPIs'!D22),\"\",'Education NPIs'!D22)","v":1},null,1,1,null,null,{"$f":"IF(ISBLANK('Education NPIs'!F22),\"\",'Education NPIs'!F22)","v":1},null,1,1]
[null,"FNPI 2i The number of individuals who obtained an Associate’s degree.",null,null,{"$f":"IF(ISBLANK('Education NPIs'!D23),\"\",'Education NPIs'!D23)","v":""},null,"","",null,null,{"$f":"IF(ISBLANK('Education NPIs'!F23),\"\",'Education NPIs'!F23)","v":""},null,"",""]
[null,"FNPI 2j The number of individuals who obtained a Bachelor’s degree.",null,null,{"$f":"IF(ISBLANK('Education NPIs'!D24),\"\",'Education NPIs'!D24)","v":""},null,"","",null,null,{"$f":"IF(ISBLANK('Education NPIs'!F24),\"\",'Education NPIs'!F24)","v":""},null,"",""]
[]
[null,"Indicators:",null,"FY 2019","FY 2020",null,"% Change","Change from FY19 - FY20",null,"FY 2019","FY 2020",null,"% Change","Change from FY19 - FY20"]
[null,"Income and Asset Building (FNPI 3)",null,"I.) Number of Participants Served \nin program(s) (#)","I.) Number of Individuals Served \nin program(s) (#)",null,"I.) Number of Participants Served \nin program(s) (#)","I.) Number of Individuals Served \nin program(s) (#)",null,"III.) Actual Results (#) ","III.) Actual Results (#) ",null,"III.) Actual Results (#) ","III.) Actual Results (#) "]
[null,"FNPI 3a The number of individuals who achieved and maintained capacity to meet basic needs for 90 days.",null,35,{"$f":"IF(ISBLANK('Income NPIs'!D9),\"\",'Income NPIs'!D9)","v":60},null,{"$f":"IF(AND(D40=\"\",E40=\"\"),\"\",IFERROR((E40-D40)/MIN(D40,E40),\"\"))","v":0.7142857142857143},{"$f":"IFERROR(E40-D40,\"\")","v":25},null,29,{"$f":"IF(ISBLANK('Income NPIs'!F9),\"\",'Income NPIs'!F9)","v":53},null,{"$f":"IF(AND(J40=\"\",K40=\"\"),\"\",IFERROR((K40-J40)/MIN(J40,K40),\"\"))","v":0.82758620689655171},{"$f":"IFERROR(K40-J40,\"\")","v":24}]
[null,"FNPI 3b The number of individuals who achieved and maintained capacity to meet basic needs for 180 days.",null,32,{"$f":"IF(ISBLANK('Income NPIs'!D10),\"\",'Income NPIs'!D10)","v":35},null,9.375E-2,3,null,27,{"$f":"IF(ISBLANK('Income NPIs'!F10),\"\",'Income NPIs'!F10)","v":28},null,3.7037037037037035E-2,1]
[null,"FNPI 3c The number of individuals who opened a savings account or IDA.",null,13,{"$f":"IF(ISBLANK('Income NPIs'!D11),\"\",'Income NPIs'!D11)","v":11},null,-0.18181818181818182,-2,null,12,{"$f":"IF(ISBLANK('Income NPIs'!F11),\"\",'Income NPIs'!F11)","v":9},null,-0.33333333333333331,-3]
[null,"FNPI 3d The number of individuals who increased their savings.",null,13,{"$f":"IF(ISBLANK('Income NPIs'!D12),\"\",'Income NPIs'!D12)","v":26},null,1,13,null,11,{"$f":"IF(ISBLANK('Income NPIs'!F12),\"\",'Income NPIs'!F12)","v":21},null,0.90909090909090906,10]
[null,"FNPI 3e The number of individuals who used their savings to purchase an asset.",null,13,{"$f":"IF(ISBLANK('Income NPIs'!D13),\"\",'Income NPIs'!D13)","v":11},null,-0.18181818181818182,-2,null,11,{"$f":"IF(ISBLANK('Income NPIs'!F13),\"\",'Income NPIs'!F13)","v":9},null,-0.22222222222222221,-2]
[null,"FNPI 3f The number of individuals who purchased a home.",null,10,{"$f":"IF(ISBLANK('Income NPIs'!D14),\"\",'Income NPIs'!D14)","v":8},null,-0.25,-2,null,7,{"$f":"IF(ISBLANK('Income NPIs'!F14),\"\",'Income NPIs'!F14)","v":6},null,-0.16666666666666666,-1]
[null,"FNPI 3g The number of individuals who improved their credit scores. ",null,15,{"$f":"IF(ISBLANK('Income NPIs'!D15),\"\",'Income NPIs'!D15)","v":34},null,1.2666666666666666,19,null,12,{"$f":"IF(ISBLANK('Income NPIs'!F15),\"\",'Income NPIs'!F15)","v":25},null,1.0833333333333333,13]
[null,"FNPI 3h The number of individuals who increased their net worth. ",null,14,{"$f":"IF(ISBLANK('Income NPIs'!D16),\"\",'Income NPIs'!D16)","v":31},null,1.2142857142857142,17,null,10,{"$f":"IF(ISBLANK('Income NPIs'!F16),\"\",'Income NPIs'!F16)","v":24},null,1.4,14]
[null,"FNPI 3i The number of individuals engaged with the Community Action Agency who report improved financial well-being.",null,14,{"$f":"IF(ISBLANK('Income NPIs'!D17),\"\",'Income NPIs'!D17)","v":36},null,1.5714285714285714,22,null,12,{"$f":"IF(ISBLANK('Income NPIs'!F17),\"\",'Income NPIs'!F17)","v":30},null,1.5,18]
[]
[null,"Indicators:",null,"FY 2019","FY 2020",null,"% Change","Change from FY19 - FY20",null,"FY 2019","FY 2020",null,"% Change","Change from FY19 - FY20"]
[null,"Housing (FNPI 4)",null,"I.) Number of Participants Served \nin program(s) (#)","I.) Number of Individuals Served \nin program(s) (#)",null,"I.) Number of Participants Served \nin program(s) (#)","I.) Number of Individuals Served \nin program(s) (#)",null,"III.) Actual Results (#) ","III.) Actual Results (#) ",null,"III.) Actual Results (#) ","III.) Actual Results (#) "]
[null,"FNPI 4a The number of households experiencing homelessness who obtained safe temporary shelter.",null,6,{"$f":"IF(ISBLANK('Housing NPIs'!D9),\"\",'Housing NPIs'!D9)","v":40},null,{"$f":"IF(AND(D52=\"\",E52=\"\"),\"\",IFERROR((E52-D52)/MIN(D52,E52),\"\"))","v":5.666666666666667},{"$f":"IFERROR(E52-D52,\"\")","v":34},null,5,{"$f":"IF(ISBLANK('Housing NPIs'!F9),\"\",'Housing NPIs'!F9)","v":33},null,{"$f":"IF(AND(J52=\"\",K52=\"\"),\"\",IFERROR((K52-J52)/MIN(J52,K52),\"\"))","v":5.6},{"$f":"IFERROR(K52-J52,\"\")","v":28}]
[null,"FNPI 4b The number of households who obtained safe and affordable housing.",null,78,{"$f":"IF(ISBLANK('Housing NPIs'!D10),\"\",'Housing NPIs'!D10)","v":89},null,0.14102564102564102,11,null,36,{"$f":"IF(ISBLANK('Housing NPIs'!F10),\"\",'Housing NPIs'!F10)","v":78},null,1.1666666666666667,42]
[null,"FNPI 4c The number of households who maintained safe and affordable housing for 90 days.",null,42,{"$f":"IF(ISBLANK('Housing NPIs'!D11),\"\",'Housing NPIs'!D11)","v":69},null,0.6428571428571429,27,null,35,{"$f":"IF(ISBLANK('Housing NPIs'!F11),\"\",'Housing NPIs'!F11)","v":60},null,0.7142857142857143,25]
[null,"FNPI 4d The number of households who maintained safe and affordable housing for 180 days. ",null,44,{"$f":"IF(ISBLANK('Housing NPIs'!D12),\"\",'Housing NPIs'!D12)","v":78},null,0.77272727272727271,34,null,29,{"$f":"IF(ISBLANK('Housing NPIs'!F12),\"\",'Housing NPIs'!F12)","v":65},null,1.2413793103448276,36]
[null,"FNPI 4e The number of households who avoided eviction.",null,19,{"$f":"IF(ISBLANK('Housing NPIs'!D13),\"\",'Housing NPIs'!D13)","v":127},null,5.6842105263157894,108,null,14,{"$f":"IF(ISBLANK('Housing NPIs'!F13),\"\",'Housing NPIs'!F13)","v":109},null,6.7857142857142856,95]
[null,"FNPI 4f The number of households who avoided foreclosure.",null,3,{"$f":"IF(ISBLANK('Housing NPIs'!D14),\"\",'Housing NPIs'!D14)","v":18},null,5,15,null,2,{"$f":"IF(ISBLANK('Housing NPIs'!F14),\"\",'Housing NPIs'!F14)","v":15},null,6.5,13]
[null,"FNPI 4g The number of households who experienced improved health and safety due to improvements within their home (e.g. reduction or elimination of lead, radon, carbon dioxide and/or fire hazards or electrical issues, etc).",null,null,{"$f":"IF(ISBLANK('Housing NPIs'!D15),\"\",'Housing NPIs'!D15)","v":7},null,1,7,null,null,{"$f":"IF(ISBLANK('Housing NPIs'!F15),\"\",'Housing NPIs'!F15)","v":5},null,1,5]
[null,"FNPI 4h The number of households with improved energy efficiency and/or energy burden reduction in their homes.",null,35,{"$f":"IF(ISBLANK('Housing NPIs'!D16),\"\",'Housing NPIs'!D16)","v":68},null,0.94285714285714284,33,null,27,{"$f":"IF(ISBLANK('Housing NPIs'!F16),\"\",'Housing NPIs'!F16)","v":57},null,1.1111111111111112,30]
[]
[null,"Indicators:",null,"FY 2019","FY 2020",null,"% Change","Change from FY19 - FY20",null,"FY 2019","FY 2020",null,"% Change","Change from FY19 - FY20"]
[null,"Health and Social/Behavioral Development (FNPI 5)",null,"I.) Number of Participants Served \nin program(s) (#)","I.) Number of Individuals Served \nin program(s) (#)",null,"I.) Number of Participants Served \nin program(s) (#)","I.) Number of Individuals Served \nin program(s) (#)",null,"III.) Actual Results (#) ","III.) Actual Results (#) ",null,"III.) Actual Results (#) ","III.) Actual Results (#) "]
[null,"FNPI 5a The number of individuals who demonstrated increased nutrition skills (e.g. cooking, shopping, and growing food). ",null,12,{"$f":"IF(ISBLANK('Health NPIs'!D9),\"\",'Health NPIs'!D9)","v":""},null,{"$f":"IF(AND(D63=\"\",E63=\"\"),\"\",IFERROR((E63-D63)/MIN(D63,E63),\"\"))","v":""},{"$f":"IFERROR(E63-D63,\"\")","v":""},null,8,{"$f":"IF(ISBLANK('Health NPIs'!F9),\"\",'Health NPIs'!F9)","v":""},null,{"$f":"IF(AND(J63=\"\",K63=\"\"),\"\",IFERROR((K63-J63)/MIN(J63,K63),\"\"))","v":""},{"$f":"IFERROR(K63-J63,\"\")","v":""}]
[null,"FNPI 5b The number of individuals who demonstrated improved physical health and well-being.",null,null,{"$f":"IF(ISBLANK('Health NPIs'!D10),\"\",'Health NPIs'!D10)","v":""},null,"","",null,null,{"$f":"IF(ISBLANK('Health NPIs'!F10),\"\",'Health NPIs'!F10)","v":""},null,"",""]
[null,"FNPI 5c The number of individuals who demonstrated improved mental and behavioral health and well-being. ",null,null,{"$f":"IF(ISBLANK('Health NPIs'!D11),\"\",'Health NPIs'!D11)","v":4},null,1,4,null,null,{"$f":"IF(ISBLANK('Health NPIs'!F11),\"\",'Health NPIs'!F11)","v":3},null,1,3]
[null,"FNPI 5d The number of individuals who improved skills related to the adult role of parents/ caregivers. ",null,null,{"$f":"IF(ISBLANK('Health NPIs'!D12),\"\",'Health NPIs'!D12)","v":""},null,"","",null,null,{"$f":"IF(ISBLANK('Health NPIs'!F12),\"\",'Health NPIs'!F12)","v":""},null,"",""]
[null,"FNPI 5e The number of parents/caregivers who demonstrated increased sensitivity and responsiveness in their interactions with their children. ",null,null,{"$f":"IF(ISBLANK('Health NPIs'!D13),\"\",'Health NPIs'!D13)","v":""},null,"","",null,null,{"$f":"IF(ISBLANK('Health NPIs'!F13),\"\",'Health NPIs'!F13)","v":""},null,"",""]
[null,"FNPI 5f The number of seniors (65+) who maintained an independent living situation.",null,null,{"$f":"IF(ISBLANK('Health NPIs'!D14),\"\",'Health NPIs'!D14)","v":""},null,"","",null,null,{"$f":"IF(ISBLANK('Health NPIs'!F14),\"\",'Health NPIs'!F14)","v":""},null,"",""]
[null,"FNPI 5g The number of individuals with disabilities who maintained an independent living situation.",null,null,{"$f":"IF(ISBLANK('Health NPIs'!D15),\"\",'Health NPIs'!D15)","v":""},null,"","",null,null,{"$f":"IF(ISBLANK('Health NPIs'!F15),\"\",'Health NPIs'!F15)","v":""},null,"",""]
[null,"FNPI 5h The number of individuals with chronic illness who maintained an independent living situation.",null,null,{"$f":"IF(ISBLANK('Health NPIs'!D16),\"\",'Health NPIs'!D16)","v":""},null,"","",null,null,{"$f":"IF(ISBLANK('Health NPIs'!F16),\"\",'Health NPIs'!F16)","v":""},null,"",""]
[null,"FNPI 5i The number of individuals with no recidivating event for six months.",null,null,{"$f":"IF(ISBLANK('Health NPIs'!D17),\"\",'Health NPIs'!D17)","v":0},null,"",0,null,null,{"$f":"IF(ISBLANK('Health NPIs'!F17),\"\",'Health NPIs'!F17)","v":0},null,"",0]
[null,"FNPI 5i.1 The number of youth with no recidivating event for six months.","FNPI 5i.1 Youth (ages 14-17)",null,{"$f":"IF(ISBLANK('Health NPIs'!D18),\"\",'Health NPIs'!D18)","v":""},null,"","",null,null,{"$f":"IF(ISBLANK('Health NPIs'!F18),\"\",'Health NPIs'!F18)","v":""},null,"",""]
[null,"FNPI 5i.2 The number of adults with no recidivating event for six months.","FNPI 5i.2 Adults (ages 18+)",null,{"$f":"IF(ISBLANK('Health NPIs'!D19),\"\",'Health NPIs'!D19)","v":""},null,"","",null,null,{"$f":"IF(ISBLANK('Health NPIs'!F19),\"\",'Health NPIs'!F19)","v":""},null,"",""]
[]
[null,"Indicators:",null,"FY 2019","FY 2020",null,"% Change","Change from FY19 - FY20",null,"FY 2019","FY 2020",null,"% Change","Change from FY19 - FY20"]
[null,"Civic Engagement and Community Involvement Indicators (FNPI 6)",null,"I.) Number of Participants Served \nin program(s) (#)","I.) Number of Participants Served \nin program(s) (#)",null,"I.) Number of Participants Served \nin program(s) (#)","I.) Number of Participants Served \nin program(s) (#)",null,"III.) Actual Results (#) ","III.) Actual Results (#) ",null,"III.) Actual Results (#) ","III.) Actual Results (#) "]
[null,"FNPI 6a The number of Community Action program participants who increased skills, knowledge, and abilities to enable them to work with Community Action to improve conditions in the community. ",null,158,{"$f":"IF(ISBLANK('CivicEng&Comm NPIs'!D9),\"\",'CivicEng&Comm NPIs'!D9)","v":134},null,{"$f":"IF(AND(D77=\"\",E77=\"\"),\"\",IFERROR((E77-D77)/MIN(D77,E77),\"\"))","v":-0.17910447761194029},{"$f":"IFERROR(E77-D77,\"\")","v":-24},null,148,{"$f":"IF(ISBLANK('CivicEng&Comm NPIs'!F9),\"\",'CivicEng&Comm NPIs'!F9)","v":117},null,{"$f":"IF(AND(J77=\"\",K77=\"\"),\"\",IFERROR((K77-J77)/MIN(J77,K77),\"\"))","v":-0.26495726495726496},{"$f":"IFERROR(K77-J77,\"\")","v":-31}]
[null,"FNPI 6a.1  The number of Community Action program participants who improved their leadership skills to enable them to work with Community Action to improve conditions in the community.","FNPI 6a.1 Of the above, the number of Community Action program participants who improved their leadership skills.",30,{"$f":"IF(ISBLANK('CivicEng&Comm NPIs'!D10),\"\",'CivicEng&Comm NPIs'!D10)","v":32},null,6.6666666666666666E-2,2,null,28,{"$f":"IF(ISBLANK('CivicEng&Comm NPIs'!F10),\"\",'CivicEng&Comm NPIs'!F10)","v":27},null,-3.7037037037037035E-2,-1]
[null,"FNPI 6a.2 The number of Community Action program participants who improved their social networks to enable them to work with Community Action to improve conditions in the community.","FNPI 6a.2 Of the above, the number of Community Action program participants who improved their social networks.",114,{"$f":"IF(ISBLANK('CivicEng&Comm NPIs'!D11),\"\",'CivicEng&Comm NPIs'!D11)","v":98},null,-0.16326530612244897,-16,null,99,{"$f":"IF(ISBLANK('CivicEng&Comm NPIs'!F11),\"\",'CivicEng&Comm NPIs'!F11)","v":86},null,-0.15116279069767441,-13]
[null,"FNPI 6a.3 The number of Community Action program participants who gained other skills, knowledge and abilities to enhance their social networks to enable them to work with Community Action to improve conditions in the community.","FNPI 6a.3 Of the above, the number of Community Action program participants who gained other skills, knowledge and abilities to enhance their ability to engage. ",38,{"$f":"IF(ISBLANK('CivicEng&Comm NPIs'!D12),\"\",'CivicEng&Comm NPIs'!D12)","v":39},null,2.6315789473684209E-2,1,null,32,{"$f":"IF(ISBLANK('CivicEng&Comm NPIs'!F12),\"\",'CivicEng&Comm NPIs'!F12)","v":32},null,0,0]
[]
[null,"Indicators:",null,"FY 2019","FY 2020",null,"% Change","Change from FY19 - FY20",null,"FY 2019","FY 2020",null,"% Change","Change from FY19 - FY20"]
[null,"Outcomes Across One or More Domains (FNPI 7)",null,"I.) Number of Participants Served \nin program(s) (#)","I.) Number of Individuals Served \nin program(s) (#)",null,"I.) Number of Participants Served \nin program(s) (#)","I.) Number of Individuals Served \nin program(s) (#)",null,"III.) Actual Results (#) ","III.) Actual Results (#) ",null,"III.) Actual Results (#) ","III.) Actual Results (#) "]
[null,"FNPI 7a The number of individuals who achieved one or more outcomes in the identified National Performance Indicators in one or more domains.",null,596,{"$f":"IF(ISBLANK('Outcomes Across Mult Domains'!D9),\"\",'Outcomes Across Mult Domains'!D9)","v":2674},null,{"$f":"IF(AND(D84=\"\",E84=\"\"),\"\",IFERROR((E84-D84)/MIN(D84,E84),\"\"))","v":3.4865771812080535},{"$f":"IFERROR(E84-D84,\"\")","v":2078},null,536,{"$f":"IF(ISBLANK('Outcomes Across Mult Domains'!F9),\"\",'Outcomes Across Mult Domains'!F9)","v":2486},null,{"$f":"IF(AND(J84=\"\",K84=\"\"),\"\",IFERROR((K84-J84)/MIN(J84,K84),\"\"))","v":3.6380597014925371},{"$f":"IFERROR(K84-J84,\"\")","v":1950}]

{"sheet":"Year to Year Comparisons SRVs","index":20,"n_rows":212,"n_cols":7,"rows_kept":212,"cut":false,"hidden":false,"merged":[[210,1,210,2],[196,1,196,2],[198,1,198,2],[202,1,202,2],[204,1,204,2],[206,1,206,2],[208,1,208,2],[185,1,185,2],[187,1,187,2],[189,1,189,2],[191,1,191,2],[193,1,193,2],[31,1,31,2],[26,1,26,2],[23,1,23,2],[170,1,170,2],[109,1,109,2],[114,1,114,2],[116,1,116,2],[123,1,123,2],[134,1,134,2],[140,1,140,2],[143,1,143,2],[151,1,151,2],[155,1,155,2],[160,1,160,2],[166,1,166,2],[104,1,104,2],[100,1,100,2],[1,2,1,6],[2,2,2,4],[13,1,13,2],[16,1,16,2],[6,1,6,2],[65,1,65,2],[70,1,70,2],[77,1,77,2],[84,1,84,2],[94,1,94,2],[42,1,42,2],[44,1,44,2],[51,1,51,2],[61,1,61,2],[63,1,63,2]]}
[]
[null,"Name of CSBG Eligible Entity Reporting:",{"$f":"M4AgencyName","v":"Southeastern Utah Association of Local Governments"}]
[null,"State:",{"$f":"M4StateName","v":"Utah"},null,null,"DUNS:",{"$f":"M4DUNS","v":"097758627"}]
[]
[null,"SRVs","FY 2019","FY 2020",null,"% Change","Change from FY19 - FY20"]
[null,"Employment Services (SRV 1)","Unduplicated Number of \nIndividuals Served","Unduplicated Number of \nIndividuals Served",null,"I.) Number of Participants Served \nin program(s) (#)","I.) Number of Participants Served \nin program(s) (#)"]
[null,"Skills Training and Opportunities for Experience (SRV 1a-f)"]
[null,"SRV 1a Vocational Training ",2019,{"$f":"IF(ISBLANK('Services Employment'!C9),\"\",'Services Employment'!C9)","v":5},null,{"$f":"IF(AND(C8=\"\",D8=\"\"),\"\",IFERROR((D8-C8)/MIN(C8,D8),\"\"))","v":-402.8},{"$f":"IFERROR(D8-C8,\"\")","v":-2014}]
[null,"SRV 1b On-the-Job and other Work Experience ",4,{"$f":"IF(ISBLANK('Services Employment'!C10),\"\",'Services Employment'!C10)","v":14},null,{"$f":"IF(AND(C9=\"\",D9=\"\"),\"\",IFERROR((D9-C9)/MIN(C9,D9),\"\"))","v":2.5},{"$f":"IFERROR(D9-C9,\"\")","v":10}]
[null," SRV 1c Youth Summer Work Placements",13,{"$f":"IF(ISBLANK('Services Employment'!C11),\"\",'Services Employment'!C11)","v":""},null,"",""]
[null,"SRV 1d Apprenticeship/Internship",null,{"$f":"IF(ISBLANK('Services Employment'!C12),\"\",'Services Employment'!C12)","v":3},null,1,3]
[null,"SRV 1e Self-Employment Skills Training  ",2,{"$f":"IF(ISBLANK('Services Employment'!C13),\"\",'Services Employment'!C13)","v":2},null,0,0]
[null," SRV 1f Job Readiness Training  ",2,{"$f":"IF(ISBLANK('Services Employment'!C14),\"\",'Services Employment'!C14)","v":18},null,8,16]
[null,"Career Counseling (SRV 1g-h)"]
[null,"SRV 1g Workshops",16,{"$f":"IF(ISBLANK('Services Employment'!C16),\"\",'Services Employment'!C16)","v":12},null,{"$f":"IF(AND(C15=\"\",D15=\"\"),\"\",IFERROR((D15-C15)/MIN(C15,D15),\"\"))","v":-0.33333333333333331},{"$f":"IFERROR(D15-C15,\"\")","v":-4}]
[null,"SRV 1h Coaching ",14,{"$f":"IF(ISBLANK('Services Employment'!C17),\"\",'Services Employment'!C17)","v":25},null,0.7857142857142857,11]
[null,"Job Search (SRV 1i-n)"]
[null,"SRV 1i Coaching ",27,{"$f":"IF(ISBLANK('Services Employment'!C19),\"\",'Services Employment'!C19)","v":26},null,{"$f":"IF(AND(C18=\"\",D18=\"\"),\"\",IFERROR((D18-C18)/MIN(C18,D18),\"\"))","v":-3.8461538461538464E-2},{"$f":"IFERROR(D18-C18,\"\")","v":-1}]
[null,"SRV 1j Resume Development ",18,{"$f":"IF(ISBLANK('Services Employment'!C20),\"\",'Services Employment'!C20)","v":22},null,0.22222222222222221,4]
[null,"SRV 1k Interview Skills Training ",20,{"$f":"IF(ISBLANK('Services Employment'!C21),\"\",'Services Employment'!C21)","v":22},null,0.1,2]
[null,"SRV 1l Job Referrals",20,{"$f":"IF(ISBLANK('Services Employment'!C22),\"\",'Services Employment'!C22)","v":46},null,1.3,26]
[null,"SRV 1m Job Placements",37,{"$f":"IF(ISBLANK('Services Employment'!C23),\"\",'Services Employment'!C23)","v":13},null,-1.8461538461538463,-24]
[null,"SRV 1n Pre-employment physicals, background checks, etc.",11,{"$f":"IF(ISBLANK('Services Employment'!C24),\"\",'Services Employment'!C24)","v":14},null,0.27272727272727271,3]
[null,"Post Employment Supports (SRV 1o-p)"]
[null,"SRV 1o Coaching ",16,{"$f":"IF(ISBLANK('Services Employment'!C26),\"\",'Services Employment'!C26)","v":9},null,{"$f":"IF(AND(C25=\"\",D25=\"\"),\"\",IFERROR((D25-C25)/MIN(C25,D25),\"\"))","v":-0.77777777777777779},{"$f":"IFERROR(D25-C25,\"\")","v":-7}]
[null,"SRV 1p Interactions with employers ",6,{"$f":"IF(ISBLANK('Services Employment'!C27),\"\",'Services Employment'!C27)","v":13},null,1.1666666666666667,7]
[null,"Employment Supplies (SRV 1q)"]
[null,"SRV 1q Employment Supplies",9,{"$f":"IF(ISBLANK('Services Employment'!C29),\"\",'Services Employment'!C29)","v":13},null,{"$f":"IF(AND(C28=\"\",D28=\"\"),\"\",IFERROR((D28-C28)/MIN(C28,D28),\"\"))","v":0.44444444444444442},{"$f":"IFERROR(D28-C28,\"\")","v":4}]
[]
[null,"SRVs","FY 2019","FY 2020",null,"% Change","Change from FY19 - FY20"]
[null,"Education and Cognitive Development Services (SRV 2)","Unduplicated Number of \nIndividuals Served","Unduplicated Number of \nIndividuals Served",null,"I.) Number of Participants Served \nin program(s) (#)","I.) Number of Participants Served \nin program(s) (#)"]
[null,"Child/Young Adult Education Programs (SRV 2a-j)"]
[null,"SRV 2a Early Head Start ",12,{"$f":"IF(ISBLANK('Services Education'!C9),\"\",'Services Education'!C9)","v":""},null,{"$f":"IF(AND(C33=\"\",D33=\"\"),\"\",IFERROR((D33-C33)/MIN(C33,D33),\"\"))","v":""},{"$f":"IFERROR(D33-C33,\"\")","v":""}]
[null,"SRV 2b Head Start",null,{"$f":"IF(ISBLANK('Services Education'!C10),\"\",'Services Education'!C10)","v":""},null,{"$f":"IF(AND(C34=\"\",D34=\"\"),\"\",IFERROR((D34-C34)/MIN(C34,D34),\"\"))","v":""},{"$f":"IFERROR(D34-C34,\"\")","v":""}]
[null,"SRV 2c Other Early-Childhood (0-5 yr. old) Education ",null,{"$f":"IF(ISBLANK('Services Education'!C11),\"\",'Services Education'!C11)","v":""},null,"",""]
[null,"SRV 2d K-12 Education ",null,{"$f":"IF(ISBLANK('Services Education'!C12),\"\",'Services Education'!C12)","v":""},null,"",""]
[null,"SRV 2e K-12 Support Services",null,{"$f":"IF(ISBLANK('Services Education'!C13),\"\",'Services Education'!C13)","v":""},null,"",""]
[null,"SRV 2f Financial Literacy Education",null,{"$f":"IF(ISBLANK('Services Education'!C14),\"\",'Services Education'!C14)","v":39},null,1,39]
[null,"SRV 2g Literacy/English Language Education",20,{"$f":"IF(ISBLANK('Services Education'!C15),\"\",'Services Education'!C15)","v":""},null,"",""]
[null,"SRV 2h College-Readiness Preparation/Support  ",1,{"$f":"IF(ISBLANK('Services Education'!C16),\"\",'Services Education'!C16)","v":5},null,4,4]
[null,"SRV 2i Other Post Secondary Preparation",4,{"$f":"IF(ISBLANK('Services Education'!C17),\"\",'Services Education'!C17)","v":""},null,"",""]
[null,"SRV 2j Other Post Secondary Support",2,{"$f":"IF(ISBLANK('Services Education'!C18),\"\",'Services Education'!C18)","v":""},null,"",""]
[null,"School Supplies (SRV 2k)"]
[null,"SRV 2k School Supplies",null,{"$f":"IF(ISBLANK('Services Education'!C20),\"\",'Services Education'!C20)","v":8},null,{"$f":"IF(AND(C44=\"\",D44=\"\"),\"\",IFERROR((D44-C44)/MIN(C44,D44),\"\"))","v":1},{"$f":"IFERROR(D44-C44,\"\")","v":8}]
[null,"Extra-curricular Programs (SRV 2l-q)"]
[null,"SRV 2l Before and After School Activities",7,{"$f":"IF(ISBLANK('Services Education'!C22),\"\",'Services Education'!C22)","v":37},null,{"$f":"IF(AND(C46=\"\",D46=\"\"),\"\",IFERROR((D46-C46)/MIN(C46,D46),\"\"))","v":4.2857142857142856},{"$f":"IFERROR(D46-C46,\"\")","v":30}]
[null,"SRV 2m Summer Youth Recreational Activities",24,{"$f":"IF(ISBLANK('Services Education'!C23),\"\",'Services Education'!C23)","v":""},null,"",""]
[null,"SRV 2n Summer Education Programs",null,{"$f":"IF(ISBLANK('Services Education'!C24),\"\",'Services Education'!C24)","v":""},null,"",""]
[null,"SRV 2o Behavior Improvement Programs (attitude, self-esteem, Dress-for-Success, etc.)",null,{"$f":"IF(ISBLANK('Services Education'!C25),\"\",'Services Education'!C25)","v":8},null,1,8]
[null,"SRV 2p Mentoring",9,{"$f":"IF(ISBLANK('Services Education'!C26),\"\",'Services Education'!C26)","v":41},null,3.5555555555555554,32]
[null," SRV 2q Leadership Training",39,{"$f":"IF(ISBLANK('Services Education'!C27),\"\",'Services Education'!C27)","v":33},null,-0.18181818181818182,-6]
[null,"Adult Education Programs (SRV 2r-z)"]
[null,"SRV 2r Adult Literacy Classes",31,{"$f":"IF(ISBLANK('Services Education'!C29),\"\",'Services Education'!C29)","v":""},null,{"$f":"IF(AND(C53=\"\",D53=\"\"),\"\",IFERROR((D53-C53)/MIN(C53,D53),\"\"))","v":""},{"$f":"IFERROR(D53-C53,\"\")","v":""}]
[null,"SRV 2s English Language Classes",null,{"$f":"IF(ISBLANK('Services Education'!C30),\"\",'Services Education'!C30)","v":""},null,"",""]
[null,"SRV 2t Basic Education Classes  ",null,{"$f":"IF(ISBLANK('Services Education'!C31),\"\",'Services Education'!C31)","v":""},null,"",""]
[null,"SRV 2u High School Equivalency Classes",null,{"$f":"IF(ISBLANK('Services Education'!C32),\"\",'Services Education'!C32)","v":""},null,"",""]
[null," SRV 2v Leadership Training",null,{"$f":"IF(ISBLANK('Services Education'!C33),\"\",'Services Education'!C33)","v":""},null,"",""]
[null,"SRV 2w Parenting Supports (may be a part of the early childhood programs identified above)",null,{"$f":"IF(ISBLANK('Services Education'!C34),\"\",'Services Education'!C34)","v":""},null,"",""]
[null,"SRV 2x Applied Technology Classes",null,{"$f":"IF(ISBLANK('Services Education'!C35),\"\",'Services Education'!C35)","v":""},null,"",""]
[null,"SRV 2y Post-Secondary Education Preparation",null,{"$f":"IF(ISBLANK('Services Education'!C36),\"\",'Services Education'!C36)","v":""},null,"",""]
[null,"SRV 2z Financial Literacy Education",null,{"$f":"IF(ISBLANK('Services Education'!C37),\"\",'Services Education'!C37)","v":31},null,1,31]
[null," Post-Secondary Education Supports (SRV 2aa)"]
[null,"SRV 2aa College applications, text books, computers, etc.",28,{"$f":"IF(ISBLANK('Services Education'!C39),\"\",'Services Education'!C39)","v":""},null,{"$f":"IF(AND(C63=\"\",D63=\"\"),\"\",IFERROR((D63-C63)/MIN(C63,D63),\"\"))","v":""},{"$f":"IFERROR(D63-C63,\"\")","v":""}]
[null,"Financial Aid Assistance (SRV 2bb)"]
[null,"SRV 2bb Scholarships",null,{"$f":"IF(ISBLANK('Services Education'!C41),\"\",'Services Education'!C41)","v":""},null,{"$f":"IF(AND(C65=\"\",D65=\"\"),\"\",IFERROR((D65-C65)/MIN(C65,D65),\"\"))","v":""},{"$f":"IFERROR(D65-C65,\"\")","v":""}]
[null,"Home Visits (SVR 2cc)"]
[null,"SRV 2cc Home Visits",null,{"$f":"IF(ISBLANK('Services Education'!C43),\"\",'Services Education'!C43)","v":19},null,{"$f":"IF(AND(C67=\"\",D67=\"\"),\"\",IFERROR((D67-C67)/MIN(C67,D67),\"\"))","v":1},{"$f":"IFERROR(D67-C67,\"\")","v":19}]
[]
[null,"SRVs","FY 2019","FY 2020",null,"% Change","Change from FY19 - FY20"]
[null,"Income and Asset Building Services (SRV 3)","Unduplicated Number of \nIndividuals Served","Unduplicated Number of \nIndividuals Served",null,"I.) Number of Participants Served \nin program(s) (#)","I.) Number of Participants Served \nin program(s) (#)"]
[null,"Training and Counseling Services (SRV 3a-f)"]
[null,"SRV 3a Financial Capability Skills Training",31,{"$f":"IF(ISBLANK('Services Income'!C9),\"\",'Services Income'!C9)","v":58},null,{"$f":"IF(AND(C72=\"\",D72=\"\"),\"\",IFERROR((D72-C72)/MIN(C72,D72),\"\"))","v":0.87096774193548387},{"$f":"IFERROR(D72-C72,\"\")","v":27}]
[null,"SRV 3b Financial Coaching/Counseling ",60,{"$f":"IF(ISBLANK('Services Income'!C10),\"\",'Services Income'!C10)","v":53},null,-0.13207547169811321,-7]
[null,"SRV 3c Financial Management Programs (including budgeting, credit management, credit repair, credit counseling, etc.)   ",52,{"$f":"IF(ISBLANK('Services Income'!C11),\"\",'Services Income'!C11)","v":58},null,0.11538461538461539,6]
[null,"SRV 3d First-time Homebuyer Counseling",60,{"$f":"IF(ISBLANK('Services Income'!C12),\"\",'Services Income'!C12)","v":17},null,-2.5294117647058822,-43]
[null,"SRV 3e Foreclosure Prevention Counseling",27,{"$f":"IF(ISBLANK('Services Income'!C13),\"\",'Services Income'!C13)","v":6},null,-3.5,-21]
[null,"SRV 3f Small Business Start-Up and Development Counseling Sessions/Classes",7,{"$f":"IF(ISBLANK('Services Income'!C14),\"\",'Services Income'!C14)","v":8},null,0.14285714285714285,1]
[null,"Benefit Coordination and Advocacy (SRV 3g-l)"]
[null,"SRV 3g Child Support Payments",8,{"$f":"IF(ISBLANK('Services Income'!C16),\"\",'Services Income'!C16)","v":18},null,{"$f":"IF(AND(C79=\"\",D79=\"\"),\"\",IFERROR((D79-C79)/MIN(C79,D79),\"\"))","v":1.25},{"$f":"IFERROR(D79-C79,\"\")","v":10}]
[null,"SRV 3h Health Insurance",15,{"$f":"IF(ISBLANK('Services Income'!C17),\"\",'Services Income'!C17)","v":22},null,0.46666666666666667,7]
[null,"SRV 3i Social Security/SSI Payments",23,{"$f":"IF(ISBLANK('Services Income'!C18),\"\",'Services Income'!C18)","v":20},null,-0.15,-3]
[null,"SRV 3j Veteran's Benefits",22,{"$f":"IF(ISBLANK('Services Income'!C19),\"\",'Services Income'!C19)","v":19},null,-0.15789473684210525,-3]
[null,"SRV 3k TANF Benefits",19,{"$f":"IF(ISBLANK('Services Income'!C20),\"\",'Services Income'!C20)","v":39},null,1.0526315789473684,20]
[null,"SRV 3l SNAP Benefits",39,{"$f":"IF(ISBLANK('Services Income'!C21),\"\",'Services Income'!C21)","v":52},null,0.33333333333333331,13]
[null,"Asset Building (SRV 3m-o)"]
[null,"SRV 3m Saving Accounts/IDAs and other asset building accounts",46,{"$f":"IF(ISBLANK('Services Income'!C23),\"\",'Services Income'!C23)","v":24},null,{"$f":"IF(AND(C86=\"\",D86=\"\"),\"\",IFERROR((D86-C86)/MIN(C86,D86),\"\"))","v":-0.91666666666666663},{"$f":"IFERROR(D86-C86,\"\")","v":-22}]
[null,"SRV 3n Other financial products (IRA accounts, MyRA, other retirement accounts, etc.)",27,{"$f":"IF(ISBLANK('Services Income'!C24),\"\",'Services Income'!C24)","v":2},null,-12.5,-25]
[null,"SRV 3o VITA, EITC, or Other Tax Preparation programs",3,{"$f":"IF(ISBLANK('Services Income'!C25),\"\",'Services Income'!C25)","v":""},null,"",""]
[null,"SRV 3p Loans And Grants (SRV 3p-q)"]
[null,"SRV 3p Micro-loans",78,{"$f":"IF(ISBLANK('Services Income'!C27),\"\",'Services Income'!C27)","v":""},null,{"$f":"IF(AND(C90=\"\",D90=\"\"),\"\",IFERROR((D90-C90)/MIN(C90,D90),\"\"))","v":""},""]
[null,"SRV 3q Business incubator/business development loans",null,{"$f":"IF(ISBLANK('Services Income'!C28),\"\",'Services Income'!C28)","v":3},null,1,3]
[]
[null,"SRVs","FY 2019","FY 2020",null,"% Change","Change from FY19 - FY20"]
[null,"Housing Services (SRV 4)","Unduplicated Number of \nIndividuals Served","Unduplicated Number of \nIndividuals Served",null,"I.) Number of Participants Served \nin program(s) (#)","I.) Number of Participants Served \nin program(s) (#)"]
[null,"Housing Payment Assistance (SRV 4a-e)"]
[null,"  SRV 4a Financial Capability Skill Training ",2,{"$f":"IF(ISBLANK('Services Housing'!C9),\"\",'Services Housing'!C9)","v":32},null,{"$f":"IF(AND(C96=\"\",D96=\"\"),\"\",IFERROR((D96-C96)/MIN(C96,D96),\"\"))","v":15},{"$f":"IFERROR(D96-C96,\"\")","v":30}]
[null,"SRV 4b Financial Coaching/Counseling ",35,{"$f":"IF(ISBLANK('Services Housing'!C10),\"\",'Services Housing'!C10)","v":34},null,-2.9411764705882353E-2,-1]
[null,"SRV 4c Rent Payments (includes Emergency Rent Payments)",36,{"$f":"IF(ISBLANK('Services Housing'!C11),\"\",'Services Housing'!C11)","v":186},null,4.166666666666667,150]
[null,"SRV 4d Deposit Payments",46,{"$f":"IF(ISBLANK('Services Housing'!C12),\"\",'Services Housing'!C12)","v":48},null,4.3478260869565216E-2,2]
[null,"SRV 4e Mortgage Payments (includes Emergency Mortgage Payments)",31,{"$f":"IF(ISBLANK('Services Housing'!C13),\"\",'Services Housing'!C13)","v":7},null,-3.4285714285714284,-24]
[null,"Eviction Prevention Services (SRV 4f-h)"]
[null,"SRV 4f Eviction Counseling ",7,{"$f":"IF(ISBLANK('Services Housing'!C15),\"\",'Services Housing'!C15)","v":1},null,{"$f":"IF(AND(C102=\"\",D102=\"\"),\"\",IFERROR((D102-C102)/MIN(C102,D102),\"\"))","v":-6},{"$f":"IFERROR(D102-C102,\"\")","v":-6}]
[null,"SRV 4g Landlord/Tenant Mediations",1,{"$f":"IF(ISBLANK('Services Housing'!C16),\"\",'Services Housing'!C16)","v":16},null,15,15]
[null,"SRV 4h Landlord/Tenant Rights Education ",9,{"$f":"IF(ISBLANK('Services Housing'!C17),\"\",'Services Housing'!C17)","v":7},null,-0.2857142857142857,-2]
[null,"Utility Payment Assistance (SRV 4i-l)"]
[null,"SRV 4i Utility Payments (LIHEAP-includes Emergency Utility Payments)",3,{"$f":"IF(ISBLANK('Services Housing'!C19),\"\",'Services Housing'!C19)","v":3062},null,{"$f":"IF(AND(C106=\"\",D106=\"\"),\"\",IFERROR((D106-C106)/MIN(C106,D106),\"\"))","v":1019.6666666666666},{"$f":"IFERROR(D106-C106,\"\")","v":3059}]
[null,"SRV 4j Utility Deposits",2019,{"$f":"IF(ISBLANK('Services Housing'!C20),\"\",'Services Housing'!C20)","v":23},null,-86.782608695652172,-1996]
[null,"SRV 4k Utility Arrears Payments",15,{"$f":"IF(ISBLANK('Services Housing'!C21),\"\",'Services Housing'!C21)","v":26},null,0.73333333333333328,11]
[null,"SRV 4l Level Billing Assistance",9,{"$f":"IF(ISBLANK('Services Housing'!C22),\"\",'Services Housing'!C22)","v":""},null,"",""]
[null,"Housing Placement/Rapid Re-housing (SRV 4m-p)"]
[null,"SRV 4m Temporary Housing Placement (includes Emergency Shelters)",null,{"$f":"IF(ISBLANK('Services Housing'!C24),\"\",'Services Housing'!C24)","v":10},null,{"$f":"IF(AND(C111=\"\",D111=\"\"),\"\",IFERROR((D111-C111)/MIN(C111,D111),\"\"))","v":1},{"$f":"IFERROR(D111-C111,\"\")","v":10}]
[null,"SRV 4n Transitional Housing Placements",null,{"$f":"IF(ISBLANK('Services Housing'!C25),\"\",'Services Housing'!C25)","v":""},null,"",""]
[null,"SRV 4o Permanent Housing Placements ",null,{"$f":"IF(ISBLANK('Services Housing'!C26),\"\",'Services Housing'!C26)","v":38},null,1,38]
[null,"SRV 4p Rental Counseling ",22,{"$f":"IF(ISBLANK('Services Housing'!C27),\"\",'Services Housing'!C27)","v":2},null,-10,-20]
[null,"Housing Maintenance & Improvements (SRV 4q)"]
[null,"SRV 4q Home Repairs (e.g. structural, appliance, heating systems. etc.) (Including Emergency Home Repairs)",null,{"$f":"IF(ISBLANK('Services Housing'!C29),\"\",'Services Housing'!C29)","v":""},null,{"$f":"IF(AND(C116=\"\",D116=\"\"),\"\",IFERROR((D116-C116)/MIN(C116,D116),\"\"))","v":""},{"$f":"IFERROR(D116-C116,\"\")","v":""}]
[null,"Weatherization Services (SRV 4r-t)"]
[null,"SRV 4r Independent-living Home Improvements (e.g. ramps, tub and shower grab bars, handicap accessible modifications, etc.)",null,{"$f":"IF(ISBLANK('Services Housing'!C31),\"\",'Services Housing'!C31)","v":""},null,{"$f":"IF(AND(C118=\"\",D118=\"\"),\"\",IFERROR((D118-C118)/MIN(C118,D118),\"\"))","v":""},{"$f":"IFERROR(D118-C118,\"\")","v":""}]
[null,"SRV 4s Healthy Homes Services(e.g. reduction or elimination of lead, radon, carbon dioxide and/or fire hazards or electrical issues, etc.)",null,{"$f":"IF(ISBLANK('Services Housing'!C32),\"\",'Services Housing'!C32)","v":""},null,"",""]
[null,"SRV 4t Energy Efficiency Improvements (e.g. insullation, air sealing, furnace repair, etc.)",null,{"$f":"IF(ISBLANK('Services Housing'!C33),\"\",'Services Housing'!C33)","v":""},null,"",""]
[]
[null,"SRVs","FY 2019","FY 2020",null,"% Change","Change from FY19 - FY20"]
[null,"Health and Social/Behavioral Development Services (SRV 5)","Unduplicated Number of \nIndividuals Served","Unduplicated Number of \nIndividuals Served",null,"I.) Number of Participants Served \nin program(s) (#)","I.) Number of Participants Served \nin program(s) (#)"]
[null,"Health Services, Screening and Assessments (SRV 5a-j)"]
[null,"SRV 5a Immunizations",null,{"$f":"IF(ISBLANK('Services Health and Social'!C9),\"\",'Services Health and Social'!C9)","v":""},null,{"$f":"IF(AND(C125=\"\",D125=\"\"),\"\",IFERROR((D125-C125)/MIN(C125,D125),\"\"))","v":""},{"$f":"IFERROR(D125-C125,\"\")","v":""}]
[null,"SRV 5b Physicals",null,{"$f":"IF(ISBLANK('Services Health and Social'!C10),\"\",'Services Health and Social'!C10)","v":""},null,"",""]
[null,"SRV 5c Developmental Delay Screening",null,{"$f":"IF(ISBLANK('Services Health and Social'!C11),\"\",'Services Health and Social'!C11)","v":""},null,"",""]
[null,"SRV 5d Vision  Screening",null,{"$f":"IF(ISBLANK('Services Health and Social'!C12),\"\",'Services Health and Social'!C12)","v":""},null,"",""]
[null,"SRV 5e Prescription Payments",null,{"$f":"IF(ISBLANK('Services Health and Social'!C13),\"\",'Services Health and Social'!C13)","v":""},null,"",""]
[null,"SRV 5f Doctor Visit Payments",null,{"$f":"IF(ISBLANK('Services Health and Social'!C14),\"\",'Services Health and Social'!C14)","v":""},null,"",""]
[null,"SRV 5g Maternal/Child Health",null,{"$f":"IF(ISBLANK('Services Health and Social'!C15),\"\",'Services Health and Social'!C15)","v":""},null,"",""]
[null,"SRV 5h Nursing Care Sessions",null,{"$f":"IF(ISBLANK('Services Health and Social'!C16),\"\",'Services Health and Social'!C16)","v":""},null,"",""]
[null," SRV 5i In-Home Affordable Seniors/Disabled Care Sessions\n(Nursing, Chores, Personal Care Services) ",null,{"$f":"IF(ISBLANK('Services Health and Social'!C17),\"\",'Services Health and Social'!C17)","v":""},null,"",""]
[null,"SRV 5j Health Insurance Options Counseling",null,{"$f":"IF(ISBLANK('Services Health and Social'!C18),\"\",'Services Health and Social'!C18)","v":""},null,"",""]
[null,"Reproductive Health Services (SRV 5k-o)"]
[null,"SRV 5k Coaching Sessions",null,{"$f":"IF(ISBLANK('Services Health and Social'!C20),\"\",'Services Health and Social'!C20)","v":""},null,{"$f":"IF(AND(C136=\"\",D136=\"\"),\"\",IFERROR((D136-C136)/MIN(C136,D136),\"\"))","v":""},{"$f":"IFERROR(D136-C136,\"\")","v":""}]
[null,"SRV 5l Family Planning Classes",null,{"$f":"IF(ISBLANK('Services Health and Social'!C21),\"\",'Services Health and Social'!C21)","v":""},null,"",""]
[null,"SRV 5m Contraceptives",null,{"$f":"IF(ISBLANK('Services Health and Social'!C22),\"\",'Services Health and Social'!C22)","v":""},null,"",""]
[null,"SRV 5n STI/HIV Prevention Counseling Sessions",null,{"$f":"IF(ISBLANK('Services Health and Social'!C23),\"\",'Services Health and Social'!C23)","v":""},null,"",""]
[null,"SRV 5o STI/HIV Screenings",null,{"$f":"IF(ISBLANK('Services Health and Social'!C24),\"\",'Services Health and Social'!C24)","v":""},null,"",""]
[null,"Wellness Education (SRV 5p-q)"]
[null,"SRV 5p Wellness Classes (stress reduction, medication management, mindfulness, etc.)",null,{"$f":"IF(ISBLANK('Services Health and Social'!C26),\"\",'Services Health and Social'!C26)","v":""},null,{"$f":"IF(AND(C142=\"\",D142=\"\"),\"\",IFERROR((D142-C142)/MIN(C142,D142),\"\"))","v":""},{"$f":"IFERROR(D142-C142,\"\")","v":""}]
[null,"SRV 5q Exercise/Fitness ",null,{"$f":"IF(ISBLANK('Services Health and Social'!C27),\"\",'Services Health and Social'!C27)","v":""},null,"",""]
[null,"Mental/Behavioral Health (SRV 5r-x)"]
[null,"SRV 5r Detoxification Sessions",null,{"$f":"IF(ISBLANK('Services Health and Social'!C29),\"\",'Services Health and Social'!C29)","v":""},null,{"$f":"IF(AND(C145=\"\",D145=\"\"),\"\",IFERROR((D145-C145)/MIN(C145,D145),\"\"))","v":""},{"$f":"IFERROR(D145-C145,\"\")","v":""}]
[null,"SRV 5s Substance Abuse Screenings",null,{"$f":"IF(ISBLANK('Services Health and Social'!C30),\"\",'Services Health and Social'!C30)","v":""},null,"",""]
[null,"SRV 5t Substance Abuse Counseling ",null,{"$f":"IF(ISBLANK('Services Health and Social'!C31),\"\",'Services Health and Social'!C31)","v":""},null,"",""]
[null,"SRV 5u Mental Health Assessments",null,{"$f":"IF(ISBLANK('Services Health and Social'!C32),\"\",'Services Health and Social'!C32)","v":3},null,1,3]
[null,"SRV 5v Mental Health Counseling ",null,{"$f":"IF(ISBLANK('Services Health and Social'!C33),\"\",'Services Health and Social'!C33)","v":3},null,1,3]
[null,"SRV 5w Crisis Response/Call-In Responses",null,{"$f":"IF(ISBLANK('Services Health and Social'!C34),\"\",'Services Health and Social'!C34)","v":""},null,"",""]
[null,"SRV 5x Domestic Violence Programs",null,{"$f":"IF(ISBLANK('Services Health and Social'!C35),\"\",'Services Health and Social'!C35)","v":""},null,"",""]
[null,"Support Groups (SRV 5y-aa)"]
[null,"SRV 5y Substance Abuse Support Group Meetings",null,{"$f":"IF(ISBLANK('Services Health and Social'!C37),\"\",'Services Health and Social'!C37)","v":""},null,{"$f":"IF(AND(C153=\"\",D153=\"\"),\"\",IFERROR((D153-C153)/MIN(C153,D153),\"\"))","v":""},{"$f":"IFERROR(D153-C153,\"\")","v":""}]
[null,"SRV 5z Domestic Violence Support Group Meetings",null,{"$f":"IF(ISBLANK('Services Health and Social'!C38),\"\",'Services Health and Social'!C38)","v":""},null,"",""]
[null,"SRV 5aa Mental Health Support Group Meeting",null,{"$f":"IF(ISBLANK('Services Health and Social'!C39),\"\",'Services Health and Social'!C39)","v":""},null,"",""]
[null,"Dental Services, Screenings and Exams (SRV 5bb-ee)"]
[null,"SRV 5bb Adult Dental Screening/Exams",null,{"$f":"IF(ISBLANK('Services Health and Social'!C42),\"\",'Services Health and Social'!C42)","v":""},null,{"$f":"IF(AND(C157=\"\",D157=\"\"),\"\",IFERROR((D157-C157)/MIN(C157,D157),\"\"))","v":""},{"$f":"IFERROR(D157-C157,\"\")","v":""}]
[null,"SRV 5cc Adult Dental Services (including Emergency Dental Procedures)",null,{"$f":"IF(ISBLANK('Services Health and Social'!C43),\"\",'Services Health and Social'!C43)","v":""},null,"",""]
[null,"SRV 5dd Child Dental Screenings/Exams",null,{"$f":"IF(ISBLANK('Services Health and Social'!C44),\"\",'Services Health and Social'!C44)","v":""},null,"",""]
[null,"SRV 5ee Child Dental Services (including Emergency Dental Procedures)",null,{"$f":"IF(ISBLANK('Services Health and Social'!C45),\"\",'Services Health and Social'!C45)","v":""},null,"",""]
[null,"Nutrition and Food/Meals (SRV 5ff-jj)"]
[null,"SRV 5ff Skills Classes (Gardening, Cooking, Nutrition)",null,{"$f":"IF(ISBLANK('Services Health and Social'!C47),\"\",'Services Health and Social'!C47)","v":""},null,{"$f":"IF(AND(C162=\"\",D162=\"\"),\"\",IFERROR((D162-C162)/MIN(C162,D162),\"\"))","v":""},{"$f":"IFERROR(D162-C162,\"\")","v":""}]
[null,"SRV 5gg Community Gardening Activities",27,{"$f":"IF(ISBLANK('Services Health and Social'!C48),\"\",'Services Health and Social'!C48)","v":""},null,"",""]
[null,"SRV 5hh Incentives (e.g. gift card for food preparation, rewards for participation, etc.)",9,{"$f":"IF(ISBLANK('Services Health and Social'!C49),\"\",'Services Health and Social'!C49)","v":""},null,"",""]
[null,"SRV 5ii Prepared Meals",null,{"$f":"IF(ISBLANK('Services Health and Social'!C50),\"\",'Services Health and Social'!C50)","v":""},null,"",""]
[null,"SRV 5jj Food Distribution (Food Bags/Boxes, Food Share Program, Bags of Groceries)  ",96,{"$f":"IF(ISBLANK('Services Health and Social'!C51),\"\",'Services Health and Social'!C51)","v":2265},null,22.59375,2169]
[null,"Family Skills Development (SRV 5kk-mm)"]
[null,"SRV 5kk Family Mentoring Sessions",472,{"$f":"IF(ISBLANK('Services Health and Social'!C53),\"\",'Services Health and Social'!C53)","v":""},null,{"$f":"IF(AND(C168=\"\",D168=\"\"),\"\",IFERROR((D168-C168)/MIN(C168,D168),\"\"))","v":""},{"$f":"IFERROR(D168-C168,\"\")","v":""}]
[null,"SRV 5ll Life Skills Coaching Sessions",null,{"$f":"IF(ISBLANK('Services Health and Social'!C54),\"\",'Services Health and Social'!C54)","v":""},null,"",""]
[null,"SRV 5mm Parenting Classes",null,{"$f":"IF(ISBLANK('Services Health and Social'!C55),\"\",'Services Health and Social'!C55)","v":""},null,"",""]
[null,"Emergency Hygiene Assistance (SRV 5nn-oo)"]
[null,"SRV 5nn Kits/boxes",null,{"$f":"IF(ISBLANK('Services Health and Social'!C57),\"\",'Services Health and Social'!C57)","v":10},null,{"$f":"IF(AND(C172=\"\",D172=\"\"),\"\",IFERROR((D172-C172)/MIN(C172,D172),\"\"))","v":1},{"$f":"IFERROR(D172-C172,\"\")","v":10}]
[null,"SRV 5oo Hygiene Facility Utilizations (e.g. showers, toilets, sinks)",null,{"$f":"IF(ISBLANK('Services Health and Social'!C58),\"\",'Services Health and Social'!C58)","v":""},null,"",""]
[]
[null,"SRVs","FY 2019","FY 2020",null,"% Change","Change from FY19 - FY20"]
[null,"Civic Engagement and Community Involvement Services (SRV 6a-f)","Unduplicated Number of \nIndividuals Served","Unduplicated Number of \nIndividuals Served",null,"I.) Number of Participants Served \nin program(s) (#)","I.) Number of Participants Served \nin program(s) (#)"]
[null,"SRV 6a Voter Education and Access",null,{"$f":"IF(ISBLANK('Services Civic Eng. & Comm Inv.'!C8),\"\",'Services Civic Eng. & Comm Inv.'!C8)","v":11},null,{"$f":"IF(AND(C177=\"\",D177=\"\"),\"\",IFERROR((D177-C177)/MIN(C177,D177),\"\"))","v":1},{"$f":"IFERROR(D177-C177,\"\")","v":11}]
[null,"SRV 6b Leadership Training",12,{"$f":"IF(ISBLANK('Services Civic Eng. & Comm Inv.'!C10),\"\",'Services Civic Eng. & Comm Inv.'!C10)","v":36},null,2,24]
[null,"SRV 6c Tri-partite Board Membership",39,{"$f":"IF(ISBLANK('Services Civic Eng. & Comm Inv.'!C11),\"\",'Services Civic Eng. & Comm Inv.'!C11)","v":12},null,-2.25,-27]
[null,"SRV 6d Citizenship Classes",12,{"$f":"IF(ISBLANK('Services Civic Eng. & Comm Inv.'!C12),\"\",'Services Civic Eng. & Comm Inv.'!C12)","v":""},null,"",""]
[null,"SRV 6e Getting Ahead Classes",null,{"$f":"IF(ISBLANK('Services Civic Eng. & Comm Inv.'!C13),\"\",'Services Civic Eng. & Comm Inv.'!C13)","v":16},null,1,16]
[null,"SRV 6f Volunteer Training ",15,{"$f":"IF(ISBLANK('Services Civic Eng. & Comm Inv.'!C14),\"\",'Services Civic Eng. & Comm Inv.'!C14)","v":59},null,2.9333333333333331,44]
[]
[null,"SRVs","FY 2019","FY 2020",null,"% Change","Change from FY19 - FY20"]
[null,"Services Supporting Multiple Domains (SRV 7)","Unduplicated Number of \nIndividuals Served","Unduplicated Number of \nIndividuals Served",null,"I.) Number of Participants Served \nin program(s) (#)","I.) Number of Participants Served \nin program(s) (#)"]
[null,"Case Management (SRV 7a)"]
[null,"SRV 7a Case Management",68,{"$f":"IF(ISBLANK('Support Services'!C9),\"\",'Support Services'!C9)","v":374},null,{"$f":"IF(AND(C187=\"\",D187=\"\"),\"\",IFERROR((D187-C187)/MIN(C187,D187),\"\"))","v":4.5},{"$f":"IFERROR(D187-C187,\"\")","v":306}]
[null,"Eligibility Determinations (SRV 7b)"]
[null,"SRV 7b Eligibility Determinations",299,{"$f":"IF(ISBLANK('Support Services'!C11),\"\",'Support Services'!C11)","v":472},null,{"$f":"IF(AND(C189=\"\",D189=\"\"),\"\",IFERROR((D189-C189)/MIN(C189,D189),\"\"))","v":0.57859531772575246},{"$f":"IFERROR(D189-C189,\"\")","v":173}]
[null,"Referrals (SRV 7c)"]
[null,"SRV 7c Referrals",400,{"$f":"IF(ISBLANK('Support Services'!C13),\"\",'Support Services'!C13)","v":2589},null,{"$f":"IF(AND(C191=\"\",D191=\"\"),\"\",IFERROR((D191-C191)/MIN(C191,D191),\"\"))","v":5.4725000000000001},{"$f":"IFERROR(D191-C191,\"\")","v":2189}]
[null,"Transportation Services (SRV 7d)"]
[null,"SRV 7d Transportation Services (e.g. bus passes, bus transport, support for auto purchase or repair; including emergency services)",4722,{"$f":"IF(ISBLANK('Support Services'!C15),\"\",'Support Services'!C15)","v":5},null,{"$f":"IF(AND(C193=\"\",D193=\"\"),\"\",IFERROR((D193-C193)/MIN(C193,D193),\"\"))","v":-943.4},{"$f":"IFERROR(D193-C193,\"\")","v":-4717}]
[null,"Childcare (SRV 7e-f)"]
[null,"SRV 7e Child Care subsidies",9,{"$f":"IF(ISBLANK('Support Services'!C17),\"\",'Support Services'!C17)","v":31},null,{"$f":"IF(AND(C195=\"\",D195=\"\"),\"\",IFERROR((D195-C195)/MIN(C195,D195),\"\"))","v":2.4444444444444446},{"$f":"IFERROR(D195-C195,\"\")","v":22}]
[null,"SRV 7f Child Care payments",27,{"$f":"IF(ISBLANK('Support Services'!C18),\"\",'Support Services'!C18)","v":3},null,-8,-24]
[null,"Eldercare (SRV 7g)"]
[null,"SRV 7g Day Centers",5,{"$f":"IF(ISBLANK('Support Services'!C20),\"\",'Support Services'!C20)","v":""},null,{"$f":"IF(AND(C198=\"\",D198=\"\"),\"\",IFERROR((D198-C198)/MIN(C198,D198),\"\"))","v":""},{"$f":"IFERROR(D198-C198,\"\")","v":""}]
[null,"Identification Documents (SRV 7h-j)"]
[null,"SRV 7h Birth Certificate ",null,{"$f":"IF(ISBLANK('Support Services'!C22),\"\",'Support Services'!C22)","v":""},null,{"$f":"IF(AND(C200=\"\",D200=\"\"),\"\",IFERROR((D200-C200)/MIN(C200,D200),\"\"))","v":""},{"$f":"IFERROR(D200-C200,\"\")","v":""}]
[null,"SRV 7i Social Security Card ",null,{"$f":"IF(ISBLANK('Support Services'!C23),\"\",'Support Services'!C23)","v":""},null,"",""]
[null,"SRV 7j Driver's License ",null,{"$f":"IF(ISBLANK('Support Services'!C24),\"\",'Support Services'!C24)","v":3},null,1,3]
[null,"Re-Entry Services (SRV 7k)"]
[null,"SRV 7k Criminal Record Expungements",null,{"$f":"IF(ISBLANK('Support Services'!C26),\"\",'Support Services'!C26)","v":""},null,{"$f":"IF(AND(C204=\"\",D204=\"\"),\"\",IFERROR((D204-C204)/MIN(C204,D204),\"\"))","v":""},{"$f":"IFERROR(D204-C204,\"\")","v":""}]
[null,"Immigration Support Services (SRV 7l)"]
[null,"SRV 7l Immigration Support Services (relocation, food, clothing)",null,{"$f":"IF(ISBLANK('Support Services'!C28),\"\",'Support Services'!C28)","v":""},null,{"$f":"IF(AND(C206=\"\",D206=\"\"),\"\",IFERROR((D206-C206)/MIN(C206,D206),\"\"))","v":""},{"$f":"IFERROR(D206-C206,\"\")","v":""}]
[null,"Legal Assistance (includes emergency legal assistance) (SRV 7m)"]
[null,"SRV 7m Legal Assistance ",null,{"$f":"IF(ISBLANK('Support Services'!C30),\"\",'Support Services'!C30)","v":""},null,{"$f":"IF(AND(C208=\"\",D208=\"\"),\"\",IFERROR((D208-C208)/MIN(C208,D208),\"\"))","v":""},{"$f":"IFERROR(D208-C208,\"\")","v":""}]
[null,"Emergency Clothing Assistance (SRV 7n)"]
[null,"SRV 7n Emergency Clothing Assistance",null,{"$f":"IF(ISBLANK('Support Services'!C32),\"\",'Support Services'!C32)","v":16},null,{"$f":"IF(AND(C210=\"\",D210=\"\"),\"\",IFERROR((D210-C210)/MIN(C210,D210),\"\"))","v":1},{"$f":"IFERROR(D210-C210,\"\")","v":16}]
[null,"Mediation/Customer Advocacy Interventions (debt forgiveness, negotiations or issues with landlords, coordinating with other services or government) (SRV 7o)"]
[null,"SRV 7o Mediation/Customer Advocacy Interventions",27,{"$f":"IF(ISBLANK('Support Services'!C34),\"\",'Support Services'!C34)","v":29},null,{"$f":"IF(AND(C212=\"\",D212=\"\"),\"\",IFERROR((D212-C212)/MIN(C212,D212),\"\"))","v":7.407407407407407E-2},{"$f":"IFERROR(D212-C212,\"\")","v":2}]

{"sheet":"Year to Year ALL Characteristic","index":21,"n_rows":225,"n_cols":11,"rows_kept":225,"cut":false,"hidden":false,"merged":[[6,1,6,5],[7,1,7,5],[1,2,1,4],[2,2,2,4],[1,5,1,10],[2,5,2,8]]}
[null,"Goal 1: Individuals and Families with low-incomes are stable and achieve economic security."]
[null,null,"Name of CSBG Eligible Entity Reporting:",null,null,{"$f":"M4AgencyName","v":"Southeastern Utah Association of Local Governments"}]
[null,null,"State:",null,null,{"$f":"M4StateName","v":"Utah"},null,null,null,"DUNS:",{"$f":"M4DUNS","v":"097758627"}]
[]
[null,null,null,null,null,null,null,null,null,"% Change","Change from FY19 - FY20"]
[null,null,null,null,null,null,"FY 2019","FY 2020",null,"I.) Number of Participants Served \nin program(s) (#)","I.) Number of Participants Served \nin program(s) (#)"]
[null,"A. Total unduplicated number of all INDIVIDUALS about whom one or more characteristics were obtained:",null,null,null,null,2872,{"$f":"IF(ISBLANK('ALL Characteristics'!M7),\"\",'ALL Characteristics'!M7)","v":3196},null,{"$f":"IF(AND(G7=\"\",H7=\"\"),\"\",IFERROR( (H7-G7)/MIN(H7,G7),\"\"))","v":0.11281337047353761},{"$f":"IFERROR(H7-G7,\"\")","v":324}]
[null,"B. Total unduplicated number of all HOUSEHOLDS about whom one or more characteristics were obtained:",null,null,null,null,1604,{"$f":"IF(ISBLANK('ALL Characteristics'!M8),\"\",'ALL Characteristics'!M8)","v":1656},null,3.2418952618453865E-2,{"$f":"IFERROR(H8-G8,\"\")","v":52}]
[]
[null,null,null,null,null,null,null,null,null,"% Change","Change from FY19 - FY20"]
[null,"C. INDIVIDUAL LEVEL CHARACTERISTICS",null,null,null,null,"FY 2019","FY 2020",null,"I.) Number of Participants Served \nin program(s) (#)","I.) Number of Participants Served \nin program(s) (#)"]
[null,"1. Gender",null,null,null,null,null,"Number of Individuals"]
[null,"a.","Male",null,null,null,1321,{"$f":"IF(ISBLANK('ALL Characteristics'!G12),\"\",'ALL Characteristics'!G12)","v":1515},null,{"$f":"IF(AND(G13=\"\",H13=\"\"),\"\",IFERROR( (H13-G13)/MIN(H13,G13),\"\"))","v":0.14685844057532171},{"$f":"IFERROR(H13-G13,\"\")","v":194}]
[null,"b.","Female",null,null,null,1551,{"$f":"IF(ISBLANK('ALL Characteristics'!G13),\"\",'ALL Characteristics'!G13)","v":1680},null,{"$f":"IF(AND(G14=\"\",H14=\"\"),\"\",IFERROR( (H14-G14)/MIN(H14,G14),\"\"))","v":8.3172147001934232E-2},129]
[null,"c.","Other",null,null,null,null,{"$f":"IF(ISBLANK('ALL Characteristics'!G14),\"\",'ALL Characteristics'!G14)","v":1},null,1,1]
[null,"d.","Unknown/not reported",null,null,null,null,{"$f":"IF(ISBLANK('ALL Characteristics'!G15),\"\",'ALL Characteristics'!G15)","v":""},null,"",""]
[null,"e.","TOTAL (auto calculated)",null,null,null,2872,{"$f":"IF(ISBLANK('ALL Characteristics'!G16),\"\",'ALL Characteristics'!G16)","v":3196},null,0.11281337047353761,324]
[]
[null,null,null,null,null,null,null,null,null,"% Change","Change from FY19 - FY20"]
[null,null,null,null,null,null,"FY 2019","FY 2020",null,"I.) Number of Participants Served \nin program(s) (#)","I.) Number of Participants Served \nin program(s) (#)"]
[null,"2. Age",null,null,null,null,null,"Number of Individuals"]
[null,"a.","0-5",null,null,null,231,{"$f":"IF(ISBLANK('ALL Characteristics'!G22),\"\",'ALL Characteristics'!G22)","v":293},null,{"$f":"IF(AND(G22=\"\",H22=\"\"),\"\",IFERROR( (H22-G22)/MIN(H22,G22),\"\"))","v":0.26839826839826841},{"$f":"IFERROR(H22-G22,\"\")","v":62}]
[null,"b.","6-13",null,null,null,323,{"$f":"IF(ISBLANK('ALL Characteristics'!G23),\"\",'ALL Characteristics'!G23)","v":410},null,0.26934984520123839,87]
[null,"c.","14-17",null,null,null,172,{"$f":"IF(ISBLANK('ALL Characteristics'!G24),\"\",'ALL Characteristics'!G24)","v":199},null,0.15697674418604651,27]
[null,"d.","18-24",null,null,null,228,{"$f":"IF(ISBLANK('ALL Characteristics'!G25),\"\",'ALL Characteristics'!G25)","v":273},null,0.19736842105263158,45]
[null,"e.","25-44",null,null,null,787,{"$f":"IF(ISBLANK('ALL Characteristics'!G26),\"\",'ALL Characteristics'!G26)","v":875},null,0.11181702668360864,88]
[null,"f.","45-54",null,null,null,420,{"$f":"IF(ISBLANK('ALL Characteristics'!G27),\"\",'ALL Characteristics'!G27)","v":432},null,2.8571428571428571E-2,12]
[null,"g.","55-59",null,null,null,238,{"$f":"IF(ISBLANK('ALL Characteristics'!G28),\"\",'ALL Characteristics'!G28)","v":222},null,-7.2072072072072071E-2,-16]
[null,"h.","60-64",null,null,null,189,{"$f":"IF(ISBLANK('ALL Characteristics'!G29),\"\",'ALL Characteristics'!G29)","v":191},null,1.0582010582010581E-2,2]
[null,"i.","65-74",null,null,null,194,{"$f":"IF(ISBLANK('ALL Characteristics'!G30),\"\",'ALL Characteristics'!G30)","v":211},null,8.7628865979381437E-2,17]
[null,"j.","75+",null,null,null,88,{"$f":"IF(ISBLANK('ALL Characteristics'!G31),\"\",'ALL Characteristics'!G31)","v":90},null,2.2727272727272728E-2,2]
[null,"k.","Unknown/not reported",null,null,null,2,{"$f":"IF(ISBLANK('ALL Characteristics'!G32),\"\",'ALL Characteristics'!G32)","v":""},null,"",""]
[null,"l.","TOTAL (auto calculated)",null,null,null,2872,{"$f":"IF(ISBLANK('ALL Characteristics'!G33),\"\",'ALL Characteristics'!G33)","v":3196},null,0.11281337047353761,324]
[]
[null,null,null,null,null,null,null,null,null,"% Change","Change from FY19 - FY20"]
[null,null,null,null,null,null,"FY 2019","FY 2020",null,"I.) Number of Participants Served \nin program(s) (#)","I.) Number of Participants Served \nin program(s) (#)"]
[null,"3. Education Levels ",null,null,null,null,null,"Number of Individuals"]
[null,null,null,null,null,null,"[ages 14-24]","[ages 14-24]"]
[null,"a.","Grades 0-8",null,null,null,127,{"$f":"IF(ISBLANK('ALL Characteristics'!F41),\"\",'ALL Characteristics'!F41)","v":132},null,{"$f":"IF(AND(G39=\"\",H39=\"\"),\"\",IFERROR( (H39-G39)/MIN(H39,G39),\"\"))","v":3.937007874015748E-2},{"$f":"IFERROR(H39-G39,\"\")","v":5}]
[null,"b.","Grades 9-12/Non-Graduate",null,null,null,113,{"$f":"IF(ISBLANK('ALL Characteristics'!F42),\"\",'ALL Characteristics'!F42)","v":153},null,0.35398230088495575,40]
[null,"c.","High School Graduate",null,null,null,106,{"$f":"IF(ISBLANK('ALL Characteristics'!F43),\"\",'ALL Characteristics'!F43)","v":80},null,-0.32500000000000001,-26]
[null,"d.","GED/Equivalency Diploma",null,null,null,null,{"$f":"IF(ISBLANK('ALL Characteristics'!F44),\"\",'ALL Characteristics'!F44)","v":13},null,1,13]
[null,"e.","12 grade + Some Post-Secondary",null,null,null,31,{"$f":"IF(ISBLANK('ALL Characteristics'!F45),\"\",'ALL Characteristics'!F45)","v":15},null,-1.0666666666666667,-16]
[null,"f.","2 or 4 years College Graduate",null,null,null,11,{"$f":"IF(ISBLANK('ALL Characteristics'!F46),\"\",'ALL Characteristics'!F46)","v":4},null,-1.75,-7]
[null,"g.","Graduate of other post-secondary school ",null,null,null,1,{"$f":"IF(ISBLANK('ALL Characteristics'!F47),\"\",'ALL Characteristics'!F47)","v":""},null,"",""]
[null,"h.","Unknown/not reported",null,null,null,11,{"$f":"IF(ISBLANK('ALL Characteristics'!F48),\"\",'ALL Characteristics'!F48)","v":75},null,5.8181818181818183,64]
[null,"i.","TOTAL (auto calculated)",null,null,null,400,{"$f":"IF(ISBLANK('ALL Characteristics'!F49),\"\",'ALL Characteristics'!F49)","v":472},null,0.18,72]
[]
[null,null,null,null,null,null,"[ages 25+]","[ages 25+]"]
[null,"a.","Grades 0-8",null,null,null,45,{"$f":"IF(ISBLANK('ALL Characteristics'!G41),\"\",'ALL Characteristics'!G41)","v":34},null,{"$f":"IF(AND(G50=\"\",H50=\"\"),\"\",IFERROR( (H50-G50)/MIN(H50,G50),\"\"))","v":-0.3235294117647059},{"$f":"IFERROR(H50-G50,\"\")","v":-11}]
[null,"b.","Grades 9-12/Non-Graduate",null,null,null,456,{"$f":"IF(ISBLANK('ALL Characteristics'!G42),\"\",'ALL Characteristics'!G42)","v":425},null,-7.2941176470588232E-2,-31]
[null,"c.","High School Graduate",null,null,null,836,{"$f":"IF(ISBLANK('ALL Characteristics'!G43),\"\",'ALL Characteristics'!G43)","v":567},null,-0.47442680776014107,-269]
[null,"d.","GED/Equivalency Diploma",null,null,null,null,{"$f":"IF(ISBLANK('ALL Characteristics'!G44),\"\",'ALL Characteristics'!G44)","v":216},null,1,216]
[null,"e.","12 grade + Some Post-Secondary",null,null,null,365,{"$f":"IF(ISBLANK('ALL Characteristics'!G45),\"\",'ALL Characteristics'!G45)","v":313},null,-0.16613418530351437,-52]
[null,"f.","2 or 4 years College Graduate",null,null,null,183,{"$f":"IF(ISBLANK('ALL Characteristics'!G46),\"\",'ALL Characteristics'!G46)","v":167},null,-9.580838323353294E-2,-16]
[null,"g.","Graduate of other post-secondary school ",null,null,null,21,{"$f":"IF(ISBLANK('ALL Characteristics'!G47),\"\",'ALL Characteristics'!G47)","v":28},null,0.33333333333333331,7]
[null,"h.","Unknown/not reported",null,null,null,10,{"$f":"IF(ISBLANK('ALL Characteristics'!G48),\"\",'ALL Characteristics'!G48)","v":271},null,26.1,261]
[null,"i.","TOTAL (auto calculated)",null,null,null,1916,{"$f":"IF(ISBLANK('ALL Characteristics'!G49),\"\",'ALL Characteristics'!G49)","v":2021},null,5.4801670146137786E-2,105]
[]
[null,null,null,null,null,null,null,null,null,"% Change","Change from FY19 - FY20"]
[null,null,null,null,null,null,"FY 2019","FY 2020",null,"I.) Number of Participants Served \nin program(s) (#)","I.) Number of Participants Served \nin program(s) (#)"]
[null,"4. Disconnected Youth",null,null,null,null,null,"Number of Individuals"]
[null,"a. Youth ages 14-24 who are neither working or in school ",null,null,null,null,227,{"$f":"IF(ISBLANK('ALL Characteristics'!G60),\"\",'ALL Characteristics'!G60)","v":194},null,{"$f":"IF(AND(G63=\"\",H63=\"\"),\"\",IFERROR( (H63-G63)/MIN(H63,G63),\"\"))","v":-0.17010309278350516},{"$f":"IFERROR(H63-G63,\"\")","v":-33}]
[]
[null,null,null,null,null,null,null,null,null,"% Change","Change from FY19 - FY20"]
[null,null,null,null,null,null,"FY 2019","FY 2020",null,"I.) Number of Participants Served \nin program(s) (#)","I.) Number of Participants Served \nin program(s) (#)"]
[null,"5. Health",null,null,null,null,null,"Number of Individuals"]
[null,"a. Disabling Condition",null,null,null,"Yes",757,{"$f":"IF(ISBLANK('ALL Characteristics'!E64),\"\",'ALL Characteristics'!E64)","v":688},null,{"$f":"IF(AND(G68=\"\",H68=\"\"),\"\",IFERROR( (H68-G68)/MIN(H68,G68),\"\"))","v":-0.1002906976744186},{"$f":"IFERROR(H68-G68,\"\")","v":-69}]
[null,null,null,null,null,"No",2035,{"$f":"IF(ISBLANK('ALL Characteristics'!F64),\"\",'ALL Characteristics'!F64)","v":1917},null,-6.1554512258737613E-2,-118]
[null,null,null,null,null,"Unknown",80,{"$f":"IF(ISBLANK('ALL Characteristics'!G64),\"\",'ALL Characteristics'!G64)","v":591},null,6.3875000000000002,511]
[]
[null,"b. Health Insurance*",null,null,null,"Yes",1788,{"$f":"IF(ISBLANK('ALL Characteristics'!E66),\"\",'ALL Characteristics'!E66)","v":1741},null,{"$f":"IF(AND(G72=\"\",H72=\"\"),\"\",IFERROR( (H72-G72)/MIN(H72,G72),\"\"))","v":-2.6995979322228605E-2},{"$f":"IFERROR(H72-G72,\"\")","v":-47}]
[null,null,null,null,null,"No",966,{"$f":"IF(ISBLANK('ALL Characteristics'!F66),\"\",'ALL Characteristics'!F66)","v":850},null,-0.13647058823529412,-116]
[null,null,null,null,null,"Unknown",118,{"$f":"IF(ISBLANK('ALL Characteristics'!G66),\"\",'ALL Characteristics'!G66)","v":605},null,4.1271186440677967,487]
[null,null,"Health Insurance Sources"]
[null,null,"c.1. Medicaid",null,null,null,1199,{"$f":"IF(ISBLANK('ALL Characteristics'!G69),\"\",'ALL Characteristics'!G69)","v":1190},null,{"$f":"IF(AND(G76=\"\",H76=\"\"),\"\",IFERROR( (H76-G76)/MIN(H76,G76),\"\"))","v":-7.5630252100840336E-3},{"$f":"IFERROR(H76-G76,\"\")","v":-9}]
[null,null,"c.2. Medicare",null,null,null,406,{"$f":"IF(ISBLANK('ALL Characteristics'!G70),\"\",'ALL Characteristics'!G70)","v":380},null,-6.8421052631578952E-2,-26]
[null,null,"c.3. State Children’s Health Insurance Program",null,null,null,19,{"$f":"IF(ISBLANK('ALL Characteristics'!G71),\"\",'ALL Characteristics'!G71)","v":23},null,0.21052631578947367,4]
[null,null,"c.4. State Health Insurance for Adults",null,null,null,15,{"$f":"IF(ISBLANK('ALL Characteristics'!G72),\"\",'ALL Characteristics'!G72)","v":12},null,-0.25,-3]
[null,null,"c.5. Military Health Care",null,null,null,15,{"$f":"IF(ISBLANK('ALL Characteristics'!G73),\"\",'ALL Characteristics'!G73)","v":19},null,0.26666666666666666,4]
[null,null,"c.6. Direct-Purchase",null,null,null,16,{"$f":"IF(ISBLANK('ALL Characteristics'!G74),\"\",'ALL Characteristics'!G74)","v":20},null,0.25,4]
[null,null,"c.7. Employment Based",null,null,null,98,{"$f":"IF(ISBLANK('ALL Characteristics'!G75),\"\",'ALL Characteristics'!G75)","v":69},null,-0.42028985507246375,-29]
[null,null,"c.8. Unknown/not reported",null,null,null,20,{"$f":"IF(ISBLANK('ALL Characteristics'!G76),\"\",'ALL Characteristics'!G76)","v":28},null,0.4,8]
[null,null,"c.9. TOTAL (auto calculated)",null,null,null,1788,{"$f":"IF(ISBLANK('ALL Characteristics'!G77),\"\",'ALL Characteristics'!G77)","v":1741},null,-2.6995979322228605E-2,-47]
[]
[null,null,null,null,null,null,null,null,null,"% Change","Change from FY19 - FY20"]
[null,null,null,null,null,null,"FY 2019","FY 2020",null,"I.) Number of Participants Served \nin program(s) (#)","I.) Number of Participants Served \nin program(s) (#)"]
[null,"6. Ethnicity/Race",null,null,null,null,null,"Number of Individuals"]
[null,"a. Ethnicity"]
[null,null,null,"a.1. Hispanic, Latino or Spanish Origins",null,null,398,{"$f":"IF(ISBLANK('ALL Characteristics'!M13),\"\",'ALL Characteristics'!M13)","v":431},null,{"$f":"IF(AND(G90=\"\",H90=\"\"),\"\",IFERROR( (H90-G90)/MIN(H90,G90),\"\"))","v":8.2914572864321606E-2},{"$f":"IFERROR(H90-G90,\"\")","v":33}]
[null,null,null,"a.2. Not Hispanic, Latino or Spanish Origins",null,null,2426,{"$f":"IF(ISBLANK('ALL Characteristics'!M14),\"\",'ALL Characteristics'!M14)","v":2380},null,-1.9327731092436976E-2,-46]
[null,null,null,"a.3. Unknown/not reported",null,null,48,{"$f":"IF(ISBLANK('ALL Characteristics'!M15),\"\",'ALL Characteristics'!M15)","v":385},null,7.020833333333333,337]
[null,null,null,"a.4. TOTAL (auto calculated)",null,null,2872,{"$f":"IF(ISBLANK('ALL Characteristics'!M16),\"\",'ALL Characteristics'!M16)","v":3196},null,0.11281337047353761,324]
[null,"b. Race"]
[null,null,null,"b.1. American Indian or Alaska Native",null,null,160,{"$f":"IF(ISBLANK('ALL Characteristics'!M22),\"\",'ALL Characteristics'!M22)","v":168},null,{"$f":"IF(AND(G95=\"\",H95=\"\"),\"\",IFERROR( (H95-G95)/MIN(H95,G95),\"\"))","v":0.05},{"$f":"IFERROR(H95-G95,\"\")","v":8}]
[null,null,null,"b.2. Asian",null,null,3,{"$f":"IF(ISBLANK('ALL Characteristics'!M23),\"\",'ALL Characteristics'!M23)","v":2},null,-0.5,-1]
[null,null,null,"b.3. Black or African American",null,null,22,{"$f":"IF(ISBLANK('ALL Characteristics'!M24),\"\",'ALL Characteristics'!M24)","v":16},null,-0.375,-6]
[null,null,null,"b.4. Native Hawaiian and Other Pacific Islander ",null,null,9,{"$f":"IF(ISBLANK('ALL Characteristics'!M25),\"\",'ALL Characteristics'!M25)","v":16},null,0.77777777777777779,7]
[null,null,null,"b.5. White",null,null,2232,{"$f":"IF(ISBLANK('ALL Characteristics'!M26),\"\",'ALL Characteristics'!M26)","v":2204},null,-1.2704174228675136E-2,-28]
[null,null,null,"b.6. Other",null,null,356,{"$f":"IF(ISBLANK('ALL Characteristics'!M27),\"\",'ALL Characteristics'!M27)","v":351},null,-1.4245014245014245E-2,-5]
[null,null,null,"b.7. Multi-race (two or more of the above)",null,null,60,{"$f":"IF(ISBLANK('ALL Characteristics'!M28),\"\",'ALL Characteristics'!M28)","v":77},null,0.28333333333333333,17]
[null,null,null,"b.8. Unknown/not reported",null,null,30,{"$f":"IF(ISBLANK('ALL Characteristics'!M29),\"\",'ALL Characteristics'!M29)","v":362},null,11.066666666666666,332]
[null,null,null,"b.9. TOTAL (auto calculated)",null," ",2872,{"$f":"IF(ISBLANK('ALL Characteristics'!M30),\"\",'ALL Characteristics'!M30)","v":3196},null,0.11281337047353761,324]
[]
[null,null,null,null,null,null,null,null,null,"% Change","Change from FY19 - FY20"]
[null,null,null,null,null,null,"FY 2019","FY 2020",null,"I.) Number of Participants Served \nin program(s) (#)","I.) Number of Participants Served \nin program(s) (#)"]
[null,"7. Military Status",null,null,null,null,null,"Number of Individuals"]
[null,null,"a. Veteran",null,null,null,108,{"$f":"IF(ISBLANK('ALL Characteristics'!M37),\"\",'ALL Characteristics'!M37)","v":96},null,{"$f":"IF(AND(G108=\"\",H108=\"\"),\"\",IFERROR( (H108-G108)/MIN(H108,G108),\"\"))","v":-0.125},{"$f":"IFERROR(H108-G108,\"\")","v":-12}]
[null,null,"b. Active Military",null,null,null,1,{"$f":"IF(ISBLANK('ALL Characteristics'!M38),\"\",'ALL Characteristics'!M38)","v":1},null,0,0]
[null,null,"c. Never Served in the Military",null,null,null,null,{"$f":"IF(ISBLANK('ALL Characteristics'!M39),\"\",'ALL Characteristics'!M39)","v":2002},null,1,2002]
[null,null,"d. Unknown/not reported",null,null,null,1975,{"$f":"IF(ISBLANK('ALL Characteristics'!M40),\"\",'ALL Characteristics'!M40)","v":188},null,-9.5053191489361701,{"$f":"IFERROR(H112-G112,\"\")","v":203}]
[null,null,"e. TOTAL (auto calculated)",null,null,null,2084,{"$f":"IF(ISBLANK('ALL Characteristics'!M41),\"\",'ALL Characteristics'!M41)","v":2287}]
[null,null,null,null,null,null,null,null,null,"% Change","Change from FY19 - FY20"]
[null,null,null,null,null,null,"FY 2019","FY 2020",null,"I.) Number of Participants Served \nin program(s) (#)","I.) Number of Participants Served \nin program(s) (#)"]
[null,"8. Work Status (Individuals 18+)",null,null,null,null,null,"Number of Individuals"]
[null,null,"a. Employed Full-Time",null,null,null,107,{"$f":"IF(ISBLANK('ALL Characteristics'!M48),\"\",'ALL Characteristics'!M48)","v":126},null,{"$f":"IF(AND(G116=\"\",H116=\"\"),\"\",IFERROR( (H116-G116)/MIN(H116,G116),\"\"))","v":0.17757009345794392},{"$f":"IFERROR(H116-G116,\"\")","v":19}]
[null,null,"b. Employed Part-Time",null,null,null,183,{"$f":"IF(ISBLANK('ALL Characteristics'!M49),\"\",'ALL Characteristics'!M49)","v":230},null,0.25683060109289618,47]
[null,null,"c. Migrant Seasonal Farm Worker",null,null,null,1,{"$f":"IF(ISBLANK('ALL Characteristics'!M50),\"\",'ALL Characteristics'!M50)","v":2},null,1,1]
[null,null,"d. Unemployed (Short-Term, 6 months or less)",null,null,null,42,{"$f":"IF(ISBLANK('ALL Characteristics'!M51),\"\",'ALL Characteristics'!M51)","v":223},null,4.3095238095238093,181]
[null,null,"e. Unemployed (Long-Term, more than 6 months) ",null,null,null,462,{"$f":"IF(ISBLANK('ALL Characteristics'!M52),\"\",'ALL Characteristics'!M52)","v":477},null,3.2467532467532464E-2,15]
[null,null,"f. Unemployed (Not in Labor Force)",null,null,null,965,{"$f":"IF(ISBLANK('ALL Characteristics'!M53),\"\",'ALL Characteristics'!M53)","v":955},null,-1.0471204188481676E-2,-10]
[null,null,"g.","Retired",null,null,60,{"$f":"IF(ISBLANK('ALL Characteristics'!M54),\"\",'ALL Characteristics'!M54)","v":57},null,-5.2631578947368418E-2,-3]
[null,null,"h.","Unkown/not reported",null,null,46,{"$f":"IF(ISBLANK('ALL Characteristics'!M55),\"\",'ALL Characteristics'!M55)","v":193},null,3.1956521739130435,147]
[null,null,"i.","Total (autocalculated)",null,null,1866,{"$f":"IF(ISBLANK('ALL Characteristics'!M56),\"\",'ALL Characteristics'!M56)","v":2263},null,0.21275455519828509,397]
[]
[null,null,null,null,null,null,null,null,null,"% Change","Change from FY19 - FY20"]
[null,"D. HOUSEHOLD LEVEL CHARACTERISTICS",null,null,null,null,"FY 2019","FY 2020",null,"I.) Number of Participants Served \nin program(s) (#)","I.) Number of Participants Served \nin program(s) (#)"]
[null,"9. Household Type",null,null,null,null,null,"Number of Households"]
[null,"a. Single Person",null,null,null,null,849,{"$f":"IF(ISBLANK('ALL Characteristics'!F90),\"\",'ALL Characteristics'!F90)","v":826},null,{"$f":"IF(AND(G129=\"\",H129=\"\"),\"\",IFERROR( (H129-G129)/MIN(H129,G129),\"\"))","v":-2.784503631961259E-2},{"$f":"IFERROR(H129-G129,\"\")","v":-23}]
[null,"b. Two Adults NO Children",null,null,null,null,243,{"$f":"IF(ISBLANK('ALL Characteristics'!F91),\"\",'ALL Characteristics'!F91)","v":225},null,-0.08,-18]
[null,"c. Single Parent Female",null,null,null,null,212,{"$f":"IF(ISBLANK('ALL Characteristics'!F92),\"\",'ALL Characteristics'!F92)","v":194},null,-9.2783505154639179E-2,-18]
[null,"d. Single Parent Male",null,null,null,null,41,{"$f":"IF(ISBLANK('ALL Characteristics'!F93),\"\",'ALL Characteristics'!F93)","v":35},null,-0.17142857142857143,-6]
[null,"e. Two Parent Household",null,null,null,null,182,{"$f":"IF(ISBLANK('ALL Characteristics'!F94),\"\",'ALL Characteristics'!F94)","v":190},null,4.3956043956043959E-2,8]
[null,"f. Non-related Adults with Children",null,null,null,null,38,{"$f":"IF(ISBLANK('ALL Characteristics'!F95),\"\",'ALL Characteristics'!F95)","v":37},null,-2.7027027027027029E-2,-1]
[null,"g. Multigenerational Household",null,null,null,null,18,{"$f":"IF(ISBLANK('ALL Characteristics'!F96),\"\",'ALL Characteristics'!F96)","v":31},null,0.72222222222222221,13]
[null,"h. Other",null,null,null,null,null,{"$f":"IF(ISBLANK('ALL Characteristics'!F97),\"\",'ALL Characteristics'!F97)","v":16},null,1,16]
[null,"i. Unknown/not reported",null,null,null,null,21,{"$f":"IF(ISBLANK('ALL Characteristics'!F98),\"\",'ALL Characteristics'!F98)","v":102},null,3.8571428571428572,81]
[null,null,"j. TOTAL (auto calculated)",null,null,null,1604,{"$f":"IF(ISBLANK('ALL Characteristics'!F99),\"\",'ALL Characteristics'!F99)","v":1656},null,3.2418952618453865E-2,52]
[]
[null,null,null,null,null,null,null,null,null,"% Change","Change from FY19 - FY20"]
[null,null,null,null,null,null,"FY 2019","FY 2020",null,"I.) Number of Participants Served \nin program(s) (#)","I.) Number of Participants Served \nin program(s) (#)"]
[null,"10. Household Size",null,null,null,null,null,"Number of Households"]
[null,"a. Single Person",null,null,null,null,849,{"$f":"IF(ISBLANK('ALL Characteristics'!F106),\"\",'ALL Characteristics'!F106)","v":826},null,{"$f":"IF(AND(G143=\"\",H143=\"\"),\"\",IFERROR( (H143-G143)/MIN(H143,G143),\"\"))","v":-2.784503631961259E-2},{"$f":"IFERROR(H143-G143,\"\")","v":-23}]
[null,"b. Two",null,null,null,null,350,{"$f":"IF(ISBLANK('ALL Characteristics'!F107),\"\",'ALL Characteristics'!F107)","v":298},null,-0.17449664429530201,-52]
[null,"c. Three",null,null,null,null,135,{"$f":"IF(ISBLANK('ALL Characteristics'!F108),\"\",'ALL Characteristics'!F108)","v":151},null,0.11851851851851852,16]
[null,"d. Four",null,null,null,null,106,{"$f":"IF(ISBLANK('ALL Characteristics'!F109),\"\",'ALL Characteristics'!F109)","v":119},null,0.12264150943396226,13]
[null,"e. Five",null,null,null,null,66,{"$f":"IF(ISBLANK('ALL Characteristics'!F110),\"\",'ALL Characteristics'!F110)","v":92},null,0.39393939393939392,26]
[null,"f. Six or more",null,null,null,null,33,{"$f":"IF(ISBLANK('ALL Characteristics'!F111),\"\",'ALL Characteristics'!F111)","v":42},null,0.27272727272727271,9]
[null,"g. Unknown/not reported",null,null,null,null,65,{"$f":"IF(ISBLANK('ALL Characteristics'!F112),\"\",'ALL Characteristics'!F112)","v":128},null,0.96923076923076923,63]
[null,"h. TOTAL (auto calculated)",null,null,null,null,1604,{"$f":"IF(ISBLANK('ALL Characteristics'!F113),\"\",'ALL Characteristics'!F113)","v":1656},null,3.2418952618453865E-2,52]
[]
[null,null,null,null,null,null,null,null,null,"% Change","Change from FY19 - FY20"]
[null,null,null,null,null,null,"FY 2019","FY 2020",null,"I.) Number of Participants Served \nin program(s) (#)","I.) Number of Participants Served \nin program(s) (#)"]
[null,"11. Housing ",null,null,null,null,null,"Number of Households"]
[null,"a. Own",null,null,null,null,297,{"$f":"IF(ISBLANK('ALL Characteristics'!F120),\"\",'ALL Characteristics'!F120)","v":256},null,{"$f":"IF(AND(G155=\"\",H155=\"\"),\"\",IFERROR( (H155-G155)/MIN(H155,G155),\"\"))","v":-0.16015625},{"$f":"IFERROR(H155-G155,\"\")","v":-41}]
[null,"b. Rent",null,null,null,null,945,{"$f":"IF(ISBLANK('ALL Characteristics'!F121),\"\",'ALL Characteristics'!F121)","v":919},null,-2.8291621327529923E-2,-26]
[null,"c. Other permanent housing",null,null,null,null,1,{"$f":"IF(ISBLANK('ALL Characteristics'!F122),\"\",'ALL Characteristics'!F122)","v":3},null,2,2]
[null,"d. Homeless",null,null,null,null,174,{"$f":"IF(ISBLANK('ALL Characteristics'!F123),\"\",'ALL Characteristics'!F123)","v":150},null,-0.16,-24]
[null,"e. Other",null,null,null,null,166,{"$f":"IF(ISBLANK('ALL Characteristics'!F124),\"\",'ALL Characteristics'!F124)","v":157},null,-5.7324840764331211E-2,-9]
[null,"f. Unknown/not reported",null,null,null,null,21,{"$f":"IF(ISBLANK('ALL Characteristics'!F125),\"\",'ALL Characteristics'!F125)","v":171},null,7.1428571428571432,150]
[null,"g. TOTAL (auto calculated)",null,null,null,null,1604,{"$f":"IF(ISBLANK('ALL Characteristics'!F126),\"\",'ALL Characteristics'!F126)","v":1656},null,3.2418952618453865E-2,52]
[]
[null,null,null,null,null,null,null,null,null,"% Change","Change from FY19 - FY20"]
[null,null,null,null,null,null,"FY 2019","FY 2020",null,"I.) Number of Participants Served \nin program(s) (#)","I.) Number of Participants Served \nin program(s) (#)"]
[null,"12. Level of Household Income",null,null,null,null,null,"Number of Households"]
[null,"(% of HHS Guideline)"]
[null,"a. Up to 50%",null,null,null,null,891,{"$f":"IF(ISBLANK('ALL Characteristics'!F134),\"\",'ALL Characteristics'!F134)","v":1055},null,{"$f":"IF(AND(G167=\"\",H167=\"\"),\"\",IFERROR( (H167-G167)/MIN(H167,G167),\"\"))","v":0.18406285072951739},{"$f":"IFERROR(H167-G167,\"\")","v":164}]
[null,"b. 51% to 75%  ",null,null,null,null,205,{"$f":"IF(ISBLANK('ALL Characteristics'!F135),\"\",'ALL Characteristics'!F135)","v":234},null,0.14146341463414633,29]
[null,"c. 76% to 100%",null,null,null,null,142,{"$f":"IF(ISBLANK('ALL Characteristics'!F136),\"\",'ALL Characteristics'!F136)","v":175},null,0.23239436619718309,33]
[null,"d. 101% to 125%",null,null,null,null,103,{"$f":"IF(ISBLANK('ALL Characteristics'!F137),\"\",'ALL Characteristics'!F137)","v":106},null,2.9126213592233011E-2,3]
[null,"e. 126% to 150%",null,null,null,null,61,{"$f":"IF(ISBLANK('ALL Characteristics'!F138),\"\",'ALL Characteristics'!F138)","v":60},null,-1.6666666666666666E-2,-1]
[null,"f. 151% to 175%",null,null,null,null,21,{"$f":"IF(ISBLANK('ALL Characteristics'!F139),\"\",'ALL Characteristics'!F139)","v":7},null,-2,-14]
[null,"g. 176% to 200%",null,null,null,null,8,{"$f":"IF(ISBLANK('ALL Characteristics'!F140),\"\",'ALL Characteristics'!F140)","v":3},null,-1.6666666666666667,-5]
[null,"h. 201% to 250%",null,null,null,null,12,{"$f":"IF(ISBLANK('ALL Characteristics'!F141),\"\",'ALL Characteristics'!F141)","v":9},null,-0.33333333333333331,-3]
[null,"i. 250% and over",null,null,null,null,null,{"$f":"IF(ISBLANK('ALL Characteristics'!F142),\"\",'ALL Characteristics'!F142)","v":7},null,1,7]
[null,"j. Unknown/not reported",null,null,null,null,161,{"$f":"IF(ISBLANK('ALL Characteristics'!F143),\"\",'ALL Characteristics'!F143)","v":""},null,"",""]
[null,"k. TOTAL (auto calculated)",null,null,null,null,1604,{"$f":"IF(ISBLANK('ALL Characteristics'!F144),\"\",'ALL Characteristics'!F144)","v":1656},null,3.2418952618453865E-2,52]
[]
[null,null,null,null,null,null,null,null,null,"% Change","Change from FY19 - FY20"]
[null,null,null,null,null,null,"FY 2019","FY 2020",null,"I.) Number of Participants Served \nin program(s) (#)","I.) Number of Participants Served \nin program(s) (#)"]
[null,"13. Sources of Household Income",null,null,null,null,null,"Number of Households"]
[null,"a. Income from Employment Only ",null,null,null,null,141,{"$f":"IF(ISBLANK('ALL Characteristics'!M90),\"\",'ALL Characteristics'!M90)","v":166},null,{"$f":"IF(AND(G182=\"\",H182=\"\"),\"\",IFERROR( (H182-G182)/MIN(H182,G182),\"\"))","v":0.1773049645390071},{"$f":"IFERROR(H182-G182,\"\")","v":25}]
[null,"b. Income from Employment and Other Income Source  ",null,null,null,null,16,{"$f":"IF(ISBLANK('ALL Characteristics'!M91),\"\",'ALL Characteristics'!M91)","v":19},null,0.1875,3]
[null,"c. Income from Employment, Other Income Source, and Non-Cash Benefits",null,null,null,null,4,{"$f":"IF(ISBLANK('ALL Characteristics'!M92),\"\",'ALL Characteristics'!M92)","v":9},null,1.25,5]
[null,"d. Income from Employment and Non-Cash Benefits",null,null,null,null,13,{"$f":"IF(ISBLANK('ALL Characteristics'!M93),\"\",'ALL Characteristics'!M93)","v":17},null,0.30769230769230771,4]
[null,"e. Other Income Source Only",null,null,null,null,418,{"$f":"IF(ISBLANK('ALL Characteristics'!M94),\"\",'ALL Characteristics'!M94)","v":372},null,-0.12365591397849462,-46]
[null,"f. Other Income Source and Non-Cash Benefits",null,null,null,null,105,{"$f":"IF(ISBLANK('ALL Characteristics'!M95),\"\",'ALL Characteristics'!M95)","v":140},null,0.33333333333333331,35]
[null,"g. No Income",null,null,null,null,742,{"$f":"IF(ISBLANK('ALL Characteristics'!M96),\"\",'ALL Characteristics'!M96)","v":861},null,0.16037735849056603,119]
[null,"h. Non-Cash Benefits Only",null,null,null,null,48,{"$f":"IF(ISBLANK('ALL Characteristics'!M97),\"\",'ALL Characteristics'!M97)","v":72},null,0.5,24]
[null,"i. Unknown/not reported",null,null,null,null,117,{"$f":"IF(ISBLANK('ALL Characteristics'!M98),\"\",'ALL Characteristics'!M98)","v":""},null,"",""]
[null,"j. TOTAL (auto calculated)",null,null,null,null,1604,{"$f":"IF(ISBLANK('ALL Characteristics'!M99),\"\",'ALL Characteristics'!M99)","v":1656},null,3.2418952618453865E-2,52]
[]
[null,null,null,null,null,null,null,null,null,"% Change","Change from FY19 - FY20"]
[null,null,null,null,null,null,"FY 2019","FY 2020",null,"I.) Number of Participants Served \nin program(s) (#)","I.) Number of Participants Served \nin program(s) (#)"]
[null,"14. Other Income Source",null,null,null,null,null,"Number of Households"]
[null,"a. TANF",null,null,null,null,4,{"$f":"IF(ISBLANK('ALL Characteristics'!M110),\"\",'ALL Characteristics'!M110)","v":2},null,{"$f":"IF(AND(G196=\"\",H196=\"\"),\"\",IFERROR( (H196-G196)/MIN(H196,G196),\"\"))","v":-1},{"$f":"IFERROR(H196-G196,\"\")","v":-2}]
[null,"b. Supplemental Security Income (SSI)",null,null,null,null,235,{"$f":"IF(ISBLANK('ALL Characteristics'!M111),\"\",'ALL Characteristics'!M111)","v":227},null,-3.5242290748898682E-2,-8]
[null,"c. Social Security Disability Income (SSDI)",null,null,null,null,235,{"$f":"IF(ISBLANK('ALL Characteristics'!M112),\"\",'ALL Characteristics'!M112)","v":288},null,0.22553191489361701,53]
[null,"d. VA Service-Connected Disability Compensation",null,null,null,null,1,{"$f":"IF(ISBLANK('ALL Characteristics'!M113),\"\",'ALL Characteristics'!M113)","v":3},null,2,2]
[null,"e. VA Non-Service Connected Disability Pension",null,null,null,null,2,{"$f":"IF(ISBLANK('ALL Characteristics'!M114),\"\",'ALL Characteristics'!M114)","v":3},null,0.5,1]
[null,"f. Private Disability Insurance",null,null,null,null,null,{"$f":"IF(ISBLANK('ALL Characteristics'!M115),\"\",'ALL Characteristics'!M115)","v":""},null,"",""]
[null,"g. Worker’s Compensation",null,null,null,null,null,{"$f":"IF(ISBLANK('ALL Characteristics'!M116),\"\",'ALL Characteristics'!M116)","v":""},null,"",""]
[null,"h. Retirement Income from Social Security",null,null,null,null,313,{"$f":"IF(ISBLANK('ALL Characteristics'!M117),\"\",'ALL Characteristics'!M117)","v":292},null,-7.1917808219178078E-2,-21]
[null,"i. Pension",null,null,null,null,26,{"$f":"IF(ISBLANK('ALL Characteristics'!M118),\"\",'ALL Characteristics'!M118)","v":16},null,-0.625,-10]
[null,"j. Child Support",null,null,null,null,21,{"$f":"IF(ISBLANK('ALL Characteristics'!M119),\"\",'ALL Characteristics'!M119)","v":21},null,0,0]
[null,"k. Alimony or other Spousal Support",null,null,null,null,1,{"$f":"IF(ISBLANK('ALL Characteristics'!M120),\"\",'ALL Characteristics'!M120)","v":3},null,2,2]
[null,"l. Unemployment Insurance",null,null,null,null,null,{"$f":"IF(ISBLANK('ALL Characteristics'!M121),\"\",'ALL Characteristics'!M121)","v":10},null,1,10]
[null,"m. EITC",null,null,null,null,null,{"$f":"IF(ISBLANK('ALL Characteristics'!M122),\"\",'ALL Characteristics'!M122)","v":""},null,"",""]
[null,"n. Other",null,null,null,null,null,{"$f":"IF(ISBLANK('ALL Characteristics'!M123),\"\",'ALL Characteristics'!M123)","v":17},null,1,17]
[null,"o. Unknown/not reported",null,null,null,null,null,{"$f":"IF(ISBLANK('ALL Characteristics'!M124),\"\",'ALL Characteristics'!M124)","v":11},null,1,11]
[]
[null,null,null,null,null,null,null,null,null,"% Change","Change from FY19 - FY20"]
[null,null,null,null,null,null,"FY 2019","FY 2020",null,"I.) Number of Participants Served \nin program(s) (#)","I.) Number of Participants Served \nin program(s) (#)"]
[null,"15. Non-Cash Benefits",null,null,null,null,null,"Number of Households"]
[null,"a. SNAP",null,null,null,null,168,{"$f":"IF(ISBLANK('ALL Characteristics'!M131),\"\",'ALL Characteristics'!M131)","v":17},null,{"$f":"IF(AND(G215=\"\",H215=\"\"),\"\",IFERROR( (H215-G215)/MIN(H215,G215),\"\"))","v":-8.882352941176471},{"$f":"IFERROR(H215-G215,\"\")","v":-151}]
[null,"b. WIC",null,null,null,null,null,{"$f":"IF(ISBLANK('ALL Characteristics'!M132),\"\",'ALL Characteristics'!M132)","v":1},null,1,1]
[null,"c. LIHEAP",null,null,null,null,null,{"$f":"IF(ISBLANK('ALL Characteristics'!M133),\"\",'ALL Characteristics'!M133)","v":""},null,"",""]
[null,"d. Housing Choice Voucher",null,null,null,null,null,{"$f":"IF(ISBLANK('ALL Characteristics'!M134),\"\",'ALL Characteristics'!M134)","v":""},null,"",""]
[null,"e. Public Housing",null,null,null,null,null,{"$f":"IF(ISBLANK('ALL Characteristics'!M135),\"\",'ALL Characteristics'!M135)","v":""},null,"",""]
[null,"f. Permanent Supportive Housing",null,null,null,null,null,{"$f":"IF(ISBLANK('ALL Characteristics'!M136),\"\",'ALL Characteristics'!M136)","v":""},null,"",""]
[null,"g. HUD-VASH",null,null,null,null,null,{"$f":"IF(ISBLANK('ALL Characteristics'!M137),\"\",'ALL Characteristics'!M137)","v":""},null,"",""]
[null,"h. Childcare Voucher",null,null,null,null,21,{"$f":"IF(ISBLANK('ALL Characteristics'!M138),\"\",'ALL Characteristics'!M138)","v":""},null,"",""]
[null,"i. Affordable Care Act Subsidy",null,null,null,null,null,{"$f":"IF(ISBLANK('ALL Characteristics'!M139),\"\",'ALL Characteristics'!M139)","v":""},null,"",""]
[null,"j. Other",null,null,null,null,null,{"$f":"IF(ISBLANK('ALL Characteristics'!M140),\"\",'ALL Characteristics'!M140)","v":2},null,1,2]
[null,"k. Unknown/not reported",null,null,null,null,null,{"$f":"IF(ISBLANK('ALL Characteristics'!M141),\"\",'ALL Characteristics'!M141)","v":""},null,"",""]

{"sheet":"Identification","index":22,"n_rows":12,"n_cols":4,"rows_kept":12,"cut":false,"hidden":true,"merged":[]}
[null,null,"Version:","M4-2019.1"]
[]
[null,null,"State:",{"$f":"'XML Export Map'!D5","v":"Utah"}]
[null,null,"Name of CSBG Eligible Entity Reporting:",{"$f":"'XML Export Map'!D6","v":"Southeastern Utah Association of Local Governments"}]
[null,null,"DUNS Number:",{"$f":"'XML Export Map'!D9","v":"097758627"}]
[null,null,"Organization:","ACF"]
[null,null,"Program Acronym:","CSBG"]
[null,null,"Lead Agency:","UTAH"]
[null,null,"Grant Number:","2001UTCOSR"]
[]
[null,null,"Report Period Start Date:","2019-10-01"]
[null,null,"Report Period End Date:","2020-09-30"]

{"sheet":"XML Export Map","index":23,"n_rows":887,"n_cols":10,"rows_kept":887,"cut":false,"hidden":true,"merged":[]}
[]
["Question/Reference","Smartform Range Name","Address","Value","Type","XML Export Name for DB","Max Length"]
[null,null,null,null,null,null,null,null,{"$f":"FIND(\"]\",J3)","v":87},{"$f":"CELL(\"address\",INDIRECT(B4))","v":"'[FY20_UT_M4_Southeastern_Utah_Association_of_Local_Governments_097758627 (1) (1).xlsm]Identification'!$D$8"}]
["leadAgency","M4LeadAgency",{"$f":"\"'='\" & MID(CELL(\"address\",INDIRECT(B4)),$I$3+1,100)","v":"'='Identification'!$D$8"},{"$f":"M4LeadAgency","v":"UTAH"},"Text","GRANTEENAME",100]
["State Name","M4StateName",{"$f":"\"'='\" & MID(CELL(\"address\",INDIRECT(B5)),$I$3+1,100)","v":"'='Employment NPIs'!$D$6"},{"$f":"M4StateName","v":"Utah"},"Text"]
["Agency Name","M4AgencyName",{"$f":"\"'='\" & MID(CELL(\"address\",INDIRECT(B6)),$I$3+1,100)","v":"'='Employment NPIs'!$D$5"},{"$f":"M4AgencyName","v":"Southeastern Utah Association of Local Governments"},"Text","ELIGIBLEENTITY"]
["orgAbbrev","M4OrgAbbrev",{"$f":"\"'='\" & MID(CELL(\"address\",INDIRECT(B7)),$I$3+1,100)","v":"'='Identification'!$D$6"},{"$f":"M4OrgAbbrev","v":"ACF"},"Text","orgAbbrev"]
["programAcronym","M4ProgramAcronym",{"$f":"\"'='\" & MID(CELL(\"address\",INDIRECT(B8)),$I$3+1,100)","v":"'='Identification'!$D$7"},{"$f":"M4ProgramAcronym","v":"CSBG"},"Text","programAcronym"]
["DUNS Number","M4Duns",{"$f":"\"'='\" & MID(CELL(\"address\",INDIRECT(B9)),$I$3+1,100)","v":"'='Employment NPIs'!$H$6"},{"$f":"M4DUNS","v":"097758627"},"Text","duns"]
["reportPeriodStartDate","M4ReportPeriodStartDate",{"$f":"\"'='\" & MID(CELL(\"address\",INDIRECT(B10)),$I$3+1,100)","v":"'='Identification'!$D$11"},{"$f":"M4ReportPeriodStartDate","v":"2019-10-01"},"Date","reportPeriodStartDate"]
["reportPeriodEndDate","M4ReportPeriodEndDate",{"$f":"\"'='\" & MID(CELL(\"address\",INDIRECT(B11)),$I$3+1,100)","v":"'='Identification'!$D$12"},{"$f":"M4ReportPeriodEndDate","v":"2020-09-30"},"Date","reportPeriodEndDate"]
["grantNumber","M4GrantNumber",{"$f":"\"'='\" & MID(CELL(\"address\",INDIRECT(B12)),$I$3+1,100)","v":"'='Identification'!$D$9"},{"$f":"M4GrantNumber","v":"2001UTCOSR"},"Text","grantNumber"]
["subGrantee",null,null,true,"True/False","subGrantee"]
["All_A","M4CA1Individuals",{"$f":"\"'='\" & MID(CELL(\"address\",INDIRECT(B14)),$I$3+1,100)","v":"'='ALL Characteristics'!$M$7"},{"$f":" M4CA1Individuals","v":3196},"Number","M4CA1Individuals"]
["All_B","M4CB1Households",{"$f":"\"'='\" & MID(CELL(\"address\",INDIRECT(B15)),$I$3+1,100)","v":"'='ALL Characteristics'!$M$8"},{"$f":" M4CB1Households","v":1656},"Number","M4CB1Households"]
["All_C.1a","M4CC1aGenderMale",{"$f":"\"'='\" & MID(CELL(\"address\",INDIRECT(B16)),$I$3+1,100)","v":"'='ALL Characteristics'!$G$12"},{"$f":" M4CC1aGenderMale","v":1515},"Number","M4CC1aGenderMale"]
["All_C.1b","M4CC1bGenderFemale",{"$f":"\"'='\" & MID(CELL(\"address\",INDIRECT(B17)),$I$3+1,100)","v":"'='ALL Characteristics'!$G$13"},{"$f":" M4CC1bGenderFemale","v":1680},"Number","M4CC1bGenderFemale"]
["All_C.6a.1","M4CC6a1EthnicityHisp",{"$f":"\"'='\" & MID(CELL(\"address\",INDIRECT(B18)),$I$3+1,100)","v":"'='ALL Characteristics'!$M$13"},{"$f":" M4CC6a1EthnicityHisp","v":431},"Number","M4CC6a1EthnicityHisp"]
["All_C.1c","M4CC1cGenderOther",{"$f":"\"'='\" & MID(CELL(\"address\",INDIRECT(B19)),$I$3+1,100)","v":"'='ALL Characteristics'!$G$14"},{"$f":" M4CC1cGenderOther","v":1},"Number","M4CC1cGenderOther"]
["All_C.6a.2","M4CC6a2EthnicityNonHisp",{"$f":"\"'='\" & MID(CELL(\"address\",INDIRECT(B20)),$I$3+1,100)","v":"'='ALL Characteristics'!$M$14"},{"$f":" M4CC6a2EthnicityNonHisp","v":2380},"Number","M4CC6a2EthnicityNonHisp"]
["All_C.1d","M4CC1dGenderUnk",{"$f":"\"'='\" & MID(CELL(\"address\",INDIRECT(B21)),$I$3+1,100)","v":"'='ALL Characteristics'!$G$15"},{"$f":" M4CC1dGenderUnk","v":0},"Number","M4CC1dGenderUnk"]
["All_C.6a.3","M4CC6a3EthnicityUnk",{"$f":"\"'='\" & MID(CELL(\"address\",INDIRECT(B22)),$I$3+1,100)","v":"'='ALL Characteristics'!$M$15"},{"$f":" M4CC6a3EthnicityUnk","v":385},"Number","M4CC6a3EthnicityUnk"]
["All_C.1e","M4CC1eGenderTotal",{"$f":"\"'='\" & MID(CELL(\"address\",INDIRECT(B23)),$I$3+1,100)","v":"'='ALL Characteristics'!$G$16"},{"$f":" M4CC1eGenderTotal","v":3196},"Number","M4CC1eGenderTotal"]
["All_C.6a.4","M4CC6a4EthnicityTotal",{"$f":"\"'='\" & MID(CELL(\"address\",INDIRECT(B24)),$I$3+1,100)","v":"'='ALL Characteristics'!$M$16"},{"$f":" M4CC6a4EthnicityTotal","v":3196},"Number","M4CC6a4EthnicityTotal"]
["All_C.2a","M4CC2aAge0to5",{"$f":"\"'='\" & MID(CELL(\"address\",INDIRECT(B25)),$I$3+1,100)","v":"'='ALL Characteristics'!$G$22"},{"$f":" M4CC2aAge0to5","v":293},"Number","M4CC2aAge0to5"]
["All_C.6b.1","M4CC6b1RaceAmericanIndian",{"$f":"\"'='\" & MID(CELL(\"address\",INDIRECT(B26)),$I$3+1,100)","v":"'='ALL Characteristics'!$M$22"},{"$f":" M4CC6b1RaceAmericanIndian","v":168},"Number","M4CC6b1RaceAmericanIndian"]
["All_C.2b","M4CC2bAge6to13",{"$f":"\"'='\" & MID(CELL(\"address\",INDIRECT(B27)),$I$3+1,100)","v":"'='ALL Characteristics'!$G$23"},{"$f":" M4CC2bAge6to13","v":410},"Number","M4CC2bAge6to13"]
["All_C.6b.2","M4CC6b2RaceAsian",{"$f":"\"'='\" & MID(CELL(\"address\",INDIRECT(B28)),$I$3+1,100)","v":"'='ALL Characteristics'!$M$23"},{"$f":" M4CC6b2RaceAsian","v":2},"Number","M4CC6b2RaceAsian"]
["All_C.2c","M4CC2cAge14to17",{"$f":"\"'='\" & MID(CELL(\"address\",INDIRECT(B29)),$I$3+1,100)","v":"'='ALL Characteristics'!$G$24"},{"$f":" M4CC2cAge14to17","v":199},"Number","M4CC2cAge14to17"]
["All_C.6b.3","M4CC6b3RaceBlack",{"$f":"\"'='\" & MID(CELL(\"address\",INDIRECT(B30)),$I$3+1,100)","v":"'='ALL Characteristics'!$M$24"},{"$f":" M4CC6b3RaceBlack","v":16},"Number","M4CC6b3RaceBlack"]
["All_C.2d","M4CC2dAge18to24",{"$f":"\"'='\" & MID(CELL(\"address\",INDIRECT(B31)),$I$3+1,100)","v":"'='ALL Characteristics'!$G$25"},{"$f":" M4CC2dAge18to24","v":273},"Number","M4CC2dAge18to24"]
["All_C.6b.4","M4CC6b4RaceHawaiian",{"$f":"\"'='\" & MID(CELL(\"address\",INDIRECT(B32)),$I$3+1,100)","v":"'='ALL Characteristics'!$M$25"},{"$f":" M4CC6b4RaceHawaiian","v":16},"Number","M4CC6b4RaceHawaiian"]
["All_C.2e","M4CC2eAge25to44",{"$f":"\"'='\" & MID(CELL(\"address\",INDIRECT(B33)),$I$3+1,100)","v":"'='ALL Characteristics'!$G$26"},{"$f":" M4CC2eAge25to44","v":875},"Number","M4CC2eAge25to44"]
["All_C.6b.5","M4CC6b5RaceWhite",{"$f":"\"'='\" & MID(CELL(\"address\",INDIRECT(B34)),$I$3+1,100)","v":"'='ALL Characteristics'!$M$26"},{"$f":" M4CC6b5RaceWhite","v":2204},"Number","M4CC6b5RaceWhite"]
["All_C.2f","M4CC2fAge45to54",{"$f":"\"'='\" & MID(CELL(\"address\",INDIRECT(B35)),$I$3+1,100)","v":"'='ALL Characteristics'!$G$27"},{"$f":" M4CC2fAge45to54","v":432},"Number","M4CC2fAge45to54"]
["All_C.6b.6","M4CC6b6RaceOther",{"$f":"\"'='\" & MID(CELL(\"address\",INDIRECT(B36)),$I$3+1,100)","v":"'='ALL Characteristics'!$M$27"},{"$f":" M4CC6b6RaceOther","v":351},"Number","M4CC6b6RaceOther"]
["All_C.2g","M4CC2gAge55to59",{"$f":"\"'='\" & MID(CELL(\"address\",INDIRECT(B37)),$I$3+1,100)","v":"'='ALL Characteristics'!$G$28"},{"$f":" M4CC2gAge55to59","v":222},"Number","M4CC2gAge55to59"]
["All_C.6b.7","M4CC6b7RaceMulti",{"$f":"\"'='\" & MID(CELL(\"address\",INDIRECT(B38)),$I$3+1,100)","v":"'='ALL Characteristics'!$M$28"},{"$f":" M4CC6b7RaceMulti","v":77},"Number","M4CC6b7RaceMulti"]
["All_C.2h","M4CC2hAge60to64",{"$f":"\"'='\" & MID(CELL(\"address\",INDIRECT(B39)),$I$3+1,100)","v":"'='ALL Characteristics'!$G$29"},{"$f":" M4CC2hAge60to64","v":191},"Number","M4CC2hAge60to64"]
["All_C.6b.8","M4CC6b8RaceUnk",{"$f":"\"'='\" & MID(CELL(\"address\",INDIRECT(B40)),$I$3+1,100)","v":"'='ALL Characteristics'!$M$29"},{"$f":" M4CC6b8RaceUnk","v":362},"Number","M4CC6b8RaceUnk"]
["All_C.2i","M4CC2iAge65to74",{"$f":"\"'='\" & MID(CELL(\"address\",INDIRECT(B41)),$I$3+1,100)","v":"'='ALL Characteristics'!$G$30"},{"$f":" M4CC2iAge65to74","v":211},"Number","M4CC2iAge65to74"]
["All_C.6b.9","M4CC6b9RaceTotal",{"$f":"\"'='\" & MID(CELL(\"address\",INDIRECT(B42)),$I$3+1,100)","v":"'='ALL Characteristics'!$M$30"},{"$f":" M4CC6b9RaceTotal","v":3196},"Number","M4CC6b9RaceTotal"]
["All_C.2j","M4CC2jAge75plus",{"$f":"\"'='\" & MID(CELL(\"address\",INDIRECT(B43)),$I$3+1,100)","v":"'='ALL Characteristics'!$G$31"},{"$f":" M4CC2jAge75plus","v":90},"Number","M4CC2jAge75plus"]
["All_C.2k","M4CC2kAgeUnk",{"$f":"\"'='\" & MID(CELL(\"address\",INDIRECT(B44)),$I$3+1,100)","v":"'='ALL Characteristics'!$G$32"},{"$f":" M4CC2kAgeUnk","v":0},"Number","M4CC2kAgeUnk"]
["All_C.2l","M4CC2lAgeTotal",{"$f":"\"'='\" & MID(CELL(\"address\",INDIRECT(B45)),$I$3+1,100)","v":"'='ALL Characteristics'!$G$33"},{"$f":" M4CC2lAgeTotal","v":3196},"Number","M4CC2lAgeTotal"]
["All_C.7a","M4CC7aMilitaryVeteran",{"$f":"\"'='\" & MID(CELL(\"address\",INDIRECT(B46)),$I$3+1,100)","v":"'='ALL Characteristics'!$M$37"},{"$f":" M4CC7aMilitaryVeteran","v":96},"Number","M4CC7aMilitaryVeteran"]
["All_C.7b","M4CC7bMilitaryActive",{"$f":"\"'='\" & MID(CELL(\"address\",INDIRECT(B47)),$I$3+1,100)","v":"'='ALL Characteristics'!$M$38"},{"$f":" M4CC7bMilitaryActive","v":1},"Number","M4CC7bMilitaryActive"]
["All_C.7c","M4CC7cNoMilitaryStatus",{"$f":"\"'='\" & MID(CELL(\"address\",INDIRECT(B48)),$I$3+1,100)","v":"'='ALL Characteristics'!$M$39"},{"$f":" M4CC7cNoMilitaryStatus","v":2002},"Number","M4CC7cNoMilitaryStatus"]
["All_C.7d","M4CC7dMilitaryUnk",{"$f":"\"'='\" & MID(CELL(\"address\",INDIRECT(B49)),$I$3+1,100)","v":"'='ALL Characteristics'!$M$40"},{"$f":" M4CC7dMilitaryUnk","v":188},"Number","M4CC7dMilitaryUnk"]
["All_C.3a_14","M4CC3aEduGrade8Age14to24",{"$f":"\"'='\" & MID(CELL(\"address\",INDIRECT(B50)),$I$3+1,100)","v":"'='ALL Characteristics'!$F$41"},{"$f":" M4CC3aEduGrade8Age14to24","v":132},"Number","M4CC3aEduGrade8Age14to24"]
["All_C.3a_25","M4CC3aEduGrade8Age25plus",{"$f":"\"'='\" & MID(CELL(\"address\",INDIRECT(B51)),$I$3+1,100)","v":"'='ALL Characteristics'!$G$41"},{"$f":" M4CC3aEduGrade8Age25plus","v":34},"Number","M4CC3aEduGrade8Age25plus"]
["All_C.7e","M4CC7eMilitaryTotal",{"$f":"\"'='\" & MID(CELL(\"address\",INDIRECT(B52)),$I$3+1,100)","v":"'='ALL Characteristics'!$M$41"},{"$f":" M4CC7eMilitaryTotal","v":2287},"Number","M4CC7eMilitaryTotal"]
["All_C.3b_14","M4CC3bEduGrade12Age24und",{"$f":"\"'='\" & MID(CELL(\"address\",INDIRECT(B53)),$I$3+1,100)","v":"'='ALL Characteristics'!$F$42"},{"$f":" M4CC3bEduGrade12Age24und","v":153},"Number","M4CC3bEduGrade12Age24und"]
["All_C.3b_25","M4CC3bEduGrade12Age25plus",{"$f":"\"'='\" & MID(CELL(\"address\",INDIRECT(B54)),$I$3+1,100)","v":"'='ALL Characteristics'!$G$42"},{"$f":" M4CC3bEduGrade12Age25plus","v":425},"Number","M4CC3bEduGrade12Age25plus"]
["All_C.3c_14","M4CC3cEduHSGradAge24und",{"$f":"\"'='\" & MID(CELL(\"address\",INDIRECT(B55)),$I$3+1,100)","v":"'='ALL Characteristics'!$F$43"},{"$f":" M4CC3cEduHSGradAge24und","v":80},"Number","M4CC3cEduHSGradAge24und"]
["All_C.3c_25","M4CC3cEduHSGradAge25plus",{"$f":"\"'='\" & MID(CELL(\"address\",INDIRECT(B56)),$I$3+1,100)","v":"'='ALL Characteristics'!$G$43"},{"$f":" M4CC3cEduHSGradAge25plus","v":567},"Number","M4CC3cEduHSGradAge25plus"]
["All_C.3d_14","M4CC3dEquivDiplomaAge24und",{"$f":"\"'='\" & MID(CELL(\"address\",INDIRECT(B57)),$I$3+1,100)","v":"'='ALL Characteristics'!$F$44"},{"$f":" M4CC3dEquivDiplomaAge24und","v":13},"Number","M4CC3dEquivDiplomaAge24und"]
["All_C.3d_25","M4CC3dEquivDiplomaAge25plus",{"$f":"\"'='\" & MID(CELL(\"address\",INDIRECT(B58)),$I$3+1,100)","v":"'='ALL Characteristics'!$G$44"},{"$f":" M4CC3dEquivDiplomaAge25plus","v":216},"Number","M4CC3dEquivDiplomaAge25plus"]
["All_C.3e_14","M4CC3eEduPostSecAge24und",{"$f":"\"'='\" & MID(CELL(\"address\",INDIRECT(B59)),$I$3+1,100)","v":"'='ALL Characteristics'!$F$45"},{"$f":" M4CC3eEduPostSecAge24und","v":15},"Number","M4CC3eEduPostSecAge24und"]
["All_C.3e_25","M4CC3eEduPostSecAge25plus",{"$f":"\"'='\" & MID(CELL(\"address\",INDIRECT(B60)),$I$3+1,100)","v":"'='ALL Characteristics'!$G$45"},{"$f":" M4CC3eEduPostSecAge25plus","v":313},"Number","M4CC3eEduPostSecAge25plus"]
["All_C.3f_14","M4CC3fEduCollegeGradAge24und",{"$f":"\"'='\" & MID(CELL(\"address\",INDIRECT(B61)),$I$3+1,100)","v":"'='ALL Characteristics'!$F$46"},{"$f":" M4CC3fEduCollegeGradAge24und","v":4},"Number","M4CC3fEduCollegeGradAge24und"]
["All_C.3f_25","M4CC3fEduCollegeGradAge25plus",{"$f":"\"'='\" & MID(CELL(\"address\",INDIRECT(B62)),$I$3+1,100)","v":"'='ALL Characteristics'!$G$46"},{"$f":" M4CC3fEduCollegeGradAge25plus","v":167},"Number","M4CC3fEduCollegeGradAge25plus"]
["All_C.3g_14","M4CC3gEduGradPostSecAge24und",{"$f":"\"'='\" & MID(CELL(\"address\",INDIRECT(B63)),$I$3+1,100)","v":"'='ALL Characteristics'!$F$47"},{"$f":" M4CC3gEduGradPostSecAge24und","v":0},"Number","M4CC3gEduGradPostSecAge24und"]
["All_C.3g_25","M4CC3gEduGradPostSecAge25plus",{"$f":"\"'='\" & MID(CELL(\"address\",INDIRECT(B64)),$I$3+1,100)","v":"'='ALL Characteristics'!$G$47"},{"$f":" M4CC3gEduGradPostSecAge25plus","v":28},"Number","M4CC3gEduGradPostSecAge25plus"]
["All_C.3h_14","M4CC3hEduUnkAge24und",{"$f":"\"'='\" & MID(CELL(\"address\",INDIRECT(B65)),$I$3+1,100)","v":"'='ALL Characteristics'!$F$48"},{"$f":" M4CC3hEduUnkAge24und","v":75},"Number","M4CC3hEduUnkAge24und"]
["All_C.3h_25","M4CC3hEduUnkAge25plus",{"$f":"\"'='\" & MID(CELL(\"address\",INDIRECT(B66)),$I$3+1,100)","v":"'='ALL Characteristics'!$G$48"},{"$f":" M4CC3hEduUnkAge25plus","v":271},"Number","M4CC3hEduUnkAge25plus"]
["All_C.8a","M4CC8aWorkEmployFT",{"$f":"\"'='\" & MID(CELL(\"address\",INDIRECT(B67)),$I$3+1,100)","v":"'='ALL Characteristics'!$M$48"},{"$f":" M4CC8aWorkEmployFT","v":126},"Number","M4CC8aWorkEmployFT"]
["All_C.3i_14","M4CC3iEduTotalAge24und",{"$f":"\"'='\" & MID(CELL(\"address\",INDIRECT(B68)),$I$3+1,100)","v":"'='ALL Characteristics'!$F$49"},{"$f":" M4CC3iEduTotalAge24und","v":472},"Number","M4CC3iEduTotalAge24und"]
["All_C.3i_25","M4CC3iEduTotalAge25plus",{"$f":"\"'='\" & MID(CELL(\"address\",INDIRECT(B69)),$I$3+1,100)","v":"'='ALL Characteristics'!$G$49"},{"$f":" M4CC3iEduTotalAge25plus","v":2021},"Number","M4CC3iEduTotalAge25plus"]
["All_C.8b","M4CC8bWorkEmployPT",{"$f":"\"'='\" & MID(CELL(\"address\",INDIRECT(B70)),$I$3+1,100)","v":"'='ALL Characteristics'!$M$49"},{"$f":" M4CC8bWorkEmployPT","v":230},"Number","M4CC8bWorkEmployPT"]
["All_C.8c","M4CC8cWorkSeasonal",{"$f":"\"'='\" & MID(CELL(\"address\",INDIRECT(B71)),$I$3+1,100)","v":"'='ALL Characteristics'!$M$50"},{"$f":" M4CC8cWorkSeasonal","v":2},"Number","M4CC8cWorkSeasonal"]
["All_C.8d","M4CC8dWorkUnemployShort",{"$f":"\"'='\" & MID(CELL(\"address\",INDIRECT(B72)),$I$3+1,100)","v":"'='ALL Characteristics'!$M$51"},{"$f":" M4CC8dWorkUnemployShort","v":223},"Number","M4CC8dWorkUnemployShort"]
["All_C.8e","M4CC8eWorkUnemployLong",{"$f":"\"'='\" & MID(CELL(\"address\",INDIRECT(B73)),$I$3+1,100)","v":"'='ALL Characteristics'!$M$52"},{"$f":" M4CC8eWorkUnemployLong","v":477},"Number","M4CC8eWorkUnemployLong"]
["All_C.8f","M4CC8fWorkUnemployNLF",{"$f":"\"'='\" & MID(CELL(\"address\",INDIRECT(B74)),$I$3+1,100)","v":"'='ALL Characteristics'!$M$53"},{"$f":" M4CC8fWorkUnemployNLF","v":955},"Number","M4CC8fWorkUnemployNLF"]
["All_C.8g","M4CC8gWorkRetired",{"$f":"\"'='\" & MID(CELL(\"address\",INDIRECT(B75)),$I$3+1,100)","v":"'='ALL Characteristics'!$M$54"},{"$f":" M4CC8gWorkRetired","v":57},"Number","M4CC8gWorkRetired"]
["All_C.8h","M4CC8hWorkUnk",{"$f":"\"'='\" & MID(CELL(\"address\",INDIRECT(B76)),$I$3+1,100)","v":"'='ALL Characteristics'!$M$55"},{"$f":" M4CC8hWorkUnk","v":193},"Number","M4CC8hWorkUnk"]
["All_C.8i","M4CC8iWorkTotal",{"$f":"\"'='\" & MID(CELL(\"address\",INDIRECT(B77)),$I$3+1,100)","v":"'='ALL Characteristics'!$M$56"},{"$f":" M4CC8iWorkTotal","v":2263},"Number","M4CC8iWorkTotal"]
["All_C.4a","M4CC4aDisconnectedYouth",{"$f":"\"'='\" & MID(CELL(\"address\",INDIRECT(B78)),$I$3+1,100)","v":"'='ALL Characteristics'!$G$60"},{"$f":" M4CC4aDisconnectedYouth","v":194},"Number","M4CC4aDisconnectedYouth"]
["All_C.5a_Yes","M4CC5aHealthDisableYes",{"$f":"\"'='\" & MID(CELL(\"address\",INDIRECT(B79)),$I$3+1,100)","v":"'='ALL Characteristics'!$E$64"},{"$f":" M4CC5aHealthDisableYes","v":688},"Number","M4CC5aHealthDisableYes"]
["All_C.5a_Unknown","M4CC5aHealthDisableUnk",{"$f":"\"'='\" & MID(CELL(\"address\",INDIRECT(B80)),$I$3+1,100)","v":"'='ALL Characteristics'!$G$64"},{"$f":" M4CC5aHealthDisableUnk","v":591},"Number","M4CC5aHealthDisableUnk"]
["All_C.5a_No","M4CC5aHealthDisableNo",{"$f":"\"'='\" & MID(CELL(\"address\",INDIRECT(B81)),$I$3+1,100)","v":"'='ALL Characteristics'!$F$64"},{"$f":" M4CC5aHealthDisableNo","v":1917},"Number","M4CC5aHealthDisableNo"]
["All_C.5b_Yes","M4CC5b1HealthInsuranceYes",{"$f":"\"'='\" & MID(CELL(\"address\",INDIRECT(B82)),$I$3+1,100)","v":"'='ALL Characteristics'!$E$66"},{"$f":" M4CC5b1HealthInsuranceYes","v":1741},"Number","M4CC5b1HealthInsuranceYes"]
["All_C.5b_No","M4CC5b2HealthInsuranceNo",{"$f":"\"'='\" & MID(CELL(\"address\",INDIRECT(B83)),$I$3+1,100)","v":"'='ALL Characteristics'!$F$66"},{"$f":" M4CC5b2HealthInsuranceNo","v":850},"Number","M4CC5b2HealthInsuranceNo"]
["All_C.5b_Unknown","M4CC5b3HealthInsuranceUnk",{"$f":"\"'='\" & MID(CELL(\"address\",INDIRECT(B84)),$I$3+1,100)","v":"'='ALL Characteristics'!$G$66"},{"$f":" M4CC5b3HealthInsuranceUnk","v":605},"Number","M4CC5b3HealthInsuranceUnk"]
["All_C.5c.1","M4CC5c1InsuranceMedicaid",{"$f":"\"'='\" & MID(CELL(\"address\",INDIRECT(B85)),$I$3+1,100)","v":"'='ALL Characteristics'!$G$69"},{"$f":" M4CC5c1InsuranceMedicaid","v":1190},"Number","M4CC5c1InsuranceMedicaid"]
["All_C.5c.2","M4CC5c2InsuranceMedicare",{"$f":"\"'='\" & MID(CELL(\"address\",INDIRECT(B86)),$I$3+1,100)","v":"'='ALL Characteristics'!$G$70"},{"$f":" M4CC5c2InsuranceMedicare","v":380},"Number","M4CC5c2InsuranceMedicare"]
["All_C.5c.3","M4CC5c3InsuranceStateChild",{"$f":"\"'='\" & MID(CELL(\"address\",INDIRECT(B87)),$I$3+1,100)","v":"'='ALL Characteristics'!$G$71"},{"$f":" M4CC5c3InsuranceStateChild","v":23},"Number","M4CC5c3InsuranceStateChild"]
["All_C.5c.4","M4CC5c4InsuranceStateAdult",{"$f":"\"'='\" & MID(CELL(\"address\",INDIRECT(B88)),$I$3+1,100)","v":"'='ALL Characteristics'!$G$72"},{"$f":" M4CC5c4InsuranceStateAdult","v":12},"Number","M4CC5c4InsuranceStateAdult"]
["All_C.5c.5","M4CC5c5InsuranceMilitary",{"$f":"\"'='\" & MID(CELL(\"address\",INDIRECT(B89)),$I$3+1,100)","v":"'='ALL Characteristics'!$G$73"},{"$f":" M4CC5c5InsuranceMilitary","v":19},"Number","M4CC5c5InsuranceMilitary"]
["All_C.5c.6","M4CC5c6InsuranceDirectPurch",{"$f":"\"'='\" & MID(CELL(\"address\",INDIRECT(B90)),$I$3+1,100)","v":"'='ALL Characteristics'!$G$74"},{"$f":" M4CC5c6InsuranceDirectPurch","v":20},"Number","M4CC5c6InsuranceDirectPurch"]
["All_C.5c.7","M4CC5c7InsuranceEmploy",{"$f":"\"'='\" & MID(CELL(\"address\",INDIRECT(B91)),$I$3+1,100)","v":"'='ALL Characteristics'!$G$75"},{"$f":" M4CC5c7InsuranceEmploy","v":69},"Number","M4CC5c7InsuranceEmploy"]
["All_C.5c.8","M4CC5c8InsuranceUnk",{"$f":"\"'='\" & MID(CELL(\"address\",INDIRECT(B92)),$I$3+1,100)","v":"'='ALL Characteristics'!$G$76"},{"$f":" M4CC5c8InsuranceUnk","v":28},"Number","M4CC5c8InsuranceUnk"]
["All_C.5c.9","M4CC5c9InsuranceTotal",{"$f":"\"'='\" & MID(CELL(\"address\",INDIRECT(B93)),$I$3+1,100)","v":"'='ALL Characteristics'!$G$77"},{"$f":" M4CC5c9InsuranceTotal","v":1741},"Number","M4CC5c9InsuranceTotal"]
["All_D.9a","M4CD9aHHTypeOne",{"$f":"\"'='\" & MID(CELL(\"address\",INDIRECT(B94)),$I$3+1,100)","v":"'='ALL Characteristics'!$F$90"},{"$f":" M4CD9aHHTypeOne","v":826},"Number","M4CD9aHHTypeOne"]
["All_D.13a","M4CD13aIncomeEmployOnly",{"$f":"\"'='\" & MID(CELL(\"address\",INDIRECT(B95)),$I$3+1,100)","v":"'='ALL Characteristics'!$M$90"},{"$f":" M4CD13aIncomeEmployOnly","v":166},"Number","M4CD13aIncomeEmployOnly"]
["All_D.9b","M4CD9bHHTypeTwoNoChild",{"$f":"\"'='\" & MID(CELL(\"address\",INDIRECT(B96)),$I$3+1,100)","v":"'='ALL Characteristics'!$F$91"},{"$f":" M4CD9bHHTypeTwoNoChild","v":225},"Number","M4CD9bHHTypeTwoNoChild"]
["All_D.13b","M4CD13bIncomeEmployOther",{"$f":"\"'='\" & MID(CELL(\"address\",INDIRECT(B97)),$I$3+1,100)","v":"'='ALL Characteristics'!$M$91"},{"$f":" M4CD13bIncomeEmployOther","v":19},"Number","M4CD13bIncomeEmployOther"]
["All_D.9c","M4CD9cHHTypeSingleParentFem",{"$f":"\"'='\" & MID(CELL(\"address\",INDIRECT(B98)),$I$3+1,100)","v":"'='ALL Characteristics'!$F$92"},{"$f":" M4CD9cHHTypeSingleParentFem","v":194},"Number","M4CD9cHHTypeSingleParentFem"]
["All_D.13c","M4CD13cIncomeEmployOtherNoncash",{"$f":"\"'='\" & MID(CELL(\"address\",INDIRECT(B99)),$I$3+1,100)","v":"'='ALL Characteristics'!$M$92"},{"$f":" M4CD13cIncomeEmployOtherNoncash","v":9},"Number","M4CD13cIncomeEmployOtherNoncash"]
["All_D.9d","M4CD9dHHTypeSingleParentMale",{"$f":"\"'='\" & MID(CELL(\"address\",INDIRECT(B100)),$I$3+1,100)","v":"'='ALL Characteristics'!$F$93"},{"$f":" M4CD9dHHTypeSingleParentMale","v":35},"Number","M4CD9dHHTypeSingleParentMale"]
["All_D.13d","M4CD13dIncomeEmployNoncash",{"$f":"\"'='\" & MID(CELL(\"address\",INDIRECT(B101)),$I$3+1,100)","v":"'='ALL Characteristics'!$M$93"},{"$f":" M4CD13dIncomeEmployNoncash","v":17},"Number","M4CD13dIncomeEmployNoncash"]
["All_D.9e","M4CD9eHHTypeTwoParent",{"$f":"\"'='\" & MID(CELL(\"address\",INDIRECT(B102)),$I$3+1,100)","v":"'='ALL Characteristics'!$F$94"},{"$f":" M4CD9eHHTypeTwoParent","v":190},"Number","M4CD9eHHTypeTwoParent"]
["All_D.13e","M4CD13eIncomeOtherOnly",{"$f":"\"'='\" & MID(CELL(\"address\",INDIRECT(B103)),$I$3+1,100)","v":"'='ALL Characteristics'!$M$94"},{"$f":" M4CD13eIncomeOtherOnly","v":372},"Number","M4CD13eIncomeOtherOnly"]
["All_D.9f","M4CD9fHHTypeUnrelAdultsChild",{"$f":"\"'='\" & MID(CELL(\"address\",INDIRECT(B104)),$I$3+1,100)","v":"'='ALL Characteristics'!$F$95"},{"$f":" M4CD9fHHTypeUnrelAdultsChild","v":37},"Number","M4CD9fHHTypeUnrelAdultsChild"]
["All_D.13f","M4CD13fIncomeOtherNoncash",{"$f":"\"'='\" & MID(CELL(\"address\",INDIRECT(B105)),$I$3+1,100)","v":"'='ALL Characteristics'!$M$95"},{"$f":" M4CD13fIncomeOtherNoncash","v":140},"Number","M4CD13fIncomeOtherNoncash"]
["All_D.9g","M4CD9gHHTypeMultigen",{"$f":"\"'='\" & MID(CELL(\"address\",INDIRECT(B106)),$I$3+1,100)","v":"'='ALL Characteristics'!$F$96"},{"$f":" M4CD9gHHTypeMultigen","v":31},"Number","M4CD9gHHTypeMultigen"]
["All_D.13g","M4CD13gIncomeNone",{"$f":"\"'='\" & MID(CELL(\"address\",INDIRECT(B107)),$I$3+1,100)","v":"'='ALL Characteristics'!$M$96"},{"$f":" M4CD13gIncomeNone","v":861},"Number","M4CD13gIncomeNone"]
["All_D.9h","M4CD9hHHTypeOther",{"$f":"\"'='\" & MID(CELL(\"address\",INDIRECT(B108)),$I$3+1,100)","v":"'='ALL Characteristics'!$F$97"},{"$f":" M4CD9hHHTypeOther","v":16},"Number","M4CD9hHHTypeOther"]
["All_D.13h","M4CD13hIncomeNoncashOnly",{"$f":"\"'='\" & MID(CELL(\"address\",INDIRECT(B109)),$I$3+1,100)","v":"'='ALL Characteristics'!$M$97"},{"$f":" M4CD13hIncomeNoncashOnly","v":72},"Number","M4CD13hIncomeNoncashOnly"]
["All_D.9i","M4CD9iHHTypeUnk",{"$f":"\"'='\" & MID(CELL(\"address\",INDIRECT(B110)),$I$3+1,100)","v":"'='ALL Characteristics'!$F$98"},{"$f":" M4CD9iHHTypeUnk","v":102},"Number","M4CD9iHHTypeUnk"]
["All_D.13i","M4CD13iIncomeUnk",{"$f":"\"'='\" & MID(CELL(\"address\",INDIRECT(B111)),$I$3+1,100)","v":"'='ALL Characteristics'!$M$98"},{"$f":" M4CD13iIncomeUnk","v":0},"Number","M4CD13iIncomeUnk"]
["All_D.9j","M4CD9jHHTypeTotal",{"$f":"\"'='\" & MID(CELL(\"address\",INDIRECT(B112)),$I$3+1,100)","v":"'='ALL Characteristics'!$F$99"},{"$f":" M4CD9jHHTypeTotal","v":1656},"Number","M4CD9jHHTypeTotal"]
["All_D.13j","M4CD13jIncomeTotal",{"$f":"\"'='\" & MID(CELL(\"address\",INDIRECT(B113)),$I$3+1,100)","v":"'='ALL Characteristics'!$M$99"},{"$f":" M4CD13jIncomeTotal","v":1656},"Number","M4CD13jIncomeTotal"]
["All_D.10a","M4CD10aHHSize1",{"$f":"\"'='\" & MID(CELL(\"address\",INDIRECT(B114)),$I$3+1,100)","v":"'='ALL Characteristics'!$F$106"},{"$f":" M4CD10aHHSize1","v":826},"Number","M4CD10aHHSize1"]
["All_D.10b","M4CD10bHHSize2",{"$f":"\"'='\" & MID(CELL(\"address\",INDIRECT(B115)),$I$3+1,100)","v":"'='ALL Characteristics'!$F$107"},{"$f":" M4CD10bHHSize2","v":298},"Number","M4CD10bHHSize2"]
["All_D.10c","M4CD10cHHSize3",{"$f":"\"'='\" & MID(CELL(\"address\",INDIRECT(B116)),$I$3+1,100)","v":"'='ALL Characteristics'!$F$108"},{"$f":" M4CD10cHHSize3","v":151},"Number","M4CD10cHHSize3"]
["All_D.10d","M4CD10dHHSize4",{"$f":"\"'='\" & MID(CELL(\"address\",INDIRECT(B117)),$I$3+1,100)","v":"'='ALL Characteristics'!$F$109"},{"$f":" M4CD10dHHSize4","v":119},"Number","M4CD10dHHSize4"]
["All_D.10e","M4CD10eHHSize5",{"$f":"\"'='\" & MID(CELL(\"address\",INDIRECT(B118)),$I$3+1,100)","v":"'='ALL Characteristics'!$F$110"},{"$f":" M4CD10eHHSize5","v":92},"Number","M4CD10eHHSize5"]
["All_D.14a","M4CD14aOtherincTANF",{"$f":"\"'='\" & MID(CELL(\"address\",INDIRECT(B119)),$I$3+1,100)","v":"'='ALL Characteristics'!$M$110"},{"$f":" M4CD14aOtherincTANF","v":2},"Number","M4CD14aOtherincTANF"]
["All_D.10f","M4CD10fHHSize6plus",{"$f":"\"'='\" & MID(CELL(\"address\",INDIRECT(B120)),$I$3+1,100)","v":"'='ALL Characteristics'!$F$111"},{"$f":" M4CD10fHHSize6plus","v":42},"Number","M4CD10fHHSize6plus"]
["All_D.14b","M4CD14bOtherincSSI",{"$f":"\"'='\" & MID(CELL(\"address\",INDIRECT(B121)),$I$3+1,100)","v":"'='ALL Characteristics'!$M$111"},{"$f":" M4CD14bOtherincSSI","v":227},"Number","M4CD14bOtherincSSI"]
["All_D.10g","M4CD10gHHSizeUnk",{"$f":"\"'='\" & MID(CELL(\"address\",INDIRECT(B122)),$I$3+1,100)","v":"'='ALL Characteristics'!$F$112"},{"$f":" M4CD10gHHSizeUnk","v":128},"Number","M4CD10gHHSizeUnk"]
["All_D.14c","M4CD14cOtherincSSDI",{"$f":"\"'='\" & MID(CELL(\"address\",INDIRECT(B123)),$I$3+1,100)","v":"'='ALL Characteristics'!$M$112"},{"$f":" M4CD14cOtherincSSDI","v":288},"Number","M4CD14cOtherincSSDI"]
["All_D.10h","M4CD10hHHSizeTotal",{"$f":"\"'='\" & MID(CELL(\"address\",INDIRECT(B124)),$I$3+1,100)","v":"'='ALL Characteristics'!$F$113"},{"$f":" M4CD10hHHSizeTotal","v":1656},"Number","M4CD10hHHSizeTotal"]
["All_D.14d","M4CD14dOtherincVADisComp",{"$f":"\"'='\" & MID(CELL(\"address\",INDIRECT(B125)),$I$3+1,100)","v":"'='ALL Characteristics'!$M$113"},{"$f":" M4CD14dOtherincVADisComp","v":3},"Number","M4CD14dOtherincVADisComp"]
["All_D.14e","M4CD14eOtherincVADisPension",{"$f":"\"'='\" & MID(CELL(\"address\",INDIRECT(B126)),$I$3+1,100)","v":"'='ALL Characteristics'!$M$114"},{"$f":" M4CD14eOtherincVADisPension","v":3},"Number","M4CD14eOtherincVADisPension"]
["All_D.14f","M4CD14fOtherincPrivateDis",{"$f":"\"'='\" & MID(CELL(\"address\",INDIRECT(B127)),$I$3+1,100)","v":"'='ALL Characteristics'!$M$115"},{"$f":" M4CD14fOtherincPrivateDis","v":0},"Number","M4CD14fOtherincPrivateDis"]
["All_D.14g","M4CD14gOtherincWorkerComp",{"$f":"\"'='\" & MID(CELL(\"address\",INDIRECT(B128)),$I$3+1,100)","v":"'='ALL Characteristics'!$M$116"},{"$f":" M4CD14gOtherincWorkerComp","v":0},"Number","M4CD14gOtherincWorkerComp"]
["All_D.14h","M4CD14hOtherincRetirement",{"$f":"\"'='\" & MID(CELL(\"address\",INDIRECT(B129)),$I$3+1,100)","v":"'='ALL Characteristics'!$M$117"},{"$f":" M4CD14hOtherincRetirement","v":292},"Number","M4CD14hOtherincRetirement"]
["All_D.14i","M4CD14iOtherincPension",{"$f":"\"'='\" & MID(CELL(\"address\",INDIRECT(B130)),$I$3+1,100)","v":"'='ALL Characteristics'!$M$118"},{"$f":" M4CD14iOtherincPension","v":16},"Number","M4CD14iOtherincPension"]
["All_D.14j","M4CD14jOtherincChildSupp",{"$f":"\"'='\" & MID(CELL(\"address\",INDIRECT(B131)),$I$3+1,100)","v":"'='ALL Characteristics'!$M$119"},{"$f":" M4CD14jOtherincChildSupp","v":21},"Number","M4CD14jOtherincChildSupp"]
["All_D.11a","M4CD11aHousingOwn",{"$f":"\"'='\" & MID(CELL(\"address\",INDIRECT(B132)),$I$3+1,100)","v":"'='ALL Characteristics'!$F$120"},{"$f":" M4CD11aHousingOwn","v":256},"Number","M4CD11aHousingOwn"]
["All_D.14k","M4CD14kOtherincAlimony",{"$f":"\"'='\" & MID(CELL(\"address\",INDIRECT(B133)),$I$3+1,100)","v":"'='ALL Characteristics'!$M$120"},{"$f":" M4CD14kOtherincAlimony","v":3},"Number","M4CD14kOtherincAlimony"]
["All_D.11b","M4CD11bHousingRent",{"$f":"\"'='\" & MID(CELL(\"address\",INDIRECT(B134)),$I$3+1,100)","v":"'='ALL Characteristics'!$F$121"},{"$f":" M4CD11bHousingRent","v":919},"Number","M4CD11bHousingRent"]
["All_D.14l","M4CD14lOtherincUnemploy",{"$f":"\"'='\" & MID(CELL(\"address\",INDIRECT(B135)),$I$3+1,100)","v":"'='ALL Characteristics'!$M$121"},{"$f":" M4CD14lOtherincUnemploy","v":10},"Number","M4CD14lOtherincUnemploy"]
["All_D.11c","M4CD11cHousingOtherPerm",{"$f":"\"'='\" & MID(CELL(\"address\",INDIRECT(B136)),$I$3+1,100)","v":"'='ALL Characteristics'!$F$122"},{"$f":" M4CD11cHousingOtherPerm","v":3},"Number","M4CD11cHousingOtherPerm"]
["All_D.14m","M4CD14mOtherincEITC",{"$f":"\"'='\" & MID(CELL(\"address\",INDIRECT(B137)),$I$3+1,100)","v":"'='ALL Characteristics'!$M$122"},{"$f":" M4CD14mOtherincEITC","v":0},"Number","M4CD14mOtherincEITC"]
["All_D.11d","M4CD11dHousingHomeless",{"$f":"\"'='\" & MID(CELL(\"address\",INDIRECT(B138)),$I$3+1,100)","v":"'='ALL Characteristics'!$F$123"},{"$f":" M4CD11dHousingHomeless","v":150},"Number","M4CD11dHousingHomeless"]
["All_D.14n","M4CD14nOtherincOther",{"$f":"\"'='\" & MID(CELL(\"address\",INDIRECT(B139)),$I$3+1,100)","v":"'='ALL Characteristics'!$M$123"},{"$f":" M4CD14nOtherincOther","v":17},"Number","M4CD14nOtherincOther"]
["All_D.11e","M4CD11eHousingOther",{"$f":"\"'='\" & MID(CELL(\"address\",INDIRECT(B140)),$I$3+1,100)","v":"'='ALL Characteristics'!$F$124"},{"$f":" M4CD11eHousingOther","v":157},"Number","M4CD11eHousingOther"]
["All_D.14o","M4CD14oOtherincUnk",{"$f":"\"'='\" & MID(CELL(\"address\",INDIRECT(B141)),$I$3+1,100)","v":"'='ALL Characteristics'!$M$124"},{"$f":" M4CD14oOtherincUnk","v":11},"Number","M4CD14oOtherincUnk"]
["All_D.11f","M4CD11fHousingUnk",{"$f":"\"'='\" & MID(CELL(\"address\",INDIRECT(B142)),$I$3+1,100)","v":"'='ALL Characteristics'!$F$125"},{"$f":" M4CD11fHousingUnk","v":171},"Number","M4CD11fHousingUnk"]
["All_D.11g","M4CD11gHousingTotal",{"$f":"\"'='\" & MID(CELL(\"address\",INDIRECT(B143)),$I$3+1,100)","v":"'='ALL Characteristics'!$F$126"},{"$f":" M4CD11gHousingTotal","v":1656},"Number","M4CD11gHousingTotal"]
["All_D.15a","M4CD15aNoncashSNAP",{"$f":"\"'='\" & MID(CELL(\"address\",INDIRECT(B144)),$I$3+1,100)","v":"'='ALL Characteristics'!$M$131"},{"$f":" M4CD15aNoncashSNAP","v":17},"Number","M4CD15aNoncashSNAP"]
["All_D.15b","M4CD15bNoncashWIC",{"$f":"\"'='\" & MID(CELL(\"address\",INDIRECT(B145)),$I$3+1,100)","v":"'='ALL Characteristics'!$M$132"},{"$f":" M4CD15bNoncashWIC","v":1},"Number","M4CD15bNoncashWIC"]
["All_D.15c","M4CD15cNoncashLIHEAP",{"$f":"\"'='\" & MID(CELL(\"address\",INDIRECT(B146)),$I$3+1,100)","v":"'='ALL Characteristics'!$M$133"},{"$f":" M4CD15cNoncashLIHEAP","v":0},"Number","M4CD15cNoncashLIHEAP"]
["All_D.12a","M4CD12aPov50",{"$f":"\"'='\" & MID(CELL(\"address\",INDIRECT(B147)),$I$3+1,100)","v":"'='ALL Characteristics'!$F$134"},{"$f":" M4CD12aPov50","v":1055},"Number","M4CD12aPov50"]
["All_D.15d","M4CD15dNoncashHCVP",{"$f":"\"'='\" & MID(CELL(\"address\",INDIRECT(B148)),$I$3+1,100)","v":"'='ALL Characteristics'!$M$134"},{"$f":" M4CD15dNoncashHCVP","v":0},"Number","M4CD15dNoncashHCVP"]
["All_D.12b","M4CD12bPov51to75",{"$f":"\"'='\" & MID(CELL(\"address\",INDIRECT(B149)),$I$3+1,100)","v":"'='ALL Characteristics'!$F$135"},{"$f":" M4CD12bPov51to75","v":234},"Number","M4CD12bPov51to75"]
["All_D.15e","M4CD15eNoncashPubHouse",{"$f":"\"'='\" & MID(CELL(\"address\",INDIRECT(B150)),$I$3+1,100)","v":"'='ALL Characteristics'!$M$135"},{"$f":" M4CD15eNoncashPubHouse","v":0},"Number","M4CD15eNoncashPubHouse"]
["All_D.12c","M4CD12cPov76to100",{"$f":"\"'='\" & MID(CELL(\"address\",INDIRECT(B151)),$I$3+1,100)","v":"'='ALL Characteristics'!$F$136"},{"$f":" M4CD12cPov76to100","v":175},"Number","M4CD12cPov76to100"]
["All_D.15f","M4CD15fNoncashPermHouse",{"$f":"\"'='\" & MID(CELL(\"address\",INDIRECT(B152)),$I$3+1,100)","v":"'='ALL Characteristics'!$M$136"},{"$f":" M4CD15fNoncashPermHouse","v":0},"Number","M4CD15fNoncashPermHouse"]
["All_D.12d","M4CD12dPov101to125",{"$f":"\"'='\" & MID(CELL(\"address\",INDIRECT(B153)),$I$3+1,100)","v":"'='ALL Characteristics'!$F$137"},{"$f":" M4CD12dPov101to125","v":106},"Number","M4CD12dPov101to125"]
["All_D.15g","M4CD15gNoncashHUDVASH",{"$f":"\"'='\" & MID(CELL(\"address\",INDIRECT(B154)),$I$3+1,100)","v":"'='ALL Characteristics'!$M$137"},{"$f":" M4CD15gNoncashHUDVASH","v":0},"Number","M4CD15gNoncashHUDVASH"]
["All_D.12e","M4CD12ePov126to150",{"$f":"\"'='\" & MID(CELL(\"address\",INDIRECT(B155)),$I$3+1,100)","v":"'='ALL Characteristics'!$F$138"},{"$f":" M4CD12ePov126to150","v":60},"Number","M4CD12ePov126to150"]
["All_D.15h","M4CD15hNoncashChildcareVouch",{"$f":"\"'='\" & MID(CELL(\"address\",INDIRECT(B156)),$I$3+1,100)","v":"'='ALL Characteristics'!$M$138"},{"$f":" M4CD15hNoncashChildcareVouch","v":0},"Number","M4CD15hNoncashChildcareVouch"]
["All_D.12f","M4CD12fPov151to175",{"$f":"\"'='\" & MID(CELL(\"address\",INDIRECT(B157)),$I$3+1,100)","v":"'='ALL Characteristics'!$F$139"},{"$f":" M4CD12fPov151to175","v":7},"Number","M4CD12fPov151to175"]
["All_D.15i","M4CD15iNoncashACA",{"$f":"\"'='\" & MID(CELL(\"address\",INDIRECT(B158)),$I$3+1,100)","v":"'='ALL Characteristics'!$M$139"},{"$f":" M4CD15iNoncashACA","v":0},"Number","M4CD15iNoncashACA"]
["All_D.12g","M4CD12gPov176to200",{"$f":"\"'='\" & MID(CELL(\"address\",INDIRECT(B159)),$I$3+1,100)","v":"'='ALL Characteristics'!$F$140"},{"$f":" M4CD12gPov176to200","v":3},"Number","M4CD12gPov176to200"]
["All_D.15j","M4CD15jNoncashOther",{"$f":"\"'='\" & MID(CELL(\"address\",INDIRECT(B160)),$I$3+1,100)","v":"'='ALL Characteristics'!$M$140"},{"$f":" M4CD15jNoncashOther","v":2},"Number","M4CD15jNoncashOther"]
["All_D.12h","M4CD12hPov201to250",{"$f":"\"'='\" & MID(CELL(\"address\",INDIRECT(B161)),$I$3+1,100)","v":"'='ALL Characteristics'!$F$141"},{"$f":" M4CD12hPov201to250","v":9},"Number","M4CD12hPov201to250"]
["All_D.15k","M4CD15kNoncashUnk",{"$f":"\"'='\" & MID(CELL(\"address\",INDIRECT(B162)),$I$3+1,100)","v":"'='ALL Characteristics'!$M$141"},{"$f":" M4CD15kNoncashUnk","v":0},"Number","M4CD15kNoncashUnk"]
["All_D.12i","M4CD12iPov250plus",{"$f":"\"'='\" & MID(CELL(\"address\",INDIRECT(B163)),$I$3+1,100)","v":"'='ALL Characteristics'!$F$142"},{"$f":" M4CD12iPov250plus","v":7},"Number","M4CD12iPov250plus"]
["All_D.12j","M4CD12jPovUnk",{"$f":"\"'='\" & MID(CELL(\"address\",INDIRECT(B164)),$I$3+1,100)","v":"'='ALL Characteristics'!$F$143"},{"$f":" M4CD12jPovUnk","v":0},"Number","M4CD12jPovUnk"]
["All_D.12k","M4CD12kPovTotal",{"$f":"\"'='\" & MID(CELL(\"address\",INDIRECT(B165)),$I$3+1,100)","v":"'='ALL Characteristics'!$F$144"},{"$f":" M4CD12kPovTotal","v":1656},"Number","M4CD12kPovTotal"]
["Mod 4 Sec C Sub E Item 1a - Program Name","M4CE1aIndivNotIncluded1",{"$f":"\"'='\" & MID(CELL(\"address\",INDIRECT(B166)),$I$3+1,100)","v":"'='ALL Characteristics'!$J$151"},{"$f":" IF(ISBLANK(M4CE1aIndivNotIncluded1),\"\",M4CE1aIndivNotIncluded1)","v":""},"Text","M4CE1aIndivNotIncluded1",100]
["Mod 4 Sec C Sub E Item 1b - Number of Individuals","M4CE1bIndivNotIncluded1",{"$f":"\"'='\" & MID(CELL(\"address\",INDIRECT(B167)),$I$3+1,100)","v":"'='ALL Characteristics'!$L$151"},{"$f":" M4CE1bIndivNotIncluded1","v":0},"Number","M4CE1bIndivNotIncluded1"]
["Mod 4 Sec C Sub E Item 2a - Program Name","M4CE2aIndivNotIncluded2",{"$f":"\"'='\" & MID(CELL(\"address\",INDIRECT(B168)),$I$3+1,100)","v":"'='ALL Characteristics'!$J$152"},{"$f":" IF(ISBLANK(M4CE2aIndivNotIncluded2),\"\",M4CE2aIndivNotIncluded2)","v":""},"Text","M4CE2aIndivNotIncluded2",100]
["Mod 4 Sec C Sub E Item 2b - Number of Individuals","M4CE2bIndivNotIncluded2",{"$f":"\"'='\" & MID(CELL(\"address\",INDIRECT(B169)),$I$3+1,100)","v":"'='ALL Characteristics'!$L$152"},{"$f":" M4CE2bIndivNotIncluded2","v":0},"Number","M4CE2bIndivNotIncluded2"]
["Mod 4 Sec C Sub E Item 3a - Program Name","M4CE3aIndivNotIncluded3",{"$f":"\"'='\" & MID(CELL(\"address\",INDIRECT(B170)),$I$3+1,100)","v":"'='ALL Characteristics'!$J$153"},{"$f":" IF(ISBLANK(M4CE3aIndivNotIncluded3),\"\",M4CE3aIndivNotIncluded3)","v":""},"Text","M4CE3aIndivNotIncluded3",100]
["Mod 4 Sec C Sub E Item 3b - Number of Individuals","M4CE3bIndivNotIncluded3",{"$f":"\"'='\" & MID(CELL(\"address\",INDIRECT(B171)),$I$3+1,100)","v":"'='ALL Characteristics'!$L$153"},{"$f":" M4CE3bIndivNotIncluded3","v":0},"Number","M4CE3bIndivNotIncluded3"]
["Mod 4 Sec C Sub E Item 4a - Program Name","M4CE4aIndivNotIncluded4",{"$f":"\"'='\" & MID(CELL(\"address\",INDIRECT(B172)),$I$3+1,100)","v":"'='ALL Characteristics'!$J$154"},{"$f":" IF(ISBLANK(M4CE4aIndivNotIncluded4),\"\",M4CE4aIndivNotIncluded4)","v":""},"Text","M4CE4aIndivNotIncluded4",100]
["Mod 4 Sec C Sub E Item 4b - Number of Individuals","M4CE4bIndivNotIncluded4",{"$f":"\"'='\" & MID(CELL(\"address\",INDIRECT(B173)),$I$3+1,100)","v":"'='ALL Characteristics'!$L$154"},{"$f":" M4CE4bIndivNotIncluded4","v":0},"Number","M4CE4bIndivNotIncluded4"]
["Mod 4 Sec C Sub E Item 5a - Program Name","M4CE5aIndivNotIncluded5",{"$f":"\"'='\" & MID(CELL(\"address\",INDIRECT(B174)),$I$3+1,100)","v":"'='ALL Characteristics'!$J$155"},{"$f":" IF(ISBLANK(M4CE5aIndivNotIncluded5),\"\",M4CE5aIndivNotIncluded5)","v":""},"Text","M4CE5aIndivNotIncluded5",100]
["Mod 4 Sec C Sub E Item 5b - Number of Individuals","M4CE5bIndivNotIncluded5",{"$f":"\"'='\" & MID(CELL(\"address\",INDIRECT(B175)),$I$3+1,100)","v":"'='ALL Characteristics'!$L$155"},{"$f":" M4CE5bIndivNotIncluded5","v":0},"Number","M4CE5bIndivNotIncluded5"]
["Mod 4 Sec C Sub E Item 6a - Program Name","M4CE6aIndivNotIncluded6",{"$f":"\"'='\" & MID(CELL(\"address\",INDIRECT(B176)),$I$3+1,100)","v":"'='ALL Characteristics'!$J$156"},{"$f":" IF(ISBLANK(M4CE6aIndivNotIncluded6),\"\",M4CE6aIndivNotIncluded6)","v":""},"Text","M4CE6aIndivNotIncluded6",100]
["Mod 4 Sec C Sub E Item 6b - Number of Individuals","M4CE6bIndivNotIncluded6",{"$f":"\"'='\" & MID(CELL(\"address\",INDIRECT(B177)),$I$3+1,100)","v":"'='ALL Characteristics'!$L$156"},{"$f":" M4CE6bIndivNotIncluded6","v":0},"Number","M4CE6bIndivNotIncluded6"]
["Mod 4 Sec C Sub E Item 7a - Program Name","M4CE7aIndivNotIncluded7",{"$f":"\"'='\" & MID(CELL(\"address\",INDIRECT(B178)),$I$3+1,100)","v":"'='ALL Characteristics'!$J$157"},{"$f":" IF(ISBLANK(M4CE7aIndivNotIncluded7),\"\",M4CE7aIndivNotIncluded7)","v":""},"Text","M4CE7aIndivNotIncluded7",100]
["Mod 4 Sec C Sub E Item 7b - Number of Individuals","M4CE7bIndivNotIncluded7",{"$f":"\"'='\" & MID(CELL(\"address\",INDIRECT(B179)),$I$3+1,100)","v":"'='ALL Characteristics'!$L$157"},{"$f":" M4CE7bIndivNotIncluded7","v":0},"Number","M4CE7bIndivNotIncluded7"]
["Mod 4 Sec C Sub E Item 8a - Program Name","M4CE8aIndivNotIncluded8",{"$f":"\"'='\" & MID(CELL(\"address\",INDIRECT(B180)),$I$3+1,100)","v":"'='ALL Characteristics'!$J$158"},{"$f":" IF(ISBLANK(M4CE8aIndivNotIncluded8),\"\",M4CE8aIndivNotIncluded8)","v":""},"Text","M4CE8aIndivNotIncluded8",100]
["Mod 4 Sec C Sub E Item 8b - Number of Individuals","M4CE8bIndivNotIncluded8",{"$f":"\"'='\" & MID(CELL(\"address\",INDIRECT(B181)),$I$3+1,100)","v":"'='ALL Characteristics'!$L$158"},{"$f":" M4CE8bIndivNotIncluded8","v":0},"Number","M4CE8bIndivNotIncluded8"]
["Mod 4 Sec C Sub E Item 9a - Program Name","M4CE9aIndivNotIncluded9",{"$f":"\"'='\" & MID(CELL(\"address\",INDIRECT(B182)),$I$3+1,100)","v":"'='ALL Characteristics'!$J$159"},{"$f":" IF(ISBLANK(M4CE9aIndivNotIncluded9),\"\",M4CE9aIndivNotIncluded9)","v":""},"Text","M4CE9aIndivNotIncluded9",100]
["Mod 4 Sec C Sub E Item 9b - Number of Individuals","M4CE9bIndivNotIncluded9",{"$f":"\"'='\" & MID(CELL(\"address\",INDIRECT(B183)),$I$3+1,100)","v":"'='ALL Characteristics'!$L$159"},{"$f":" M4CE9bIndivNotIncluded9","v":0},"Number","M4CE9bIndivNotIncluded9"]
["Mod 4 Sec C Sub E Item 10a - Program Name","M4CE10aIndivNotIncluded10",{"$f":"\"'='\" & MID(CELL(\"address\",INDIRECT(B184)),$I$3+1,100)","v":"'='ALL Characteristics'!$J$160"},{"$f":" IF(ISBLANK(M4CE10aIndivNotIncluded10),\"\",M4CE10aIndivNotIncluded10)","v":""},"Text","M4CE10aIndivNotIncluded10",100]
["Mod 4 Sec C Sub E Item 10b - Number of Individuals","M4CE10bIndivNotIncluded10",{"$f":"\"'='\" & MID(CELL(\"address\",INDIRECT(B185)),$I$3+1,100)","v":"'='ALL Characteristics'!$L$160"},{"$f":" M4CE10bIndivNotIncluded10","v":0},"Number","M4CE10bIndivNotIncluded10"]
["Mod 4 Sec C Sub E Item 11a - Program Name","M4CE11aIndivNotIncluded11",{"$f":"\"'='\" & MID(CELL(\"address\",INDIRECT(B186)),$I$3+1,100)","v":"'='ALL Characteristics'!$J$161"},{"$f":" IF(ISBLANK(M4CE11aIndivNotIncluded11),\"\",M4CE11aIndivNotIncluded11)","v":""},"Text","M4CE11aIndivNotIncluded11",100]
["Mod 4 Sec C Sub E Item 11b - Number of Individuals","M4CE11bIndivNotIncluded11",{"$f":"\"'='\" & MID(CELL(\"address\",INDIRECT(B187)),$I$3+1,100)","v":"'='ALL Characteristics'!$L$161"},{"$f":" M4CE11bIndivNotIncluded11","v":0},"Number","M4CE11bIndivNotIncluded11"]
["Mod 4 Sec C Sub E Item 12a - Program Name","M4CE12aIndivNotIncluded12",{"$f":"\"'='\" & MID(CELL(\"address\",INDIRECT(B188)),$I$3+1,100)","v":"'='ALL Characteristics'!$J$162"},{"$f":" IF(ISBLANK(M4CE12aIndivNotIncluded12),\"\",M4CE12aIndivNotIncluded12)","v":""},"Text","M4CE12aIndivNotIncluded12",100]
["Mod 4 Sec C Sub E Item 12b - Number of Individuals","M4CE12bIndivNotIncluded12",{"$f":"\"'='\" & MID(CELL(\"address\",INDIRECT(B189)),$I$3+1,100)","v":"'='ALL Characteristics'!$L$162"},{"$f":" M4CE12bIndivNotIncluded12","v":0},"Number","M4CE12bIndivNotIncluded12"]
["Mod 4 Sec C Sub E Item 13a - Program Name","M4CE13aIndivNotIncluded13",{"$f":"\"'='\" & MID(CELL(\"address\",INDIRECT(B190)),$I$3+1,100)","v":"'='ALL Characteristics'!$J$163"},{"$f":" IF(ISBLANK(M4CE13aIndivNotIncluded13),\"\",M4CE13aIndivNotIncluded13)","v":""},"Text","M4CE13aIndivNotIncluded13",100]
["Mod 4 Sec C Sub E Item 13b - Number of Individuals","M4CE13bIndivNotIncluded13",{"$f":"\"'='\" & MID(CELL(\"address\",INDIRECT(B191)),$I$3+1,100)","v":"'='ALL Characteristics'!$L$163"},{"$f":" M4CE13bIndivNotIncluded13","v":0},"Number","M4CE13bIndivNotIncluded13"]
["Mod 4 Sec C Sub E Item 14a - Program Name","M4CE14aIndivNotIncluded14",{"$f":"\"'='\" & MID(CELL(\"address\",INDIRECT(B192)),$I$3+1,100)","v":"'='ALL Characteristics'!$J$164"},{"$f":" IF(ISBLANK(M4CE14aIndivNotIncluded14),\"\",M4CE14aIndivNotIncluded14)","v":""},"Text","M4CE14aIndivNotIncluded14",100]
["Mod 4 Sec C Sub E Item 14b - Number of Individuals","M4CE14bIndivNotIncluded14",{"$f":"\"'='\" & MID(CELL(\"address\",INDIRECT(B193)),$I$3+1,100)","v":"'='ALL Characteristics'!$L$164"},{"$f":" M4CE14bIndivNotIncluded14","v":0},"Number","M4CE14bIndivNotIncluded14"]
["Mod 4 Sec C Sub E Item 15a - Program Name","M4CE15aIndivNotIncluded15",{"$f":"\"'='\" & MID(CELL(\"address\",INDIRECT(B194)),$I$3+1,100)","v":"'='ALL Characteristics'!$J$165"},{"$f":" IF(ISBLANK(M4CE15aIndivNotIncluded15),\"\",M4CE15aIndivNotIncluded15)","v":""},"Text","M4CE15aIndivNotIncluded15",100]
["Mod 4 Sec C Sub E Item 15b - Number of Individuals","M4CE15bIndivNotIncluded15",{"$f":"\"'='\" & MID(CELL(\"address\",INDIRECT(B195)),$I$3+1,100)","v":"'='ALL Characteristics'!$L$165"},{"$f":" M4CE15bIndivNotIncluded15","v":0},"Number","M4CE15bIndivNotIncluded15"]
["Mod 4 Sec C Sub F Item 1a - Program Name","M4CF1aHHNotIncluded1",{"$f":"\"'='\" & MID(CELL(\"address\",INDIRECT(B196)),$I$3+1,100)","v":"'='ALL Characteristics'!$J$169"},{"$f":" IF(ISBLANK(M4CF1aHHNotIncluded1),\"\",M4CF1aHHNotIncluded1)","v":""},"Text","M4CF1aHHNotIncluded1",100]
["Mod 4 Sec C Sub F Item 1b - Number of Individuals","M4CF1bHHNotIncluded1",{"$f":"\"'='\" & MID(CELL(\"address\",INDIRECT(B197)),$I$3+1,100)","v":"'='ALL Characteristics'!$L$169"},{"$f":" M4CF1bHHNotIncluded1","v":0},"Number","M4CF1bHHNotIncluded1"]
["Mod 4 Sec C Sub F Item 2a - Program Name","M4CF2aHHNotIncluded2",{"$f":"\"'='\" & MID(CELL(\"address\",INDIRECT(B198)),$I$3+1,100)","v":"'='ALL Characteristics'!$J$170"},{"$f":" IF(ISBLANK(M4CF2aHHNotIncluded2),\"\",M4CF2aHHNotIncluded2)","v":""},"Text","M4CF2aHHNotIncluded2",100]
["Mod 4 Sec C Sub F Item 2b - Number of Individuals","M4CF2bHHNotIncluded2",{"$f":"\"'='\" & MID(CELL(\"address\",INDIRECT(B199)),$I$3+1,100)","v":"'='ALL Characteristics'!$L$170"},{"$f":" M4CF2bHHNotIncluded2","v":0},"Number","M4CF2bHHNotIncluded2"]
["Mod 4 Sec C Sub F Item 3a - Program Name","M4CF3aHHNotIncluded3",{"$f":"\"'='\" & MID(CELL(\"address\",INDIRECT(B200)),$I$3+1,100)","v":"'='ALL Characteristics'!$J$171"},{"$f":" IF(ISBLANK(M4CF3aHHNotIncluded3),\"\",M4CF3aHHNotIncluded3)","v":""},"Text","M4CF3aHHNotIncluded3",100]
["Mod 4 Sec C Sub F Item 3b - Number of Individuals","M4CF3bHHNotIncluded3",{"$f":"\"'='\" & MID(CELL(\"address\",INDIRECT(B201)),$I$3+1,100)","v":"'='ALL Characteristics'!$L$171"},{"$f":" M4CF3bHHNotIncluded3","v":0},"Number","M4CF3bHHNotIncluded3"]
["Mod 4 Sec C Sub F Item 4a - Program Name","M4CF4aHHNotIncluded4",{"$f":"\"'='\" & MID(CELL(\"address\",INDIRECT(B202)),$I$3+1,100)","v":"'='ALL Characteristics'!$J$172"},{"$f":" IF(ISBLANK(M4CF4aHHNotIncluded4),\"\",M4CF4aHHNotIncluded4)","v":""},"Text","M4CF4aHHNotIncluded4",100]
["Mod 4 Sec C Sub F Item 4b - Number of Individuals","M4CF4bHHNotIncluded4",{"$f":"\"'='\" & MID(CELL(\"address\",INDIRECT(B203)),$I$3+1,100)","v":"'='ALL Characteristics'!$L$172"},{"$f":" M4CF4bHHNotIncluded4","v":0},"Number","M4CF4bHHNotIncluded4"]
["Mod 4 Sec C Sub F Item 5a - Program Name","M4CF5aHHNotIncluded5",{"$f":"\"'='\" & MID(CELL(\"address\",INDIRECT(B204)),$I$3+1,100)","v":"'='ALL Characteristics'!$J$173"},{"$f":" IF(ISBLANK(M4CF5aHHNotIncluded5),\"\",M4CF5aHHNotIncluded5)","v":""},"Text","M4CF5aHHNotIncluded5",100]
["Mod 4 Sec C Sub F Item 5b - Number of Individuals","M4CF5bHHNotIncluded5",{"$f":"\"'='\" & MID(CELL(\"address\",INDIRECT(B205)),$I$3+1,100)","v":"'='ALL Characteristics'!$L$173"},{"$f":" M4CF5bHHNotIncluded5","v":0},"Number","M4CF5bHHNotIncluded5"]
["Mod 4 Sec C Sub F Item 6a - Program Name","M4CF6aHHNotIncluded6",{"$f":"\"'='\" & MID(CELL(\"address\",INDIRECT(B206)),$I$3+1,100)","v":"'='ALL Characteristics'!$J$174"},{"$f":" IF(ISBLANK(M4CF6aHHNotIncluded6),\"\",M4CF6aHHNotIncluded6)","v":""},"Text","M4CF6aHHNotIncluded6",100]
["Mod 4 Sec C Sub F Item 6b - Number of Individuals","M4CF6bHHNotIncluded6",{"$f":"\"'='\" & MID(CELL(\"address\",INDIRECT(B207)),$I$3+1,100)","v":"'='ALL Characteristics'!$L$174"},{"$f":" M4CF6bHHNotIncluded6","v":0},"Number","M4CF6bHHNotIncluded6"]
["Mod 4 Sec C Sub F Item 7a - Program Name","M4CF7aHHNotIncluded7",{"$f":"\"'='\" & MID(CELL(\"address\",INDIRECT(B208)),$I$3+1,100)","v":"'='ALL Characteristics'!$J$175"},{"$f":" IF(ISBLANK(M4CF7aHHNotIncluded7),\"\",M4CF7aHHNotIncluded7)","v":""},"Text","M4CF7aHHNotIncluded7",100]
["Mod 4 Sec C Sub F Item 7b - Number of Individuals","M4CF7bHHNotIncluded7",{"$f":"\"'='\" & MID(CELL(\"address\",INDIRECT(B209)),$I$3+1,100)","v":"'='ALL Characteristics'!$L$175"},{"$f":" M4CF7bHHNotIncluded7","v":0},"Number","M4CF7bHHNotIncluded7"]
["Mod 4 Sec C Sub F Item 8a - Program Name","M4CF8aHHNotIncluded8",{"$f":"\"'='\" & MID(CELL(\"address\",INDIRECT(B210)),$I$3+1,100)","v":"'='ALL Characteristics'!$J$176"},{"$f":" IF(ISBLANK(M4CF8aHHNotIncluded8),\"\",M4CF8aHHNotIncluded8)","v":""},"Text","M4CF8aHHNotIncluded8",100]
["Mod 4 Sec C Sub F Item 8b - Number of Individuals","M4CF8bHHNotIncluded8",{"$f":"\"'='\" & MID(CELL(\"address\",INDIRECT(B211)),$I$3+1,100)","v":"'='ALL Characteristics'!$L$176"},{"$f":" M4CF8bHHNotIncluded8","v":0},"Number","M4CF8bHHNotIncluded8"]
["Mod 4 Sec C Sub F Item 9a - Program Name","M4CF9aHHNotIncluded9",{"$f":"\"'='\" & MID(CELL(\"address\",INDIRECT(B212)),$I$3+1,100)","v":"'='ALL Characteristics'!$J$177"},{"$f":" IF(ISBLANK(M4CF9aHHNotIncluded9),\"\",M4CF9aHHNotIncluded9)","v":""},"Text","M4CF9aHHNotIncluded9",100]
["Mod 4 Sec C Sub F Item 9b - Number of Individuals","M4CF9bHHNotIncluded9",{"$f":"\"'='\" & MID(CELL(\"address\",INDIRECT(B213)),$I$3+1,100)","v":"'='ALL Characteristics'!$L$177"},{"$f":" M4CF9bHHNotIncluded9","v":0},"Number","M4CF9bHHNotIncluded9"]
["Mod 4 Sec C Sub F Item 10a - Program Name","M4CF10aHHNotIncluded10",{"$f":"\"'='\" & MID(CELL(\"address\",INDIRECT(B214)),$I$3+1,100)","v":"'='ALL Characteristics'!$J$178"},{"$f":" IF(ISBLANK(M4CF10aHHNotIncluded10),\"\",M4CF10aHHNotIncluded10)","v":""},"Text","M4CF10aHHNotIncluded10",100]
["Mod 4 Sec C Sub F Item 10b - Number of Individuals","M4CF10bHHNotIncluded10",{"$f":"\"'='\" & MID(CELL(\"address\",INDIRECT(B215)),$I$3+1,100)","v":"'='ALL Characteristics'!$L$178"},{"$f":" M4CF10bHHNotIncluded10","v":0},"Number","M4CF10bHHNotIncluded10"]
["Mod 4 Sec C Sub F Item 11a - Program Name","M4CF11aHHNotIncluded11",{"$f":"\"'='\" & MID(CELL(\"address\",INDIRECT(B216)),$I$3+1,100)","v":"'='ALL Characteristics'!$J$179"},{"$f":" IF(ISBLANK(M4CF11aHHNotIncluded11),\"\",M4CF11aHHNotIncluded11)","v":""},"Text","M4CF11aHHNotIncluded11",100]
["Mod 4 Sec C Sub F Item 11b - Number of Individuals","M4CF11bHHNotIncluded11",{"$f":"\"'='\" & MID(CELL(\"address\",INDIRECT(B217)),$I$3+1,100)","v":"'='ALL Characteristics'!$L$179"},{"$f":" M4CF11bHHNotIncluded11","v":0},"Number","M4CF11bHHNotIncluded11"]
["Mod 4 Sec C Sub F Item 12a - Program Name","M4CF12aHHNotIncluded12",{"$f":"\"'='\" & MID(CELL(\"address\",INDIRECT(B218)),$I$3+1,100)","v":"'='ALL Characteristics'!$J$180"},{"$f":" IF(ISBLANK(M4CF12aHHNotIncluded12),\"\",M4CF12aHHNotIncluded12)","v":""},"Text","M4CF12aHHNotIncluded12",100]
["Mod 4 Sec C Sub F Item 12b - Number of Individuals","M4CF12bHHNotIncluded12",{"$f":"\"'='\" & MID(CELL(\"address\",INDIRECT(B219)),$I$3+1,100)","v":"'='ALL Characteristics'!$L$180"},{"$f":" M4CF12bHHNotIncluded12","v":0},"Number","M4CF12bHHNotIncluded12"]
["Mod 4 Sec C Sub F Item 13a - Program Name","M4CF13aHHNotIncluded13",{"$f":"\"'='\" & MID(CELL(\"address\",INDIRECT(B220)),$I$3+1,100)","v":"'='ALL Characteristics'!$J$181"},{"$f":" IF(ISBLANK(M4CF13aHHNotIncluded13),\"\",M4CF13aHHNotIncluded13)","v":""},"Text","M4CF13aHHNotIncluded13",100]
["Mod 4 Sec C Sub F Item 13b - Number of Individuals","M4CF13bHHNotIncluded13",{"$f":"\"'='\" & MID(CELL(\"address\",INDIRECT(B221)),$I$3+1,100)","v":"'='ALL Characteristics'!$L$181"},{"$f":" M4CF13bHHNotIncluded13","v":0},"Number","M4CF13bHHNotIncluded13"]
["Mod 4 Sec C Sub F Item 14a - Program Name","M4CF14aHHNotIncluded14",{"$f":"\"'='\" & MID(CELL(\"address\",INDIRECT(B222)),$I$3+1,100)","v":"'='ALL Characteristics'!$J$182"},{"$f":" IF(ISBLANK(M4CF14aHHNotIncluded14),\"\",M4CF14aHHNotIncluded14)","v":""},"Text","M4CF14aHHNotIncluded14",100]
["Mod 4 Sec C Sub F Item 14b - Number of Individuals","M4CF14bHHNotIncluded14",{"$f":"\"'='\" & MID(CELL(\"address\",INDIRECT(B223)),$I$3+1,100)","v":"'='ALL Characteristics'!$L$182"},{"$f":" M4CF14bHHNotIncluded14","v":0},"Number","M4CF14bHHNotIncluded14"]
["Mod 4 Sec C Sub F Item 15a - Program Name","M4CF15aHHNotIncluded15",{"$f":"\"'='\" & MID(CELL(\"address\",INDIRECT(B224)),$I$3+1,100)","v":"'='ALL Characteristics'!$J$183"},{"$f":" IF(ISBLANK(M4CF15aHHNotIncluded15),\"\",M4CF15aHHNotIncluded15)","v":""},"Text","M4CF15aHHNotIncluded15",100]
["Mod 4 Sec C Sub F Item 15b - Number of Individuals","M4CF15bHHNotIncluded15",{"$f":"\"'='\" & MID(CELL(\"address\",INDIRECT(B225)),$I$3+1,100)","v":"'='ALL Characteristics'!$L$183"},{"$f":" M4CF15bHHNotIncluded15","v":0},"Number","M4CF15bHHNotIncluded15"]
["FNPI_6a_I","M4A6aImprCommCondPart",{"$f":"\"'='\" & MID(CELL(\"address\",INDIRECT(B226)),$I$3+1,100)","v":"'='CivicEng&Comm NPIs'!$D$9"},{"$f":" M4A6aImprCommCondPart","v":134},"Number","M4A6aImprCommCondPart"]
["FNPI_6a_II","M4A6aImprCommCondTarget",{"$f":"\"'='\" & MID(CELL(\"address\",INDIRECT(B227)),$I$3+1,100)","v":"'='CivicEng&Comm NPIs'!$E$9"},{"$f":" M4A6aImprCommCondTarget","v":188},"Number","M4A6aImprCommCondTarget"]
["FNPI_6a_III","M4A6aImprCommCondResults",{"$f":"\"'='\" & MID(CELL(\"address\",INDIRECT(B228)),$I$3+1,100)","v":"'='CivicEng&Comm NPIs'!$F$9"},{"$f":" M4A6aImprCommCondResults","v":117},"Number","M4A6aImprCommCondResults"]
["FNPI_6a_iv","M4A6aImprCommCondOutcome",{"$f":"\"'='\" & MID(CELL(\"address\",INDIRECT(B229)),$I$3+1,100)","v":"'='CivicEng&Comm NPIs'!$G$9"},{"$f":" M4A6aImprCommCondOutcome","v":0.87313432835820892},"Number","M4A6aImprCommCondOutcome"]
["FNPI_6a_v","M4A6aImprCommCondAccuracy",{"$f":"\"'='\" & MID(CELL(\"address\",INDIRECT(B230)),$I$3+1,100)","v":"'='CivicEng&Comm NPIs'!$H$9"},{"$f":" M4A6aImprCommCondAccuracy","v":0.62234042553191493},"Number","M4A6aImprCommCondAccuracy"]
["FNPI 6a.1 Of the above, the number of Community Action program participants who improved their leadership skills.","M4A6a1ImprLeadSkillsPart",{"$f":"\"'='\" & MID(CELL(\"address\",INDIRECT(B231)),$I$3+1,100)","v":"'='CivicEng&Comm NPIs'!$D$10"},{"$f":" M4A6a1ImprLeadSkillsPart","v":32},"Number","M4A6a1ImprLeadSkillsPart"]
["FNPI_6a.1_II","M4A6a1ImprLeadSkillsTarget",{"$f":"\"'='\" & MID(CELL(\"address\",INDIRECT(B232)),$I$3+1,100)","v":"'='CivicEng&Comm NPIs'!$E$10"},{"$f":" M4A6a1ImprLeadSkillsTarget","v":38},"Number","M4A6a1ImprLeadSkillsTarget"]
["FNPI_6a.1_III","M4A6a1ImprLeadSkillsResults",{"$f":"\"'='\" & MID(CELL(\"address\",INDIRECT(B233)),$I$3+1,100)","v":"'='CivicEng&Comm NPIs'!$F$10"},{"$f":" M4A6a1ImprLeadSkillsResults","v":27},"Number","M4A6a1ImprLeadSkillsResults"]
["FNPI_6a.1_iv","M4A6a1ImprLeadSkillsOutcome",{"$f":"\"'='\" & MID(CELL(\"address\",INDIRECT(B234)),$I$3+1,100)","v":"'='CivicEng&Comm NPIs'!$G$10"},{"$f":" M4A6a1ImprLeadSkillsOutcome","v":0.84375},"Number","M4A6a1ImprLeadSkillsOutcome"]
["FNPI_6a.1_v","M4A6a1ImprLeadSkillsAccuracy",{"$f":"\"'='\" & MID(CELL(\"address\",INDIRECT(B235)),$I$3+1,100)","v":"'='CivicEng&Comm NPIs'!$H$10"},{"$f":" M4A6a1ImprLeadSkillsAccuracy","v":0.71052631578947367},"Number","M4A6a1ImprLeadSkillsAccuracy"]
["FNPI 6a.2 Of the above, the number of Community Action program participants who improved their social networks.","M4A6a2ImprSocNetworkPart",{"$f":"\"'='\" & MID(CELL(\"address\",INDIRECT(B236)),$I$3+1,100)","v":"'='CivicEng&Comm NPIs'!$D$11"},{"$f":" M4A6a2ImprSocNetworkPart","v":98},"Number","M4A6a2ImprSocNetworkPart"]
["FNPI_6a.2_II","M4A6a2ImprSocNetworkTarget",{"$f":"\"'='\" & MID(CELL(\"address\",INDIRECT(B237)),$I$3+1,100)","v":"'='CivicEng&Comm NPIs'!$E$11"},{"$f":" M4A6a2ImprSocNetworkTarget","v":107},"Number","M4A6a2ImprSocNetworkTarget"]
["FNPI_6a.2_III","M4A6a2ImprSocNetworkResults",{"$f":"\"'='\" & MID(CELL(\"address\",INDIRECT(B238)),$I$3+1,100)","v":"'='CivicEng&Comm NPIs'!$F$11"},{"$f":" M4A6a2ImprSocNetworkResults","v":86},"Number","M4A6a2ImprSocNetworkResults"]
["FNPI_6a.2_iv","M4A6a2ImprSocNetworkOutcome",{"$f":"\"'='\" & MID(CELL(\"address\",INDIRECT(B239)),$I$3+1,100)","v":"'='CivicEng&Comm NPIs'!$G$11"},{"$f":" M4A6a2ImprSocNetworkOutcome","v":0.87755102040816324},"Number","M4A6a2ImprSocNetworkOutcome"]
["FNPI_6a.2_v","M4A6a2ImprSocNetworkAccuracy",{"$f":"\"'='\" & MID(CELL(\"address\",INDIRECT(B240)),$I$3+1,100)","v":"'='CivicEng&Comm NPIs'!$H$11"},{"$f":" M4A6a2ImprSocNetworkAccuracy","v":0.80373831775700932},"Number","M4A6a2ImprSocNetworkAccuracy"]
["FNPI 6a.3 Of the above, the number of Community Action program participants who gained other skills, knowledge and abilities to enhance their ability to engage. ","M4A6a3EnhanceEngAbilityPart",{"$f":"\"'='\" & MID(CELL(\"address\",INDIRECT(B241)),$I$3+1,100)","v":"'='CivicEng&Comm NPIs'!$D$12"},{"$f":" M4A6a3EnhanceEngAbilityPart","v":39},"Number","M4A6a3EnhanceEngAbilityPart"]
["FNPI_6a.3_II","M4A6a3EnhanceEngAbilityTarget",{"$f":"\"'='\" & MID(CELL(\"address\",INDIRECT(B242)),$I$3+1,100)","v":"'='CivicEng&Comm NPIs'!$E$12"},{"$f":" M4A6a3EnhanceEngAbilityTarget","v":41},"Number","M4A6a3EnhanceEngAbilityTarget"]
["FNPI_6a.3_III","M4A6a3EnhanceEngAbilityResults",{"$f":"\"'='\" & MID(CELL(\"address\",INDIRECT(B243)),$I$3+1,100)","v":"'='CivicEng&Comm NPIs'!$F$12"},{"$f":" M4A6a3EnhanceEngAbilityResults","v":32},"Number","M4A6a3EnhanceEngAbilityResults"]
["FNPI_6a.3_iv","M4A6a3EnhanceEngAbilityOutcome",{"$f":"\"'='\" & MID(CELL(\"address\",INDIRECT(B244)),$I$3+1,100)","v":"'='CivicEng&Comm NPIs'!$G$12"},{"$f":" M4A6a3EnhanceEngAbilityOutcome","v":0.82051282051282048},"Number","M4A6a3EnhanceEngAbilityOutcome"]
["FNPI_6a.3_v","M4A6a3EnhanceEngAbilityAccuracy",{"$f":"\"'='\" & MID(CELL(\"address\",INDIRECT(B245)),$I$3+1,100)","v":"'='CivicEng&Comm NPIs'!$H$12"},{"$f":" M4A6a3EnhanceEngAbilityAccuracy","v":0.78048780487804881},"Number","M4A6a3EnhanceEngAbilityAccuracy"]
["FNPI 6z.1","M4A6zOtherCivic1Name",{"$f":"\"'='\" & MID(CELL(\"address\",INDIRECT(B246)),$I$3+1,100)","v":"'='CivicEng&Comm NPIs'!$C$15"},{"$f":" IF(ISBLANK(M4A6zOtherCivic1Name),\"\",M4A6zOtherCivic1Name)","v":""},"Text","M4A6zOtherCivic1Name",1000]
["FNPI_6z.1_I","M4A6zOtherCivic1Part",{"$f":"\"'='\" & MID(CELL(\"address\",INDIRECT(B247)),$I$3+1,100)","v":"'='CivicEng&Comm NPIs'!$D$15"},{"$f":" M4A6zOtherCivic1Part","v":0},"Number","M4A6zOtherCivic1Part"]
["FNPI_6z.1_II","M4A6zOtherCivic1Target",{"$f":"\"'='\" & MID(CELL(\"address\",INDIRECT(B248)),$I$3+1,100)","v":"'='CivicEng&Comm NPIs'!$E$15"},{"$f":" M4A6zOtherCivic1Target","v":0},"Number","M4A6zOtherCivic1Target"]
["FNPI_6z.1_III","M4A6zOtherCivic1Results",{"$f":"\"'='\" & MID(CELL(\"address\",INDIRECT(B249)),$I$3+1,100)","v":"'='CivicEng&Comm NPIs'!$F$15"},{"$f":" M4A6zOtherCivic1Results","v":0},"Number","M4A6zOtherCivic1Results"]
["FNPI 6z.1iv","M4A6zOtherCivic1Outcome",{"$f":"\"'='\" & MID(CELL(\"address\",INDIRECT(B250)),$I$3+1,100)","v":"'='CivicEng&Comm NPIs'!$G$15"},{"$f":" M4A6zOtherCivic1Outcome","v":""},"Number","M4A6zOtherCivic1Outcome"]
["FNPI 6z.1v","M4A6zOtherCivic1Accuracy",{"$f":"\"'='\" & MID(CELL(\"address\",INDIRECT(B251)),$I$3+1,100)","v":"'='CivicEng&Comm NPIs'!$H$15"},{"$f":" M4A6zOtherCivic1Accuracy","v":""},"Number","M4A6zOtherCivic1Accuracy"]
["FNPI 6z.2","M4A6zOtherCivic2Name",{"$f":"\"'='\" & MID(CELL(\"address\",INDIRECT(B252)),$I$3+1,100)","v":"'='CivicEng&Comm NPIs'!$C$16"},{"$f":" IF(ISBLANK(M4A6zOtherCivic2Name),\"\",M4A6zOtherCivic2Name)","v":""},"Text","M4A6zOtherCivic2Name",1000]
["FNPI_6z.2_I","M4A6zOtherCivic2Part",{"$f":"\"'='\" & MID(CELL(\"address\",INDIRECT(B253)),$I$3+1,100)","v":"'='CivicEng&Comm NPIs'!$D$16"},{"$f":" M4A6zOtherCivic2Part","v":0},"Number","M4A6zOtherCivic2Part"]
["FNPI_6z.2_II","M4A6zOtherCivic2Target",{"$f":"\"'='\" & MID(CELL(\"address\",INDIRECT(B254)),$I$3+1,100)","v":"'='CivicEng&Comm NPIs'!$E$16"},{"$f":" M4A6zOtherCivic2Target","v":0},"Number","M4A6zOtherCivic2Target"]
["FNPI_6z.2_III","M4A6zOtherCivic2Results",{"$f":"\"'='\" & MID(CELL(\"address\",INDIRECT(B255)),$I$3+1,100)","v":"'='CivicEng&Comm NPIs'!$F$16"},{"$f":" M4A6zOtherCivic2Results","v":0},"Number","M4A6zOtherCivic2Results"]
["FNPI 6z.2iv","M4A6zOtherCivic2Outcome",{"$f":"\"'='\" & MID(CELL(\"address\",INDIRECT(B256)),$I$3+1,100)","v":"'='CivicEng&Comm NPIs'!$G$16"},{"$f":" M4A6zOtherCivic2Outcome","v":""},"Number","M4A6zOtherCivic2Outcome"]
["FNPI 6z.2v","M4A6zOtherCivic2Accuracy",{"$f":"\"'='\" & MID(CELL(\"address\",INDIRECT(B257)),$I$3+1,100)","v":"'='CivicEng&Comm NPIs'!$H$16"},{"$f":" M4A6zOtherCivic2Accuracy","v":""},"Number","M4A6zOtherCivic2Accuracy"]
["FNPI 6z.3","M4A6zOtherCivic3Name",{"$f":"\"'='\" & MID(CELL(\"address\",INDIRECT(B258)),$I$3+1,100)","v":"'='CivicEng&Comm NPIs'!$C$17"},{"$f":" IF(ISBLANK(M4A6zOtherCivic3Name),\"\",M4A6zOtherCivic3Name)","v":""},"Text","M4A6zOtherCivic3Name",1000]
["FNPI_6z.3_I","M4A6zOtherCivic3Part",{"$f":"\"'='\" & MID(CELL(\"address\",INDIRECT(B259)),$I$3+1,100)","v":"'='CivicEng&Comm NPIs'!$D$17"},{"$f":" M4A6zOtherCivic3Part","v":0},"Number","M4A6zOtherCivic3Part"]
["FNPI_6z.3_II","M4A6zOtherCivic3Target",{"$f":"\"'='\" & MID(CELL(\"address\",INDIRECT(B260)),$I$3+1,100)","v":"'='CivicEng&Comm NPIs'!$E$17"},{"$f":" M4A6zOtherCivic3Target","v":0},"Number","M4A6zOtherCivic3Target"]
["FNPI_6z.3_III","M4A6zOtherCivic3Results",{"$f":"\"'='\" & MID(CELL(\"address\",INDIRECT(B261)),$I$3+1,100)","v":"'='CivicEng&Comm NPIs'!$F$17"},{"$f":" M4A6zOtherCivic3Results","v":0},"Number","M4A6zOtherCivic3Results"]
["FNPI 6z.3iv","M4A6zOtherCivic3Outcome",{"$f":"\"'='\" & MID(CELL(\"address\",INDIRECT(B262)),$I$3+1,100)","v":"'='CivicEng&Comm NPIs'!$G$17"},{"$f":" M4A6zOtherCivic3Outcome","v":""},"Number","M4A6zOtherCivic3Outcome"]
["FNPI 6z.3v","M4A6zOtherCivic3Accuracy",{"$f":"\"'='\" & MID(CELL(\"address\",INDIRECT(B263)),$I$3+1,100)","v":"'='CivicEng&Comm NPIs'!$H$17"},{"$f":" M4A6zOtherCivic3Accuracy","v":""},"Number","M4A6zOtherCivic3Accuracy"]
["FNPI 6z.4","M4A6zOtherCivic4Name",{"$f":"\"'='\" & MID(CELL(\"address\",INDIRECT(B264)),$I$3+1,100)","v":"'='CivicEng&Comm NPIs'!$C$18"},{"$f":" IF(ISBLANK(M4A6zOtherCivic4Name),\"\",M4A6zOtherCivic4Name)","v":""},"Text","M4A6zOtherCivic4Name",1000]
["FNPI_6z.4_I","M4A6zOtherCivic4Part",{"$f":"\"'='\" & MID(CELL(\"address\",INDIRECT(B265)),$I$3+1,100)","v":"'='CivicEng&Comm NPIs'!$D$18"},{"$f":" M4A6zOtherCivic4Part","v":0},"Number","M4A6zOtherCivic4Part"]
["FNPI_6z.4_II","M4A6zOtherCivic4Target",{"$f":"\"'='\" & MID(CELL(\"address\",INDIRECT(B266)),$I$3+1,100)","v":"'='CivicEng&Comm NPIs'!$E$18"},{"$f":" M4A6zOtherCivic4Target","v":0},"Number","M4A6zOtherCivic4Target"]
["FNPI_6z.4_III","M4A6zOtherCivic4Results",{"$f":"\"'='\" & MID(CELL(\"address\",INDIRECT(B267)),$I$3+1,100)","v":"'='CivicEng&Comm NPIs'!$F$18"},{"$f":" M4A6zOtherCivic4Results","v":0},"Number","M4A6zOtherCivic4Results"]
["FNPI 6z.4iv","M4A6zOtherCivic4Outcome",{"$f":"\"'='\" & MID(CELL(\"address\",INDIRECT(B268)),$I$3+1,100)","v":"'='CivicEng&Comm NPIs'!$G$18"},{"$f":" M4A6zOtherCivic4Outcome","v":""},"Number","M4A6zOtherCivic4Outcome"]
["FNPI 6z.4v","M4A6zOtherCivic4Accuracy",{"$f":"\"'='\" & MID(CELL(\"address\",INDIRECT(B269)),$I$3+1,100)","v":"'='CivicEng&Comm NPIs'!$H$18"},{"$f":" M4A6zOtherCivic4Accuracy","v":""},"Number","M4A6zOtherCivic4Accuracy"]
["FNPI 6z.5","M4A6zOtherCivic5Name",{"$f":"\"'='\" & MID(CELL(\"address\",INDIRECT(B270)),$I$3+1,100)","v":"'='CivicEng&Comm NPIs'!$C$19"},{"$f":" IF(ISBLANK(M4A6zOtherCivic5Name),\"\",M4A6zOtherCivic5Name)","v":""},"Text","M4A6zOtherCivic5Name",1000]
["FNPI_6z.5_I","M4A6zOtherCivic5Part",{"$f":"\"'='\" & MID(CELL(\"address\",INDIRECT(B271)),$I$3+1,100)","v":"'='CivicEng&Comm NPIs'!$D$19"},{"$f":" M4A6zOtherCivic5Part","v":0},"Number","M4A6zOtherCivic5Part"]
["FNPI_6z.5_II","M4A6zOtherCivic5Target",{"$f":"\"'='\" & MID(CELL(\"address\",INDIRECT(B272)),$I$3+1,100)","v":"'='CivicEng&Comm NPIs'!$E$19"},{"$f":" M4A6zOtherCivic5Target","v":0},"Number","M4A6zOtherCivic5Target"]
["FNPI_6z.5_III","M4A6zOtherCivic5Results",{"$f":"\"'='\" & MID(CELL(\"address\",INDIRECT(B273)),$I$3+1,100)","v":"'='CivicEng&Comm NPIs'!$F$19"},{"$f":" M4A6zOtherCivic5Results","v":0},"Number","M4A6zOtherCivic5Results"]
["FNPI 6z.5iv","M4A6zOtherCivic5Outcome",{"$f":"\"'='\" & MID(CELL(\"address\",INDIRECT(B274)),$I$3+1,100)","v":"'='CivicEng&Comm NPIs'!$G$19"},{"$f":" M4A6zOtherCivic5Outcome","v":""},"Number","M4A6zOtherCivic5Outcome"]
["FNPI 6z.5v","M4A6zOtherCivic5Accuracy",{"$f":"\"'='\" & MID(CELL(\"address\",INDIRECT(B275)),$I$3+1,100)","v":"'='CivicEng&Comm NPIs'!$H$19"},{"$f":" M4A6zOtherCivic5Accuracy","v":""},"Number","M4A6zOtherCivic5Accuracy"]
["FNPI_Civic_Comments","M4A6Comments",{"$f":"\"'='\" & MID(CELL(\"address\",INDIRECT(B276)),$I$3+1,100)","v":"'='CivicEng&Comm NPIs'!$C$22"},{"$f":" M4A6Comments","v":0},"Memo","M4A6Comments",5000]
["FNPI_2a_I","M4A2aChildLitSkillsPart",{"$f":"\"'='\" & MID(CELL(\"address\",INDIRECT(B277)),$I$3+1,100)","v":"'='Education NPIs'!$D$9"},{"$f":" M4A2aChildLitSkillsPart","v":0},"Number","M4A2aChildLitSkillsPart"]
["FNPI_2a_II","M4A2aChildLitSkillsTarget",{"$f":"\"'='\" & MID(CELL(\"address\",INDIRECT(B278)),$I$3+1,100)","v":"'='Education NPIs'!$E$9"},{"$f":" M4A2aChildLitSkillsTarget","v":0},"Number","M4A2aChildLitSkillsTarget"]
["FNPI_2a_III","M4A2aChildLitSkillsResults",{"$f":"\"'='\" & MID(CELL(\"address\",INDIRECT(B279)),$I$3+1,100)","v":"'='Education NPIs'!$F$9"},{"$f":" M4A2aChildLitSkillsResults","v":0},"Number","M4A2aChildLitSkillsResults"]
["FNPI_2a_iv","M4A2aChildLitSkillsOutcome",{"$f":"\"'='\" & MID(CELL(\"address\",INDIRECT(B280)),$I$3+1,100)","v":"'='Education NPIs'!$G$9"},{"$f":" M4A2aChildLitSkillsOutcome","v":""},"Number","M4A2aChildLitSkillsOutcome"]
["FNPI_2a_v","M4A2aChildLitSkillsAccuracy",{"$f":"\"'='\" & MID(CELL(\"address\",INDIRECT(B281)),$I$3+1,100)","v":"'='Education NPIs'!$H$9"},{"$f":" M4A2aChildLitSkillsAccuracy","v":""},"Number","M4A2aChildLitSkillsAccuracy"]
["FNPI_2b_I","M4A2bChildSchoolReadyPart",{"$f":"\"'='\" & MID(CELL(\"address\",INDIRECT(B282)),$I$3+1,100)","v":"'='Education NPIs'!$D$10"},{"$f":" M4A2bChildSchoolReadyPart","v":10},"Number","M4A2bChildSchoolReadyPart"]
["FNPI_2b_II","M4A2bChildSchoolReadyTarget",{"$f":"\"'='\" & MID(CELL(\"address\",INDIRECT(B283)),$I$3+1,100)","v":"'='Education NPIs'!$E$10"},{"$f":" M4A2bChildSchoolReadyTarget","v":13},"Number","M4A2bChildSchoolReadyTarget"]
["FNPI_2b_III","M4A2bChildSchoolReadyResults",{"$f":"\"'='\" & MID(CELL(\"address\",INDIRECT(B284)),$I$3+1,100)","v":"'='Education NPIs'!$F$10"},{"$f":" M4A2bChildSchoolReadyResults","v":8},"Number","M4A2bChildSchoolReadyResults"]
["FNPI_2b_iv","M4A2bChildSchoolReadyOutcome",{"$f":"\"'='\" & MID(CELL(\"address\",INDIRECT(B285)),$I$3+1,100)","v":"'='Education NPIs'!$G$10"},{"$f":" M4A2bChildSchoolReadyOutcome","v":0.8},"Number","M4A2bChildSchoolReadyOutcome"]
["FNPI_2b_v","M4A2bChildSchoolReadyAccuracy",{"$f":"\"'='\" & MID(CELL(\"address\",INDIRECT(B286)),$I$3+1,100)","v":"'='Education NPIs'!$H$10"},{"$f":" M4A2bChildSchoolReadyAccuracy","v":0.61538461538461542},"Number","M4A2bChildSchoolReadyAccuracy"]
["FNPI_2c_i","M4A2cPosLearnPart",{"$f":"\"'='\" & MID(CELL(\"address\",INDIRECT(B287)),$I$3+1,100)","v":"'='Education NPIs'!$D$11"},{"$f":" M4A2cPosLearnPart","v":0},"Number","M4A2cPosLearnPart"]
["FNPI_2c_iii","M4A2cPosLearnTarget",{"$f":"\"'='\" & MID(CELL(\"address\",INDIRECT(B288)),$I$3+1,100)","v":"'='Education NPIs'!$E$11"},{"$f":" M4A2cPosLearnTarget","v":0},"Number","M4A2cPosLearnTarget"]
["FNPI_2c_iii","M4A2cPosLearnResults",{"$f":"\"'='\" & MID(CELL(\"address\",INDIRECT(B289)),$I$3+1,100)","v":"'='Education NPIs'!$F$11"},{"$f":" M4A2cPosLearnResults","v":0},"Number","M4A2cPosLearnResults"]
["FNPI_2c_iv","M4A2cPosLearnOutcome",{"$f":"\"'='\" & MID(CELL(\"address\",INDIRECT(B290)),$I$3+1,100)","v":"'='Education NPIs'!$G$11"},{"$f":" M4A2cPosLearnOutcome","v":""},"Number","M4A2cPosLearnOutcome"]
["FNPI_2c_v","M4A2cPosLearnAccuracy",{"$f":"\"'='\" & MID(CELL(\"address\",INDIRECT(B291)),$I$3+1,100)","v":"'='Education NPIs'!$H$11"},{"$f":" M4A2cPosLearnAccuracy","v":""},"Number","M4A2cPosLearnAccuracy"]
["FNPI 2c.1    Early Childhood Education (ages 0-5)","M4A2c1PosLearnAge0to5Part",{"$f":"\"'='\" & MID(CELL(\"address\",INDIRECT(B292)),$I$3+1,100)","v":"'='Education NPIs'!$D$12"},{"$f":" M4A2c1PosLearnAge0to5Part","v":0},"Number","M4A2c1PosLearnAge0to5Part"]
["FNPI_2c.1_II","M4A2c1PosLearnAge0to5Target",{"$f":"\"'='\" & MID(CELL(\"address\",INDIRECT(B293)),$I$3+1,100)","v":"'='Education NPIs'!$E$12"},{"$f":" M4A2c1PosLearnAge0to5Target","v":0},"Number","M4A2c1PosLearnAge0to5Target"]
["FNPI_2c.1_III","M4A2c1PosLearnAge0to5Results",{"$f":"\"'='\" & MID(CELL(\"address\",INDIRECT(B294)),$I$3+1,100)","v":"'='Education NPIs'!$F$12"},{"$f":" M4A2c1PosLearnAge0to5Results","v":0},"Number","M4A2c1PosLearnAge0to5Results"]
["FNPI_2c.1_iv","M4A2c1PosLearnAge0to5Outcome",{"$f":"\"'='\" & MID(CELL(\"address\",INDIRECT(B295)),$I$3+1,100)","v":"'='Education NPIs'!$G$12"},{"$f":" M4A2c1PosLearnAge0to5Outcome","v":""},"Number","M4A2c1PosLearnAge0to5Outcome"]
["FNPI_2c.1_v","M4A2c1PosLearnAge0to5Accuracy",{"$f":"\"'='\" & MID(CELL(\"address\",INDIRECT(B296)),$I$3+1,100)","v":"'='Education NPIs'!$H$12"},{"$f":" M4A2c1PosLearnAge0to5Accuracy","v":""},"Number","M4A2c1PosLearnAge0to5Accuracy"]
["FNPI 2c.2    1st grade-8th grade","M4A2c2PosLearnGrade1to8Part",{"$f":"\"'='\" & MID(CELL(\"address\",INDIRECT(B297)),$I$3+1,100)","v":"'='Education NPIs'!$D$13"},{"$f":" M4A2c2PosLearnGrade1to8Part","v":0},"Number","M4A2c2PosLearnGrade1to8Part"]
["FNPI_2c.2_II","M4A2c2PosLearnGrade1to8Target",{"$f":"\"'='\" & MID(CELL(\"address\",INDIRECT(B298)),$I$3+1,100)","v":"'='Education NPIs'!$E$13"},{"$f":" M4A2c2PosLearnGrade1to8Target","v":0},"Number","M4A2c2PosLearnGrade1to8Target"]
["FNPI_2c.2_III","M4A2c2PosLearnGrade1to8Results",{"$f":"\"'='\" & MID(CELL(\"address\",INDIRECT(B299)),$I$3+1,100)","v":"'='Education NPIs'!$F$13"},{"$f":" M4A2c2PosLearnGrade1to8Results","v":0},"Number","M4A2c2PosLearnGrade1to8Results"]
["FNPI_2c.2_iv","M4A2c2PosLearnGrade1to8Outcome",{"$f":"\"'='\" & MID(CELL(\"address\",INDIRECT(B300)),$I$3+1,100)","v":"'='Education NPIs'!$G$13"},{"$f":" M4A2c2PosLearnGrade1to8Outcome","v":""},"Number","M4A2c2PosLearnGrade1to8Outcome"]
["FNPI_2c.2_v","M4A2c2PosLearnGrade1to8Accuracy",{"$f":"\"'='\" & MID(CELL(\"address\",INDIRECT(B301)),$I$3+1,100)","v":"'='Education NPIs'!$H$13"},{"$f":" M4A2c2PosLearnGrade1to8Accuracy","v":""},"Number","M4A2c2PosLearnGrade1to8Accuracy"]
["FNPI 2c.3    9th grade-12th grade","M4A2c3PosLearnGrade9to12Part",{"$f":"\"'='\" & MID(CELL(\"address\",INDIRECT(B302)),$I$3+1,100)","v":"'='Education NPIs'!$D$14"},{"$f":" M4A2c3PosLearnGrade9to12Part","v":0},"Number","M4A2c3PosLearnGrade9to12Part"]
["FNPI_2c.3_II","M4A2c3PosLearnGrade9to12Target",{"$f":"\"'='\" & MID(CELL(\"address\",INDIRECT(B303)),$I$3+1,100)","v":"'='Education NPIs'!$E$14"},{"$f":" M4A2c3PosLearnGrade9to12Target","v":0},"Number","M4A2c3PosLearnGrade9to12Target"]
["FNPI_2c.3_III","M4A2c3PosLearnGrade9to12Results",{"$f":"\"'='\" & MID(CELL(\"address\",INDIRECT(B304)),$I$3+1,100)","v":"'='Education NPIs'!$F$14"},{"$f":" M4A2c3PosLearnGrade9to12Results","v":0},"Number","M4A2c3PosLearnGrade9to12Results"]
["FNPI_2c.3_iv","M4A2c3PosLearnGrade9to12Outcome",{"$f":"\"'='\" & MID(CELL(\"address\",INDIRECT(B305)),$I$3+1,100)","v":"'='Education NPIs'!$G$14"},{"$f":" M4A2c3PosLearnGrade9to12Outcome","v":""},"Number","M4A2c3PosLearnGrade9to12Outcome"]
["FNPI_2c.3_v","M4A2c3PosLearnGrade9to12Accuracy",{"$f":"\"'='\" & MID(CELL(\"address\",INDIRECT(B306)),$I$3+1,100)","v":"'='Education NPIs'!$H$14"},{"$f":" M4A2c3PosLearnGrade9to12Accuracy","v":""},"Number","M4A2c3PosLearnGrade9to12Accuracy"]
["FNPI_2d_i","M4A2dBasicLevelPart",{"$f":"\"'='\" & MID(CELL(\"address\",INDIRECT(B307)),$I$3+1,100)","v":"'='Education NPIs'!$D$15"},{"$f":" M4A2dBasicLevelPart","v":0},"Number","M4A2dBasicLevelPart"]
["FNPI_2d_iii","M4A2dBasicLevelTarget",{"$f":"\"'='\" & MID(CELL(\"address\",INDIRECT(B308)),$I$3+1,100)","v":"'='Education NPIs'!$E$15"},{"$f":" M4A2dBasicLevelTarget","v":0},"Number","M4A2dBasicLevelTarget"]
["FNPI_2d_iii","M4A2dBasicLevelResults",{"$f":"\"'='\" & MID(CELL(\"address\",INDIRECT(B309)),$I$3+1,100)","v":"'='Education NPIs'!$F$15"},{"$f":" M4A2dBasicLevelResults","v":0},"Number","M4A2dBasicLevelResults"]
["FNPI_2d_iv","M4A2dBasicLevelOutcome",{"$f":"\"'='\" & MID(CELL(\"address\",INDIRECT(B310)),$I$3+1,100)","v":"'='Education NPIs'!$G$15"},{"$f":" M4A2dBasicLevelOutcome","v":""},"Number","M4A2dBasicLevelOutcome"]
["FNPI_2d_v","M4A2dBasicLevelAccuracy",{"$f":"\"'='\" & MID(CELL(\"address\",INDIRECT(B311)),$I$3+1,100)","v":"'='Education NPIs'!$H$15"},{"$f":" M4A2dBasicLevelAccuracy","v":""},"Number","M4A2dBasicLevelAccuracy"]
["FNPI 2d.1    Early Childhood Education (ages 0-5)","M4A2d1BasicLevel0to5Part",{"$f":"\"'='\" & MID(CELL(\"address\",INDIRECT(B312)),$I$3+1,100)","v":"'='Education NPIs'!$D$16"},{"$f":" M4A2d1BasicLevel0to5Part","v":0},"Number","M4A2d1BasicLevel0to5Part"]
["FNPI_2d.1_II","M4A2d1BasicLevel0to5Target",{"$f":"\"'='\" & MID(CELL(\"address\",INDIRECT(B313)),$I$3+1,100)","v":"'='Education NPIs'!$E$16"},{"$f":" M4A2d1BasicLevel0to5Target","v":0},"Number","M4A2d1BasicLevel0to5Target"]
["FNPI_2d.1_III","M4A2d1BasicLevel0to5Results",{"$f":"\"'='\" & MID(CELL(\"address\",INDIRECT(B314)),$I$3+1,100)","v":"'='Education NPIs'!$F$16"},{"$f":" M4A2d1BasicLevel0to5Results","v":0},"Number","M4A2d1BasicLevel0to5Results"]
["FNPI_2d.1_iv","M4A2d1BasicLevel0to5Outcome",{"$f":"\"'='\" & MID(CELL(\"address\",INDIRECT(B315)),$I$3+1,100)","v":"'='Education NPIs'!$G$16"},{"$f":" M4A2d1BasicLevel0to5Outcome","v":""},"Number","M4A2d1BasicLevel0to5Outcome"]
["FNPI_2d.1_v","M4A2d1BasicLevel0to5Accuracy",{"$f":"\"'='\" & MID(CELL(\"address\",INDIRECT(B316)),$I$3+1,100)","v":"'='Education NPIs'!$H$16"},{"$f":" M4A2d1BasicLevel0to5Accuracy","v":""},"Number","M4A2d1BasicLevel0to5Accuracy"]
["FNPI 2d.2    1st grade-8th grade","M4A2d2BasicLevelGrade1to8Part",{"$f":"\"'='\" & MID(CELL(\"address\",INDIRECT(B317)),$I$3+1,100)","v":"'='Education NPIs'!$D$17"},{"$f":" M4A2d2BasicLevelGrade1to8Part","v":0},"Number","M4A2d2BasicLevelGrade1to8Part"]
["FNPI_2d.2_II","M4A2d2BasicLevelGrade1to8Target",{"$f":"\"'='\" & MID(CELL(\"address\",INDIRECT(B318)),$I$3+1,100)","v":"'='Education NPIs'!$E$17"},{"$f":" M4A2d2BasicLevelGrade1to8Target","v":0},"Number","M4A2d2BasicLevelGrade1to8Target"]
["FNPI_2d.2_III","M4A2d2BasicLevelGrade1to8Results",{"$f":"\"'='\" & MID(CELL(\"address\",INDIRECT(B319)),$I$3+1,100)","v":"'='Education NPIs'!$F$17"},{"$f":" M4A2d2BasicLevelGrade1to8Results","v":0},"Number","M4A2d2BasicLevelGrade1to8Results"]
["FNPI_2d.2_iv","M4A2d2BasicLevelGrade1to8Outcome",{"$f":"\"'='\" & MID(CELL(\"address\",INDIRECT(B320)),$I$3+1,100)","v":"'='Education NPIs'!$G$17"},{"$f":" M4A2d2BasicLevelGrade1to8Outcome","v":""},"Number","M4A2d2BasicLevelGrade1to8Outcome"]
["FNPI_2d.2_v","M4A2d2BasicLevelGrade1to8Accuracy",{"$f":"\"'='\" & MID(CELL(\"address\",INDIRECT(B321)),$I$3+1,100)","v":"'='Education NPIs'!$H$17"},{"$f":" M4A2d2BasicLevelGrade1to8Accuracy","v":""},"Number","M4A2d2BasicLevelGrade1to8Accuracy"]
["FNPI 2d.3   9th grade-12th grade","M4A2d3BasicLevelGrade9to12Part",{"$f":"\"'='\" & MID(CELL(\"address\",INDIRECT(B322)),$I$3+1,100)","v":"'='Education NPIs'!$D$18"},{"$f":" M4A2d3BasicLevelGrade9to12Part","v":0},"Number","M4A2d3BasicLevelGrade9to12Part"]
["FNPI_2d.3_II","M4A2d3BasicLevelGrade9to12Target",{"$f":"\"'='\" & MID(CELL(\"address\",INDIRECT(B323)),$I$3+1,100)","v":"'='Education NPIs'!$E$18"},{"$f":" M4A2d3BasicLevelGrade9to12Target","v":0},"Number","M4A2d3BasicLevelGrade9to12Target"]
["FNPI_2d.3_III","M4A2d3BasicLevelGrade9to12Results",{"$f":"\"'='\" & MID(CELL(\"address\",INDIRECT(B324)),$I$3+1,100)","v":"'='Education NPIs'!$F$18"},{"$f":" M4A2d3BasicLevelGrade9to12Results","v":0},"Number","M4A2d3BasicLevelGrade9to12Results"]
["FNPI_2d.3_iv","M4A2d3BasicLevelGrade9to12Outcome",{"$f":"\"'='\" & MID(CELL(\"address\",INDIRECT(B325)),$I$3+1,100)","v":"'='Education NPIs'!$G$18"},{"$f":" M4A2d3BasicLevelGrade9to12Outcome","v":""},"Number","M4A2d3BasicLevelGrade9to12Outcome"]
["FNPI_2d.3_v","M4A2d3BasicLevelGrade9to12Accuracy",{"$f":"\"'='\" & MID(CELL(\"address\",INDIRECT(B326)),$I$3+1,100)","v":"'='Education NPIs'!$H$18"},{"$f":" M4A2d3BasicLevelGrade9to12Accuracy","v":""},"Number","M4A2d3BasicLevelGrade9to12Accuracy"]
["FNPI_2e_I","M4A2eParentHomeEnvPart",{"$f":"\"'='\" & MID(CELL(\"address\",INDIRECT(B327)),$I$3+1,100)","v":"'='Education NPIs'!$D$19"},{"$f":" M4A2eParentHomeEnvPart","v":7},"Number","M4A2eParentHomeEnvPart"]
["FNPI_2e_II","M4A2eParentHomeEnvTarget",{"$f":"\"'='\" & MID(CELL(\"address\",INDIRECT(B328)),$I$3+1,100)","v":"'='Education NPIs'!$E$19"},{"$f":" M4A2eParentHomeEnvTarget","v":5},"Number","M4A2eParentHomeEnvTarget"]
["FNPI_2e_III","M4A2eParentHomeEnvResults",{"$f":"\"'='\" & MID(CELL(\"address\",INDIRECT(B329)),$I$3+1,100)","v":"'='Education NPIs'!$F$19"},{"$f":" M4A2eParentHomeEnvResults","v":4},"Number","M4A2eParentHomeEnvResults"]
["FNPI_2e_iv","M4A2eParentHomeEnvOutcome",{"$f":"\"'='\" & MID(CELL(\"address\",INDIRECT(B330)),$I$3+1,100)","v":"'='Education NPIs'!$G$19"},{"$f":" M4A2eParentHomeEnvOutcome","v":0.5714285714285714},"Number","M4A2eParentHomeEnvOutcome"]
["FNPI_2e_v","M4A2eParentHomeEnvAccuracy",{"$f":"\"'='\" & MID(CELL(\"address\",INDIRECT(B331)),$I$3+1,100)","v":"'='Education NPIs'!$H$19"},{"$f":" M4A2eParentHomeEnvAccuracy","v":0.8},"Number","M4A2eParentHomeEnvAccuracy"]
["FNPI_2f_I","M4A2fAdultBasicEdPart",{"$f":"\"'='\" & MID(CELL(\"address\",INDIRECT(B332)),$I$3+1,100)","v":"'='Education NPIs'!$D$20"},{"$f":" M4A2fAdultBasicEdPart","v":0},"Number","M4A2fAdultBasicEdPart"]
["FNPI_2f_II","M4A2fAdultBasicEdTarget",{"$f":"\"'='\" & MID(CELL(\"address\",INDIRECT(B333)),$I$3+1,100)","v":"'='Education NPIs'!$E$20"},{"$f":" M4A2fAdultBasicEdTarget","v":0},"Number","M4A2fAdultBasicEdTarget"]
["FNPI_2f_III","M4A2fAdultBasicEdResults",{"$f":"\"'='\" & MID(CELL(\"address\",INDIRECT(B334)),$I$3+1,100)","v":"'='Education NPIs'!$F$20"},{"$f":" M4A2fAdultBasicEdResults","v":0},"Number","M4A2fAdultBasicEdResults"]
["FNPI_2f_iv","M4A2fAdultBasicEdOutcome",{"$f":"\"'='\" & MID(CELL(\"address\",INDIRECT(B335)),$I$3+1,100)","v":"'='Education NPIs'!$G$20"},{"$f":" M4A2fAdultBasicEdOutcome","v":""},"Number","M4A2fAdultBasicEdOutcome"]
["FNPI_2f_v","M4A2fAdultBasicEdAccuracy",{"$f":"\"'='\" & MID(CELL(\"address\",INDIRECT(B336)),$I$3+1,100)","v":"'='Education NPIs'!$H$20"},{"$f":" M4A2fAdultBasicEdAccuracy","v":""},"Number","M4A2fAdultBasicEdAccuracy"]
["FNPI_2g_I","M4A2gHighSchoolPart",{"$f":"\"'='\" & MID(CELL(\"address\",INDIRECT(B337)),$I$3+1,100)","v":"'='Education NPIs'!$D$21"},{"$f":" M4A2gHighSchoolPart","v":0},"Number","M4A2gHighSchoolPart"]
["FNPI_2g_II","M4A2gHighSchoolTarget",{"$f":"\"'='\" & MID(CELL(\"address\",INDIRECT(B338)),$I$3+1,100)","v":"'='Education NPIs'!$E$21"},{"$f":" M4A2gHighSchoolTarget","v":0},"Number","M4A2gHighSchoolTarget"]
["FNPI_2g_III","M4A2gHighSchoolResults",{"$f":"\"'='\" & MID(CELL(\"address\",INDIRECT(B339)),$I$3+1,100)","v":"'='Education NPIs'!$F$21"},{"$f":" M4A2gHighSchoolResults","v":0},"Number","M4A2gHighSchoolResults"]
["FNPI_2g_iv","M4A2gHighSchoolOutcome",{"$f":"\"'='\" & MID(CELL(\"address\",INDIRECT(B340)),$I$3+1,100)","v":"'='Education NPIs'!$G$21"},{"$f":" M4A2gHighSchoolOutcome","v":""},"Number","M4A2gHighSchoolOutcome"]
["FNPI_2g_v","M4A2gHighSchoolAccuracy",{"$f":"\"'='\" & MID(CELL(\"address\",INDIRECT(B341)),$I$3+1,100)","v":"'='Education NPIs'!$H$21"},{"$f":" M4A2gHighSchoolAccuracy","v":""},"Number","M4A2gHighSchoolAccuracy"]
["FNPI_2h_I","M4A2hEdVocPart",{"$f":"\"'='\" & MID(CELL(\"address\",INDIRECT(B342)),$I$3+1,100)","v":"'='Education NPIs'!$D$22"},{"$f":" M4A2hEdVocPart","v":1},"Number","M4A2hEdVocPart"]
["FNPI_2h_II","M4A2hEdVocTarget",{"$f":"\"'='\" & MID(CELL(\"address\",INDIRECT(B343)),$I$3+1,100)","v":"'='Education NPIs'!$E$22"},{"$f":" M4A2hEdVocTarget","v":2},"Number","M4A2hEdVocTarget"]
["FNPI_2h_III","M4A2hEdVocResults",{"$f":"\"'='\" & MID(CELL(\"address\",INDIRECT(B344)),$I$3+1,100)","v":"'='Education NPIs'!$F$22"},{"$f":" M4A2hEdVocResults","v":1},"Number","M4A2hEdVocResults"]
["FNPI_2h_iv","M4A2hEdVocOutcome",{"$f":"\"'='\" & MID(CELL(\"address\",INDIRECT(B345)),$I$3+1,100)","v":"'='Education NPIs'!$G$22"},{"$f":" M4A2hEdVocOutcome","v":1},"Number","M4A2hEdVocOutcome"]
["FNPI_2h_v","M4A2hEdVocAccuracy",{"$f":"\"'='\" & MID(CELL(\"address\",INDIRECT(B346)),$I$3+1,100)","v":"'='Education NPIs'!$H$22"},{"$f":" M4A2hEdVocAccuracy","v":0.5},"Number","M4A2hEdVocAccuracy"]
["FNPI_2i_I","M4A2iAssocDegPart",{"$f":"\"'='\" & MID(CELL(\"address\",INDIRECT(B347)),$I$3+1,100)","v":"'='Education NPIs'!$D$23"},{"$f":" M4A2iAssocDegPart","v":0},"Number","M4A2iAssocDegPart"]
["FNPI_2i_II","M4A2iAssocDegTarget",{"$f":"\"'='\" & MID(CELL(\"address\",INDIRECT(B348)),$I$3+1,100)","v":"'='Education NPIs'!$E$23"},{"$f":" M4A2iAssocDegTarget","v":0},"Number","M4A2iAssocDegTarget"]
["FNPI_2i_III","M4A2iAssocDegResults",{"$f":"\"'='\" & MID(CELL(\"address\",INDIRECT(B349)),$I$3+1,100)","v":"'='Education NPIs'!$F$23"},{"$f":" M4A2iAssocDegResults","v":0},"Number","M4A2iAssocDegResults"]
["FNPI_2i_iv","M4A2iAssocDegOutcome",{"$f":"\"'='\" & MID(CELL(\"address\",INDIRECT(B350)),$I$3+1,100)","v":"'='Education NPIs'!$G$23"},{"$f":" M4A2iAssocDegOutcome","v":""},"Number","M4A2iAssocDegOutcome"]
["FNPI_2i_v","M4A2iAssocDegAccuracy",{"$f":"\"'='\" & MID(CELL(\"address\",INDIRECT(B351)),$I$3+1,100)","v":"'='Education NPIs'!$H$23"},{"$f":" M4A2iAssocDegAccuracy","v":""},"Number","M4A2iAssocDegAccuracy"]
["FNPI_2j_I","M4A2jBachDegPart",{"$f":"\"'='\" & MID(CELL(\"address\",INDIRECT(B352)),$I$3+1,100)","v":"'='Education NPIs'!$D$24"},{"$f":" M4A2jBachDegPart","v":0},"Number","M4A2jBachDegPart"]
["FNPI_2j_II","M4A2jBachDegTarget",{"$f":"\"'='\" & MID(CELL(\"address\",INDIRECT(B353)),$I$3+1,100)","v":"'='Education NPIs'!$E$24"},{"$f":" M4A2jBachDegTarget","v":0},"Number","M4A2jBachDegTarget"]
["FNPI_2j_III","M4A2jBachDegResults",{"$f":"\"'='\" & MID(CELL(\"address\",INDIRECT(B354)),$I$3+1,100)","v":"'='Education NPIs'!$F$24"},{"$f":" M4A2jBachDegResults","v":0},"Number","M4A2jBachDegResults"]
["FNPI_2j_iv","M4A2jBachDegOutcome",{"$f":"\"'='\" & MID(CELL(\"address\",INDIRECT(B355)),$I$3+1,100)","v":"'='Education NPIs'!$G$24"},{"$f":" M4A2jBachDegOutcome","v":""},"Number","M4A2jBachDegOutcome"]
["FNPI_2j_v","M4A2jBachDegAccuracy",{"$f":"\"'='\" & MID(CELL(\"address\",INDIRECT(B356)),$I$3+1,100)","v":"'='Education NPIs'!$H$24"},{"$f":" M4A2jBachDegAccuracy","v":""},"Number","M4A2jBachDegAccuracy"]
["FNPI 2z.1","M4A2zOtherEdu1Name",{"$f":"\"'='\" & MID(CELL(\"address\",INDIRECT(B357)),$I$3+1,100)","v":"'='Education NPIs'!$C$27"},{"$f":" IF(ISBLANK(M4A2zOtherEdu1Name),\"\",M4A2zOtherEdu1Name)","v":""},"Text","M4A2zOtherEdu1Name",1000]
["FNPI_2z.1_I","M4A2zOtherEdu1Part",{"$f":"\"'='\" & MID(CELL(\"address\",INDIRECT(B358)),$I$3+1,100)","v":"'='Education NPIs'!$D$27"},{"$f":" M4A2zOtherEdu1Part","v":0},"Number","M4A2zOtherEdu1Part"]
["FNPI_2z.1_II","M4A2zOtherEdu1Target",{"$f":"\"'='\" & MID(CELL(\"address\",INDIRECT(B359)),$I$3+1,100)","v":"'='Education NPIs'!$E$27"},{"$f":" M4A2zOtherEdu1Target","v":0},"Number","M4A2zOtherEdu1Target"]
["FNPI_2z.1_III","M4A2zOtherEdu1Results",{"$f":"\"'='\" & MID(CELL(\"address\",INDIRECT(B360)),$I$3+1,100)","v":"'='Education NPIs'!$F$27"},{"$f":" M4A2zOtherEdu1Results","v":0},"Number","M4A2zOtherEdu1Results"]
["FNPI 2z.1iv","M4A2zOtherEdu1Outcome",{"$f":"\"'='\" & MID(CELL(\"address\",INDIRECT(B361)),$I$3+1,100)","v":"'='Education NPIs'!$G$27"},{"$f":" M4A2zOtherEdu1Outcome","v":""},"Number","M4A2zOtherEdu1Outcome"]
["FNPI 2z.1v","M4A2zOtherEdu1Accuracy",{"$f":"\"'='\" & MID(CELL(\"address\",INDIRECT(B362)),$I$3+1,100)","v":"'='Education NPIs'!$H$27"},{"$f":" M4A2zOtherEdu1Accuracy","v":""},"Number","M4A2zOtherEdu1Accuracy"]
["FNPI 2z.2","M4A2zOtherEdu2Name",{"$f":"\"'='\" & MID(CELL(\"address\",INDIRECT(B363)),$I$3+1,100)","v":"'='Education NPIs'!$C$28"},{"$f":" IF(ISBLANK(M4A2zOtherEdu2Name),\"\",M4A2zOtherEdu2Name)","v":""},"Text","M4A2zOtherEdu2Name",1000]
["FNPI_2z.2_I","M4A2zOtherEdu2Part",{"$f":"\"'='\" & MID(CELL(\"address\",INDIRECT(B364)),$I$3+1,100)","v":"'='Education NPIs'!$D$28"},{"$f":" M4A2zOtherEdu2Part","v":0},"Number","M4A2zOtherEdu2Part"]
["FNPI_2z.2_II","M4A2zOtherEdu2Target",{"$f":"\"'='\" & MID(CELL(\"address\",INDIRECT(B365)),$I$3+1,100)","v":"'='Education NPIs'!$E$28"},{"$f":" M4A2zOtherEdu2Target","v":0},"Number","M4A2zOtherEdu2Target"]
["FNPI_2z.2_III","M4A2zOtherEdu2Results",{"$f":"\"'='\" & MID(CELL(\"address\",INDIRECT(B366)),$I$3+1,100)","v":"'='Education NPIs'!$F$28"},{"$f":" M4A2zOtherEdu2Results","v":0},"Number","M4A2zOtherEdu2Results"]
["FNPI 2z.2iv","M4A2zOtherEdu2Outcome",{"$f":"\"'='\" & MID(CELL(\"address\",INDIRECT(B367)),$I$3+1,100)","v":"'='Education NPIs'!$G$28"},{"$f":" M4A2zOtherEdu2Outcome","v":""},"Number","M4A2zOtherEdu2Outcome"]
["FNPI 2z.2v","M4A2zOtherEdu2Accuracy",{"$f":"\"'='\" & MID(CELL(\"address\",INDIRECT(B368)),$I$3+1,100)","v":"'='Education NPIs'!$H$28"},{"$f":" M4A2zOtherEdu2Accuracy","v":""},"Number","M4A2zOtherEdu2Accuracy"]
["FNPI 2z.3","M4A2zOtherEdu3Name",{"$f":"\"'='\" & MID(CELL(\"address\",INDIRECT(B369)),$I$3+1,100)","v":"'='Education NPIs'!$C$29"},{"$f":" IF(ISBLANK(M4A2zOtherEdu3Name),\"\",M4A2zOtherEdu3Name)","v":""},"Text","M4A2zOtherEdu3Name",1000]
["FNPI_2z.3_I","M4A2zOtherEdu3Part",{"$f":"\"'='\" & MID(CELL(\"address\",INDIRECT(B370)),$I$3+1,100)","v":"'='Education NPIs'!$D$29"},{"$f":" M4A2zOtherEdu3Part","v":0},"Number","M4A2zOtherEdu3Part"]
["FNPI_2z.3_II","M4A2zOtherEdu3Target",{"$f":"\"'='\" & MID(CELL(\"address\",INDIRECT(B371)),$I$3+1,100)","v":"'='Education NPIs'!$E$29"},{"$f":" M4A2zOtherEdu3Target","v":0},"Number","M4A2zOtherEdu3Target"]
["FNPI_2z.3_III","M4A2zOtherEdu3Results",{"$f":"\"'='\" & MID(CELL(\"address\",INDIRECT(B372)),$I$3+1,100)","v":"'='Education NPIs'!$F$29"},{"$f":" M4A2zOtherEdu3Results","v":0},"Number","M4A2zOtherEdu3Results"]
["FNPI 2z.3iv","M4A2zOtherEdu3Outcome",{"$f":"\"'='\" & MID(CELL(\"address\",INDIRECT(B373)),$I$3+1,100)","v":"'='Education NPIs'!$G$29"},{"$f":" M4A2zOtherEdu3Outcome","v":""},"Number","M4A2zOtherEdu3Outcome"]
["FNPI 2z.3v","M4A2zOtherEdu3Accuracy",{"$f":"\"'='\" & MID(CELL(\"address\",INDIRECT(B374)),$I$3+1,100)","v":"'='Education NPIs'!$H$29"},{"$f":" M4A2zOtherEdu3Accuracy","v":""},"Number","M4A2zOtherEdu3Accuracy"]
["FNPI 2z.4","M4A2zOtherEdu4Name",{"$f":"\"'='\" & MID(CELL(\"address\",INDIRECT(B375)),$I$3+1,100)","v":"'='Education NPIs'!$C$30"},{"$f":" IF(ISBLANK(M4A2zOtherEdu4Name),\"\",M4A2zOtherEdu4Name)","v":""},"Text","M4A2zOtherEdu4Name",1000]
["FNPI_2z.4_I","M4A2zOtherEdu4Part",{"$f":"\"'='\" & MID(CELL(\"address\",INDIRECT(B376)),$I$3+1,100)","v":"'='Education NPIs'!$D$30"},{"$f":" M4A2zOtherEdu4Part","v":0},"Number","M4A2zOtherEdu4Part"]
["FNPI_2z.4_II","M4A2zOtherEdu4Target",{"$f":"\"'='\" & MID(CELL(\"address\",INDIRECT(B377)),$I$3+1,100)","v":"'='Education NPIs'!$E$30"},{"$f":" M4A2zOtherEdu4Target","v":0},"Number","M4A2zOtherEdu4Target"]
["FNPI_2z.4_III","M4A2zOtherEdu4Results",{"$f":"\"'='\" & MID(CELL(\"address\",INDIRECT(B378)),$I$3+1,100)","v":"'='Education NPIs'!$F$30"},{"$f":" M4A2zOtherEdu4Results","v":0},"Number","M4A2zOtherEdu4Results"]
["FNPI 2z.4iv","M4A2zOtherEdu4Outcome",{"$f":"\"'='\" & MID(CELL(\"address\",INDIRECT(B379)),$I$3+1,100)","v":"'='Education NPIs'!$G$30"},{"$f":" M4A2zOtherEdu4Outcome","v":""},"Number","M4A2zOtherEdu4Outcome"]
["FNPI 2z.4v","M4A2zOtherEdu4Accuracy",{"$f":"\"'='\" & MID(CELL(\"address\",INDIRECT(B380)),$I$3+1,100)","v":"'='Education NPIs'!$H$30"},{"$f":" M4A2zOtherEdu4Accuracy","v":""},"Number","M4A2zOtherEdu4Accuracy"]
["FNPI 2z.5","M4A2zOtherEdu5Name",{"$f":"\"'='\" & MID(CELL(\"address\",INDIRECT(B381)),$I$3+1,100)","v":"'='Education NPIs'!$C$31"},{"$f":" IF(ISBLANK(M4A2zOtherEdu5Name),\"\",M4A2zOtherEdu5Name)","v":""},"Text","M4A2zOtherEdu5Name",1000]
["FNPI_2z.5_I","M4A2zOtherEdu5Part",{"$f":"\"'='\" & MID(CELL(\"address\",INDIRECT(B382)),$I$3+1,100)","v":"'='Education NPIs'!$D$31"},{"$f":" M4A2zOtherEdu5Part","v":0},"Number","M4A2zOtherEdu5Part"]
["FNPI_2z.5_II","M4A2zOtherEdu5Target",{"$f":"\"'='\" & MID(CELL(\"address\",INDIRECT(B383)),$I$3+1,100)","v":"'='Education NPIs'!$E$31"},{"$f":" M4A2zOtherEdu5Target","v":0},"Number","M4A2zOtherEdu5Target"]
["FNPI_2z.5_III","M4A2zOtherEdu5Results",{"$f":"\"'='\" & MID(CELL(\"address\",INDIRECT(B384)),$I$3+1,100)","v":"'='Education NPIs'!$F$31"},{"$f":" M4A2zOtherEdu5Results","v":0},"Number","M4A2zOtherEdu5Results"]
["FNPI 2z.5iv","M4A2zOtherEdu5Outcome",{"$f":"\"'='\" & MID(CELL(\"address\",INDIRECT(B385)),$I$3+1,100)","v":"'='Education NPIs'!$G$31"},{"$f":" M4A2zOtherEdu5Outcome","v":""},"Number","M4A2zOtherEdu5Outcome"]
["FNPI 2z.5v","M4A2zOtherEdu5Accuracy",{"$f":"\"'='\" & MID(CELL(\"address\",INDIRECT(B386)),$I$3+1,100)","v":"'='Education NPIs'!$H$31"},{"$f":" M4A2zOtherEdu5Accuracy","v":""},"Number","M4A2zOtherEdu5Accuracy"]
["FNPI_Ed_Comments","M4A2Comments",{"$f":"\"'='\" & MID(CELL(\"address\",INDIRECT(B387)),$I$3+1,100)","v":"'='Education NPIs'!$C$34"},{"$f":" M4A2Comments","v":0},"Memo","M4A2Comments",5000]
["FNPI_1a_I","M4A1aEmployYouthPart",{"$f":"\"'='\" & MID(CELL(\"address\",INDIRECT(B388)),$I$3+1,100)","v":"'='Employment NPIs'!$D$9"},{"$f":" M4A1aEmployYouthPart","v":11},"Number","M4A1aEmployYouthPart"]
["FNPI_1a_II","M4A1aEmployYouthTarget",{"$f":"\"'='\" & MID(CELL(\"address\",INDIRECT(B389)),$I$3+1,100)","v":"'='Employment NPIs'!$E$9"},{"$f":" M4A1aEmployYouthTarget","v":13},"Number","M4A1aEmployYouthTarget"]
["FNPI_1a_III","M4A1aEmployYouthResults",{"$f":"\"'='\" & MID(CELL(\"address\",INDIRECT(B390)),$I$3+1,100)","v":"'='Employment NPIs'!$F$9"},{"$f":" M4A1aEmployYouthResults","v":9},"Number","M4A1aEmployYouthResults"]
["FNPI_1a_iv","M4A1aEmployYouthOutcome",{"$f":"\"'='\" & MID(CELL(\"address\",INDIRECT(B391)),$I$3+1,100)","v":"'='Employment NPIs'!$G$9"},{"$f":" M4A1aEmployYouthOutcome","v":0.81818181818181823},"Number","M4A1aEmployYouthOutcome"]
["FNPI_1a_v","M4A1aEmployYouthAccuracy",{"$f":"\"'='\" & MID(CELL(\"address\",INDIRECT(B392)),$I$3+1,100)","v":"'='Employment NPIs'!$H$9"},{"$f":" M4A1aEmployYouthAccuracy","v":0.69230769230769229},"Number","M4A1aEmployYouthAccuracy"]
["FNPI_1b_I","M4A1bEmployAdultWagePart",{"$f":"\"'='\" & MID(CELL(\"address\",INDIRECT(B393)),$I$3+1,100)","v":"'='Employment NPIs'!$D$10"},{"$f":" M4A1bEmployAdultWagePart","v":39},"Number","M4A1bEmployAdultWagePart"]
["FNPI_1b_II","M4A1bEmployAdultWageTarget",{"$f":"\"'='\" & MID(CELL(\"address\",INDIRECT(B394)),$I$3+1,100)","v":"'='Employment NPIs'!$E$10"},{"$f":" M4A1bEmployAdultWageTarget","v":50},"Number","M4A1bEmployAdultWageTarget"]
["FNPI_1b_III","M4A1bEmployAdultWageResults",{"$f":"\"'='\" & MID(CELL(\"address\",INDIRECT(B395)),$I$3+1,100)","v":"'='Employment NPIs'!$F$10"},{"$f":" M4A1bEmployAdultWageResults","v":34},"Number","M4A1bEmployAdultWageResults"]
["FNPI_1b_iv","M4A1bEmployAdultWageOutcome",{"$f":"\"'='\" & MID(CELL(\"address\",INDIRECT(B396)),$I$3+1,100)","v":"'='Employment NPIs'!$G$10"},{"$f":" M4A1bEmployAdultWageOutcome","v":0.87179487179487181},"Number","M4A1bEmployAdultWageOutcome"]
["FNPI_1b_v","M4A1bEmployAdultWageAccuracy",{"$f":"\"'='\" & MID(CELL(\"address\",INDIRECT(B397)),$I$3+1,100)","v":"'='Employment NPIs'!$H$10"},{"$f":" M4A1bEmployAdultWageAccuracy","v":0.68},"Number","M4A1bEmployAdultWageAccuracy"]
["FNPI_1c_I","M4A1cEmployAdultWage90daysPart",{"$f":"\"'='\" & MID(CELL(\"address\",INDIRECT(B398)),$I$3+1,100)","v":"'='Employment NPIs'!$D$11"},{"$f":" M4A1cEmployAdultWage90daysPart","v":42},"Number","M4A1cEmployAdultWage90daysPart"]
["FNPI_1c_II","M4A1cEmployAdultWage90daysTarget",{"$f":"\"'='\" & MID(CELL(\"address\",INDIRECT(B399)),$I$3+1,100)","v":"'='Employment NPIs'!$E$11"},{"$f":" M4A1cEmployAdultWage90daysTarget","v":53},"Number","M4A1cEmployAdultWage90daysTarget"]
["FNPI_1c_III","M4A1cEmployAdultWage90daysResults",{"$f":"\"'='\" & MID(CELL(\"address\",INDIRECT(B400)),$I$3+1,100)","v":"'='Employment NPIs'!$F$11"},{"$f":" M4A1cEmployAdultWage90daysResults","v":35},"Number","M4A1cEmployAdultWage90daysResults"]
["FNPI_1c_iv","M4A1cEmployAdultWage90daysOutcome",{"$f":"\"'='\" & MID(CELL(\"address\",INDIRECT(B401)),$I$3+1,100)","v":"'='Employment NPIs'!$G$11"},{"$f":" M4A1cEmployAdultWage90daysOutcome","v":0.83333333333333337},"Number","M4A1cEmployAdultWage90daysOutcome"]
["FNPI_1c_v","M4A1cEmployAdultWage90daysAccuracy",{"$f":"\"'='\" & MID(CELL(\"address\",INDIRECT(B402)),$I$3+1,100)","v":"'='Employment NPIs'!$H$11"},{"$f":" M4A1cEmployAdultWage90daysAccuracy","v":0.660377358490566},"Number","M4A1cEmployAdultWage90daysAccuracy"]
["FNPI_1d_I","M4A1dEmployAdultWage180daysPart",{"$f":"\"'='\" & MID(CELL(\"address\",INDIRECT(B403)),$I$3+1,100)","v":"'='Employment NPIs'!$D$12"},{"$f":" M4A1dEmployAdultWage180daysPart","v":31},"Number","M4A1dEmployAdultWage180daysPart"]
["FNPI_1d_II","M4A1dEmployAdultWage180daysTarget",{"$f":"\"'='\" & MID(CELL(\"address\",INDIRECT(B404)),$I$3+1,100)","v":"'='Employment NPIs'!$E$12"},{"$f":" M4A1dEmployAdultWage180daysTarget","v":42},"Number","M4A1dEmployAdultWage180daysTarget"]
["FNPI_1d_III","M4A1dEmployAdultWage180daysResults",{"$f":"\"'='\" & MID(CELL(\"address\",INDIRECT(B405)),$I$3+1,100)","v":"'='Employment NPIs'!$F$12"},{"$f":" M4A1dEmployAdultWage180daysResults","v":27},"Number","M4A1dEmployAdultWage180daysResults"]
["FNPI_1d_iv","M4A1dEmployAdultWage180daysOutcome",{"$f":"\"'='\" & MID(CELL(\"address\",INDIRECT(B406)),$I$3+1,100)","v":"'='Employment NPIs'!$G$12"},{"$f":" M4A1dEmployAdultWage180daysOutcome","v":0.87096774193548387},"Number","M4A1dEmployAdultWage180daysOutcome"]
["FNPI_1d_v","M4A1dEmployAdultWage180daysAccuracy",{"$f":"\"'='\" & MID(CELL(\"address\",INDIRECT(B407)),$I$3+1,100)","v":"'='Employment NPIs'!$H$12"},{"$f":" M4A1dEmployAdultWage180daysAccuracy","v":0.6428571428571429},"Number","M4A1dEmployAdultWage180daysAccuracy"]
["FNPI_1e_I","M4A1eEmployAdultAbovePart",{"$f":"\"'='\" & MID(CELL(\"address\",INDIRECT(B408)),$I$3+1,100)","v":"'='Employment NPIs'!$D$13"},{"$f":" M4A1eEmployAdultAbovePart","v":35},"Number","M4A1eEmployAdultAbovePart"]
["FNPI_1e_II","M4A1eEmployAdultAboveTarget",{"$f":"\"'='\" & MID(CELL(\"address\",INDIRECT(B409)),$I$3+1,100)","v":"'='Employment NPIs'!$E$13"},{"$f":" M4A1eEmployAdultAboveTarget","v":44},"Number","M4A1eEmployAdultAboveTarget"]
["FNPI_1e_III","M4A1eEmployAdultAboveResults",{"$f":"\"'='\" & MID(CELL(\"address\",INDIRECT(B410)),$I$3+1,100)","v":"'='Employment NPIs'!$F$13"},{"$f":" M4A1eEmployAdultAboveResults","v":31},"Number","M4A1eEmployAdultAboveResults"]
["FNPI_1e_iv","M4A1eEmployAdultAboveOutcome",{"$f":"\"'='\" & MID(CELL(\"address\",INDIRECT(B411)),$I$3+1,100)","v":"'='Employment NPIs'!$G$13"},{"$f":" M4A1eEmployAdultAboveOutcome","v":0.88571428571428568},"Number","M4A1eEmployAdultAboveOutcome"]
["FNPI_1e_v","M4A1eEmployAdultAboveAccuracy",{"$f":"\"'='\" & MID(CELL(\"address\",INDIRECT(B412)),$I$3+1,100)","v":"'='Employment NPIs'!$H$13"},{"$f":" M4A1eEmployAdultAboveAccuracy","v":0.70454545454545459},"Number","M4A1eEmployAdultAboveAccuracy"]
["FNPI_1f_I","M4A1fEmployAdultAbove90daysPart",{"$f":"\"'='\" & MID(CELL(\"address\",INDIRECT(B413)),$I$3+1,100)","v":"'='Employment NPIs'!$D$14"},{"$f":" M4A1fEmployAdultAbove90daysPart","v":17},"Number","M4A1fEmployAdultAbove90daysPart"]
["FNPI_1f_II","M4A1fEmployAdultAbove90daysTarget",{"$f":"\"'='\" & MID(CELL(\"address\",INDIRECT(B414)),$I$3+1,100)","v":"'='Employment NPIs'!$E$14"},{"$f":" M4A1fEmployAdultAbove90daysTarget","v":19},"Number","M4A1fEmployAdultAbove90daysTarget"]
["FNPI_1f_III","M4A1fEmployAdultAbove90daysResults",{"$f":"\"'='\" & MID(CELL(\"address\",INDIRECT(B415)),$I$3+1,100)","v":"'='Employment NPIs'!$F$14"},{"$f":" M4A1fEmployAdultAbove90daysResults","v":14},"Number","M4A1fEmployAdultAbove90daysResults"]
["FNPI_1f_iv","M4A1fEmployAdultAbove90daysOutcome",{"$f":"\"'='\" & MID(CELL(\"address\",INDIRECT(B416)),$I$3+1,100)","v":"'='Employment NPIs'!$G$14"},{"$f":" M4A1fEmployAdultAbove90daysOutcome","v":0.82352941176470584},"Number","M4A1fEmployAdultAbove90daysOutcome"]
["FNPI_1f_v","M4A1fEmployAdultAbove90daysAccuracy",{"$f":"\"'='\" & MID(CELL(\"address\",INDIRECT(B417)),$I$3+1,100)","v":"'='Employment NPIs'!$H$14"},{"$f":" M4A1fEmployAdultAbove90daysAccuracy","v":0.73684210526315785},"Number","M4A1fEmployAdultAbove90daysAccuracy"]
["FNPI_1g_I","M4A1gEmployAdultAbove180daysPart",{"$f":"\"'='\" & MID(CELL(\"address\",INDIRECT(B418)),$I$3+1,100)","v":"'='Employment NPIs'!$D$15"},{"$f":" M4A1gEmployAdultAbove180daysPart","v":15},"Number","M4A1gEmployAdultAbove180daysPart"]
["FNPI_1g_II","M4A1gEmployAdultAbove180daysTarget",{"$f":"\"'='\" & MID(CELL(\"address\",INDIRECT(B419)),$I$3+1,100)","v":"'='Employment NPIs'!$E$15"},{"$f":" M4A1gEmployAdultAbove180daysTarget","v":18},"Number","M4A1gEmployAdultAbove180daysTarget"]
["FNPI_1g_III","M4A1gEmployAdultAbove180daysResults",{"$f":"\"'='\" & MID(CELL(\"address\",INDIRECT(B420)),$I$3+1,100)","v":"'='Employment NPIs'!$F$15"},{"$f":" M4A1gEmployAdultAbove180daysResults","v":12},"Number","M4A1gEmployAdultAbove180daysResults"]
["FNPI_1g_iv","M4A1gEmployAdultAbove180daysOutcome",{"$f":"\"'='\" & MID(CELL(\"address\",INDIRECT(B421)),$I$3+1,100)","v":"'='Employment NPIs'!$G$15"},{"$f":" M4A1gEmployAdultAbove180daysOutcome","v":0.8},"Number","M4A1gEmployAdultAbove180daysOutcome"]
["FNPI_1g_v","M4A1gEmployAdultAbove180daysAccuracy",{"$f":"\"'='\" & MID(CELL(\"address\",INDIRECT(B422)),$I$3+1,100)","v":"'='Employment NPIs'!$H$15"},{"$f":" M4A1gEmployAdultAbove180daysAccuracy","v":0.66666666666666663},"Number","M4A1gEmployAdultAbove180daysAccuracy"]
["FNPI_1h_I","M4A1h3CareerAdvBensPart",{"$f":"\"'='\" & MID(CELL(\"address\",INDIRECT(B423)),$I$3+1,100)","v":"'='Employment NPIs'!$D$18"},{"$f":" M4A1h3CareerAdvBensPart","v":39},"Number","M4A1hCareerAdvPart"]
["FNPI_1h_II","M4A1h3CareerAdvBensTarget",{"$f":"\"'='\" & MID(CELL(\"address\",INDIRECT(B424)),$I$3+1,100)","v":"'='Employment NPIs'!$E$18"},{"$f":" M4A1h3CareerAdvBensTarget","v":47},"Number","M4A1hCareerAdvTarget"]
["FNPI_1h_III","M4A1h3CareerAdvBensResults",{"$f":"\"'='\" & MID(CELL(\"address\",INDIRECT(B425)),$I$3+1,100)","v":"'='Employment NPIs'!$F$18"},{"$f":" M4A1h3CareerAdvBensResults","v":32},"Number","M4A1hCareerAdvResults"]
["FNPI_1h_iv","M4A1h3CareerAdvBensOutcome",{"$f":"\"'='\" & MID(CELL(\"address\",INDIRECT(B426)),$I$3+1,100)","v":"'='Employment NPIs'!$G$18"},{"$f":" M4A1h3CareerAdvBensOutcome","v":0.82051282051282048},"Number","M4A1hCareerAdvOutcome"]
["FNPI_1h_v","M4A1h3CareerAdvBensAccuracy",{"$f":"\"'='\" & MID(CELL(\"address\",INDIRECT(B427)),$I$3+1,100)","v":"'='Employment NPIs'!$H$18"},{"$f":" M4A1h3CareerAdvBensAccuracy","v":0.68085106382978722},"Number","M4A1hCareerAdvAccuracy"]
["FNPI 1h.1 Of the above, the number of employed participants who Increased income from employment through wage or salary amount increase.","M4A1hCareerAdvPart",{"$f":"\"'='\" & MID(CELL(\"address\",INDIRECT(B428)),$I$3+1,100)","v":"'='Employment NPIs'!$D$19"},{"$f":" M4A1hCareerAdvPart","v":36},"Number","M4A1h1CareerAdvIncPart"]
["FNPI_1h.1_II","M4A1hCareerAdvTarget",{"$f":"\"'='\" & MID(CELL(\"address\",INDIRECT(B429)),$I$3+1,100)","v":"'='Employment NPIs'!$E$19"},{"$f":" M4A1hCareerAdvTarget","v":45},"Number","M4A1h1CareerAdvIncTarget"]
["FNPI_1h.1_III","M4A1hCareerAdvResults",{"$f":"\"'='\" & MID(CELL(\"address\",INDIRECT(B430)),$I$3+1,100)","v":"'='Employment NPIs'!$F$19"},{"$f":" M4A1hCareerAdvResults","v":32},"Number","M4A1h1CareerAdvIncResults"]
["FNPI_1h.1_iv","M4A1hCareerAdvOutcome",{"$f":"\"'='\" & MID(CELL(\"address\",INDIRECT(B431)),$I$3+1,100)","v":"'='Employment NPIs'!$G$19"},{"$f":" M4A1hCareerAdvOutcome","v":0.88888888888888884},"Number","M4A1h1CareerAdvIncOutcome"]
["FNPI_1h.1_v","M4A1hCareerAdvAccuracy",{"$f":"\"'='\" & MID(CELL(\"address\",INDIRECT(B432)),$I$3+1,100)","v":"'='Employment NPIs'!$H$19"},{"$f":" M4A1hCareerAdvAccuracy","v":0.71111111111111114},"Number","M4A1h1CareerAdvIncAccuracy"]
["FNPI 1h.2 Of the above, the number of employed participants who increased income from employment through hours worked increase.","M4A1h1CareerAdvIncPart",{"$f":"\"'='\" & MID(CELL(\"address\",INDIRECT(B433)),$I$3+1,100)","v":"'='Employment NPIs'!$D$20"},{"$f":" M4A1h1CareerAdvIncPart","v":23},"Number","M4A1h2CareerAdvHoursPart"]
["FNPI_1h.2_II","M4A1h1CareerAdvIncTarget",{"$f":"\"'='\" & MID(CELL(\"address\",INDIRECT(B434)),$I$3+1,100)","v":"'='Employment NPIs'!$E$20"},{"$f":" M4A1h1CareerAdvIncTarget","v":27},"Number","M4A1h2CareerAdvHoursTarget"]
["FNPI_1h.2_III","M4A1h1CareerAdvIncResults",{"$f":"\"'='\" & MID(CELL(\"address\",INDIRECT(B435)),$I$3+1,100)","v":"'='Employment NPIs'!$F$20"},{"$f":" M4A1h1CareerAdvIncResults","v":20},"Number","M4A1h2CareerAdvHoursResults"]
["FNPI_1h.2_iv","M4A1h1CareerAdvIncOutcome",{"$f":"\"'='\" & MID(CELL(\"address\",INDIRECT(B436)),$I$3+1,100)","v":"'='Employment NPIs'!$G$20"},{"$f":" M4A1h1CareerAdvIncOutcome","v":0.86956521739130432},"Number","M4A1h2CareerAdvHoursOutcome"]
["FNPI_1h.2_v","M4A1h1CareerAdvIncAccuracy",{"$f":"\"'='\" & MID(CELL(\"address\",INDIRECT(B437)),$I$3+1,100)","v":"'='Employment NPIs'!$H$20"},{"$f":" M4A1h1CareerAdvIncAccuracy","v":0.7407407407407407},"Number","M4A1h2CareerAdvHoursAccuracy"]
["FNPI 1h.3 Of the above, the number of employed participants who increased benefits related to employment.","M4A1h2CareerAdvHoursPart",{"$f":"\"'='\" & MID(CELL(\"address\",INDIRECT(B438)),$I$3+1,100)","v":"'='Employment NPIs'!$D$21"},{"$f":" M4A1h2CareerAdvHoursPart","v":11},"Number","M4A1h3CareerAdvBensPart"]
["FNPI_1h.3_II","M4A1h2CareerAdvHoursTarget",{"$f":"\"'='\" & MID(CELL(\"address\",INDIRECT(B439)),$I$3+1,100)","v":"'='Employment NPIs'!$E$21"},{"$f":" M4A1h2CareerAdvHoursTarget","v":14},"Number","M4A1h3CareerAdvBensTarget"]
["FNPI_1h.3_III","M4A1h2CareerAdvHoursResults",{"$f":"\"'='\" & MID(CELL(\"address\",INDIRECT(B440)),$I$3+1,100)","v":"'='Employment NPIs'!$F$21"},{"$f":" M4A1h2CareerAdvHoursResults","v":8},"Number","M4A1h3CareerAdvBensResults"]
["FNPI_1h.3_iv","M4A1h2CareerAdvHoursOutcome",{"$f":"\"'='\" & MID(CELL(\"address\",INDIRECT(B441)),$I$3+1,100)","v":"'='Employment NPIs'!$G$21"},{"$f":" M4A1h2CareerAdvHoursOutcome","v":0.72727272727272729},"Number","M4A1h3CareerAdvBensOutcome"]
["FNPI_1h.3_v","M4A1h2CareerAdvHoursAccuracy",{"$f":"\"'='\" & MID(CELL(\"address\",INDIRECT(B442)),$I$3+1,100)","v":"'='Employment NPIs'!$H$21"},{"$f":" M4A1h2CareerAdvHoursAccuracy","v":0.5714285714285714},"Number","M4A1h3CareerAdvBensAccuracy"]
["FNPI 1z.1","M4A1z1OtherEmploy1Name",{"$f":"\"'='\" & MID(CELL(\"address\",INDIRECT(B443)),$I$3+1,100)","v":"'='Employment NPIs'!$C$24"},{"$f":" IF(ISBLANK(M4A1z1OtherEmploy1Name),\"\",M4A1z1OtherEmploy1Name)","v":"Number of individuals who improved employment as a result of remote work programs. "},"Text","M4A1z1OtherEmploy1Name",1000]
["FNPI_1z.1_I","M4A1zOtherEmploy1Part",{"$f":"\"'='\" & MID(CELL(\"address\",INDIRECT(B444)),$I$3+1,100)","v":"'='Employment NPIs'!$D$24"},{"$f":" M4A1zOtherEmploy1Part","v":12},"Number","M4A1zOtherEmploy1Part"]
["FNPI_1z.1_II","M4A1zOtherEmploy1Target",{"$f":"\"'='\" & MID(CELL(\"address\",INDIRECT(B445)),$I$3+1,100)","v":"'='Employment NPIs'!$E$24"},{"$f":" M4A1zOtherEmploy1Target","v":18},"Number","M4A1zOtherEmploy1Target"]
["FNPI_1z.1_III","M4A1zOtherEmploy1Results",{"$f":"\"'='\" & MID(CELL(\"address\",INDIRECT(B446)),$I$3+1,100)","v":"'='Employment NPIs'!$F$24"},{"$f":" M4A1zOtherEmploy1Results","v":10},"Number","M4A1zOtherEmploy1Results"]
["FNPI 1z.1iv","M4A1zOtherEmploy1Outcome",{"$f":"\"'='\" & MID(CELL(\"address\",INDIRECT(B447)),$I$3+1,100)","v":"'='Employment NPIs'!$G$24"},{"$f":" M4A1zOtherEmploy1Outcome","v":0.83333333333333337},"Number","M4A1zOtherEmploy1Outcome"]
["FNPI 1z.1v","M4A1zOtherEmploy1Accuracy",{"$f":"\"'='\" & MID(CELL(\"address\",INDIRECT(B448)),$I$3+1,100)","v":"'='Employment NPIs'!$H$24"},{"$f":" M4A1zOtherEmploy1Accuracy","v":0.55555555555555558},"Number","M4A1zOtherEmploy1Accuracy"]
["FNPI 1z.2","M4A1zOtherEmploy2Name",{"$f":"\"'='\" & MID(CELL(\"address\",INDIRECT(B449)),$I$3+1,100)","v":"'='Employment NPIs'!$C$25"},{"$f":" IF(ISBLANK(M4A1zOtherEmploy2Name),\"\",M4A1zOtherEmploy2Name)","v":""},"Text","M4A1zOtherEmploy2Name",1000]
["FNPI_1z.2_I","M4A1zOtherEmploy2Part",{"$f":"\"'='\" & MID(CELL(\"address\",INDIRECT(B450)),$I$3+1,100)","v":"'='Employment NPIs'!$D$25"},{"$f":" M4A1zOtherEmploy2Part","v":0},"Number","M4A1zOtherEmploy2Part"]
["FNPI_1z.2_II","M4A1zOtherEmploy2Target",{"$f":"\"'='\" & MID(CELL(\"address\",INDIRECT(B451)),$I$3+1,100)","v":"'='Employment NPIs'!$E$25"},{"$f":" M4A1zOtherEmploy2Target","v":0},"Number","M4A1zOtherEmploy2Target"]
["FNPI_1z.2_III","M4A1zOtherEmploy2Results",{"$f":"\"'='\" & MID(CELL(\"address\",INDIRECT(B452)),$I$3+1,100)","v":"'='Employment NPIs'!$F$25"},{"$f":" M4A1zOtherEmploy2Results","v":0},"Number","M4A1zOtherEmploy2Results"]
["FNPI 1z.2iv","M4A1zOtherEmploy2Outcome",{"$f":"\"'='\" & MID(CELL(\"address\",INDIRECT(B453)),$I$3+1,100)","v":"'='Employment NPIs'!$G$25"},{"$f":" M4A1zOtherEmploy2Outcome","v":""},"Number","M4A1zOtherEmploy2Outcome"]
["FNPI 1z.2v","M4A1zOtherEmploy2Accuracy",{"$f":"\"'='\" & MID(CELL(\"address\",INDIRECT(B454)),$I$3+1,100)","v":"'='Employment NPIs'!$H$25"},{"$f":" M4A1zOtherEmploy2Accuracy","v":""},"Number","M4A1zOtherEmploy2Accuracy"]
["FNPI 1z.3","M4A1zOtherEmploy3Name",{"$f":"\"'='\" & MID(CELL(\"address\",INDIRECT(B455)),$I$3+1,100)","v":"'='Employment NPIs'!$C$26"},{"$f":" IF(ISBLANK(M4A1zOtherEmploy3Name),\"\",M4A1zOtherEmploy3Name)","v":""},"Text","M4A1zOtherEmploy3Name",1000]
["FNPI_1z.3_I","M4A1zOtherEmploy3Part",{"$f":"\"'='\" & MID(CELL(\"address\",INDIRECT(B456)),$I$3+1,100)","v":"'='Employment NPIs'!$D$26"},{"$f":" M4A1zOtherEmploy3Part","v":0},"Number","M4A1zOtherEmploy3Part"]
["FNPI_1z.3_II","M4A1zOtherEmploy3Target",{"$f":"\"'='\" & MID(CELL(\"address\",INDIRECT(B457)),$I$3+1,100)","v":"'='Employment NPIs'!$E$26"},{"$f":" M4A1zOtherEmploy3Target","v":0},"Number","M4A1zOtherEmploy3Target"]
["FNPI_1z.3_III","M4A1zOtherEmploy3Results",{"$f":"\"'='\" & MID(CELL(\"address\",INDIRECT(B458)),$I$3+1,100)","v":"'='Employment NPIs'!$F$26"},{"$f":" M4A1zOtherEmploy3Results","v":0},"Number","M4A1zOtherEmploy3Results"]
["FNPI 1z.3iv","M4A1zOtherEmploy3Outcome",{"$f":"\"'='\" & MID(CELL(\"address\",INDIRECT(B459)),$I$3+1,100)","v":"'='Employment NPIs'!$G$26"},{"$f":" M4A1zOtherEmploy3Outcome","v":""},"Number","M4A1zOtherEmploy3Outcome"]
["FNPI 1z.3v","M4A1zOtherEmploy3Accuracy",{"$f":"\"'='\" & MID(CELL(\"address\",INDIRECT(B460)),$I$3+1,100)","v":"'='Employment NPIs'!$H$26"},{"$f":" M4A1zOtherEmploy3Accuracy","v":""},"Number","M4A1zOtherEmploy3Accuracy"]
["FNPI 1z.4","M4A1zOtherEmploy4Name",{"$f":"\"'='\" & MID(CELL(\"address\",INDIRECT(B461)),$I$3+1,100)","v":"'='Employment NPIs'!$C$27"},{"$f":" IF(ISBLANK(M4A1zOtherEmploy4Name),\"\",M4A1zOtherEmploy4Name)","v":""},"Text","M4A1zOtherEmploy4Name",1000]
["FNPI_1z.4_I","M4A1zOtherEmploy4Part",{"$f":"\"'='\" & MID(CELL(\"address\",INDIRECT(B462)),$I$3+1,100)","v":"'='Employment NPIs'!$D$27"},{"$f":" M4A1zOtherEmploy4Part","v":0},"Number","M4A1zOtherEmploy4Part"]
["FNPI_1z.4_II","M4A1zOtherEmploy4Target",{"$f":"\"'='\" & MID(CELL(\"address\",INDIRECT(B463)),$I$3+1,100)","v":"'='Employment NPIs'!$E$27"},{"$f":" M4A1zOtherEmploy4Target","v":0},"Number","M4A1zOtherEmploy4Target"]
["FNPI_1z.4_III","M4A1zOtherEmploy4Results",{"$f":"\"'='\" & MID(CELL(\"address\",INDIRECT(B464)),$I$3+1,100)","v":"'='Employment NPIs'!$F$27"},{"$f":" M4A1zOtherEmploy4Results","v":0},"Number","M4A1zOtherEmploy4Results"]
["FNPI 1z.4iv","M4A1zOtherEmploy4Outcome",{"$f":"\"'='\" & MID(CELL(\"address\",INDIRECT(B465)),$I$3+1,100)","v":"'='Employment NPIs'!$G$27"},{"$f":" M4A1zOtherEmploy4Outcome","v":""},"Number","M4A1zOtherEmploy4Outcome"]
["FNPI 1z.4v","M4A1zOtherEmploy4Accuracy",{"$f":"\"'='\" & MID(CELL(\"address\",INDIRECT(B466)),$I$3+1,100)","v":"'='Employment NPIs'!$H$27"},{"$f":" M4A1zOtherEmploy4Accuracy","v":""},"Number","M4A1zOtherEmploy4Accuracy"]
["FNPI 1z.5","M4A1zOtherEmploy5Name",{"$f":"\"'='\" & MID(CELL(\"address\",INDIRECT(B467)),$I$3+1,100)","v":"'='Employment NPIs'!$C$28"},{"$f":" IF(ISBLANK(M4A1zOtherEmploy5Name),\"\",M4A1zOtherEmploy5Name)","v":""},"Text","M4A1zOtherEmploy5Name",1000]
["FNPI_1z.5_I","M4A1zOtherEmploy5Part",{"$f":"\"'='\" & MID(CELL(\"address\",INDIRECT(B468)),$I$3+1,100)","v":"'='Employment NPIs'!$D$28"},{"$f":" M4A1zOtherEmploy5Part","v":0},"Number","M4A1zOtherEmploy5Part"]
["FNPI_1z.5_II","M4A1zOtherEmploy5Target",{"$f":"\"'='\" & MID(CELL(\"address\",INDIRECT(B469)),$I$3+1,100)","v":"'='Employment NPIs'!$E$28"},{"$f":" M4A1zOtherEmploy5Target","v":0},"Number","M4A1zOtherEmploy5Target"]
["FNPI_1z.5_III","M4A1zOtherEmploy5Results",{"$f":"\"'='\" & MID(CELL(\"address\",INDIRECT(B470)),$I$3+1,100)","v":"'='Employment NPIs'!$F$28"},{"$f":" M4A1zOtherEmploy5Results","v":0},"Number","M4A1zOtherEmploy5Results"]
["FNPI 1z.5iv","M4A1zOtherEmploy5Outcome",{"$f":"\"'='\" & MID(CELL(\"address\",INDIRECT(B471)),$I$3+1,100)","v":"'='Employment NPIs'!$G$28"},{"$f":" M4A1zOtherEmploy5Outcome","v":""},"Number","M4A1zOtherEmploy5Outcome"]
["FNPI 1z.5v","M4A1zOtherEmploy5Accuracy",{"$f":"\"'='\" & MID(CELL(\"address\",INDIRECT(B472)),$I$3+1,100)","v":"'='Employment NPIs'!$H$28"},{"$f":" M4A1zOtherEmploy5Accuracy","v":""},"Number","M4A1zOtherEmploy5Accuracy"]
["FNPI_Employ_Comments","M4A1Comments",{"$f":"\"'='\" & MID(CELL(\"address\",INDIRECT(B473)),$I$3+1,100)","v":"'='Employment NPIs'!$C$32"},{"$f":" M4A1Comments","v":0},"Memo","M4A1Comments",5000]
["FNPI_5a_I","M4A5aNutrSkillIncrPart",{"$f":"\"'='\" & MID(CELL(\"address\",INDIRECT(B474)),$I$3+1,100)","v":"'='Health NPIs'!$D$9"},{"$f":" M4A5aNutrSkillIncrPart","v":0},"Number","M4A5aNutrSkillIncrPart"]
["FNPI_5a_II","M4A5aNutrSkillIncrTarget",{"$f":"\"'='\" & MID(CELL(\"address\",INDIRECT(B475)),$I$3+1,100)","v":"'='Health NPIs'!$E$9"},{"$f":" M4A5aNutrSkillIncrTarget","v":0},"Number","M4A5aNutrSkillIncrTarget"]
["FNPI_5a_III","M4A5aNutrSkillIncrResults",{"$f":"\"'='\" & MID(CELL(\"address\",INDIRECT(B476)),$I$3+1,100)","v":"'='Health NPIs'!$F$9"},{"$f":" M4A5aNutrSkillIncrResults","v":0},"Number","M4A5aNutrSkillIncrResults"]
["FNPI_5a_iv","M4A5aNutrSkillIncrOutcome",{"$f":"\"'='\" & MID(CELL(\"address\",INDIRECT(B477)),$I$3+1,100)","v":"'='Health NPIs'!$G$9"},{"$f":" M4A5aNutrSkillIncrOutcome","v":""},"Number","M4A5aNutrSkillIncrOutcome"]
["FNPI_5a_v","M4A5aNutrSkillIncrAccuracy",{"$f":"\"'='\" & MID(CELL(\"address\",INDIRECT(B478)),$I$3+1,100)","v":"'='Health NPIs'!$H$9"},{"$f":" M4A5aNutrSkillIncrAccuracy","v":""},"Number","M4A5aNutrSkillIncrAccuracy"]
["FNPI_5b_I","M4A5bPhysHealthImprPart",{"$f":"\"'='\" & MID(CELL(\"address\",INDIRECT(B479)),$I$3+1,100)","v":"'='Health NPIs'!$D$10"},{"$f":" M4A5bPhysHealthImprPart","v":0},"Number","M4A5bPhysHealthImprPart"]
["FNPI_5b_II","M4A5bPhysHealthImprTarget",{"$f":"\"'='\" & MID(CELL(\"address\",INDIRECT(B480)),$I$3+1,100)","v":"'='Health NPIs'!$E$10"},{"$f":" M4A5bPhysHealthImprTarget","v":0},"Number","M4A5bPhysHealthImprTarget"]
["FNPI_5b_III","M4A5bPhysHealthImprResults",{"$f":"\"'='\" & MID(CELL(\"address\",INDIRECT(B481)),$I$3+1,100)","v":"'='Health NPIs'!$F$10"},{"$f":" M4A5bPhysHealthImprResults","v":0},"Number","M4A5bPhysHealthImprResults"]
["FNPI_5b_iv","M4A5bPhysHealthImprOutcome",{"$f":"\"'='\" & MID(CELL(\"address\",INDIRECT(B482)),$I$3+1,100)","v":"'='Health NPIs'!$G$10"},{"$f":" M4A5bPhysHealthImprOutcome","v":""},"Number","M4A5bPhysHealthImprOutcome"]
["FNPI_5b_v","M4A5bPhysHealthImprAccuracy",{"$f":"\"'='\" & MID(CELL(\"address\",INDIRECT(B483)),$I$3+1,100)","v":"'='Health NPIs'!$H$10"},{"$f":" M4A5bPhysHealthImprAccuracy","v":""},"Number","M4A5bPhysHealthImprAccuracy"]
["FNPI_5c_I","M4A5cMentHealthImprPart",{"$f":"\"'='\" & MID(CELL(\"address\",INDIRECT(B484)),$I$3+1,100)","v":"'='Health NPIs'!$D$11"},{"$f":" M4A5cMentHealthImprPart","v":4},"Number","M4A5cMentHealthImprPart"]
["FNPI_5c_II","M4A5cMentHealthImprTarget",{"$f":"\"'='\" & MID(CELL(\"address\",INDIRECT(B485)),$I$3+1,100)","v":"'='Health NPIs'!$E$11"},{"$f":" M4A5cMentHealthImprTarget","v":5},"Number","M4A5cMentHealthImprTarget"]
["FNPI_5c_III","M4A5cMentHealthImprResults",{"$f":"\"'='\" & MID(CELL(\"address\",INDIRECT(B486)),$I$3+1,100)","v":"'='Health NPIs'!$F$11"},{"$f":" M4A5cMentHealthImprResults","v":3},"Number","M4A5cMentHealthImprResults"]
["FNPI_5c_iv","M4A5cMentHealthImprOutcome",{"$f":"\"'='\" & MID(CELL(\"address\",INDIRECT(B487)),$I$3+1,100)","v":"'='Health NPIs'!$G$11"},{"$f":" M4A5cMentHealthImprOutcome","v":0.75},"Number","M4A5cMentHealthImprOutcome"]
["FNPI_5c_v","M4A5cMentHealthImprAccuracy",{"$f":"\"'='\" & MID(CELL(\"address\",INDIRECT(B488)),$I$3+1,100)","v":"'='Health NPIs'!$H$11"},{"$f":" M4A5cMentHealthImprAccuracy","v":0.6},"Number","M4A5cMentHealthImprAccuracy"]
["FNPI_5d_I","M4A5dAdultRoleSkillsImprPart",{"$f":"\"'='\" & MID(CELL(\"address\",INDIRECT(B489)),$I$3+1,100)","v":"'='Health NPIs'!$D$12"},{"$f":" M4A5dAdultRoleSkillsImprPart","v":0},"Number","M4A5dAdultRoleSkillsImprPart"]
["FNPI_5d_II","M4A5dAdultRoleSkillsImprTarget",{"$f":"\"'='\" & MID(CELL(\"address\",INDIRECT(B490)),$I$3+1,100)","v":"'='Health NPIs'!$E$12"},{"$f":" M4A5dAdultRoleSkillsImprTarget","v":0},"Number","M4A5dAdultRoleSkillsImprTarget"]
["FNPI_5d_III","M4A5dAdultRoleSkillsImprResults",{"$f":"\"'='\" & MID(CELL(\"address\",INDIRECT(B491)),$I$3+1,100)","v":"'='Health NPIs'!$F$12"},{"$f":" M4A5dAdultRoleSkillsImprResults","v":0},"Number","M4A5dAdultRoleSkillsImprResults"]
["FNPI_5d_iv","M4A5dAdultRoleSkillsImprOutcome",{"$f":"\"'='\" & MID(CELL(\"address\",INDIRECT(B492)),$I$3+1,100)","v":"'='Health NPIs'!$G$12"},{"$f":" M4A5dAdultRoleSkillsImprOutcome","v":""},"Number","M4A5dAdultRoleSkillsImprOutcome"]
["FNPI_5d_v","M4A5dAdultRoleSkillsImprAccuracy",{"$f":"\"'='\" & MID(CELL(\"address\",INDIRECT(B493)),$I$3+1,100)","v":"'='Health NPIs'!$H$12"},{"$f":" M4A5dAdultRoleSkillsImprAccuracy","v":""},"Number","M4A5dAdultRoleSkillsImprAccuracy"]
["FNPI_5e_I","M4A5eSensRespIncrPart",{"$f":"\"'='\" & MID(CELL(\"address\",INDIRECT(B494)),$I$3+1,100)","v":"'='Health NPIs'!$D$13"},{"$f":" M4A5eSensRespIncrPart","v":0},"Number","M4A5eSensRespIncrPart"]
["FNPI_5e_II","M4A5eSensRespIncrTarget",{"$f":"\"'='\" & MID(CELL(\"address\",INDIRECT(B495)),$I$3+1,100)","v":"'='Health NPIs'!$E$13"},{"$f":" M4A5eSensRespIncrTarget","v":0},"Number","M4A5eSensRespIncrTarget"]
["FNPI_5e_III","M4A5eSensRespIncrResults",{"$f":"\"'='\" & MID(CELL(\"address\",INDIRECT(B496)),$I$3+1,100)","v":"'='Health NPIs'!$F$13"},{"$f":" M4A5eSensRespIncrResults","v":0},"Number","M4A5eSensRespIncrResults"]
["FNPI_5e_iv","M4A5eSensRespIncrOutcome",{"$f":"\"'='\" & MID(CELL(\"address\",INDIRECT(B497)),$I$3+1,100)","v":"'='Health NPIs'!$G$13"},{"$f":" M4A5eSensRespIncrOutcome","v":""},"Number","M4A5eSensRespIncrOutcome"]
["FNPI_5e_v","M4A5eSensRespIncrAccuracy",{"$f":"\"'='\" & MID(CELL(\"address\",INDIRECT(B498)),$I$3+1,100)","v":"'='Health NPIs'!$H$13"},{"$f":" M4A5eSensRespIncrAccuracy","v":""},"Number","M4A5eSensRespIncrAccuracy"]
["FNPI_5f_I","M4A5fSensIndLivingPart",{"$f":"\"'='\" & MID(CELL(\"address\",INDIRECT(B499)),$I$3+1,100)","v":"'='Health NPIs'!$D$14"},{"$f":" M4A5fSensIndLivingPart","v":0},"Number","M4A5fSensIndLivingPart"]
["FNPI_5f_II","M4A5fSensIndLivingTarget",{"$f":"\"'='\" & MID(CELL(\"address\",INDIRECT(B500)),$I$3+1,100)","v":"'='Health NPIs'!$E$14"},{"$f":" M4A5fSensIndLivingTarget","v":0},"Number","M4A5fSensIndLivingTarget"]
["FNPI_5f_III","M4A5fSensIndLivingResults",{"$f":"\"'='\" & MID(CELL(\"address\",INDIRECT(B501)),$I$3+1,100)","v":"'='Health NPIs'!$F$14"},{"$f":" M4A5fSensIndLivingResults","v":0},"Number","M4A5fSensIndLivingResults"]
["FNPI_5f_iv","M4A5fSensIndLivingOutcome",{"$f":"\"'='\" & MID(CELL(\"address\",INDIRECT(B502)),$I$3+1,100)","v":"'='Health NPIs'!$G$14"},{"$f":" M4A5fSensIndLivingOutcome","v":""},"Number","M4A5fSensIndLivingOutcome"]
["FNPI_5f_v","M4A5fSensIndLivingAccuracy",{"$f":"\"'='\" & MID(CELL(\"address\",INDIRECT(B503)),$I$3+1,100)","v":"'='Health NPIs'!$H$14"},{"$f":" M4A5fSensIndLivingAccuracy","v":""},"Number","M4A5fSensIndLivingAccuracy"]
["FNPI_5g_I","M4A5gDisIndLivingPart",{"$f":"\"'='\" & MID(CELL(\"address\",INDIRECT(B504)),$I$3+1,100)","v":"'='Health NPIs'!$D$15"},{"$f":" M4A5gDisIndLivingPart","v":0},"Number","M4A5gDisIndLivingPart"]
["FNPI_5g_II","M4A5gDisIndLivingTarget",{"$f":"\"'='\" & MID(CELL(\"address\",INDIRECT(B505)),$I$3+1,100)","v":"'='Health NPIs'!$E$15"},{"$f":" M4A5gDisIndLivingTarget","v":0},"Number","M4A5gDisIndLivingTarget"]
["FNPI_5g_III","M4A5gDisIndLivingResults",{"$f":"\"'='\" & MID(CELL(\"address\",INDIRECT(B506)),$I$3+1,100)","v":"'='Health NPIs'!$F$15"},{"$f":" M4A5gDisIndLivingResults","v":0},"Number","M4A5gDisIndLivingResults"]
["FNPI_5g_iv","M4A5gDisIndLivingOutcome",{"$f":"\"'='\" & MID(CELL(\"address\",INDIRECT(B507)),$I$3+1,100)","v":"'='Health NPIs'!$G$15"},{"$f":" M4A5gDisIndLivingOutcome","v":""},"Number","M4A5gDisIndLivingOutcome"]
["FNPI_5g_v","M4A5gDisIndLivingAccuracy",{"$f":"\"'='\" & MID(CELL(\"address\",INDIRECT(B508)),$I$3+1,100)","v":"'='Health NPIs'!$H$15"},{"$f":" M4A5gDisIndLivingAccuracy","v":""},"Number","M4A5gDisIndLivingAccuracy"]
["FNPI_5h_I","M4A5hIllIndLivingPart",{"$f":"\"'='\" & MID(CELL(\"address\",INDIRECT(B509)),$I$3+1,100)","v":"'='Health NPIs'!$D$16"},{"$f":" M4A5hIllIndLivingPart","v":0},"Number","M4A5hIllIndLivingPart"]
["FNPI_5h_II","M4A5hIllIndLivingTarget",{"$f":"\"'='\" & MID(CELL(\"address\",INDIRECT(B510)),$I$3+1,100)","v":"'='Health NPIs'!$E$16"},{"$f":" M4A5hIllIndLivingTarget","v":0},"Number","M4A5hIllIndLivingTarget"]
["FNPI_5h_III","M4A5hIllIndLivingResults",{"$f":"\"'='\" & MID(CELL(\"address\",INDIRECT(B511)),$I$3+1,100)","v":"'='Health NPIs'!$F$16"},{"$f":" M4A5hIllIndLivingResults","v":0},"Number","M4A5hIllIndLivingResults"]
["FNPI_5h_iv","M4A5hIllIndLivingOutcome",{"$f":"\"'='\" & MID(CELL(\"address\",INDIRECT(B512)),$I$3+1,100)","v":"'='Health NPIs'!$G$16"},{"$f":" M4A5hIllIndLivingOutcome","v":""},"Number","M4A5hIllIndLivingOutcome"]
["FNPI_5h_v","M4A5hIllIndLivingAccuracy",{"$f":"\"'='\" & MID(CELL(\"address\",INDIRECT(B513)),$I$3+1,100)","v":"'='Health NPIs'!$H$16"},{"$f":" M4A5hIllIndLivingAccuracy","v":""},"Number","M4A5hIllIndLivingAccuracy"]
["FNPI_5i_I","M4A5iNoRecidEventPart",{"$f":"\"'='\" & MID(CELL(\"address\",INDIRECT(B514)),$I$3+1,100)","v":"'='Health NPIs'!$D$17"},{"$f":" M4A5iNoRecidEventPart","v":0},"Number","M4A5iNoRecidEventPart"]
["FNPI_5i_II","M4A5iNoRecidEventTarget",{"$f":"\"'='\" & MID(CELL(\"address\",INDIRECT(B515)),$I$3+1,100)","v":"'='Health NPIs'!$E$17"},{"$f":" M4A5iNoRecidEventTarget","v":0},"Number","M4A5iNoRecidEventTarget"]
["FNPI_5i_III","M4A5iNoRecidEventResults",{"$f":"\"'='\" & MID(CELL(\"address\",INDIRECT(B516)),$I$3+1,100)","v":"'='Health NPIs'!$F$17"},{"$f":" M4A5iNoRecidEventResults","v":0},"Number","M4A5iNoRecidEventResults"]
["FNPI_5i_iv","M4A5iNoRecidEventOutcome",{"$f":"\"'='\" & MID(CELL(\"address\",INDIRECT(B517)),$I$3+1,100)","v":"'='Health NPIs'!$G$17"},{"$f":" M4A5iNoRecidEventOutcome","v":""},"Number","M4A5iNoRecidEventOutcome"]
["FNPI_5i_v","M4A5iNoRecidEventAccuracy",{"$f":"\"'='\" & MID(CELL(\"address\",INDIRECT(B518)),$I$3+1,100)","v":"'='Health NPIs'!$H$17"},{"$f":" M4A5iNoRecidEventAccuracy","v":""},"Number","M4A5iNoRecidEventAccuracy"]
["FNPI 5i.1 Youth (ages 14-17)","M4A5i1NoRecidEventYouthPart",{"$f":"\"'='\" & MID(CELL(\"address\",INDIRECT(B519)),$I$3+1,100)","v":"'='Health NPIs'!$D$18"},{"$f":" M4A5i1NoRecidEventYouthPart","v":0},"Number","M4A5i1NoRecidEventYouthPart"]
["FNPI_5i.1_II","M4A5i1NoRecidEventYouthTarget",{"$f":"\"'='\" & MID(CELL(\"address\",INDIRECT(B520)),$I$3+1,100)","v":"'='Health NPIs'!$E$18"},{"$f":" M4A5i1NoRecidEventYouthTarget","v":0},"Number","M4A5i1NoRecidEventYouthTarget"]
["FNPI_5i.1_III","M4A5i1NoRecidEventYouthResults",{"$f":"\"'='\" & MID(CELL(\"address\",INDIRECT(B521)),$I$3+1,100)","v":"'='Health NPIs'!$F$18"},{"$f":" M4A5i1NoRecidEventYouthResults","v":0},"Number","M4A5i1NoRecidEventYouthResults"]
["FNPI_5i.1_iv","M4A5i1NoRecidEventYouthOutcome",{"$f":"\"'='\" & MID(CELL(\"address\",INDIRECT(B522)),$I$3+1,100)","v":"'='Health NPIs'!$G$18"},{"$f":" M4A5i1NoRecidEventYouthOutcome","v":""},"Number","M4A5i1NoRecidEventYouthOutcome"]
["FNPI_5i.1_v","M4A5i1NoRecidEventYouthAccuracy",{"$f":"\"'='\" & MID(CELL(\"address\",INDIRECT(B523)),$I$3+1,100)","v":"'='Health NPIs'!$H$18"},{"$f":" M4A5i1NoRecidEventYouthAccuracy","v":""},"Number","M4A5i1NoRecidEventYouthAccuracy"]
["FNPI 5i.2 Adults (ages 18+)","M4A5i2NoRecidEventAdultPart",{"$f":"\"'='\" & MID(CELL(\"address\",INDIRECT(B524)),$I$3+1,100)","v":"'='Health NPIs'!$D$19"},{"$f":" M4A5i2NoRecidEventAdultPart","v":0},"Number","M4A5i2NoRecidEventAdultPart"]
["FNPI_5i.2_II","M4A5i2NoRecidEventAdultTarget",{"$f":"\"'='\" & MID(CELL(\"address\",INDIRECT(B525)),$I$3+1,100)","v":"'='Health NPIs'!$E$19"},{"$f":" M4A5i2NoRecidEventAdultTarget","v":0},"Number","M4A5i2NoRecidEventAdultTarget"]
["FNPI_5i.2_III","M4A5i2NoRecidEventAdultResults",{"$f":"\"'='\" & MID(CELL(\"address\",INDIRECT(B526)),$I$3+1,100)","v":"'='Health NPIs'!$F$19"},{"$f":" M4A5i2NoRecidEventAdultResults","v":0},"Number","M4A5i2NoRecidEventAdultResults"]
["FNPI_5i.2_iv","M4A5i2NoRecidEventAdultOutcome",{"$f":"\"'='\" & MID(CELL(\"address\",INDIRECT(B527)),$I$3+1,100)","v":"'='Health NPIs'!$G$19"},{"$f":" M4A5i2NoRecidEventAdultOutcome","v":""},"Number","M4A5i2NoRecidEventAdultOutcome"]
["FNPI_5i.2_v","M4A5i2NoRecidEventAdultAccuracy",{"$f":"\"'='\" & MID(CELL(\"address\",INDIRECT(B528)),$I$3+1,100)","v":"'='Health NPIs'!$H$19"},{"$f":" M4A5i2NoRecidEventAdultAccuracy","v":""},"Number","M4A5i2NoRecidEventAdultAccuracy"]
["FNPI 5z.1","M4A5zOtherHealth1Name",{"$f":"\"'='\" & MID(CELL(\"address\",INDIRECT(B529)),$I$3+1,100)","v":"'='Health NPIs'!$C$22"},{"$f":" IF(ISBLANK(M4A5zOtherHealth1Name),\"\",M4A5zOtherHealth1Name)","v":"Number of individuals who reported a better sense of food security"},"Text","M4A5zOtherHealth1Name",1000]
["FNPI_5z.1_I","M4A5zOtherHealth1Part",{"$f":"\"'='\" & MID(CELL(\"address\",INDIRECT(B530)),$I$3+1,100)","v":"'='Health NPIs'!$D$22"},{"$f":" M4A5zOtherHealth1Part","v":2265},"Number","M4A5zOtherHealth1Part"]
["FNPI_5z.1_II","M4A5zOtherHealth1Target",{"$f":"\"'='\" & MID(CELL(\"address\",INDIRECT(B531)),$I$3+1,100)","v":"'='Health NPIs'!$E$22"},{"$f":" M4A5zOtherHealth1Target","v":2450},"Number","M4A5zOtherHealth1Target"]
["FNPI_5z.1_III","M4A5zOtherHealth1Results",{"$f":"\"'='\" & MID(CELL(\"address\",INDIRECT(B532)),$I$3+1,100)","v":"'='Health NPIs'!$F$22"},{"$f":" M4A5zOtherHealth1Results","v":1989},"Number","M4A5zOtherHealth1Results"]
["FNPI 5z.1iv","M4A5zOtherHealth1Outcome",{"$f":"\"'='\" & MID(CELL(\"address\",INDIRECT(B533)),$I$3+1,100)","v":"'='Health NPIs'!$G$22"},{"$f":" M4A5zOtherHealth1Outcome","v":0.87814569536423837},"Number","M4A5zOtherHealth1Outcome"]
["FNPI 5z.1v","M4A5zOtherHealth1Accuracy",{"$f":"\"'='\" & MID(CELL(\"address\",INDIRECT(B534)),$I$3+1,100)","v":"'='Health NPIs'!$H$22"},{"$f":" M4A5zOtherHealth1Accuracy","v":0.81183673469387752},"Number","M4A5zOtherHealth1Accuracy"]
["FNPI 5z.2","M4A5zOtherHealth2Name",{"$f":"\"'='\" & MID(CELL(\"address\",INDIRECT(B535)),$I$3+1,100)","v":"'='Health NPIs'!$C$23"},{"$f":" IF(ISBLANK(M4A5zOtherHealth2Name),\"\",M4A5zOtherHealth2Name)","v":""},"Text","M4A5zOtherHealth2Name",1000]
["FNPI_5z.2_I","M4A5zOtherHealth2Part",{"$f":"\"'='\" & MID(CELL(\"address\",INDIRECT(B536)),$I$3+1,100)","v":"'='Health NPIs'!$D$23"},{"$f":" M4A5zOtherHealth2Part","v":0},"Number","M4A5zOtherHealth2Part"]
["FNPI_5z.2_II","M4A5zOtherHealth2Target",{"$f":"\"'='\" & MID(CELL(\"address\",INDIRECT(B537)),$I$3+1,100)","v":"'='Health NPIs'!$E$23"},{"$f":" M4A5zOtherHealth2Target","v":0},"Number","M4A5zOtherHealth2Target"]
["FNPI_5z.2_III","M4A5zOtherHealth2Results",{"$f":"\"'='\" & MID(CELL(\"address\",INDIRECT(B538)),$I$3+1,100)","v":"'='Health NPIs'!$F$23"},{"$f":" M4A5zOtherHealth2Results","v":0},"Number","M4A5zOtherHealth2Results"]
["FNPI 5z.2iv","M4A5zOtherHealth2Outcome",{"$f":"\"'='\" & MID(CELL(\"address\",INDIRECT(B539)),$I$3+1,100)","v":"'='Health NPIs'!$G$23"},{"$f":" M4A5zOtherHealth2Outcome","v":""},"Number","M4A5zOtherHealth2Outcome"]
["FNPI 5z.2v","M4A5zOtherHealth2Accuracy",{"$f":"\"'='\" & MID(CELL(\"address\",INDIRECT(B540)),$I$3+1,100)","v":"'='Health NPIs'!$H$23"},{"$f":" M4A5zOtherHealth2Accuracy","v":""},"Number","M4A5zOtherHealth2Accuracy"]
["FNPI 5z.3","M4A5zOtherHealth3Name",{"$f":"\"'='\" & MID(CELL(\"address\",INDIRECT(B541)),$I$3+1,100)","v":"'='Health NPIs'!$C$24"},{"$f":" IF(ISBLANK(M4A5zOtherHealth3Name),\"\",M4A5zOtherHealth3Name)","v":""},"Text","M4A5zOtherHealth3Name",1000]
["FNPI_5z.3_I","M4A5zOtherHealth3Part",{"$f":"\"'='\" & MID(CELL(\"address\",INDIRECT(B542)),$I$3+1,100)","v":"'='Health NPIs'!$D$24"},{"$f":" M4A5zOtherHealth3Part","v":0},"Number","M4A5zOtherHealth3Part"]
["FNPI_5z.3_II","M4A5zOtherHealth3Target",{"$f":"\"'='\" & MID(CELL(\"address\",INDIRECT(B543)),$I$3+1,100)","v":"'='Health NPIs'!$E$24"},{"$f":" M4A5zOtherHealth3Target","v":0},"Number","M4A5zOtherHealth3Target"]
["FNPI_5z.3_III","M4A5zOtherHealth3Results",{"$f":"\"'='\" & MID(CELL(\"address\",INDIRECT(B544)),$I$3+1,100)","v":"'='Health NPIs'!$F$24"},{"$f":" M4A5zOtherHealth3Results","v":0},"Number","M4A5zOtherHealth3Results"]
["FNPI 5z.3iv","M4A5zOtherHealth3Outcome",{"$f":"\"'='\" & MID(CELL(\"address\",INDIRECT(B545)),$I$3+1,100)","v":"'='Health NPIs'!$G$24"},{"$f":" M4A5zOtherHealth3Outcome","v":""},"Number","M4A5zOtherHealth3Outcome"]
["FNPI 5z.3v","M4A5zOtherHealth3Accuracy",{"$f":"\"'='\" & MID(CELL(\"address\",INDIRECT(B546)),$I$3+1,100)","v":"'='Health NPIs'!$H$24"},{"$f":" M4A5zOtherHealth3Accuracy","v":""},"Number","M4A5zOtherHealth3Accuracy"]
["FNPI 5z.4","M4A5zOtherHealth4Name",{"$f":"\"'='\" & MID(CELL(\"address\",INDIRECT(B547)),$I$3+1,100)","v":"'='Health NPIs'!$C$25"},{"$f":" IF(ISBLANK(M4A5zOtherHealth4Name),\"\",M4A5zOtherHealth4Name)","v":""},"Text","M4A5zOtherHealth4Name",1000]
["FNPI_5z.4_I","M4A5zOtherHealth4Part",{"$f":"\"'='\" & MID(CELL(\"address\",INDIRECT(B548)),$I$3+1,100)","v":"'='Health NPIs'!$D$25"},{"$f":" M4A5zOtherHealth4Part","v":0},"Number","M4A5zOtherHealth4Part"]
["FNPI_5z.4_II","M4A5zOtherHealth4Target",{"$f":"\"'='\" & MID(CELL(\"address\",INDIRECT(B549)),$I$3+1,100)","v":"'='Health NPIs'!$E$25"},{"$f":" M4A5zOtherHealth4Target","v":0},"Number","M4A5zOtherHealth4Target"]
["FNPI_5z.4_III","M4A5zOtherHealth4Results",{"$f":"\"'='\" & MID(CELL(\"address\",INDIRECT(B550)),$I$3+1,100)","v":"'='Health NPIs'!$F$25"},{"$f":" M4A5zOtherHealth4Results","v":0},"Number","M4A5zOtherHealth4Results"]
["FNPI 5z.4iv","M4A5zOtherHealth4Outcome",{"$f":"\"'='\" & MID(CELL(\"address\",INDIRECT(B551)),$I$3+1,100)","v":"'='Health NPIs'!$G$25"},{"$f":" M4A5zOtherHealth4Outcome","v":""},"Number","M4A5zOtherHealth4Outcome"]
["FNPI 5z.4v","M4A5zOtherHealth4Accuracy",{"$f":"\"'='\" & MID(CELL(\"address\",INDIRECT(B552)),$I$3+1,100)","v":"'='Health NPIs'!$H$25"},{"$f":" M4A5zOtherHealth4Accuracy","v":""},"Number","M4A5zOtherHealth4Accuracy"]
["FNPI 5z.5","M4A5zOtherHealth5Name",{"$f":"\"'='\" & MID(CELL(\"address\",INDIRECT(B553)),$I$3+1,100)","v":"'='Health NPIs'!$C$26"},{"$f":" IF(ISBLANK(M4A5zOtherHealth5Name),\"\",M4A5zOtherHealth5Name)","v":""},"Text","M4A5zOtherHealth5Name",1000]
["FNPI_5z.5_I","M4A5zOtherHealth5Part",{"$f":"\"'='\" & MID(CELL(\"address\",INDIRECT(B554)),$I$3+1,100)","v":"'='Health NPIs'!$D$26"},{"$f":" M4A5zOtherHealth5Part","v":0},"Number","M4A5zOtherHealth5Part"]
["FNPI_5z.5_II","M4A5zOtherHealth5Target",{"$f":"\"'='\" & MID(CELL(\"address\",INDIRECT(B555)),$I$3+1,100)","v":"'='Health NPIs'!$E$26"},{"$f":" M4A5zOtherHealth5Target","v":0},"Number","M4A5zOtherHealth5Target"]
["FNPI_5z.5_III","M4A5zOtherHealth5Results",{"$f":"\"'='\" & MID(CELL(\"address\",INDIRECT(B556)),$I$3+1,100)","v":"'='Health NPIs'!$F$26"},{"$f":" M4A5zOtherHealth5Results","v":0},"Number","M4A5zOtherHealth5Results"]
["FNPI 5z.5iv","M4A5zOtherHealth5Outcome",{"$f":"\"'='\" & MID(CELL(\"address\",INDIRECT(B557)),$I$3+1,100)","v":"'='Health NPIs'!$G$26"},{"$f":" M4A5zOtherHealth5Outcome","v":""},"Number","M4A5zOtherHealth5Outcome"]
["FNPI 5z.5v","M4A5zOtherHealth5Accuracy",{"$f":"\"'='\" & MID(CELL(\"address\",INDIRECT(B558)),$I$3+1,100)","v":"'='Health NPIs'!$H$26"},{"$f":" M4A5zOtherHealth5Accuracy","v":""},"Number","M4A5zOtherHealth5Accuracy"]
["FNPI_Health_Comments","M4A5Comments",{"$f":"\"'='\" & MID(CELL(\"address\",INDIRECT(B559)),$I$3+1,100)","v":"'='Health NPIs'!$C$29"},{"$f":" M4A5Comments","v":0},"Memo","M4A5Comments",5000]
["FNPI_4a_I","M4A4aTempShelterPart",{"$f":"\"'='\" & MID(CELL(\"address\",INDIRECT(B560)),$I$3+1,100)","v":"'='Housing NPIs'!$D$9"},{"$f":" M4A4aTempShelterPart","v":40},"Number","M4A4aTempShelterPart"]
["FNPI_4a_II","M4A4aTempShelterTarget",{"$f":"\"'='\" & MID(CELL(\"address\",INDIRECT(B561)),$I$3+1,100)","v":"'='Housing NPIs'!$E$9"},{"$f":" M4A4aTempShelterTarget","v":47},"Number","M4A4aTempShelterTarget"]
["FNPI_4a_III","M4A4aTempShelterResults",{"$f":"\"'='\" & MID(CELL(\"address\",INDIRECT(B562)),$I$3+1,100)","v":"'='Housing NPIs'!$F$9"},{"$f":" M4A4aTempShelterResults","v":33},"Number","M4A4aTempShelterResults"]
["FNPI_4a_iv","M4A4aTempShelterOutcome",{"$f":"\"'='\" & MID(CELL(\"address\",INDIRECT(B563)),$I$3+1,100)","v":"'='Housing NPIs'!$G$9"},{"$f":" M4A4aTempShelterOutcome","v":0.82499999999999996},"Number","M4A4aTempShelterOutcome"]
["FNPI_4a_v","M4A4aTempShelterAccuracy",{"$f":"\"'='\" & MID(CELL(\"address\",INDIRECT(B564)),$I$3+1,100)","v":"'='Housing NPIs'!$H$9"},{"$f":" M4A4aTempShelterAccuracy","v":0.7021276595744681},"Number","M4A4aTempShelterAccuracy"]
["FNPI_4b_I","M4A4bAffordHousingPart",{"$f":"\"'='\" & MID(CELL(\"address\",INDIRECT(B565)),$I$3+1,100)","v":"'='Housing NPIs'!$D$10"},{"$f":" M4A4bAffordHousingPart","v":89},"Number","M4A4bAffordHousingPart"]
["FNPI_4b_II","M4A4bAffordHousingTarget",{"$f":"\"'='\" & MID(CELL(\"address\",INDIRECT(B566)),$I$3+1,100)","v":"'='Housing NPIs'!$E$10"},{"$f":" M4A4bAffordHousingTarget","v":120},"Number","M4A4bAffordHousingTarget"]
["FNPI_4b_III","M4A4bAffordHousingResults",{"$f":"\"'='\" & MID(CELL(\"address\",INDIRECT(B567)),$I$3+1,100)","v":"'='Housing NPIs'!$F$10"},{"$f":" M4A4bAffordHousingResults","v":78},"Number","M4A4bAffordHousingResults"]
["FNPI_4b_iv","M4A4bAffordHousingOutcome",{"$f":"\"'='\" & MID(CELL(\"address\",INDIRECT(B568)),$I$3+1,100)","v":"'='Housing NPIs'!$G$10"},{"$f":" M4A4bAffordHousingOutcome","v":0.8764044943820225},"Number","M4A4bAffordHousingOutcome"]
["FNPI_4b_v","M4A4bAffordHousingAccuracy",{"$f":"\"'='\" & MID(CELL(\"address\",INDIRECT(B569)),$I$3+1,100)","v":"'='Housing NPIs'!$H$10"},{"$f":" M4A4bAffordHousingAccuracy","v":0.65},"Number","M4A4bAffordHousingAccuracy"]
["FNPI_4c_I","M4A4cAffordHousing90Part",{"$f":"\"'='\" & MID(CELL(\"address\",INDIRECT(B570)),$I$3+1,100)","v":"'='Housing NPIs'!$D$11"},{"$f":" M4A4cAffordHousing90Part","v":69},"Number","M4A4cAffordHousing90Part"]
["FNPI_4c_II","M4A4cAffordHousing90Target",{"$f":"\"'='\" & MID(CELL(\"address\",INDIRECT(B571)),$I$3+1,100)","v":"'='Housing NPIs'!$E$11"},{"$f":" M4A4cAffordHousing90Target","v":82},"Number","M4A4cAffordHousing90Target"]
["FNPI_4c_III","M4A4cAffordHousing90Results",{"$f":"\"'='\" & MID(CELL(\"address\",INDIRECT(B572)),$I$3+1,100)","v":"'='Housing NPIs'!$F$11"},{"$f":" M4A4cAffordHousing90Results","v":60},"Number","M4A4cAffordHousing90Results"]
["FNPI_4c_iv","M4A4cAffordHousing90Outcome",{"$f":"\"'='\" & MID(CELL(\"address\",INDIRECT(B573)),$I$3+1,100)","v":"'='Housing NPIs'!$G$11"},{"$f":" M4A4cAffordHousing90Outcome","v":0.86956521739130432},"Number","M4A4cAffordHousing90Outcome"]
["FNPI_4c_v","M4A4cAffordHousing90Accuracy",{"$f":"\"'='\" & MID(CELL(\"address\",INDIRECT(B574)),$I$3+1,100)","v":"'='Housing NPIs'!$H$11"},{"$f":" M4A4cAffordHousing90Accuracy","v":0.73170731707317072},"Number","M4A4cAffordHousing90Accuracy"]
["FNPI_4d_I","M4A4dAffordHousing180Part",{"$f":"\"'='\" & MID(CELL(\"address\",INDIRECT(B575)),$I$3+1,100)","v":"'='Housing NPIs'!$D$12"},{"$f":" M4A4dAffordHousing180Part","v":78},"Number","M4A4dAffordHousing180Part"]
["FNPI_4d_II","M4A4dAffordHousing180Target",{"$f":"\"'='\" & MID(CELL(\"address\",INDIRECT(B576)),$I$3+1,100)","v":"'='Housing NPIs'!$E$12"},{"$f":" M4A4dAffordHousing180Target","v":95},"Number","M4A4dAffordHousing180Target"]
["FNPI_4d_III","M4A4dAffordHousing180Results",{"$f":"\"'='\" & MID(CELL(\"address\",INDIRECT(B577)),$I$3+1,100)","v":"'='Housing NPIs'!$F$12"},{"$f":" M4A4dAffordHousing180Results","v":65},"Number","M4A4dAffordHousing180Results"]
["FNPI_4d_iv","M4A4dAffordHousing180Outcome",{"$f":"\"'='\" & MID(CELL(\"address\",INDIRECT(B578)),$I$3+1,100)","v":"'='Housing NPIs'!$G$12"},{"$f":" M4A4dAffordHousing180Outcome","v":0.83333333333333337},"Number","M4A4dAffordHousing180Outcome"]
["FNPI_4d_v","M4A4dAffordHousing180Accuracy",{"$f":"\"'='\" & MID(CELL(\"address\",INDIRECT(B579)),$I$3+1,100)","v":"'='Housing NPIs'!$H$12"},{"$f":" M4A4dAffordHousing180Accuracy","v":0.68421052631578949},"Number","M4A4dAffordHousing180Accuracy"]
["FNPI_4e_I","M4A4eAvoidEvictionPart",{"$f":"\"'='\" & MID(CELL(\"address\",INDIRECT(B580)),$I$3+1,100)","v":"'='Housing NPIs'!$D$13"},{"$f":" M4A4eAvoidEvictionPart","v":127},"Number","M4A4eAvoidEvictionPart"]
["FNPI_4e_II","M4A4eAvoidEvictionTarget",{"$f":"\"'='\" & MID(CELL(\"address\",INDIRECT(B581)),$I$3+1,100)","v":"'='Housing NPIs'!$E$13"},{"$f":" M4A4eAvoidEvictionTarget","v":152},"Number","M4A4eAvoidEvictionTarget"]
["FNPI_4e_III","M4A4eAvoidEvictionResults",{"$f":"\"'='\" & MID(CELL(\"address\",INDIRECT(B582)),$I$3+1,100)","v":"'='Housing NPIs'!$F$13"},{"$f":" M4A4eAvoidEvictionResults","v":109},"Number","M4A4eAvoidEvictionResults"]
["FNPI_4e_iv","M4A4eAvoidEvictionOutcome",{"$f":"\"'='\" & MID(CELL(\"address\",INDIRECT(B583)),$I$3+1,100)","v":"'='Housing NPIs'!$G$13"},{"$f":" M4A4eAvoidEvictionOutcome","v":0.8582677165354331},"Number","M4A4eAvoidEvictionOutcome"]
["FNPI_4e_v","M4A4eAvoidEvictionAccuracy",{"$f":"\"'='\" & MID(CELL(\"address\",INDIRECT(B584)),$I$3+1,100)","v":"'='Housing NPIs'!$H$13"},{"$f":" M4A4eAvoidEvictionAccuracy","v":0.71710526315789469},"Number","M4A4eAvoidEvictionAccuracy"]
["FNPI_4f_I","M4A4fAvoidForeclosePart",{"$f":"\"'='\" & MID(CELL(\"address\",INDIRECT(B585)),$I$3+1,100)","v":"'='Housing NPIs'!$D$14"},{"$f":" M4A4fAvoidForeclosePart","v":18},"Number","M4A4fAvoidForeclosePart"]
["FNPI_4f_II","M4A4fAvoidForecloseTarget",{"$f":"\"'='\" & MID(CELL(\"address\",INDIRECT(B586)),$I$3+1,100)","v":"'='Housing NPIs'!$E$14"},{"$f":" M4A4fAvoidForecloseTarget","v":20},"Number","M4A4fAvoidForecloseTarget"]
["FNPI_4f_III","M4A4fAvoidForecloseResults",{"$f":"\"'='\" & MID(CELL(\"address\",INDIRECT(B587)),$I$3+1,100)","v":"'='Housing NPIs'!$F$14"},{"$f":" M4A4fAvoidForecloseResults","v":15},"Number","M4A4fAvoidForecloseResults"]
["FNPI_4f_iv","M4A4fAvoidForecloseOutcome",{"$f":"\"'='\" & MID(CELL(\"address\",INDIRECT(B588)),$I$3+1,100)","v":"'='Housing NPIs'!$G$14"},{"$f":" M4A4fAvoidForecloseOutcome","v":0.83333333333333337},"Number","M4A4fAvoidForecloseOutcome"]
["FNPI_4f_v","M4A4fAvoidForecloseAccuracy",{"$f":"\"'='\" & MID(CELL(\"address\",INDIRECT(B589)),$I$3+1,100)","v":"'='Housing NPIs'!$H$14"},{"$f":" M4A4fAvoidForecloseAccuracy","v":0.75},"Number","M4A4fAvoidForecloseAccuracy"]
["FNPI_4g_I","M4A4gHealthSafeImprPart",{"$f":"\"'='\" & MID(CELL(\"address\",INDIRECT(B590)),$I$3+1,100)","v":"'='Housing NPIs'!$D$15"},{"$f":" M4A4gHealthSafeImprPart","v":7},"Number","M4A4gHealthSafeImprPart"]
["FNPI_4g_II","M4A4gHealthSafeImprTarget",{"$f":"\"'='\" & MID(CELL(\"address\",INDIRECT(B591)),$I$3+1,100)","v":"'='Housing NPIs'!$E$15"},{"$f":" M4A4gHealthSafeImprTarget","v":9},"Number","M4A4gHealthSafeImprTarget"]
["FNPI_4g_III","M4A4gHealthSafeImprResults",{"$f":"\"'='\" & MID(CELL(\"address\",INDIRECT(B592)),$I$3+1,100)","v":"'='Housing NPIs'!$F$15"},{"$f":" M4A4gHealthSafeImprResults","v":5},"Number","M4A4gHealthSafeImprResults"]
["FNPI_4g_iv","M4A4gHealthSafeImprOutcome",{"$f":"\"'='\" & MID(CELL(\"address\",INDIRECT(B593)),$I$3+1,100)","v":"'='Housing NPIs'!$G$15"},{"$f":" M4A4gHealthSafeImprOutcome","v":0.7142857142857143},"Number","M4A4gHealthSafeImprOutcome"]
["FNPI_4g_v","M4A4gHealthSafeImprAccuracy",{"$f":"\"'='\" & MID(CELL(\"address\",INDIRECT(B594)),$I$3+1,100)","v":"'='Housing NPIs'!$H$15"},{"$f":" M4A4gHealthSafeImprAccuracy","v":0.55555555555555558},"Number","M4A4gHealthSafeImprAccuracy"]
["FNPI_4h_I","M4A4hEnergyEffImprPart",{"$f":"\"'='\" & MID(CELL(\"address\",INDIRECT(B595)),$I$3+1,100)","v":"'='Housing NPIs'!$D$16"},{"$f":" M4A4hEnergyEffImprPart","v":68},"Number","M4A4hEnergyEffImprPart"]
["FNPI_4h_II","M4A4hEnergyEffImprTarget",{"$f":"\"'='\" & MID(CELL(\"address\",INDIRECT(B596)),$I$3+1,100)","v":"'='Housing NPIs'!$E$16"},{"$f":" M4A4hEnergyEffImprTarget","v":89},"Number","M4A4hEnergyEffImprTarget"]
["FNPI_4h_III","M4A4hEnergyEffImprResults",{"$f":"\"'='\" & MID(CELL(\"address\",INDIRECT(B597)),$I$3+1,100)","v":"'='Housing NPIs'!$F$16"},{"$f":" M4A4hEnergyEffImprResults","v":57},"Number","M4A4hEnergyEffImprResults"]
["FNPI_4h_iv","M4A4hEnergyEffImprOutcome",{"$f":"\"'='\" & MID(CELL(\"address\",INDIRECT(B598)),$I$3+1,100)","v":"'='Housing NPIs'!$G$16"},{"$f":" M4A4hEnergyEffImprOutcome","v":0.83823529411764708},"Number","M4A4hEnergyEffImprOutcome"]
["FNPI_4h_v","M4A4hEnergyEffImprAccuracy",{"$f":"\"'='\" & MID(CELL(\"address\",INDIRECT(B599)),$I$3+1,100)","v":"'='Housing NPIs'!$H$16"},{"$f":" M4A4hEnergyEffImprAccuracy","v":0.6404494382022472},"Number","M4A4hEnergyEffImprAccuracy"]
["FNPI 4z.1","M4A4zOtherHouse1Name",{"$f":"\"'='\" & MID(CELL(\"address\",INDIRECT(B600)),$I$3+1,100)","v":"'='Housing NPIs'!$C$19"},{"$f":" IF(ISBLANK(M4A4zOtherHouse1Name),\"\",M4A4zOtherHouse1Name)","v":""},"Text","M4A4zOtherHouse1Name",1000]
["FNPI_4z.1_I","M4A4zOtherHouse1Part",{"$f":"\"'='\" & MID(CELL(\"address\",INDIRECT(B601)),$I$3+1,100)","v":"'='Housing NPIs'!$D$19"},{"$f":" M4A4zOtherHouse1Part","v":0},"Number","M4A4zOtherHouse1Part"]
["FNPI_4z.1_II","M4A4zOtherHouse1Target",{"$f":"\"'='\" & MID(CELL(\"address\",INDIRECT(B602)),$I$3+1,100)","v":"'='Housing NPIs'!$E$19"},{"$f":" M4A4zOtherHouse1Target","v":0},"Number","M4A4zOtherHouse1Target"]
["FNPI_4z.1_III","M4A4zOtherHouse1Results",{"$f":"\"'='\" & MID(CELL(\"address\",INDIRECT(B603)),$I$3+1,100)","v":"'='Housing NPIs'!$F$19"},{"$f":" M4A4zOtherHouse1Results","v":0},"Number","M4A4zOtherHouse1Results"]
["FNPI 4z.1iv","M4A4zOtherHouse1Outcome",{"$f":"\"'='\" & MID(CELL(\"address\",INDIRECT(B604)),$I$3+1,100)","v":"'='Housing NPIs'!$G$19"},{"$f":" M4A4zOtherHouse1Outcome","v":""},"Number","M4A4zOtherHouse1Outcome"]
["FNPI 4z.1v","M4A4zOtherHouse1Accuracy",{"$f":"\"'='\" & MID(CELL(\"address\",INDIRECT(B605)),$I$3+1,100)","v":"'='Housing NPIs'!$H$19"},{"$f":" M4A4zOtherHouse1Accuracy","v":""},"Number","M4A4zOtherHouse1Accuracy"]
["FNPI 4z.2","M4A4zOtherHouse2Name",{"$f":"\"'='\" & MID(CELL(\"address\",INDIRECT(B606)),$I$3+1,100)","v":"'='Housing NPIs'!$C$20"},{"$f":" IF(ISBLANK(M4A4zOtherHouse2Name),\"\",M4A4zOtherHouse2Name)","v":"Number of individuals who avoided a utility shut-off"},"Text","M4A4zOtherHouse2Name",1000]
["FNPI_4z.2_I","M4A4zOtherHouse2Part",{"$f":"\"'='\" & MID(CELL(\"address\",INDIRECT(B607)),$I$3+1,100)","v":"'='Housing NPIs'!$D$20"},{"$f":" M4A4zOtherHouse2Part","v":290},"Number","M4A4zOtherHouse2Part"]
["FNPI_4z.2_II","M4A4zOtherHouse2Target",{"$f":"\"'='\" & MID(CELL(\"address\",INDIRECT(B608)),$I$3+1,100)","v":"'='Housing NPIs'!$E$20"},{"$f":" M4A4zOtherHouse2Target","v":331},"Number","M4A4zOtherHouse2Target"]
["FNPI_4z.2_III","M4A4zOtherHouse2Results",{"$f":"\"'='\" & MID(CELL(\"address\",INDIRECT(B609)),$I$3+1,100)","v":"'='Housing NPIs'!$F$20"},{"$f":" M4A4zOtherHouse2Results","v":246},"Number","M4A4zOtherHouse2Results"]
["FNPI 4z.2iv","M4A4zOtherHouse2Outcome",{"$f":"\"'='\" & MID(CELL(\"address\",INDIRECT(B610)),$I$3+1,100)","v":"'='Housing NPIs'!$G$20"},{"$f":" M4A4zOtherHouse2Outcome","v":0.84827586206896555},"Number","M4A4zOtherHouse2Outcome"]
["FNPI 4z.2v","M4A4zOtherHouse2Accuracy",{"$f":"\"'='\" & MID(CELL(\"address\",INDIRECT(B611)),$I$3+1,100)","v":"'='Housing NPIs'!$H$20"},{"$f":" M4A4zOtherHouse2Accuracy","v":0.74320241691842903},"Number","M4A4zOtherHouse2Accuracy"]
["FNPI 4z.3","M4A4zOtherHouse3Name",{"$f":"\"'='\" & MID(CELL(\"address\",INDIRECT(B612)),$I$3+1,100)","v":"'='Housing NPIs'!$C$21"},{"$f":" IF(ISBLANK(M4A4zOtherHouse3Name),\"\",M4A4zOtherHouse3Name)","v":"Number of individuals who obtained utilities"},"Text","M4A4zOtherHouse3Name",1000]
["FNPI_4z.3_I","M4A4zOtherHouse3Part",{"$f":"\"'='\" & MID(CELL(\"address\",INDIRECT(B613)),$I$3+1,100)","v":"'='Housing NPIs'!$D$21"},{"$f":" M4A4zOtherHouse3Part","v":28},"Number","M4A4zOtherHouse3Part"]
["FNPI_4z.3_II","M4A4zOtherHouse3Target",{"$f":"\"'='\" & MID(CELL(\"address\",INDIRECT(B614)),$I$3+1,100)","v":"'='Housing NPIs'!$E$21"},{"$f":" M4A4zOtherHouse3Target","v":36},"Number","M4A4zOtherHouse3Target"]
["FNPI_4z.3_III","M4A4zOtherHouse3Results",{"$f":"\"'='\" & MID(CELL(\"address\",INDIRECT(B615)),$I$3+1,100)","v":"'='Housing NPIs'!$F$21"},{"$f":" M4A4zOtherHouse3Results","v":24},"Number","M4A4zOtherHouse3Results"]
["FNPI 4z.3iv","M4A4zOtherHouse3Outcome",{"$f":"\"'='\" & MID(CELL(\"address\",INDIRECT(B616)),$I$3+1,100)","v":"'='Housing NPIs'!$G$21"},{"$f":" M4A4zOtherHouse3Outcome","v":0.8571428571428571},"Number","M4A4zOtherHouse3Outcome"]
["FNPI 4z.3v","M4A4zOtherHouse3Accuracy",{"$f":"\"'='\" & MID(CELL(\"address\",INDIRECT(B617)),$I$3+1,100)","v":"'='Housing NPIs'!$H$21"},{"$f":" M4A4zOtherHouse3Accuracy","v":0.66666666666666663},"Number","M4A4zOtherHouse3Accuracy"]
["FNPI 4z.4","M4A4zOtherHouse4Name",{"$f":"\"'='\" & MID(CELL(\"address\",INDIRECT(B618)),$I$3+1,100)","v":"'='Housing NPIs'!$C$22"},{"$f":" IF(ISBLANK(M4A4zOtherHouse4Name),\"\",M4A4zOtherHouse4Name)","v":"Number of individuals whose energy service was restored after disconnection"},"Text","M4A4zOtherHouse4Name",1000]
["FNPI_4z.4_I","M4A4zOtherHouse4Part",{"$f":"\"'='\" & MID(CELL(\"address\",INDIRECT(B619)),$I$3+1,100)","v":"'='Housing NPIs'!$D$22"},{"$f":" M4A4zOtherHouse4Part","v":30},"Number","M4A4zOtherHouse4Part"]
["FNPI_4z.4_II","M4A4zOtherHouse4Target",{"$f":"\"'='\" & MID(CELL(\"address\",INDIRECT(B620)),$I$3+1,100)","v":"'='Housing NPIs'!$E$22"},{"$f":" M4A4zOtherHouse4Target","v":38},"Number","M4A4zOtherHouse4Target"]
["FNPI_4z.4_III","M4A4zOtherHouse4Results",{"$f":"\"'='\" & MID(CELL(\"address\",INDIRECT(B621)),$I$3+1,100)","v":"'='Housing NPIs'!$F$22"},{"$f":" M4A4zOtherHouse4Results","v":25},"Number","M4A4zOtherHouse4Results"]
["FNPI 4z.4iv","M4A4zOtherHouse4Outcome",{"$f":"\"'='\" & MID(CELL(\"address\",INDIRECT(B622)),$I$3+1,100)","v":"'='Housing NPIs'!$G$22"},{"$f":" M4A4zOtherHouse4Outcome","v":0.83333333333333337},"Number","M4A4zOtherHouse4Outcome"]
["FNPI 4z.4v","M4A4zOtherHouse4Accuracy",{"$f":"\"'='\" & MID(CELL(\"address\",INDIRECT(B623)),$I$3+1,100)","v":"'='Housing NPIs'!$H$22"},{"$f":" M4A4zOtherHouse4Accuracy","v":0.65789473684210531},"Number","M4A4zOtherHouse4Accuracy"]
["FNPI 4z.5","M4A4zOtherHouse5Name",{"$f":"\"'='\" & MID(CELL(\"address\",INDIRECT(B624)),$I$3+1,100)","v":"'='Housing NPIs'!$C$23"},{"$f":" IF(ISBLANK(M4A4zOtherHouse5Name),\"\",M4A4zOtherHouse5Name)","v":""},"Text","M4A4zOtherHouse5Name",1000]
["FNPI_4z.5_I","M4A4zOtherHouse5Part",{"$f":"\"'='\" & MID(CELL(\"address\",INDIRECT(B625)),$I$3+1,100)","v":"'='Housing NPIs'!$D$23"},{"$f":" M4A4zOtherHouse5Part","v":0},"Number","M4A4zOtherHouse5Part"]
["FNPI_4z.5_II","M4A4zOtherHouse5Target",{"$f":"\"'='\" & MID(CELL(\"address\",INDIRECT(B626)),$I$3+1,100)","v":"'='Housing NPIs'!$E$23"},{"$f":" M4A4zOtherHouse5Target","v":0},"Number","M4A4zOtherHouse5Target"]
["FNPI_4z.5_III","M4A4zOtherHouse5Results",{"$f":"\"'='\" & MID(CELL(\"address\",INDIRECT(B627)),$I$3+1,100)","v":"'='Housing NPIs'!$F$23"},{"$f":" M4A4zOtherHouse5Results","v":0},"Number","M4A4zOtherHouse5Results"]
["FNPI 4z.5iv","M4A4zOtherHouse5Outcome",{"$f":"\"'='\" & MID(CELL(\"address\",INDIRECT(B628)),$I$3+1,100)","v":"'='Housing NPIs'!$G$23"},{"$f":" M4A4zOtherHouse5Outcome","v":""},"Number","M4A4zOtherHouse5Outcome"]
["FNPI 4z.5v","M4A4zOtherHouse5Accuracy",{"$f":"\"'='\" & MID(CELL(\"address\",INDIRECT(B629)),$I$3+1,100)","v":"'='Housing NPIs'!$H$23"},{"$f":" M4A4zOtherHouse5Accuracy","v":""},"Number","M4A4zOtherHouse5Accuracy"]
["FNPI_Housing_Comments","M4A4Comments",{"$f":"\"'='\" & MID(CELL(\"address\",INDIRECT(B630)),$I$3+1,100)","v":"'='Housing NPIs'!$C$27"},{"$f":" M4A4Comments","v":0},"Memo","M4A4Comments",5000]
["FNPI_3a_I","M4A3aBasicNeeds90Part",{"$f":"\"'='\" & MID(CELL(\"address\",INDIRECT(B631)),$I$3+1,100)","v":"'='Income NPIs'!$D$9"},{"$f":" M4A3aBasicNeeds90Part","v":60},"Number","M4A3aBasicNeeds90Part"]
["FNPI_3a_II","M4A3aBasicNeeds90Target",{"$f":"\"'='\" & MID(CELL(\"address\",INDIRECT(B632)),$I$3+1,100)","v":"'='Income NPIs'!$E$9"},{"$f":" M4A3aBasicNeeds90Target","v":65},"Number","M4A3aBasicNeeds90Target"]
["FNPI_3a_III","M4A3aBasicNeeds90Results",{"$f":"\"'='\" & MID(CELL(\"address\",INDIRECT(B633)),$I$3+1,100)","v":"'='Income NPIs'!$F$9"},{"$f":" M4A3aBasicNeeds90Results","v":53},"Number","M4A3aBasicNeeds90Results"]
["FNPI_3a_iv","M4A3aBasicNeeds90Outcome",{"$f":"\"'='\" & MID(CELL(\"address\",INDIRECT(B634)),$I$3+1,100)","v":"'='Income NPIs'!$G$9"},{"$f":" M4A3aBasicNeeds90Outcome","v":0.8833333333333333},"Number","M4A3aBasicNeeds90Outcome"]
["FNPI_3a_v","M4A3aBasicNeeds90Accuracy",{"$f":"\"'='\" & MID(CELL(\"address\",INDIRECT(B635)),$I$3+1,100)","v":"'='Income NPIs'!$H$9"},{"$f":" M4A3aBasicNeeds90Accuracy","v":0.81538461538461537},"Number","M4A3aBasicNeeds90Accuracy"]
["FNPI_3b_I","M4A3bBasicNeeds180Part",{"$f":"\"'='\" & MID(CELL(\"address\",INDIRECT(B636)),$I$3+1,100)","v":"'='Income NPIs'!$D$10"},{"$f":" M4A3bBasicNeeds180Part","v":35},"Number","M4A3bBasicNeeds180Part"]
["FNPI_3b_II","M4A3bBasicNeeds180Target",{"$f":"\"'='\" & MID(CELL(\"address\",INDIRECT(B637)),$I$3+1,100)","v":"'='Income NPIs'!$E$10"},{"$f":" M4A3bBasicNeeds180Target","v":38},"Number","M4A3bBasicNeeds180Target"]
["FNPI_3b_III","M4A3bBasicNeeds180Results",{"$f":"\"'='\" & MID(CELL(\"address\",INDIRECT(B638)),$I$3+1,100)","v":"'='Income NPIs'!$F$10"},{"$f":" M4A3bBasicNeeds180Results","v":28},"Number","M4A3bBasicNeeds180Results"]
["FNPI_3b_iv","M4A3bBasicNeeds180Outcome",{"$f":"\"'='\" & MID(CELL(\"address\",INDIRECT(B639)),$I$3+1,100)","v":"'='Income NPIs'!$G$10"},{"$f":" M4A3bBasicNeeds180Outcome","v":0.8},"Number","M4A3bBasicNeeds180Outcome"]
["FNPI_3b_v","M4A3bBasicNeeds180Accuracy",{"$f":"\"'='\" & MID(CELL(\"address\",INDIRECT(B640)),$I$3+1,100)","v":"'='Income NPIs'!$H$10"},{"$f":" M4A3bBasicNeeds180Accuracy","v":0.73684210526315785},"Number","M4A3bBasicNeeds180Accuracy"]
["FNPI_3c_I","M4A3cSavingsAcctPart",{"$f":"\"'='\" & MID(CELL(\"address\",INDIRECT(B641)),$I$3+1,100)","v":"'='Income NPIs'!$D$11"},{"$f":" M4A3cSavingsAcctPart","v":11},"Number","M4A3cSavingsAcctPart"]
["FNPI_3c_II","M4A3cSavingsAcctTarget",{"$f":"\"'='\" & MID(CELL(\"address\",INDIRECT(B642)),$I$3+1,100)","v":"'='Income NPIs'!$E$11"},{"$f":" M4A3cSavingsAcctTarget","v":14},"Number","M4A3cSavingsAcctTarget"]
["FNPI_3c_III","M4A3cSavingsAcctResults",{"$f":"\"'='\" & MID(CELL(\"address\",INDIRECT(B643)),$I$3+1,100)","v":"'='Income NPIs'!$F$11"},{"$f":" M4A3cSavingsAcctResults","v":9},"Number","M4A3cSavingsAcctResults"]
["FNPI_3c_iv","M4A3cSavingsAcctOutcome",{"$f":"\"'='\" & MID(CELL(\"address\",INDIRECT(B644)),$I$3+1,100)","v":"'='Income NPIs'!$G$11"},{"$f":" M4A3cSavingsAcctOutcome","v":0.81818181818181823},"Number","M4A3cSavingsAcctOutcome"]
["FNPI_3c_v","M4A3cSavingsAcctAccuracy",{"$f":"\"'='\" & MID(CELL(\"address\",INDIRECT(B645)),$I$3+1,100)","v":"'='Income NPIs'!$H$11"},{"$f":" M4A3cSavingsAcctAccuracy","v":0.6428571428571429},"Number","M4A3cSavingsAcctAccuracy"]
["FNPI_3d_I","M4A3dSavingsIncrPart",{"$f":"\"'='\" & MID(CELL(\"address\",INDIRECT(B646)),$I$3+1,100)","v":"'='Income NPIs'!$D$12"},{"$f":" M4A3dSavingsIncrPart","v":26},"Number","M4A3dSavingsIncrPart"]
["FNPI_3d_II","M4A3dSavingsIncrTarget",{"$f":"\"'='\" & MID(CELL(\"address\",INDIRECT(B647)),$I$3+1,100)","v":"'='Income NPIs'!$E$12"},{"$f":" M4A3dSavingsIncrTarget","v":33},"Number","M4A3dSavingsIncrTarget"]
["FNPI_3d_III","M4A3dSavingsIncrResults",{"$f":"\"'='\" & MID(CELL(\"address\",INDIRECT(B648)),$I$3+1,100)","v":"'='Income NPIs'!$F$12"},{"$f":" M4A3dSavingsIncrResults","v":21},"Number","M4A3dSavingsIncrResults"]
["FNPI_3d_iv","M4A3dSavingsIncrOutcome",{"$f":"\"'='\" & MID(CELL(\"address\",INDIRECT(B649)),$I$3+1,100)","v":"'='Income NPIs'!$G$12"},{"$f":" M4A3dSavingsIncrOutcome","v":0.80769230769230771},"Number","M4A3dSavingsIncrOutcome"]
["FNPI_3d_v","M4A3dSavingsIncrAccuracy",{"$f":"\"'='\" & MID(CELL(\"address\",INDIRECT(B650)),$I$3+1,100)","v":"'='Income NPIs'!$H$12"},{"$f":" M4A3dSavingsIncrAccuracy","v":0.63636363636363635},"Number","M4A3dSavingsIncrAccuracy"]
["FNPI 3e_1","M4A3ePurchAssetPart",{"$f":"\"'='\" & MID(CELL(\"address\",INDIRECT(B651)),$I$3+1,100)","v":"'='Income NPIs'!$D$13"},{"$f":" M4A3ePurchAssetPart","v":11},"Number","M4A3ePurchAssetPart"]
["FNPI_3e_II","M4A3ePurchAssetTarget",{"$f":"\"'='\" & MID(CELL(\"address\",INDIRECT(B652)),$I$3+1,100)","v":"'='Income NPIs'!$E$13"},{"$f":" M4A3ePurchAssetTarget","v":15},"Number","M4A3ePurchAssetTarget"]
["FNPI_3e_III","M4A3ePurchAssetResults",{"$f":"\"'='\" & MID(CELL(\"address\",INDIRECT(B653)),$I$3+1,100)","v":"'='Income NPIs'!$F$13"},{"$f":" M4A3ePurchAssetResults","v":9},"Number","M4A3ePurchAssetResults"]
["FNPI_3e_iv","M4A3ePurchAssetOutcome",{"$f":"\"'='\" & MID(CELL(\"address\",INDIRECT(B654)),$I$3+1,100)","v":"'='Income NPIs'!$G$13"},{"$f":" M4A3ePurchAssetOutcome","v":0.81818181818181823},"Number","M4A3ePurchAssetOutcome"]
["FNPI_3e_v","M4A3ePurchAssetAccuracy",{"$f":"\"'='\" & MID(CELL(\"address\",INDIRECT(B655)),$I$3+1,100)","v":"'='Income NPIs'!$H$13"},{"$f":" M4A3ePurchAssetAccuracy","v":0.6},"Number","M4A3ePurchAssetAccuracy"]
["FNPI_3f_I","M4A3fPurchHomePart",{"$f":"\"'='\" & MID(CELL(\"address\",INDIRECT(B656)),$I$3+1,100)","v":"'='Income NPIs'!$D$14"},{"$f":" M4A3fPurchHomePart","v":8},"Number","M4A3fPurchHomePart"]
["FNPI_3f_II","M4A3fPurchHomeTarget",{"$f":"\"'='\" & MID(CELL(\"address\",INDIRECT(B657)),$I$3+1,100)","v":"'='Income NPIs'!$E$14"},{"$f":" M4A3fPurchHomeTarget","v":12},"Number","M4A3fPurchHomeTarget"]
["FNPI_3f_III","M4A3fPurchHomeResults",{"$f":"\"'='\" & MID(CELL(\"address\",INDIRECT(B658)),$I$3+1,100)","v":"'='Income NPIs'!$F$14"},{"$f":" M4A3fPurchHomeResults","v":6},"Number","M4A3fPurchHomeResults"]
["FNPI_3f_iv","M4A3fPurchHomeOutcome",{"$f":"\"'='\" & MID(CELL(\"address\",INDIRECT(B659)),$I$3+1,100)","v":"'='Income NPIs'!$G$14"},{"$f":" M4A3fPurchHomeOutcome","v":0.75},"Number","M4A3fPurchHomeOutcome"]
["FNPI_3f_v","M4A3fPurchHomeAccuracy",{"$f":"\"'='\" & MID(CELL(\"address\",INDIRECT(B660)),$I$3+1,100)","v":"'='Income NPIs'!$H$14"},{"$f":" M4A3fPurchHomeAccuracy","v":0.5},"Number","M4A3fPurchHomeAccuracy"]
["FNPI_3g_I","M4A3gCreditScoreImprPart",{"$f":"\"'='\" & MID(CELL(\"address\",INDIRECT(B661)),$I$3+1,100)","v":"'='Income NPIs'!$D$15"},{"$f":" M4A3gCreditScoreImprPart","v":34},"Number","M4A3gCreditScoreImprPart"]
["FNPI_3g_II","M4A3gCreditScoreImprTarget",{"$f":"\"'='\" & MID(CELL(\"address\",INDIRECT(B662)),$I$3+1,100)","v":"'='Income NPIs'!$E$15"},{"$f":" M4A3gCreditScoreImprTarget","v":41},"Number","M4A3gCreditScoreImprTarget"]
["FNPI_3g_III","M4A3gCreditScoreImprResults",{"$f":"\"'='\" & MID(CELL(\"address\",INDIRECT(B663)),$I$3+1,100)","v":"'='Income NPIs'!$F$15"},{"$f":" M4A3gCreditScoreImprResults","v":25},"Number","M4A3gCreditScoreImprResults"]
["FNPI_3g_iv","M4A3gCreditScoreImprOutcome",{"$f":"\"'='\" & MID(CELL(\"address\",INDIRECT(B664)),$I$3+1,100)","v":"'='Income NPIs'!$G$15"},{"$f":" M4A3gCreditScoreImprOutcome","v":0.73529411764705888},"Number","M4A3gCreditScoreImprOutcome"]
["FNPI_3g_v","M4A3gCreditScoreImprAccuracy",{"$f":"\"'='\" & MID(CELL(\"address\",INDIRECT(B665)),$I$3+1,100)","v":"'='Income NPIs'!$H$15"},{"$f":" M4A3gCreditScoreImprAccuracy","v":0.6097560975609756},"Number","M4A3gCreditScoreImprAccuracy"]
["FNPI_3h_I","M4A3hNetWorthIncrPart",{"$f":"\"'='\" & MID(CELL(\"address\",INDIRECT(B666)),$I$3+1,100)","v":"'='Income NPIs'!$D$16"},{"$f":" M4A3hNetWorthIncrPart","v":31},"Number","M4A3hNetWorthIncrPart"]
["FNPI_3h_II","M4A3hNetWorthIncrTarget",{"$f":"\"'='\" & MID(CELL(\"address\",INDIRECT(B667)),$I$3+1,100)","v":"'='Income NPIs'!$E$16"},{"$f":" M4A3hNetWorthIncrTarget","v":34},"Number","M4A3hNetWorthIncrTarget"]
["FNPI_3h_III","M4A3hNetWorthIncrResults",{"$f":"\"'='\" & MID(CELL(\"address\",INDIRECT(B668)),$I$3+1,100)","v":"'='Income NPIs'!$F$16"},{"$f":" M4A3hNetWorthIncrResults","v":24},"Number","M4A3hNetWorthIncrResults"]
["FNPI_3h_iv","M4A3hNetWorthIncrOutcome",{"$f":"\"'='\" & MID(CELL(\"address\",INDIRECT(B669)),$I$3+1,100)","v":"'='Income NPIs'!$G$16"},{"$f":" M4A3hNetWorthIncrOutcome","v":0.77419354838709675},"Number","M4A3hNetWorthIncrOutcome"]
["FNPI_3h_v","M4A3hNetWorthIncrAccuracy",{"$f":"\"'='\" & MID(CELL(\"address\",INDIRECT(B670)),$I$3+1,100)","v":"'='Income NPIs'!$H$16"},{"$f":" M4A3hNetWorthIncrAccuracy","v":0.70588235294117652},"Number","M4A3hNetWorthIncrAccuracy"]
["FNPI_3i_I","M4A3iFinWellBeingImprPart",{"$f":"\"'='\" & MID(CELL(\"address\",INDIRECT(B671)),$I$3+1,100)","v":"'='Income NPIs'!$D$17"},{"$f":" M4A3iFinWellBeingImprPart","v":36},"Number","M4A3iFinWellBeingImprPart"]
["FNPI_3i_II","M4A3iFinWellBeingImprTarget",{"$f":"\"'='\" & MID(CELL(\"address\",INDIRECT(B672)),$I$3+1,100)","v":"'='Income NPIs'!$E$17"},{"$f":" M4A3iFinWellBeingImprTarget","v":33},"Number","M4A3iFinWellBeingImprTarget"]
["FNPI_3i_III","M4A3iFinWellBeingImprResults",{"$f":"\"'='\" & MID(CELL(\"address\",INDIRECT(B673)),$I$3+1,100)","v":"'='Income NPIs'!$F$17"},{"$f":" M4A3iFinWellBeingImprResults","v":30},"Number","M4A3iFinWellBeingImprResults"]
["FNPI_3i_iv","M4A3iFinWellBeingImprOutcome",{"$f":"\"'='\" & MID(CELL(\"address\",INDIRECT(B674)),$I$3+1,100)","v":"'='Income NPIs'!$G$17"},{"$f":" M4A3iFinWellBeingImprOutcome","v":0.83333333333333337},"Number","M4A3iFinWellBeingImprOutcome"]
["FNPI_3i_v","M4A3iFinWellBeingImprAccuracy",{"$f":"\"'='\" & MID(CELL(\"address\",INDIRECT(B675)),$I$3+1,100)","v":"'='Income NPIs'!$H$17"},{"$f":" M4A3iFinWellBeingImprAccuracy","v":0.90909090909090906},"Number","M4A3iFinWellBeingImprAccuracy"]
["FNPI 3z.1","M4A3zOtherInc1Name",{"$f":"\"'='\" & MID(CELL(\"address\",INDIRECT(B676)),$I$3+1,100)","v":"'='Income NPIs'!$C$21"},{"$f":" IF(ISBLANK(M4A3zOtherInc1Name),\"\",M4A3zOtherInc1Name)","v":"Number of Individuals served / Asset Building"},"Text","M4A3zOtherInc1Name",1000]
["FNPI_3z.1_I","M4A3zOtherInc1Part",{"$f":"\"'='\" & MID(CELL(\"address\",INDIRECT(B677)),$I$3+1,100)","v":"'='Income NPIs'!$D$21"},{"$f":" M4A3zOtherInc1Part","v":58},"Number","M4A3zOtherInc1Part"]
["FNPI_3z.1_II","M4A3zOtherInc1Target",{"$f":"\"'='\" & MID(CELL(\"address\",INDIRECT(B678)),$I$3+1,100)","v":"'='Income NPIs'!$E$21"},{"$f":" M4A3zOtherInc1Target","v":68},"Number","M4A3zOtherInc1Target"]
["FNPI_3z.1_III","M4A3zOtherInc1Results",{"$f":"\"'='\" & MID(CELL(\"address\",INDIRECT(B679)),$I$3+1,100)","v":"'='Income NPIs'!$F$21"},{"$f":" M4A3zOtherInc1Results","v":49},"Number","M4A3zOtherInc1Results"]
["FNPI 3z.1iv","M4A3zOtherInc1Outcome",{"$f":"\"'='\" & MID(CELL(\"address\",INDIRECT(B680)),$I$3+1,100)","v":"'='Income NPIs'!$G$21"},{"$f":" M4A3zOtherInc1Outcome","v":0.84482758620689657},"Number","M4A3zOtherInc1Outcome"]
["FNPI 3z.1v","M4A3zOtherInc1Accuracy",{"$f":"\"'='\" & MID(CELL(\"address\",INDIRECT(B681)),$I$3+1,100)","v":"'='Income NPIs'!$H$21"},{"$f":" M4A3zOtherInc1Accuracy","v":0.72058823529411764},"Number","M4A3zOtherInc1Accuracy"]
["FNPI 3z.2","M4A3zOtherInc2Name",{"$f":"\"'='\" & MID(CELL(\"address\",INDIRECT(B682)),$I$3+1,100)","v":"'='Income NPIs'!$C$22"},{"$f":" IF(ISBLANK(M4A3zOtherInc2Name),\"\",M4A3zOtherInc2Name)","v":""},"Text","M4A3zOtherInc2Name",1000]
["FNPI_3z.2_I","M4A3zOtherInc2Part",{"$f":"\"'='\" & MID(CELL(\"address\",INDIRECT(B683)),$I$3+1,100)","v":"'='Income NPIs'!$D$22"},{"$f":" M4A3zOtherInc2Part","v":0},"Number","M4A3zOtherInc2Part"]
["FNPI_3z.2_II","M4A3zOtherInc2Target",{"$f":"\"'='\" & MID(CELL(\"address\",INDIRECT(B684)),$I$3+1,100)","v":"'='Income NPIs'!$E$22"},{"$f":" M4A3zOtherInc2Target","v":0},"Number","M4A3zOtherInc2Target"]
["FNPI_3z.2_III","M4A3zOtherInc2Results",{"$f":"\"'='\" & MID(CELL(\"address\",INDIRECT(B685)),$I$3+1,100)","v":"'='Income NPIs'!$F$22"},{"$f":" M4A3zOtherInc2Results","v":0},"Number","M4A3zOtherInc2Results"]
["FNPI 3z.2iv","M4A3zOtherInc2Outcome",{"$f":"\"'='\" & MID(CELL(\"address\",INDIRECT(B686)),$I$3+1,100)","v":"'='Income NPIs'!$G$22"},{"$f":" M4A3zOtherInc2Outcome","v":""},"Number","M4A3zOtherInc2Outcome"]
["FNPI 3z.2v","M4A3zOtherInc2Accuracy",{"$f":"\"'='\" & MID(CELL(\"address\",INDIRECT(B687)),$I$3+1,100)","v":"'='Income NPIs'!$H$22"},{"$f":" M4A3zOtherInc2Accuracy","v":""},"Number","M4A3zOtherInc2Accuracy"]
["FNPI 3z.3","M4A3zOtherInc3Name",{"$f":"\"'='\" & MID(CELL(\"address\",INDIRECT(B688)),$I$3+1,100)","v":"'='Income NPIs'!$C$23"},{"$f":" IF(ISBLANK(M4A3zOtherInc3Name),\"\",M4A3zOtherInc3Name)","v":""},"Text","M4A3zOtherInc3Name",1000]
["FNPI_3z.3_I","M4A3zOtherInc3Part",{"$f":"\"'='\" & MID(CELL(\"address\",INDIRECT(B689)),$I$3+1,100)","v":"'='Income NPIs'!$D$23"},{"$f":" M4A3zOtherInc3Part","v":0},"Number","M4A3zOtherInc3Part"]
["FNPI_3z.3_II","M4A3zOtherInc3Target",{"$f":"\"'='\" & MID(CELL(\"address\",INDIRECT(B690)),$I$3+1,100)","v":"'='Income NPIs'!$E$23"},{"$f":" M4A3zOtherInc3Target","v":0},"Number","M4A3zOtherInc3Target"]
["FNPI_3z.3_III","M4A3zOtherInc3Results",{"$f":"\"'='\" & MID(CELL(\"address\",INDIRECT(B691)),$I$3+1,100)","v":"'='Income NPIs'!$F$23"},{"$f":" M4A3zOtherInc3Results","v":0},"Number","M4A3zOtherInc3Results"]
["FNPI 3z.3iv","M4A3zOtherInc3Outcome",{"$f":"\"'='\" & MID(CELL(\"address\",INDIRECT(B692)),$I$3+1,100)","v":"'='Income NPIs'!$G$23"},{"$f":" M4A3zOtherInc3Outcome","v":""},"Number","M4A3zOtherInc3Outcome"]
["FNPI 3z.3v","M4A3zOtherInc3Accuracy",{"$f":"\"'='\" & MID(CELL(\"address\",INDIRECT(B693)),$I$3+1,100)","v":"'='Income NPIs'!$H$23"},{"$f":" M4A3zOtherInc3Accuracy","v":""},"Number","M4A3zOtherInc3Accuracy"]
["FNPI 3z.4","M4A3zOtherInc4Name",{"$f":"\"'='\" & MID(CELL(\"address\",INDIRECT(B694)),$I$3+1,100)","v":"'='Income NPIs'!$C$24"},{"$f":" IF(ISBLANK(M4A3zOtherInc4Name),\"\",M4A3zOtherInc4Name)","v":""},"Text","M4A3zOtherInc4Name",1000]
["FNPI_3z.4_I","M4A3zOtherInc4Part",{"$f":"\"'='\" & MID(CELL(\"address\",INDIRECT(B695)),$I$3+1,100)","v":"'='Income NPIs'!$D$24"},{"$f":" M4A3zOtherInc4Part","v":0},"Number","M4A3zOtherInc4Part"]
["FNPI_3z.4_II","M4A3zOtherInc4Target",{"$f":"\"'='\" & MID(CELL(\"address\",INDIRECT(B696)),$I$3+1,100)","v":"'='Income NPIs'!$E$24"},{"$f":" M4A3zOtherInc4Target","v":0},"Number","M4A3zOtherInc4Target"]
["FNPI_3z.4_III","M4A3zOtherInc4Results",{"$f":"\"'='\" & MID(CELL(\"address\",INDIRECT(B697)),$I$3+1,100)","v":"'='Income NPIs'!$F$24"},{"$f":" M4A3zOtherInc4Results","v":0},"Number","M4A3zOtherInc4Results"]
["FNPI 3z.4iv","M4A3zOtherInc4Outcome",{"$f":"\"'='\" & MID(CELL(\"address\",INDIRECT(B698)),$I$3+1,100)","v":"'='Income NPIs'!$G$24"},{"$f":" M4A3zOtherInc4Outcome","v":""},"Number","M4A3zOtherInc4Outcome"]
["FNPI 3z.4v","M4A3zOtherInc4Accuracy",{"$f":"\"'='\" & MID(CELL(\"address\",INDIRECT(B699)),$I$3+1,100)","v":"'='Income NPIs'!$H$24"},{"$f":" M4A3zOtherInc4Accuracy","v":""},"Number","M4A3zOtherInc4Accuracy"]
["FNPI 3z.5","M4A3zOtherInc5Name",{"$f":"\"'='\" & MID(CELL(\"address\",INDIRECT(B700)),$I$3+1,100)","v":"'='Income NPIs'!$C$25"},{"$f":" IF(ISBLANK(M4A3zOtherInc5Name),\"\",M4A3zOtherInc5Name)","v":"Number of Individuals who reduced debt"},"Text","M4A3zOtherInc5Name",1000]
["FNPI_3z.5_I","M4A3zOtherInc5Part",{"$f":"\"'='\" & MID(CELL(\"address\",INDIRECT(B701)),$I$3+1,100)","v":"'='Income NPIs'!$D$25"},{"$f":" M4A3zOtherInc5Part","v":12},"Number","M4A3zOtherInc5Part"]
["FNPI_3z.5_II","M4A3zOtherInc5Target",{"$f":"\"'='\" & MID(CELL(\"address\",INDIRECT(B702)),$I$3+1,100)","v":"'='Income NPIs'!$E$25"},{"$f":" M4A3zOtherInc5Target","v":10},"Number","M4A3zOtherInc5Target"]
["FNPI_3z.5_III","M4A3zOtherInc5Results",{"$f":"\"'='\" & MID(CELL(\"address\",INDIRECT(B703)),$I$3+1,100)","v":"'='Income NPIs'!$F$25"},{"$f":" M4A3zOtherInc5Results","v":8},"Number","M4A3zOtherInc5Results"]
["FNPI 3z.5iv","M4A3zOtherInc5Outcome",{"$f":"\"'='\" & MID(CELL(\"address\",INDIRECT(B704)),$I$3+1,100)","v":"'='Income NPIs'!$G$25"},{"$f":" M4A3zOtherInc5Outcome","v":0.66666666666666663},"Number","M4A3zOtherInc5Outcome"]
["FNPI 3z.5v","M4A3zOtherInc5Accuracy",{"$f":"\"'='\" & MID(CELL(\"address\",INDIRECT(B705)),$I$3+1,100)","v":"'='Income NPIs'!$H$25"},{"$f":" M4A3zOtherInc5Accuracy","v":0.8},"Number","M4A3zOtherInc5Accuracy"]
["FNPI_Income_Comments","M4A3Comments",{"$f":"\"'='\" & MID(CELL(\"address\",INDIRECT(B706)),$I$3+1,100)","v":"'='Income NPIs'!$C$28"},{"$f":" M4A3Comments","v":0},"Memo","M4A3Comments",5000]
["FNPI_7a_I","M4A7aMoreOutcomesPart",{"$f":"\"'='\" & MID(CELL(\"address\",INDIRECT(B707)),$I$3+1,100)","v":"'='Outcomes Across Mult Domains'!$D$9"},{"$f":" M4A7aMoreOutcomesPart","v":2674},"Number","M4A7aMoreOutcomesPart"]
["FNPI_7a_II","M4A7aMoreOutcomesTarget",{"$f":"\"'='\" & MID(CELL(\"address\",INDIRECT(B708)),$I$3+1,100)","v":"'='Outcomes Across Mult Domains'!$E$9"},{"$f":" M4A7aMoreOutcomesTarget","v":1974},"Number","M4A7aMoreOutcomesTarget"]
["FNPI_7a_III","M4A7aMoreOutcomesResults",{"$f":"\"'='\" & MID(CELL(\"address\",INDIRECT(B709)),$I$3+1,100)","v":"'='Outcomes Across Mult Domains'!$F$9"},{"$f":" M4A7aMoreOutcomesResults","v":2486},"Number","M4A7aMoreOutcomesResults"]
["FNPI_7a_iv","M4A7aMoreOutcomesOutcome",{"$f":"\"'='\" & MID(CELL(\"address\",INDIRECT(B710)),$I$3+1,100)","v":"'='Outcomes Across Mult Domains'!$G$9"},{"$f":" M4A7aMoreOutcomesOutcome","v":0.9296933433059088},"Number","M4A7aMoreOutcomesOutcome"]
["FNPI_7a_v","M4A7aMoreOutcomesAccuracy",{"$f":"\"'='\" & MID(CELL(\"address\",INDIRECT(B711)),$I$3+1,100)","v":"'='Outcomes Across Mult Domains'!$H$9"},{"$f":" M4A7aMoreOutcomesAccuracy","v":1.2593718338399189},"Number","M4A7aMoreOutcomesAccuracy"]
["FNPI 7z.1","M4A7zOtherMult1Name",{"$f":"\"'='\" & MID(CELL(\"address\",INDIRECT(B712)),$I$3+1,100)","v":"'='Outcomes Across Mult Domains'!$C$12"},{"$f":" IF(ISBLANK(M4A7zOtherMult1Name),\"\",M4A7zOtherMult1Name)","v":"The number of individuals who received bundled services and achieved one or more outcomes"},"Text","M4A7zOtherMult1Name",1000]
["FNPI_7z.1_I","M4A7zOtherMult1Part",{"$f":"\"'='\" & MID(CELL(\"address\",INDIRECT(B713)),$I$3+1,100)","v":"'='Outcomes Across Mult Domains'!$D$12"},{"$f":" M4A7zOtherMult1Part","v":7},"Number","M4A7zOtherMult1Part"]
["FNPI_7z.1_II","M4A7zOtherMult1Target",{"$f":"\"'='\" & MID(CELL(\"address\",INDIRECT(B714)),$I$3+1,100)","v":"'='Outcomes Across Mult Domains'!$E$12"},{"$f":" M4A7zOtherMult1Target","v":10},"Number","M4A7zOtherMult1Target"]
["FNPI_7z.1_III","M4A7zOtherMult1Results",{"$f":"\"'='\" & MID(CELL(\"address\",INDIRECT(B715)),$I$3+1,100)","v":"'='Outcomes Across Mult Domains'!$F$12"},{"$f":" M4A7zOtherMult1Results","v":6},"Number","M4A7zOtherMult1Results"]
["FNPI 7z.1iv","M4A7zOtherMult1Outcome",{"$f":"\"'='\" & MID(CELL(\"address\",INDIRECT(B716)),$I$3+1,100)","v":"'='Outcomes Across Mult Domains'!$G$12"},{"$f":" M4A7zOtherMult1Outcome","v":0.8571428571428571},"Number","M4A7zOtherMult1Outcome"]
["FNPI 7z.1v","M4A7zOtherMult1Accuracy",{"$f":"\"'='\" & MID(CELL(\"address\",INDIRECT(B717)),$I$3+1,100)","v":"'='Outcomes Across Mult Domains'!$H$12"},{"$f":" M4A7zOtherMult1Accuracy","v":0.6},"Number","M4A7zOtherMult1Accuracy"]
["FNPI 7z.2","M4A7zOtherMult2Name",{"$f":"\"'='\" & MID(CELL(\"address\",INDIRECT(B718)),$I$3+1,100)","v":"'='Outcomes Across Mult Domains'!$C$13"},{"$f":" IF(ISBLANK(M4A7zOtherMult2Name),\"\",M4A7zOtherMult2Name)","v":"The number of individuals who transitioned out of poverty"},"Text","M4A7zOtherMult2Name",1000]
["FNPI_7z.2_I","M4A7zOtherMult2Part",{"$f":"\"'='\" & MID(CELL(\"address\",INDIRECT(B719)),$I$3+1,100)","v":"'='Outcomes Across Mult Domains'!$D$13"},{"$f":" M4A7zOtherMult2Part","v":5},"Number","M4A7zOtherMult2Part"]
["FNPI_7z.2_II","M4A7zOtherMult2Target",{"$f":"\"'='\" & MID(CELL(\"address\",INDIRECT(B720)),$I$3+1,100)","v":"'='Outcomes Across Mult Domains'!$E$13"},{"$f":" M4A7zOtherMult2Target","v":7},"Number","M4A7zOtherMult2Target"]
["FNPI_7z.2_III","M4A7zOtherMult2Results",{"$f":"\"'='\" & MID(CELL(\"address\",INDIRECT(B721)),$I$3+1,100)","v":"'='Outcomes Across Mult Domains'!$F$13"},{"$f":" M4A7zOtherMult2Results","v":3},"Number","M4A7zOtherMult2Results"]
["FNPI 7z.2iv","M4A7zOtherMult2Outcome",{"$f":"\"'='\" & MID(CELL(\"address\",INDIRECT(B722)),$I$3+1,100)","v":"'='Outcomes Across Mult Domains'!$G$13"},{"$f":" M4A7zOtherMult2Outcome","v":0.6},"Number","M4A7zOtherMult2Outcome"]
["FNPI 7z.2v","M4A7zOtherMult2Accuracy",{"$f":"\"'='\" & MID(CELL(\"address\",INDIRECT(B723)),$I$3+1,100)","v":"'='Outcomes Across Mult Domains'!$H$13"},{"$f":" M4A7zOtherMult2Accuracy","v":0.42857142857142855},"Number","M4A7zOtherMult2Accuracy"]
["FNPI 7z.3","M4A7zOtherMult3Name",{"$f":"\"'='\" & MID(CELL(\"address\",INDIRECT(B724)),$I$3+1,100)","v":"'='Outcomes Across Mult Domains'!$C$14"},{"$f":" IF(ISBLANK(M4A7zOtherMult3Name),\"\",M4A7zOtherMult3Name)","v":""},"Text","M4A7zOtherMult3Name",1000]
["FNPI_7z.3_I","M4A7zOtherMult3Part",{"$f":"\"'='\" & MID(CELL(\"address\",INDIRECT(B725)),$I$3+1,100)","v":"'='Outcomes Across Mult Domains'!$D$14"},{"$f":" M4A7zOtherMult3Part","v":0},"Number","M4A7zOtherMult3Part"]
["FNPI_7z.3_II","M4A7zOtherMult3Target",{"$f":"\"'='\" & MID(CELL(\"address\",INDIRECT(B726)),$I$3+1,100)","v":"'='Outcomes Across Mult Domains'!$E$14"},{"$f":" M4A7zOtherMult3Target","v":0},"Number","M4A7zOtherMult3Target"]
["FNPI_7z.3_III","M4A7zOtherMult3Results",{"$f":"\"'='\" & MID(CELL(\"address\",INDIRECT(B727)),$I$3+1,100)","v":"'='Outcomes Across Mult Domains'!$F$14"},{"$f":" M4A7zOtherMult3Results","v":0},"Number","M4A7zOtherMult3Results"]
["FNPI 7z.3iv","M4A7zOtherMult3Outcome",{"$f":"\"'='\" & MID(CELL(\"address\",INDIRECT(B728)),$I$3+1,100)","v":"'='Outcomes Across Mult Domains'!$G$14"},{"$f":" M4A7zOtherMult3Outcome","v":""},"Number","M4A7zOtherMult3Outcome"]
["FNPI 7z.3v","M4A7zOtherMult3Accuracy",{"$f":"\"'='\" & MID(CELL(\"address\",INDIRECT(B729)),$I$3+1,100)","v":"'='Outcomes Across Mult Domains'!$H$14"},{"$f":" M4A7zOtherMult3Accuracy","v":""},"Number","M4A7zOtherMult3Accuracy"]
["FNPI 7z.4","M4A7zOtherMult4Name",{"$f":"\"'='\" & MID(CELL(\"address\",INDIRECT(B730)),$I$3+1,100)","v":"'='Outcomes Across Mult Domains'!$C$15"},{"$f":" IF(ISBLANK(M4A7zOtherMult4Name),\"\",M4A7zOtherMult4Name)","v":""},"Text","M4A7zOtherMult4Name",1000]
["FNPI_7z.4_I","M4A7zOtherMult4Part",{"$f":"\"'='\" & MID(CELL(\"address\",INDIRECT(B731)),$I$3+1,100)","v":"'='Outcomes Across Mult Domains'!$D$15"},{"$f":" M4A7zOtherMult4Part","v":0},"Number","M4A7zOtherMult4Part"]
["FNPI_7z.4_II","M4A7zOtherMult4Target",{"$f":"\"'='\" & MID(CELL(\"address\",INDIRECT(B732)),$I$3+1,100)","v":"'='Outcomes Across Mult Domains'!$E$15"},{"$f":" M4A7zOtherMult4Target","v":0},"Number","M4A7zOtherMult4Target"]
["FNPI_7z.4_III","M4A7zOtherMult4Results",{"$f":"\"'='\" & MID(CELL(\"address\",INDIRECT(B733)),$I$3+1,100)","v":"'='Outcomes Across Mult Domains'!$F$15"},{"$f":" M4A7zOtherMult4Results","v":0},"Number","M4A7zOtherMult4Results"]
["FNPI 7z.4iv","M4A7zOtherMult4Outcome",{"$f":"\"'='\" & MID(CELL(\"address\",INDIRECT(B734)),$I$3+1,100)","v":"'='Outcomes Across Mult Domains'!$G$15"},{"$f":" M4A7zOtherMult4Outcome","v":""},"Number","M4A7zOtherMult4Outcome"]
["FNPI 7z.4v","M4A7zOtherMult4Accuracy",{"$f":"\"'='\" & MID(CELL(\"address\",INDIRECT(B735)),$I$3+1,100)","v":"'='Outcomes Across Mult Domains'!$H$15"},{"$f":" M4A7zOtherMult4Accuracy","v":""},"Number","M4A7zOtherMult4Accuracy"]
["FNPI 7z.5","M4A7zOtherMult5Name",{"$f":"\"'='\" & MID(CELL(\"address\",INDIRECT(B736)),$I$3+1,100)","v":"'='Outcomes Across Mult Domains'!$C$16"},{"$f":" IF(ISBLANK(M4A7zOtherMult5Name),\"\",M4A7zOtherMult5Name)","v":""},"Text","M4A7zOtherMult5Name",1000]
["FNPI_7z.5_I","M4A7zOtherMult5Part",{"$f":"\"'='\" & MID(CELL(\"address\",INDIRECT(B737)),$I$3+1,100)","v":"'='Outcomes Across Mult Domains'!$D$16"},{"$f":" M4A7zOtherMult5Part","v":0},"Number","M4A7zOtherMult5Part"]
["FNPI_7z.5_II","M4A7zOtherMult5Target",{"$f":"\"'='\" & MID(CELL(\"address\",INDIRECT(B738)),$I$3+1,100)","v":"'='Outcomes Across Mult Domains'!$E$16"},{"$f":" M4A7zOtherMult5Target","v":0},"Number","M4A7zOtherMult5Target"]
["FNPI_7z.5_III","M4A7zOtherMult5Results",{"$f":"\"'='\" & MID(CELL(\"address\",INDIRECT(B739)),$I$3+1,100)","v":"'='Outcomes Across Mult Domains'!$F$16"},{"$f":" M4A7zOtherMult5Results","v":0},"Number","M4A7zOtherMult5Results"]
["FNPI 7z.5iv","M4A7zOtherMult5Outcome",{"$f":"\"'='\" & MID(CELL(\"address\",INDIRECT(B740)),$I$3+1,100)","v":"'='Outcomes Across Mult Domains'!$G$16"},{"$f":" M4A7zOtherMult5Outcome","v":""},"Number","M4A7zOtherMult5Outcome"]
["FNPI 7z.5v","M4A7zOtherMult5Accuracy",{"$f":"\"'='\" & MID(CELL(\"address\",INDIRECT(B741)),$I$3+1,100)","v":"'='Outcomes Across Mult Domains'!$H$16"},{"$f":" M4A7zOtherMult5Accuracy","v":""},"Number","M4A7zOtherMult5Accuracy"]
["FNPI_Multiple_Comments","M4A7Comments",{"$f":"\"'='\" & MID(CELL(\"address\",INDIRECT(B742)),$I$3+1,100)","v":"'='Outcomes Across Mult Domains'!$C$19"},{"$f":" M4A7Comments","v":0},"Memo","M4A7Comments",5000]
["SRV 6a Voter Education and Access","M4B6aCivicEngageVoterEdu",{"$f":"\"'='\" & MID(CELL(\"address\",INDIRECT(B743)),$I$3+1,100)","v":"'='Services Civic Eng. & Comm Inv.'!$C$8"},{"$f":" M4B6aCivicEngageVoterEdu","v":11},"Number","M4B6aCivicEngageVoterEdu"]
["SRV 6b Leadership Training","M4B6bCivicEngageLeadership",{"$f":"\"'='\" & MID(CELL(\"address\",INDIRECT(B744)),$I$3+1,100)","v":"'='Services Civic Eng. & Comm Inv.'!$C$10"},{"$f":" M4B6bCivicEngageLeadership","v":36},"Number","M4B6bCivicEngageLeadership"]
["SRV 6c Tri-partite Board Membership","M4B6cCivicEngageTripartite",{"$f":"\"'='\" & MID(CELL(\"address\",INDIRECT(B745)),$I$3+1,100)","v":"'='Services Civic Eng. & Comm Inv.'!$C$11"},{"$f":" M4B6cCivicEngageTripartite","v":12},"Number","M4B6cCivicEngageTripartite"]
["SRV 6d Citizenship Classes","M4B6dCivicEngageCitizen",{"$f":"\"'='\" & MID(CELL(\"address\",INDIRECT(B746)),$I$3+1,100)","v":"'='Services Civic Eng. & Comm Inv.'!$C$12"},{"$f":" M4B6dCivicEngageCitizen","v":0},"Number","M4B6dCivicEngageCitizen"]
["SRV 6e Getting Ahead Classes","M4B6eCivicEngageGetAhead",{"$f":"\"'='\" & MID(CELL(\"address\",INDIRECT(B747)),$I$3+1,100)","v":"'='Services Civic Eng. & Comm Inv.'!$C$13"},{"$f":" M4B6eCivicEngageGetAhead","v":16},"Number","M4B6eCivicEngageGetAhead"]
["SRV 6f Volunteer Training ","M4B6fCivicEngageVolTrain",{"$f":"\"'='\" & MID(CELL(\"address\",INDIRECT(B748)),$I$3+1,100)","v":"'='Services Civic Eng. & Comm Inv.'!$C$14"},{"$f":" M4B6fCivicEngageVolTrain","v":59},"Number","M4B6fCivicEngageVolTrain"]
["SRV 2a Early Head Start ","M4B2aEduEarlyHeadStart",{"$f":"\"'='\" & MID(CELL(\"address\",INDIRECT(B749)),$I$3+1,100)","v":"'='Services Education'!$C$9"},{"$f":" M4B2aEduEarlyHeadStart","v":0},"Number","M4B2aEduEarlyHeadStart"]
["SRV 2b Head Start","M4B2bEduHeadStart",{"$f":"\"'='\" & MID(CELL(\"address\",INDIRECT(B750)),$I$3+1,100)","v":"'='Services Education'!$C$10"},{"$f":" M4B2bEduHeadStart","v":0},"Number","M4B2bEduHeadStart"]
["SRV 2c Other Early-Childhood (0-5 yr. old) Education ","M4B2cEduOtherEarly",{"$f":"\"'='\" & MID(CELL(\"address\",INDIRECT(B751)),$I$3+1,100)","v":"'='Services Education'!$C$11"},{"$f":" M4B2cEduOtherEarly","v":0},"Number","M4B2cEduOtherEarly"]
["SRV 2d K-12 Education ","M4B2dEduK12",{"$f":"\"'='\" & MID(CELL(\"address\",INDIRECT(B752)),$I$3+1,100)","v":"'='Services Education'!$C$12"},{"$f":" M4B2dEduK12","v":0},"Number","M4B2dEduK12"]
["SRV 2e K-12 Support Services","M4B2eEduK12Support",{"$f":"\"'='\" & MID(CELL(\"address\",INDIRECT(B753)),$I$3+1,100)","v":"'='Services Education'!$C$13"},{"$f":" M4B2eEduK12Support","v":0},"Number","M4B2eEduK12Support"]
["SRV 2f Financial Literacy Education","M4B2fEduFinancialLit",{"$f":"\"'='\" & MID(CELL(\"address\",INDIRECT(B754)),$I$3+1,100)","v":"'='Services Education'!$C$14"},{"$f":" M4B2fEduFinancialLit","v":39},"Number","M4B2fEduFinancialLit"]
["SRV 2g Literacy/English Language Education","M4B2gEduEnglishLit",{"$f":"\"'='\" & MID(CELL(\"address\",INDIRECT(B755)),$I$3+1,100)","v":"'='Services Education'!$C$15"},{"$f":" M4B2gEduEnglishLit","v":0},"Number","M4B2gEduEnglishLit"]
["SRV 2h College-Readiness Preparation/Support  ","M4B2hEduCollegeReady",{"$f":"\"'='\" & MID(CELL(\"address\",INDIRECT(B756)),$I$3+1,100)","v":"'='Services Education'!$C$16"},{"$f":" M4B2hEduCollegeReady","v":5},"Number","M4B2hEduCollegeReady"]
["SRV 2i Other Post Secondary Preparation","M4B2iEduOtherPostSecPrep",{"$f":"\"'='\" & MID(CELL(\"address\",INDIRECT(B757)),$I$3+1,100)","v":"'='Services Education'!$C$17"},{"$f":" M4B2iEduOtherPostSecPrep","v":0},"Number","M4B2iEduOtherPostSecPrep"]
["SRV 2j Other Post Secondary Support","M4B2jEduOtherPostSecSup",{"$f":"\"'='\" & MID(CELL(\"address\",INDIRECT(B758)),$I$3+1,100)","v":"'='Services Education'!$C$18"},{"$f":" M4B2jEduOtherPostSecSup","v":0},"Number","M4B2jEduOtherPostSecSup"]
["SRV 2k School Supplies","M4B2kSchoolSupplies",{"$f":"\"'='\" & MID(CELL(\"address\",INDIRECT(B759)),$I$3+1,100)","v":"'='Services Education'!$C$20"},{"$f":" M4B2kSchoolSupplies","v":8},"Number","M4B2kSchoolSupplies"]
["SRV 2l Before and After School Activities","M4B2lExtraCurrBeforeAfter",{"$f":"\"'='\" & MID(CELL(\"address\",INDIRECT(B760)),$I$3+1,100)","v":"'='Services Education'!$C$22"},{"$f":" M4B2lExtraCurrBeforeAfter","v":37},"Number","M4B2lExtraCurrBeforeAfter"]
["SRV 2m Summer Youth Recreational Activities","M4B2mExtraCurrSummerRec",{"$f":"\"'='\" & MID(CELL(\"address\",INDIRECT(B761)),$I$3+1,100)","v":"'='Services Education'!$C$23"},{"$f":" M4B2mExtraCurrSummerRec","v":0},"Number","M4B2mExtraCurrSummerRec"]
["SRV 2n Summer Education Programs","M4B2nExtraCurrSummerEdu",{"$f":"\"'='\" & MID(CELL(\"address\",INDIRECT(B762)),$I$3+1,100)","v":"'='Services Education'!$C$24"},{"$f":" M4B2nExtraCurrSummerEdu","v":0},"Number","M4B2nExtraCurrSummerEdu"]
["SRV 2o Behavior Improvement Programs (attitude, self-esteem, Dress-for-Success, etc.)","M4B2oExtraCurrBehavior",{"$f":"\"'='\" & MID(CELL(\"address\",INDIRECT(B763)),$I$3+1,100)","v":"'='Services Education'!$C$25"},{"$f":" M4B2oExtraCurrBehavior","v":8},"Number","M4B2oExtraCurrBehavior"]
["SRV 2p Mentoring","M4B2pExtraCurrMentor",{"$f":"\"'='\" & MID(CELL(\"address\",INDIRECT(B764)),$I$3+1,100)","v":"'='Services Education'!$C$26"},{"$f":" M4B2pExtraCurrMentor","v":41},"Number","M4B2pExtraCurrMentor"]
["SRV 2q Leadership Training","M4B2qExtraCurrLeadership",{"$f":"\"'='\" & MID(CELL(\"address\",INDIRECT(B765)),$I$3+1,100)","v":"'='Services Education'!$C$27"},{"$f":" M4B2qExtraCurrLeadership","v":33},"Number","M4B2qExtraCurrLeadership"]
["SRV 2r Adult Literacy Classes","M4B2rAdultEduLit",{"$f":"\"'='\" & MID(CELL(\"address\",INDIRECT(B766)),$I$3+1,100)","v":"'='Services Education'!$C$29"},{"$f":" M4B2rAdultEduLit","v":0},"Number","M4B2rAdultEduLit"]
["SRV 2s English Language Classes","M4B2sAdultEduEnglish",{"$f":"\"'='\" & MID(CELL(\"address\",INDIRECT(B767)),$I$3+1,100)","v":"'='Services Education'!$C$30"},{"$f":" M4B2sAdultEduEnglish","v":0},"Number","M4B2sAdultEduEnglish"]
["SRV 2t Basic Education Classes  ","M4B2tAdultEduBasic",{"$f":"\"'='\" & MID(CELL(\"address\",INDIRECT(B768)),$I$3+1,100)","v":"'='Services Education'!$C$31"},{"$f":" M4B2tAdultEduBasic","v":0},"Number","M4B2tAdultEduBasic"]
["SRV 2u High School Equivalency Classes","M4B2uAdultEduHighSchool",{"$f":"\"'='\" & MID(CELL(\"address\",INDIRECT(B769)),$I$3+1,100)","v":"'='Services Education'!$C$32"},{"$f":" M4B2uAdultEduHighSchool","v":0},"Number","M4B2uAdultEduHighSchool"]
["SRV 2v Leadership Training","M4B2vAdultEduLeadership",{"$f":"\"'='\" & MID(CELL(\"address\",INDIRECT(B770)),$I$3+1,100)","v":"'='Services Education'!$C$33"},{"$f":" M4B2vAdultEduLeadership","v":0},"Number","M4B2vAdultEduLeadership"]
["SRV 2w Parenting Supports (may be a part of the early childhood programs identified above)","M4B2wAdultEduParenting",{"$f":"\"'='\" & MID(CELL(\"address\",INDIRECT(B771)),$I$3+1,100)","v":"'='Services Education'!$C$34"},{"$f":" M4B2wAdultEduParenting","v":0},"Number","M4B2wAdultEduParenting"]
["SRV 2x Applied Technology Classes","M4B2xAdultEduAppliedTech",{"$f":"\"'='\" & MID(CELL(\"address\",INDIRECT(B772)),$I$3+1,100)","v":"'='Services Education'!$C$35"},{"$f":" M4B2xAdultEduAppliedTech","v":0},"Number","M4B2xAdultEduAppliedTech"]
["SRV 2y Post-Secondary Education Preparation","M4B2yAdultEduPostSecPrep",{"$f":"\"'='\" & MID(CELL(\"address\",INDIRECT(B773)),$I$3+1,100)","v":"'='Services Education'!$C$36"},{"$f":" M4B2yAdultEduPostSecPrep","v":0},"Number","M4B2yAdultEduPostSecPrep"]
["SRV 2z Financial Literacy Education","M4B2zAdultEduFinancialLit",{"$f":"\"'='\" & MID(CELL(\"address\",INDIRECT(B774)),$I$3+1,100)","v":"'='Services Education'!$C$37"},{"$f":" M4B2zAdultEduFinancialLit","v":31},"Number","M4B2zAdultEduFinancialLit"]
["SRV 2aa College applications, text books, computers, etc.","M4B2aaPostSecEduSupports",{"$f":"\"'='\" & MID(CELL(\"address\",INDIRECT(B775)),$I$3+1,100)","v":"'='Services Education'!$C$39"},{"$f":" M4B2aaPostSecEduSupports","v":0},null,"M4B2aaPostSecEduSupports"]
["SRV 2bb Scholarships","M4B2bbFinancialAid",{"$f":"\"'='\" & MID(CELL(\"address\",INDIRECT(B776)),$I$3+1,100)","v":"'='Services Education'!$C$41"},{"$f":" M4B2bbFinancialAid","v":0},"Number","M4B2bbFinancialAid"]
["SRV 2cc Home Visits","M4B2ccHomeVisits",{"$f":"\"'='\" & MID(CELL(\"address\",INDIRECT(B777)),$I$3+1,100)","v":"'='Services Education'!$C$43"},{"$f":" M4B2ccHomeVisits","v":19},"Number","M4B2ccHomeVisits"]
["SRV 1a Vocational Training ","M4B1aSkillsVocational",{"$f":"\"'='\" & MID(CELL(\"address\",INDIRECT(B778)),$I$3+1,100)","v":"'='Services Employment'!$C$9"},{"$f":" M4B1aSkillsVocational","v":5},"Number","M4B1aSkillsVocational"]
["SRV 1b On-the-Job and other Work Experience ","M4B1bSkillsOTJ",{"$f":"\"'='\" & MID(CELL(\"address\",INDIRECT(B779)),$I$3+1,100)","v":"'='Services Employment'!$C$10"},{"$f":" M4B1bSkillsOTJ","v":14},"Number","M4B1bSkillsOTJ"]
["SRV 1c Youth Summer Work Placements","M4B1cSkillsYouthSummer",{"$f":"\"'='\" & MID(CELL(\"address\",INDIRECT(B780)),$I$3+1,100)","v":"'='Services Employment'!$C$11"},{"$f":" M4B1cSkillsYouthSummer","v":0},"Number","M4B1cSkillsYouthSummer"]
["SRV 1d Apprenticeship/Internship","M4B1dSkillsApprentice",{"$f":"\"'='\" & MID(CELL(\"address\",INDIRECT(B781)),$I$3+1,100)","v":"'='Services Employment'!$C$12"},{"$f":" M4B1dSkillsApprentice","v":3},"Number","M4B1dSkillsApprentice"]
["SRV 1e Self-Employment Skills Training  ","M4B1eSkillsSelfEmploy",{"$f":"\"'='\" & MID(CELL(\"address\",INDIRECT(B782)),$I$3+1,100)","v":"'='Services Employment'!$C$13"},{"$f":" M4B1eSkillsSelfEmploy","v":2},"Number","M4B1eSkillsSelfEmploy"]
["SRV 1f Job Readiness Training  ","M4B1fSkillsJobReadiness",{"$f":"\"'='\" & MID(CELL(\"address\",INDIRECT(B783)),$I$3+1,100)","v":"'='Services Employment'!$C$14"},{"$f":" M4B1fSkillsJobReadiness","v":18},"Number","M4B1fSkillsJobReadiness"]
["SRV 1g Workshops","M4B1gCareerWorkshops",{"$f":"\"'='\" & MID(CELL(\"address\",INDIRECT(B784)),$I$3+1,100)","v":"'='Services Employment'!$C$16"},{"$f":" M4B1gCareerWorkshops","v":12},"Number","M4B1gCareerWorkshops"]
["SRV 1h Coaching ","M4B1hCareerCoaching",{"$f":"\"'='\" & MID(CELL(\"address\",INDIRECT(B785)),$I$3+1,100)","v":"'='Services Employment'!$C$17"},{"$f":" M4B1hCareerCoaching","v":25},"Number","M4B1hCareerCoaching"]
["SRV 1i Coaching ","M4B1iJobSearchCoaching",{"$f":"\"'='\" & MID(CELL(\"address\",INDIRECT(B786)),$I$3+1,100)","v":"'='Services Employment'!$C$19"},{"$f":" M4B1iJobSearchCoaching","v":26},"Number","M4B1iJobSearchCoaching"]
["SRV 1j Resume Development ","M4B1jJobSearchResume",{"$f":"\"'='\" & MID(CELL(\"address\",INDIRECT(B787)),$I$3+1,100)","v":"'='Services Employment'!$C$20"},{"$f":" M4B1jJobSearchResume","v":22},"Number","M4B1jJobSearchResume"]
["SRV 1k Interview Skills Training ","M4B1kJobSearchInterview",{"$f":"\"'='\" & MID(CELL(\"address\",INDIRECT(B788)),$I$3+1,100)","v":"'='Services Employment'!$C$21"},{"$f":" M4B1kJobSearchInterview","v":22},"Number","M4B1kJobSearchInterview"]
["SRV 1l Job Referrals","M4B1lJobSearchReferral",{"$f":"\"'='\" & MID(CELL(\"address\",INDIRECT(B789)),$I$3+1,100)","v":"'='Services Employment'!$C$22"},{"$f":" M4B1lJobSearchReferral","v":46},"Number","M4B1lJobSearchReferral"]
["SRV 1m Job Placements","M4B1mJobSearchPlacement",{"$f":"\"'='\" & MID(CELL(\"address\",INDIRECT(B790)),$I$3+1,100)","v":"'='Services Employment'!$C$23"},{"$f":" M4B1mJobSearchPlacement","v":13},"Number","M4B1mJobSearchPlacement"]
["SRV 1n Pre-employment physicals, background checks, etc.","M4B1nJobSearchBackground",{"$f":"\"'='\" & MID(CELL(\"address\",INDIRECT(B791)),$I$3+1,100)","v":"'='Services Employment'!$C$24"},{"$f":" M4B1nJobSearchBackground","v":14},"Number","M4B1nJobSearchBackground"]
["SRV 1o Coaching ","M4B1oPostEmployCoaching",{"$f":"\"'='\" & MID(CELL(\"address\",INDIRECT(B792)),$I$3+1,100)","v":"'='Services Employment'!$C$26"},{"$f":" M4B1oPostEmployCoaching","v":9},"Number","M4B1oPostEmployCoaching"]
["SRV 1p Interactions with employers ","M4B1pPostEmployInteraction",{"$f":"\"'='\" & MID(CELL(\"address\",INDIRECT(B793)),$I$3+1,100)","v":"'='Services Employment'!$C$27"},{"$f":" M4B1pPostEmployInteraction","v":13},"Number","M4B1pPostEmployInteraction"]
["SRV 1q Employment Supplies","M4B1qEmploySupplies",{"$f":"\"'='\" & MID(CELL(\"address\",INDIRECT(B794)),$I$3+1,100)","v":"'='Services Employment'!$C$29"},{"$f":" M4B1qEmploySupplies","v":13},"Number","M4B1qEmploySupplies"]
["SRV 5a Immunizations","M4B5aHealthServImmun",{"$f":"\"'='\" & MID(CELL(\"address\",INDIRECT(B795)),$I$3+1,100)","v":"'='Services Health and Social'!$C$9"},{"$f":" M4B5aHealthServImmun","v":0},"Number","M4B5aHealthServImmun"]
["SRV 5b Physicals","M4B5bHealthServPhysical",{"$f":"\"'='\" & MID(CELL(\"address\",INDIRECT(B796)),$I$3+1,100)","v":"'='Services Health and Social'!$C$10"},{"$f":" M4B5bHealthServPhysical","v":0},"Number","M4B5bHealthServPhysical"]
["SRV 5c Developmental Delay Screening","M4B5cHealthServDevScreen",{"$f":"\"'='\" & MID(CELL(\"address\",INDIRECT(B797)),$I$3+1,100)","v":"'='Services Health and Social'!$C$11"},{"$f":" M4B5cHealthServDevScreen","v":0},"Number","M4B5cHealthServDevScreen"]
["SRV 5d Vision  Screening","M4B5dHealthServVisionScreen",{"$f":"\"'='\" & MID(CELL(\"address\",INDIRECT(B798)),$I$3+1,100)","v":"'='Services Health and Social'!$C$12"},{"$f":" M4B5dHealthServVisionScreen","v":0},"Number","M4B5dHealthServVisionScreen"]
["SRV 5e Prescription Payments","M4B5eHealthServRxPay",{"$f":"\"'='\" & MID(CELL(\"address\",INDIRECT(B799)),$I$3+1,100)","v":"'='Services Health and Social'!$C$13"},{"$f":" M4B5eHealthServRxPay","v":0},"Number","M4B5eHealthServRxPay"]
["SRV 5f Doctor Visit Payments","M4B5fHealthServDrPay",{"$f":"\"'='\" & MID(CELL(\"address\",INDIRECT(B800)),$I$3+1,100)","v":"'='Services Health and Social'!$C$14"},{"$f":" M4B5fHealthServDrPay","v":0},"Number","M4B5fHealthServDrPay"]
["SRV 5g Maternal/Child Health","M4B5gHealthServMaternalHealth",{"$f":"\"'='\" & MID(CELL(\"address\",INDIRECT(B801)),$I$3+1,100)","v":"'='Services Health and Social'!$C$15"},{"$f":" M4B5gHealthServMaternalHealth","v":0},"Number","M4B5gHealthServMaternalHealth"]
["SRV 5h Nursing Care Sessions","M4B5hHealthServNursing",{"$f":"\"'='\" & MID(CELL(\"address\",INDIRECT(B802)),$I$3+1,100)","v":"'='Services Health and Social'!$C$16"},{"$f":" M4B5hHealthServNursing","v":0},"Number","M4B5hHealthServNursing"]
["SRV 5i In-Home Affordable Seniors/Disabled Care Sessions\n(Nursing, Chores, Personal Care Services) ","M4B5iHealthServInHome",{"$f":"\"'='\" & MID(CELL(\"address\",INDIRECT(B803)),$I$3+1,100)","v":"'='Services Health and Social'!$C$17"},{"$f":" M4B5iHealthServInHome","v":0},"Number","M4B5iHealthServInHome"]
["SRV 5j Health Insurance Options Counseling","M4B5jHealthServeInsCounsel",{"$f":"\"'='\" & MID(CELL(\"address\",INDIRECT(B804)),$I$3+1,100)","v":"'='Services Health and Social'!$C$18"},{"$f":" M4B5jHealthServeInsCounsel","v":0},"Number","M4B5jHealthServeInsCounsel"]
["SRV 5k Coaching Sessions","M4B5kReprodHealthCoach",{"$f":"\"'='\" & MID(CELL(\"address\",INDIRECT(B805)),$I$3+1,100)","v":"'='Services Health and Social'!$C$20"},{"$f":" M4B5kReprodHealthCoach","v":0},"Number","M4B5kReprodHealthCoach"]
["SRV 5l Family Planning Classes","M4B5lReprodHealthPlan",{"$f":"\"'='\" & MID(CELL(\"address\",INDIRECT(B806)),$I$3+1,100)","v":"'='Services Health and Social'!$C$21"},{"$f":" M4B5lReprodHealthPlan","v":0},"Number","M4B5lReprodHealthPlan"]
["SRV 5m Contraceptives","M4B5mReprodHealthContra",{"$f":"\"'='\" & MID(CELL(\"address\",INDIRECT(B807)),$I$3+1,100)","v":"'='Services Health and Social'!$C$22"},{"$f":" M4B5mReprodHealthContra","v":0},"Number","M4B5mReprodHealthContra"]
["SRV 5n STI/HIV Prevention Counseling Sessions","M4B5nReprodHealthSTIPrev",{"$f":"\"'='\" & MID(CELL(\"address\",INDIRECT(B808)),$I$3+1,100)","v":"'='Services Health and Social'!$C$23"},{"$f":" M4B5nReprodHealthSTIPrev","v":0},"Number","M4B5nReprodHealthSTIPrev"]
["SRV 5o STI/HIV Screenings","M4B5oReprodHealthSTIScreen",{"$f":"\"'='\" & MID(CELL(\"address\",INDIRECT(B809)),$I$3+1,100)","v":"'='Services Health and Social'!$C$24"},{"$f":" M4B5oReprodHealthSTIScreen","v":0},"Number","M4B5oReprodHealthSTIScreen"]
["SRV 5p Wellness Classes (stress reduction, medication management, mindfulness, etc.)","M4B5pWellnessEduClass",{"$f":"\"'='\" & MID(CELL(\"address\",INDIRECT(B810)),$I$3+1,100)","v":"'='Services Health and Social'!$C$26"},{"$f":" M4B5pWellnessEduClass","v":0},"Number","M4B5pWellnessEduClass"]
["SRV 5q Exercise/Fitness ","M4B5qWellnessEduFitness",{"$f":"\"'='\" & MID(CELL(\"address\",INDIRECT(B811)),$I$3+1,100)","v":"'='Services Health and Social'!$C$27"},{"$f":" M4B5qWellnessEduFitness","v":0},"Number","M4B5qWellnessEduFitness"]
["SRV 5r Detoxification Sessions","M4B5rMentalHealthDetox",{"$f":"\"'='\" & MID(CELL(\"address\",INDIRECT(B812)),$I$3+1,100)","v":"'='Services Health and Social'!$C$29"},{"$f":" M4B5rMentalHealthDetox","v":0},"Number","M4B5rMentalHealthDetox"]
["SRV 5s Substance Abuse Screenings","M4B5sMentalHealthSubAbuseScreen",{"$f":"\"'='\" & MID(CELL(\"address\",INDIRECT(B813)),$I$3+1,100)","v":"'='Services Health and Social'!$C$30"},{"$f":" M4B5sMentalHealthSubAbuseScreen","v":0},"Number","M4B5sMentalHealthSubAbuseScreen"]
["SRV 5t Substance Abuse Counseling ","M4B5tMentalHealthSubAbuseCounsel",{"$f":"\"'='\" & MID(CELL(\"address\",INDIRECT(B814)),$I$3+1,100)","v":"'='Services Health and Social'!$C$31"},{"$f":" M4B5tMentalHealthSubAbuseCounsel","v":0},"Number","M4B5tMentalHealthSubAbuseCounsel"]
["SRV 5u Mental Health Assessments","M4B5uMentalHealthAssess",{"$f":"\"'='\" & MID(CELL(\"address\",INDIRECT(B815)),$I$3+1,100)","v":"'='Services Health and Social'!$C$32"},{"$f":" M4B5uMentalHealthAssess","v":3},"Number","M4B5uMentalHealthAssess"]
["SRV 5v Mental Health Counseling ","M4B5vMentalHealthCounsel",{"$f":"\"'='\" & MID(CELL(\"address\",INDIRECT(B816)),$I$3+1,100)","v":"'='Services Health and Social'!$C$33"},{"$f":" M4B5vMentalHealthCounsel","v":3},"Number","M4B5vMentalHealthCounsel"]
["SRV 5w Crisis Response/Call-In Responses","M4B5wMentalHealthResponse",{"$f":"\"'='\" & MID(CELL(\"address\",INDIRECT(B817)),$I$3+1,100)","v":"'='Services Health and Social'!$C$34"},{"$f":" M4B5wMentalHealthResponse","v":0},"Number","M4B5wMentalHealthResponse"]
["SRV 5x Domestic Violence Programs","M4B5xMentalHealthDomVio",{"$f":"\"'='\" & MID(CELL(\"address\",INDIRECT(B818)),$I$3+1,100)","v":"'='Services Health and Social'!$C$35"},{"$f":" M4B5xMentalHealthDomVio","v":0},"Number","M4B5xMentalHealthDomVio"]
["SRV 5y Substance Abuse Support Group Meetings","M4B5ySupportGroupsSubAbuse",{"$f":"\"'='\" & MID(CELL(\"address\",INDIRECT(B819)),$I$3+1,100)","v":"'='Services Health and Social'!$C$37"},{"$f":" M4B5ySupportGroupsSubAbuse","v":0},"Number","M4B5ySupportGroupsSubAbuse"]
["SRV 5z Domestic Violence Support Group Meetings","M4B5zSupportGroupsDomVio",{"$f":"\"'='\" & MID(CELL(\"address\",INDIRECT(B820)),$I$3+1,100)","v":"'='Services Health and Social'!$C$38"},{"$f":" M4B5zSupportGroupsDomVio","v":0},"Number","M4B5zSupportGroupsDomVio"]
["SRV 5aa Mental Health Support Group Meeting","M4B5aaSupportGroupsMentalHealth",{"$f":"\"'='\" & MID(CELL(\"address\",INDIRECT(B821)),$I$3+1,100)","v":"'='Services Health and Social'!$C$39"},{"$f":" M4B5aaSupportGroupsMentalHealth","v":0},"Number","M4B5aaSupportGroupsMentalHealth"]
["SRV 5bb Adult Dental Screening/Exams","M4B5bbDentalAdultScreen",{"$f":"\"'='\" & MID(CELL(\"address\",INDIRECT(B822)),$I$3+1,100)","v":"'='Services Health and Social'!$C$42"},{"$f":" M4B5bbDentalAdultScreen","v":0},"Number","M4B5bbDentalAdultScreen"]
["SRV 5cc Adult Dental Services (including Emergency Dental Procedures)","M4B5ccDentalAdultServ",{"$f":"\"'='\" & MID(CELL(\"address\",INDIRECT(B823)),$I$3+1,100)","v":"'='Services Health and Social'!$C$43"},{"$f":" M4B5ccDentalAdultServ","v":0},"Number","M4B5ccDentalAdultServ"]
["SRV 5dd Child Dental Screenings/Exams","M4B5ddDentalChildScreen",{"$f":"\"'='\" & MID(CELL(\"address\",INDIRECT(B824)),$I$3+1,100)","v":"'='Services Health and Social'!$C$44"},{"$f":" M4B5ddDentalChildScreen","v":0},"Number","M4B5ddDentalChildScreen"]
["SRV 5ee Child Dental Services (including Emergency Dental Procedures)","M4B5eeDentalChildServ",{"$f":"\"'='\" & MID(CELL(\"address\",INDIRECT(B825)),$I$3+1,100)","v":"'='Services Health and Social'!$C$45"},{"$f":" M4B5eeDentalChildServ","v":0},"Number","M4B5eeDentalChildServ"]
["SRV 5ff Skills Classes (Gardening, Cooking, Nutrition)","M4B5ffNutritionSkills",{"$f":"\"'='\" & MID(CELL(\"address\",INDIRECT(B826)),$I$3+1,100)","v":"'='Services Health and Social'!$C$47"},{"$f":" M4B5ffNutritionSkills","v":0},"Number","M4B5ffNutritionSkills"]
["SRV 5gg Community Gardening Activities","M4B5ggNutritionGardening",{"$f":"\"'='\" & MID(CELL(\"address\",INDIRECT(B827)),$I$3+1,100)","v":"'='Services Health and Social'!$C$48"},{"$f":" M4B5ggNutritionGardening","v":0},"Number","M4B5ggNutritionGardening"]
["SRV 5hh Incentives (e.g. gift card for food preparation, rewards for participation, etc.)","M4B5hhNutritionIncentives",{"$f":"\"'='\" & MID(CELL(\"address\",INDIRECT(B828)),$I$3+1,100)","v":"'='Services Health and Social'!$C$49"},{"$f":" M4B5hhNutritionIncentives","v":0},"Number","M4B5hhNutritionIncentives"]
["SRV 5ii Prepared Meals","M4B5iiNutritionPrepMeals",{"$f":"\"'='\" & MID(CELL(\"address\",INDIRECT(B829)),$I$3+1,100)","v":"'='Services Health and Social'!$C$50"},{"$f":" M4B5iiNutritionPrepMeals","v":0},"Number","M4B5iiNutritionPrepMeals"]
["SRV 5jj Food Distribution (Food Bags/Boxes, Food Share Program, Bags of Groceries)  ","M4B5jjNutritionFoodDist",{"$f":"\"'='\" & MID(CELL(\"address\",INDIRECT(B830)),$I$3+1,100)","v":"'='Services Health and Social'!$C$51"},{"$f":" M4B5jjNutritionFoodDist","v":2265},"Number","M4B5jjNutritionFoodDist"]
["SRV 5kk Family Mentoring Sessions","M4B5kkFamilySkillMentor",{"$f":"\"'='\" & MID(CELL(\"address\",INDIRECT(B831)),$I$3+1,100)","v":"'='Services Health and Social'!$C$53"},{"$f":" M4B5kkFamilySkillMentor","v":0},"Number","M4B5kkFamilySkillMentor"]
["SRV 5ll Life Skills Coaching Sessions","M4B5llFamilySkillsLife",{"$f":"\"'='\" & MID(CELL(\"address\",INDIRECT(B832)),$I$3+1,100)","v":"'='Services Health and Social'!$C$54"},{"$f":" M4B5llFamilySkillsLife","v":0},"Number","M4B5llFamilySkillsLife"]
["SRV 5mm Parenting Classes","M4B5mmFamilySkillsParent",{"$f":"\"'='\" & MID(CELL(\"address\",INDIRECT(B833)),$I$3+1,100)","v":"'='Services Health and Social'!$C$55"},{"$f":" M4B5mmFamilySkillsParent","v":0},"Number","M4B5mmFamilySkillsParent"]
["SRV 5nn Kits/boxes","M4B5nnEmerHygieneKits",{"$f":"\"'='\" & MID(CELL(\"address\",INDIRECT(B834)),$I$3+1,100)","v":"'='Services Health and Social'!$C$57"},{"$f":" M4B5nnEmerHygieneKits","v":10},"Number","M4B5nnEmerHygieneKits"]
["SRV 5oo Hygiene Facility Utilizations (e.g. showers, toilets, sinks)","M4B5ooEmerHygieneFacility",{"$f":"\"'='\" & MID(CELL(\"address\",INDIRECT(B835)),$I$3+1,100)","v":"'='Services Health and Social'!$C$58"},{"$f":" M4B5ooEmerHygieneFacility","v":0},"Number","M4B5ooEmerHygieneFacility"]
["SRV 4a Financial Capability Skill Training ","M4B4aHousePayFinancialCap",{"$f":"\"'='\" & MID(CELL(\"address\",INDIRECT(B836)),$I$3+1,100)","v":"'='Services Housing'!$C$9"},{"$f":" M4B4aHousePayFinancialCap","v":32},"Number","M4B4aHousePayFinancialCap"]
["SRV 4b Financial Coaching/Counseling ","M4B4bHousePayFinancialCounsel",{"$f":"\"'='\" & MID(CELL(\"address\",INDIRECT(B837)),$I$3+1,100)","v":"'='Services Housing'!$C$10"},{"$f":" M4B4bHousePayFinancialCounsel","v":34},"Number","M4B4bHousePayFinancialCounsel"]
["SRV 4c Rent Payments (includes Emergency Rent Payments)","M4B4cHousePayRent",{"$f":"\"'='\" & MID(CELL(\"address\",INDIRECT(B838)),$I$3+1,100)","v":"'='Services Housing'!$C$11"},{"$f":" M4B4cHousePayRent","v":186},"Number","M4B4cHousePayRent"]
["SRV 4d Deposit Payments","M4B4dHousePayDeposit",{"$f":"\"'='\" & MID(CELL(\"address\",INDIRECT(B839)),$I$3+1,100)","v":"'='Services Housing'!$C$12"},{"$f":" M4B4dHousePayDeposit","v":48},"Number","M4B4dHousePayDeposit"]
["SRV 4e Mortgage Payments (includes Emergency Mortgage Payments)","M4B4eHousePayMortgage",{"$f":"\"'='\" & MID(CELL(\"address\",INDIRECT(B840)),$I$3+1,100)","v":"'='Services Housing'!$C$13"},{"$f":" M4B4eHousePayMortgage","v":7},"Number","M4B4eHousePayMortgage"]
["SRV 4f Eviction Counseling ","M4B4fEvictCounseling",{"$f":"\"'='\" & MID(CELL(\"address\",INDIRECT(B841)),$I$3+1,100)","v":"'='Services Housing'!$C$15"},{"$f":" M4B4fEvictCounseling","v":1},"Number","M4B4fEvictCounseling"]
["SRV 4g Landlord/Tenant Mediations","M4B4gEvictLandlordMed",{"$f":"\"'='\" & MID(CELL(\"address\",INDIRECT(B842)),$I$3+1,100)","v":"'='Services Housing'!$C$16"},{"$f":" M4B4gEvictLandlordMed","v":16},"Number","M4B4gEvictLandlordMed"]
["SRV 4h Landlord/Tenant Rights Education ","M4B4hEvictLandlordEdu",{"$f":"\"'='\" & MID(CELL(\"address\",INDIRECT(B843)),$I$3+1,100)","v":"'='Services Housing'!$C$17"},{"$f":" M4B4hEvictLandlordEdu","v":7},"Number","M4B4hEvictLandlordEdu"]
["SRV 4i Utility Payments (LIHEAP-includes Emergency Utility Payments)","M4B4iUtilityPayment",{"$f":"\"'='\" & MID(CELL(\"address\",INDIRECT(B844)),$I$3+1,100)","v":"'='Services Housing'!$C$19"},{"$f":" M4B4iUtilityPayment","v":3062},"Number","M4B4iUtilityPayment"]
["SRV 4j Utility Deposits","M4B4jUtilityDeposit",{"$f":"\"'='\" & MID(CELL(\"address\",INDIRECT(B845)),$I$3+1,100)","v":"'='Services Housing'!$C$20"},{"$f":" M4B4jUtilityDeposit","v":23},"Number","M4B4jUtilityDeposit"]
["SRV 4k Utility Arrears Payments","M4B4kUtilityArrears",{"$f":"\"'='\" & MID(CELL(\"address\",INDIRECT(B846)),$I$3+1,100)","v":"'='Services Housing'!$C$21"},{"$f":" M4B4kUtilityArrears","v":26},"Number","M4B4kUtilityArrears"]
["SRV 4l Level Billing Assistance","M4B4lUtilityLevelBill",{"$f":"\"'='\" & MID(CELL(\"address\",INDIRECT(B847)),$I$3+1,100)","v":"'='Services Housing'!$C$22"},{"$f":" M4B4lUtilityLevelBill","v":0},"Number","M4B4lUtilityLevelBill"]
["SRV 4m Temporary Housing Placement (includes Emergency Shelters)","M4B4mHousePlaceTemp",{"$f":"\"'='\" & MID(CELL(\"address\",INDIRECT(B848)),$I$3+1,100)","v":"'='Services Housing'!$C$24"},{"$f":" M4B4mHousePlaceTemp","v":10},"Number","M4B4mHousePlaceTemp"]
["SRV 4n Transitional Housing Placements","M4B4nHousePlaceTransition",{"$f":"\"'='\" & MID(CELL(\"address\",INDIRECT(B849)),$I$3+1,100)","v":"'='Services Housing'!$C$25"},{"$f":" M4B4nHousePlaceTransition","v":0},"Number","M4B4nHousePlaceTransition"]
["SRV 4o Permanent Housing Placements ","M4B4oHousePlacePerm",{"$f":"\"'='\" & MID(CELL(\"address\",INDIRECT(B850)),$I$3+1,100)","v":"'='Services Housing'!$C$26"},{"$f":" M4B4oHousePlacePerm","v":38},"Number","M4B4oHousePlacePerm"]
["SRV 4p Rental Counseling ","M4B4pHousePlaceRentCouns",{"$f":"\"'='\" & MID(CELL(\"address\",INDIRECT(B851)),$I$3+1,100)","v":"'='Services Housing'!$C$27"},{"$f":" M4B4pHousePlaceRentCouns","v":2},"Number","M4B4pHousePlaceRentCouns"]
["SRV 4q Home Repairs (e.g. structural, appliance, heating systems. etc.) (Including Emergency Home Repairs)","M4B4qHouseImproveRepair",{"$f":"\"'='\" & MID(CELL(\"address\",INDIRECT(B852)),$I$3+1,100)","v":"'='Services Housing'!$C$29"},{"$f":" M4B4qHouseImproveRepair","v":0},"Number","M4B4qHouseImproveRepair"]
["SRV 4r Independent-living Home Improvements (e.g. ramps, tub and shower grab bars, handicap accessible modifications, etc.)","M4B4rWxIndLiv",{"$f":"\"'='\" & MID(CELL(\"address\",INDIRECT(B853)),$I$3+1,100)","v":"'='Services Housing'!$C$31"},{"$f":" M4B4rWxIndLiv","v":0},"Number","M4B4rWxIndLiv"]
["SRV 4s Healthy Homes Services(e.g. reduction or elimination of lead, radon, carbon dioxide and/or fire hazards or electrical issues, etc.)","M4B4sWxHealthyHomes",{"$f":"\"'='\" & MID(CELL(\"address\",INDIRECT(B854)),$I$3+1,100)","v":"'='Services Housing'!$C$32"},{"$f":" M4B4sWxHealthyHomes","v":0},"Number","M4B4sWxHealthyHomes"]
["SRV 4t Energy Efficiency Improvements (e.g. insullation, air sealing, furnace repair, etc.)","M4B4tWxEE",{"$f":"\"'='\" & MID(CELL(\"address\",INDIRECT(B855)),$I$3+1,100)","v":"'='Services Housing'!$C$33"},{"$f":" M4B4tWxEE","v":0},"Number","M4B4tWxEE"]
["SRV 3a Financial Capability Skills Training","M4B3aTrainingFinancialCap",{"$f":"\"'='\" & MID(CELL(\"address\",INDIRECT(B856)),$I$3+1,100)","v":"'='Services Income'!$C$9"},{"$f":" M4B3aTrainingFinancialCap","v":58},"Number","M4B3aTrainingFinancialCap"]
["SRV 3b Financial Coaching/Counseling ","M4B3bTrainingFinancialCounsel",{"$f":"\"'='\" & MID(CELL(\"address\",INDIRECT(B857)),$I$3+1,100)","v":"'='Services Income'!$C$10"},{"$f":" M4B3bTrainingFinancialCounsel","v":53},"Number","M4B3bTrainingFinancialCounsel"]
["SRV 3c Financial Management Programs (including budgeting, credit management, credit repair, credit counseling, etc.)   ","M4B3cTrainingFinancialMgmt",{"$f":"\"'='\" & MID(CELL(\"address\",INDIRECT(B858)),$I$3+1,100)","v":"'='Services Income'!$C$11"},{"$f":" M4B3cTrainingFinancialMgmt","v":58},"Number","M4B3cTrainingFinancialMgmt"]
["SRV 3d First-time Homebuyer Counseling","M4B3dTrainingHomebuyer",{"$f":"\"'='\" & MID(CELL(\"address\",INDIRECT(B859)),$I$3+1,100)","v":"'='Services Income'!$C$12"},{"$f":" M4B3dTrainingHomebuyer","v":17},"Number","M4B3dTrainingHomebuyer"]
["SRV 3e Foreclosure Prevention Counseling","M4B3eTrainingForeclosure",{"$f":"\"'='\" & MID(CELL(\"address\",INDIRECT(B860)),$I$3+1,100)","v":"'='Services Income'!$C$13"},{"$f":" M4B3eTrainingForeclosure","v":6},"Number","M4B3eTrainingForeclosure"]
["SRV 3f Small Business Start-Up and Development Counseling Sessions/Classes","M4B3fTrainingSmallBus",{"$f":"\"'='\" & MID(CELL(\"address\",INDIRECT(B861)),$I$3+1,100)","v":"'='Services Income'!$C$14"},{"$f":" M4B3fTrainingSmallBus","v":8},"Number","M4B3fTrainingSmallBus"]
["SRV 3g Child Support Payments","M4B3gBenCoordChildSup",{"$f":"\"'='\" & MID(CELL(\"address\",INDIRECT(B862)),$I$3+1,100)","v":"'='Services Income'!$C$16"},{"$f":" M4B3gBenCoordChildSup","v":18},"Number","M4B3gBenCoordChildSup"]
["SRV 3h Health Insurance","M4B3hBenCoordHealthIns",{"$f":"\"'='\" & MID(CELL(\"address\",INDIRECT(B863)),$I$3+1,100)","v":"'='Services Income'!$C$17"},{"$f":" M4B3hBenCoordHealthIns","v":22},"Number","M4B3hBenCoordHealthIns"]
["SRV 3i Social Security/SSI Payments","M4B3iBenCoordSSI",{"$f":"\"'='\" & MID(CELL(\"address\",INDIRECT(B864)),$I$3+1,100)","v":"'='Services Income'!$C$18"},{"$f":" M4B3iBenCoordSSI","v":20},"Number","M4B3iBenCoordSSI"]
["SRV 3j Veteran's Benefits","M4B3jBenCoordVeterans",{"$f":"\"'='\" & MID(CELL(\"address\",INDIRECT(B865)),$I$3+1,100)","v":"'='Services Income'!$C$19"},{"$f":" M4B3jBenCoordVeterans","v":19},"Number","M4B3jBenCoordVeterans"]
["SRV 3k TANF Benefits","M4B3kBenCoordTANF",{"$f":"\"'='\" & MID(CELL(\"address\",INDIRECT(B866)),$I$3+1,100)","v":"'='Services Income'!$C$20"},{"$f":" M4B3kBenCoordTANF","v":39},"Number","M4B3kBenCoordTANF"]
["SRV 3l SNAP Benefits","M4B3lBenCoordSNAP",{"$f":"\"'='\" & MID(CELL(\"address\",INDIRECT(B867)),$I$3+1,100)","v":"'='Services Income'!$C$21"},{"$f":" M4B3lBenCoordSNAP","v":52},"Number","M4B3lBenCoordSNAP"]
["SRV 3m Saving Accounts/IDAs and other asset building accounts","M4B3mAssetBldgSavings",{"$f":"\"'='\" & MID(CELL(\"address\",INDIRECT(B868)),$I$3+1,100)","v":"'='Services Income'!$C$23"},{"$f":" M4B3mAssetBldgSavings","v":24},"Number","M4B3mAssetBldgSavings"]
["SRV 3n Other financial products (IRA accounts, MyRA, other retirement accounts, etc.)","M4B3nAssetBldgOtherFin",{"$f":"\"'='\" & MID(CELL(\"address\",INDIRECT(B869)),$I$3+1,100)","v":"'='Services Income'!$C$24"},{"$f":" M4B3nAssetBldgOtherFin","v":2},"Number","M4B3nAssetBldgOtherFin"]
["SRV 3o VITA, EITC, or Other Tax Preparation programs","M4B3oAssetBldgVITA",{"$f":"\"'='\" & MID(CELL(\"address\",INDIRECT(B870)),$I$3+1,100)","v":"'='Services Income'!$C$25"},{"$f":" M4B3oAssetBldgVITA","v":0},"Number","M4B3oAssetBldgVITA"]
["SRV 3p Micro-loans","M4B3pMicroLoans",{"$f":"\"'='\" & MID(CELL(\"address\",INDIRECT(B871)),$I$3+1,100)","v":"'='Services Income'!$C$27"},{"$f":" M4B3pMicroLoans","v":0},"Number","M4B3pMicroLoans"]
["SRV 3q Business incubator/business development loans","M4B3qBusIncubatorLoans",{"$f":"\"'='\" & MID(CELL(\"address\",INDIRECT(B872)),$I$3+1,100)","v":"'='Services Income'!$C$28"},{"$f":" M4B3qBusIncubatorLoans","v":3},"Number","M4B3qBusIncubatorLoans"]
["SRV 7a Case Management","M4B7aCaseMgmt",{"$f":"\"'='\" & MID(CELL(\"address\",INDIRECT(B873)),$I$3+1,100)","v":"'='Support Services'!$C$9"},{"$f":" M4B7aCaseMgmt","v":374},"Number","M4B7aCaseMgmt"]
["SRV 7b Eligibility Determinations","M4B7bEligDetermin",{"$f":"\"'='\" & MID(CELL(\"address\",INDIRECT(B874)),$I$3+1,100)","v":"'='Support Services'!$C$11"},{"$f":" M4B7bEligDetermin","v":472},"Number","M4B7bEligDetermin"]
["SRV 7c Referrals","M4B7cReferrals",{"$f":"\"'='\" & MID(CELL(\"address\",INDIRECT(B875)),$I$3+1,100)","v":"'='Support Services'!$C$13"},{"$f":" M4B7cReferrals","v":2589},"Number","M4B7cReferrals"]
["SRV 7d Transportation Services (e.g. bus passes, bus transport, support for auto purchase or repair; including emergency services)","M4B7dTranspServices",{"$f":"\"'='\" & MID(CELL(\"address\",INDIRECT(B876)),$I$3+1,100)","v":"'='Support Services'!$C$15"},{"$f":" M4B7dTranspServices","v":5},"Number","M4B7dTranspServices"]
["SRV 7e Child Care subsidies","M4B7eChildcareSubsidy",{"$f":"\"'='\" & MID(CELL(\"address\",INDIRECT(B877)),$I$3+1,100)","v":"'='Support Services'!$C$17"},{"$f":" M4B7eChildcareSubsidy","v":31},"Number","M4B7eChildcareSubsidy"]
["SRV 7f Child Care payments","M4B7fChildcarePayment",{"$f":"\"'='\" & MID(CELL(\"address\",INDIRECT(B878)),$I$3+1,100)","v":"'='Support Services'!$C$18"},{"$f":" M4B7fChildcarePayment","v":3},"Number","M4B7fChildcarePayment"]
["SRV 7g Day Centers","M4B7gEldercareDayCenter",{"$f":"\"'='\" & MID(CELL(\"address\",INDIRECT(B879)),$I$3+1,100)","v":"'='Support Services'!$C$20"},{"$f":" M4B7gEldercareDayCenter","v":0},"Number","M4B7gEldercareDayCenter"]
["SRV 7h Birth Certificate ","M4B7hIdBirthCert",{"$f":"\"'='\" & MID(CELL(\"address\",INDIRECT(B880)),$I$3+1,100)","v":"'='Support Services'!$C$22"},{"$f":" M4B7hIdBirthCert","v":0},"Number","M4B7hIdBirthCert"]
["SRV 7i Social Security Card ","M4B7iIdSSNCard",{"$f":"\"'='\" & MID(CELL(\"address\",INDIRECT(B881)),$I$3+1,100)","v":"'='Support Services'!$C$23"},{"$f":" M4B7iIdSSNCard","v":0},"Number","M4B7iIdSSNCard"]
["SRV 7j Driver's License ","M4B7jIdDriverLicense",{"$f":"\"'='\" & MID(CELL(\"address\",INDIRECT(B882)),$I$3+1,100)","v":"'='Support Services'!$C$24"},{"$f":" M4B7jIdDriverLicense","v":3},"Number","M4B7jIdDriverLicense"]
["SRV 7k Criminal Record Expungements","M4B7kReentryServ",{"$f":"\"'='\" & MID(CELL(\"address\",INDIRECT(B883)),$I$3+1,100)","v":"'='Support Services'!$C$26"},{"$f":" M4B7kReentryServ","v":0},"Number","M4B7kReentryServ"]
["SRV 7l Immigration Support Services (relocation, food, clothing)","M4B7lImmigrantSupport",{"$f":"\"'='\" & MID(CELL(\"address\",INDIRECT(B884)),$I$3+1,100)","v":"'='Support Services'!$C$28"},{"$f":" M4B7lImmigrantSupport","v":0},"Number","M4B7lImmigrantSupport"]
["SRV 7m Legal Assistance ","M4B7mLegalAssist",{"$f":"\"'='\" & MID(CELL(\"address\",INDIRECT(B885)),$I$3+1,100)","v":"'='Support Services'!$C$30"},{"$f":" M4B7mLegalAssist","v":0},"Number","M4B7mLegalAssist"]
["SRV 7n Emergency Clothing Assistance","M4B7nEmerClothing",{"$f":"\"'='\" & MID(CELL(\"address\",INDIRECT(B886)),$I$3+1,100)","v":"'='Support Services'!$C$32"},{"$f":" M4B7nEmerClothing","v":16},"Number","M4B7nEmerClothing"]
["SRV 7o Mediation/Customer Advocacy Interventions","M4B7oMediation",{"$f":"\"'='\" & MID(CELL(\"address\",INDIRECT(B887)),$I$3+1,100)","v":"'='Support Services'!$C$34"},{"$f":" M4B7oMediation","v":29},"Number","M4B7oMediation"]